Workbook

Sheet Portada
G3: EDEMET
F22: Panamá, junio de 2023
F25: EDEMET
F26: Régimen Tarifario
F27: Julio 2022 - Junio 2026
F29: Pliego Tarifario
F30: julio - diciembre 2023
F33: MODELOS Y PLIEGO

Sheet CONTENIDO modelos
A1: =+[1]Fecha!$A$1 -> EDEMET
A2: MODELO | B2: DETALLE DEL MODELO
A3: AT100 | B3: CALCULO DEL FACTOR DE ACTUALIZACION DE LOS CARGOS POR COMERCIALIZACION, DISTRIBUCION Y SERVICIO DE ALUMBRADO PUBLICO
A4: AT200 | B4: CALCULO DEL FACTOR DE ACTUALIZACION DEL CARGO POR PERDIDAS EN DISTRIBUCION
A5: AT300 | B5: CALCULO DEL FACTOR DE ACTUALIZACION DE LOS CARGOS POR TRANSMISION
A6: AT400 | B6: CALCULO DEL FACTOR DE ACTUALIZACION DEL CARGO POR PERDIDAS EN TRANSMISION
A7: AT500 | B7: CALCULO DEL FACTOR DE ACTUALIZACION DE LOS CARGOS POR GENERACION
A8: AT600 | B8: CALCULO DEL FACTOR DE ACTUALIZACION DE LOS CARGOS POR CONSUMO DE ALUMBRADO PUBLICO
A9: AT1000 | B9: TARIFAS DE P-2, P-1, P Y FACTORES DE AJUSTE
A10: AT RES | B10: VARIACIÓN DEL PRECIO PROMEDIO ESTIMADO DE LA ENERGIA ELECTRICA DE CLIENTES REGULADOS
A11: AT RES (POR TARIFA) | B11: VARIACIÓN DEL PRECIO PROMEDIO ESTIMADO DE LA ENERGIA ELECTRICA DE CLIENTES REGULADOS Y GRANDES CLIENTES POR TARIFA
A12: AT RES (3) | B12: VARIACIÓN DEL PRECIO PROMEDIO ESTIMADO DE LA ENERGIA ELECTRICA DE GRANDES CLIENTES

Sheet Coef_GC
A1: =+[1]Fecha!$A$1 -> EDEMET
A4: Ajuste Potencia G.C. (semestre p) | B4: 2022-07-01 | C4: 2022-08-01 | D4: 2022-09-01 | E4: 2022-10-01 | F4: 2022-11-01 | G4: 2022-12-01 | H4: 2023-01-01 | I4: 2023-02-01 | J4: 2023-03-01 | K4: 2023-04-01 | L4: 2023-05-01 | M4: 2023-06-01 | N4: 2023-07-01 | O4: 2023-08-01 | P4: 2023-09-01 | Q4: 2023-10-01 | R4: 2023-11-01 | S4: 2023-12-01
A5: Factor de Ajuste | B5: =+(1+B6)*(1+B7) -> 1.09185765 | C5: =+(1+C6)*(1+C7) -> 1.09185765 | D5: 1.1168734 | E5: 1.1168734 | F5: 1.1168734 | G5: 1.09185765 | H5: =+(1 +H6) * (1 + H7) -> 1.08579 | I5: =+(1 +I6) * (1 + I7) -> 1.08579 | J5: =+(1 +J6) * (1 + J7) -> 1.08579 | K5: =+(1 +K6) * (1 + K7) -> 1.10399295 | L5: =+(1 +L6) * (1 + L7) -> 1.10399295 | M5: =+(1 +M6) * (1 + M7) -> 1.10399295 | N5: =+(1 +N6) * (1 + N7) -> 1.10399295 | O5: =+(1 +O6) * (1 + O7) -> 1.104951 | P5: =+(1 +P6) * (1 + P7) -> 1.104951 | Q5: =+(1 +Q6) * (1 + Q7) -> 1.104951 | R5: =+(1 +R6) * (1 + R7) -> 1.104951 | S5: =+(1 +S6) * (1 + S7) -> 1.104951
A6: Reserva para Confiabilidad de Largo Plazo | B6: 0.0645 | C6: 0.0645 | D6: 0.0645 | E6: 0.0645 | F6: 0.0645 | G6: 0.0645 | H6: 0.0645 | I6: 0.0645 | J6: 0.0645 | K6: 0.0645 | L6: 0.0645 | M6: 0.0645 | N6: 0.0645 | O6: 0.0645 | P6: 0.0645 | Q6: 0.0645 | R6: 0.0645 | S6: 0.0645
A7: Pérdidas Típicas en Punta | B7: 0.0257 | C7: 0.0257 | D7: 0.0492 | E7: 0.0492 | F7: 0.0492 | G7: 0.0257 | H7: 0.02 | I7: 0.02 | J7: 0.02 | K7: 0.0371 | L7: 0.0371 | M7: 0.0371 | N7: 0.0371 | O7: 0.038 | P7: 0.038 | Q7: 0.038 | R7: 0.038 | S7: 0.038
A9: Ajuste Potencia G.C. (aplicado) | B9: 2022-07-01 | C9: 2022-08-01 | D9: 2022-09-01 | E9: 2022-10-01 | F9: 2022-11-01 | G9: 2022-12-01 | H9: 2023-01-01 | I9: 2023-02-01 | J9: 2023-03-01 | K9: 2023-04-01 | L9: 2023-05-01 | M9: 2023-06-01 | N9: 2023-07-01 | O9: 2023-08-01 | P9: 2023-09-01 | Q9: 2023-10-01 | R9: 2023-11-01 | S9: 2023-12-01
A10: Factor de Ajuste | B10: =+(1 +B11) * (1 + B12) -> 1.09185765 | C10: =+(1 +C11) * (1 + C12) -> 1.09185765 | D10: 1.1168734 | E10: 1.1168734 | F10: 1.1168734 | G10: 1.09185765 | H10: 1.08579 | I10: 1.08579 | J10: 1.08579 | K10: 1.10399295 | L10: 1.10399295 | M10: 1.10399295 | N10: 1.10399295 | O10: 1.104951 | P10: 1.104951 | Q10: 1.104951 | R10: 1.104951 | S10: 1.104951
A11: Reserva para Confiabilidad de Largo Plazo | B11: 0.0645 | C11: 0.0645 | D11: 0.0645 | E11: 0.0645 | F11: 0.0645 | G11: 0.0645 | H11: 0.0645 | I11: 0.0645 | J11: 0.0645 | K11: 0.0645 | L11: 0.0645 | M11: 0.0645 | N11: 0.0645 | O11: 0.0645 | P11: 0.0645 | Q11: 0.0645 | R11: 0.0645 | S11: 0.0645
A12: Pérdidas Típicas en Punta | B12: 0.0257 | C12: 0.0257 | D12: 0.0492 | E12: 0.0492 | F12: 0.0492 | G12: 0.0257 | H12: 0.02 | I12: 0.02 | J12: 0.02 | K12: 0.0371 | L12: 0.0371 | M12: 0.0371 | N12: 0.0371 | O12: 0.038 | P12: 0.038 | Q12: 0.038 | R12: 0.038 | S12: 0.038

Sheet Ajuste COMER DISTR Y AP-100
B1: CALCULO DEL FACTOR DE ACTUALIZACION DE:
B2: =+[1]Fecha!$A$1 -> EDEMET | C2: CARGOS DE COMERCIALIZACION, DISTRIBUCION
C3: Y SERVICIO DE ALUMBRADO PUBLICO
B25: Detalle | C25: Variable | D25: Ene-Jun2023 | E25: =+[1]Fecha!T4 -> Jul-Dic/2023
A26: 1 | B26: IPC p-2 (Viene del FORM AT 100) | C26: IPCmes 6 | D26: =+'COMER DISTR Y AP-100'!B11 -> 110.3114 | E26: =+'COMER DISTR Y AP-100'!B10 -> 107.845
A27: 2 | B27: IPC p-3 (Viene del FORM AT 100) | C27: IPCmes 6 | D27: =+'COMER DISTR Y AP-100'!E11 -> 105.653 | E27: =+'COMER DISTR Y AP-100'!E10 -> 110.3114
A28: 3 | B28: Factor de Ajuste = 1 / 2 | C28: (IPCp-2/IPCp-3) | D28: =+D26/D27 -> 1.044091507 | E28: =+E26/E27 -> 0.9776414768
A29: 4 | B29: Porción de cargos de Comercialización que no se ajustan por IPC | C29: XC | D29: =+IF($B$2="EDEMET",0.1181,0.0811) -> 0.1181 | E29: =+IF($B$2="EDEMET",0.1181,0.0811) -> 0.1181
A30: 5 | B30: Porción de cargo de redes de Distribución que no se ajusta por IPC | C30: XUS | D30: =+IF($B$2="EDEMET",0.6247,0.4858) -> 0.6247 | E30: =+IF($B$2="EDEMET",0.6247,0.4858) -> 0.6247
A31: 6 | B31: Porción de cargo de Servicio de Alumbrado Público que no se ajusta por IPC | C31: XAP | D31: =+IF($B$2="EDEMET",0.7892,0.8058) -> 0.7892 | E31: =+IF($B$2="EDEMET",0.7892,0.8058) -> 0.7892
A32: 7 | B32: Factor de Actualización de Cargos de Comercialización | D32: =+D29+((1-D29)*D28) -> 1.0388843 | E32: =+E29+((1-E29)*E28) -> 0.9802820184
A33: 8 | B33: Factor de Actualización de Cargo de redes de Distribución, cargo de conexión y cargo de reconexión | D33: =+D30+((1-D30)*D28) -> 1.016547543 | E33: =+E30+((1-E30)*E28) -> 0.9916088462
A34: 9 | B34: Factor de Actualización de Cargo por Servicio de Alumbrado Público | D34: =+D31+((1-D31)*D28) -> 1.00929449 | E34: =+E31+((1-E31)*E28) -> 0.9952868233

Sheet AjustePérd de Dist-200
B1: CALCULO DEL FACTOR DE ACTUALIZACION DE:
B2: =+[1]Fecha!$A$1 -> EDEMET | C2: CARGO POR PERDIDAS EN DISTRIBUCION
B3: FORMULAS
B4: Para las categorías que posean medición con discriminación horaria
B5: Pérdidas de Energía en Punta:
B20: Pérdidas de Energía Fuera de Punta:
B32: Para las categorías que no posean medición con discriminación horaria
B33: Pérdidas de Energía
B42: Pérdidas de Potencia:
B52: Detalle | C52: Variable | D52: =+[1]Fecha!T4 -> Jul-Dic/2023
A53: 1 | B53: Valor TOTAL permitido a recuperar en la tarifa para cubrir los costos de generación en el semestre p (Viene del MODELO AT500, punto 10) (B/.) | D53: =+'Ajuste Generación-500 (2)'!E74 -> 132513566.8
A54: 2 | B54: Valor permitido a traspasar a la tarifa para cubrir los costos del sistema de transmisión en el semestre p, más Costos del MER (Viene del MODELO AT300, punto 11) (B/.) | D54: =+'Ajuste Transmisión-300'!C32 -> 23995850.66
A55: 3 | B55: Valor permitido en la tarifa para cubrir los costos por pérdidas en transmisión en el semestre p (Viene del MODELO AT400, punto 6) (B/.) | D55: =+'AjustePérd de Trans-400'!D28 -> 4855433.49
A56: 4 | B56: Valor a recuperar para cubrir costos de generación, costos del sistema de transporte y pérdidas en transmisión en horas de punta pronosticados en el período p (B/.) = 1 + 2 + 3 | D56: =+D53+D54+D55 -> 161364851
A57: 5 | B57: Monto TOTAL necesario para cubrir los apartamientos que se produjeron entre los costos de generación reales y los ingresos reales (producidos por los cargos Base y las ventas reales) y por las diferencias entre los ingresos permitidos (producidos por los cargos Correcc y las ventas estimadas) y los ingresos reales (producidos por los cargos Correcc y las ventas reales) en horas de Punta del semestre p-2 actualizado con la tasa de descuento (Viene del MODELO AT500-En P (2), punto 7) (B/.) | D57: =+'Ajuste Generación-500 -En P (2)'!C31 -> 16197339.76
A58: 6 | B58: Monto necesario para cubrir los apartamientos que se produjeron entre los costos de transmisión reales y los ingresos reales (producidos por los cargos Base y las ventas reales) y por las diferencias entre los ingresos permitidos (producidos por los cargos Correcc y las ventas estimadas) y los ingresos reales (producidos por los cargos Correcc y las ventas reales), ambos referenciados al semestre p-2 actualizado con la tasa de descuento (Viene del MODELO AT300, punto 22) (B/.) | D58: =+'Ajuste Transmisión-300'!D45 -> -324492.6903
A59: 7 | B59: Monto necesario para cubrir los apartamientos que se produjeron en el semestre p-2 entre los costos de pérdidas de transmisión reales y los ingresos reales (producidos por los cargos Base y las ventas reales) y por las diferencias entre los ingresos permitidos (producidos por los cargos Correcc y las ventas estimadas) y los ingresos reales (producidos por los cargos Correcc y las ventas reales) actualizado con la tasa de descuento (Viene del MODELO AT400, punto 16) (B/.) | D59: =+'AjustePérd de Trans-400'!D38 -> 3563223.46
A60: 8 | B60: Corrección para cubrir los apartamientos que se produjeron entre los costos de generación (potencia y energía y demás costos del mercado mayorista) y costos del sistema de transporte (incluyendo pérdidas en transmisión), y los ingresos reales (producidos por los cargos Base y las ventas reales), y por las diferencias entre los ingresos permitidos (producidos por los cargos Correcc y las ventas estimadas) y los ingresos reales (producidos por los cargos Correcc y las ventas reales) ambos en el semestre p-2 = 5 + 6 + 7 | D60: =+D57+D58+D59 -> 19436070.53
A61: 9 | B61: Ingresos estimados a partir de la proyección de ventas del semestre p y los cargos Base asociados a los costos de generación del semestre p-1(Viene del MODELO AT500, punto 12) (B/.) | D61: =+'Ajuste Generación-500 (2)'!G78 -> 142091921.5
A62: 10 | B62: Ingresos estimados a partir de la proyección de ventas del semestre p y los cargos Base asociados a los costos de transmisión del semestre p-1 (Viene del MODELO AT300, punto 13) (B/.) | D62: =+'Ajuste Transmisión-300'!D36 -> 23713305.49
A63: 11 | B63: Ingresos estimados a partir de la proyección de ventas del semestre p y los cargos BASE asociados a los costos de pérdidas de transmisión del semestre p-1 (Viene del MODELO AT400, punto 7) (B/.) | D63: =+'AjustePérd de Trans-400'!D29 -> 5069682.112
A64: 12 | B64: Valor que se recuperaría con los cargos de p-1 correspondientes a los costos Base de generación, costos del sistema de transporte y pérdidas de transmisión en horas de punta, aplicados a las ventas del semestre p (B/.) = 9 + 10 + 11 | D64: =+D61+D62+D63 -> 170874909.1
A65: 13 | B65: Factor de Actualización o corrección = 4 / 12 | D65: =+D56/D64 -> 0.9443449121
A66: 14 | B66: Factor de Actualización o corrección = 8 / 12 | D66: =+D60/D64 -> 0.1137444382
B67: Nota: se utilizará el mismo factor de actualización para todos los cargos Base y el mismo factor de actualización para todos los cargos Correcc.

Sheet Ajuste Transmisión-300
B1: CALCULO DEL FACTOR DE ACTUALIZACION DE:
B2: =+[1]Fecha!$A$1 -> EDEMET
B3: FORMULAS
B5: Donde
B20: Detalle | C20: =+"SEMESTRE p "&[1]Fecha!T4 -> SEMESTRE p Jul-Dic/2023 | D20: =+"SEMESTRE p-2 "&[1]Fecha!T8 -> SEMESTRE p-2 Jul-Dic/2022
A21: 1 | B21: Costos de Conexión (B/.) (Viene del FORM AT302 Y AT322) | C21: =+SUM('TRANSMISION-302'!B21:G21) -> 1934720.04 | D21: =+SUM('TRANSMISION-322'!B21:G21) -> 1934720.01
A22: 2 | B22: Costos por uso de la red de transporte (B/.) (Viene del FORM AT302 Y AT322) | C22: =+SUM('TRANSMISION-302'!B23:G30)+SUM('TRANSMISION-302'!B32:G37) -> 18118356.5 | D22: =+SUM('TRANSMISION-322'!B23:G30)+SUM('TRANSMISION-322'!B32:G37) -> 17727236.51
A23: 3 | B23: Costos por el servicio de Operación Integrada del Mercado Mayorista (B/.) (Viene del FORM AT302 Y AT322) | C23: =+SUM('TRANSMISION-302'!B31:G31) -> 1512887.04 | D23: =+SUM('TRANSMISION-322'!B31:G31) -> 807293.11
A24: 4 | B24: Costos por el servicio de Operación Integrada del Mercado Mayorista (B/.) (Viene del FORM AT302 Y AT322) | C24: =+SUM('TRANSMISION-302'!B39:G39) -> 4092000 | D24: =+SUM('TRANSMISION-322'!B39:G39) -> 3499433.403
A25: 5 | B25: Costos por uso de redes pagado a la Autoridad del Canal de Panamá (B/.) (Viene del FORM AT302 Y AT322) | C25: =+SUM('TRANSMISION-302'!B40:G41) -> 1254000 | D25: =+SUM('TRANSMISION-322'!B40:G41) -> 1312806.765
A26: 6 | B26: Costo por uso de redes, otros costos de transporte y Tasa de Regulación del Mercado Regional (B/.) (Viene del FORM AT302 Y AT322) | C26: =+SUM('TRANSMISION-302'!B43:G43) -> 0 | D26: =+SUM('TRANSMISION-322'!B43:G43) -> 0
A27: 7 | B27: Total de Costos de Transmisión (B/.) = 1 + 2 + 3 + 4 + 5 + 6 | C27: =+SUM(C21:C26) -> 26911963.58 | D27: =+SUM(D21:D26) -> 25281489.8
A28: 8 | B28: Energía transmitida (suma de la energía comprada por la distribuidora ingresada a su red en los nodos de compra o entrega (en contrato más mercado ocasional) más la energía asignada por el CND a los Grandes Clientes) (kWh) (Viene del FORM AT302 Y AT322) | C28: =+SUM('TRANSMISION-302'!B17:G17)*1000+SUM('Facturación-801 (energía)'!B422:G422)+SUM('Facturación-801 (energía)'!B376:G376) -> 2623276773 | D28: =+SUM('TRANSMISION-322'!B17:G17)*1000+SUM('Facturación-821-A (energía)'!B450:G450)+SUM('Facturación-821-A (energía)'!B407:G407) -> 2524439001
B29: Detalle | C29: =+C20 -> SEMESTRE p Jul-Dic/2023 | D29: =+D20 -> SEMESTRE p-2 Jul-Dic/2022
A30: 9 | B30: Costo Monómico de Transmisión (B/./kWh) = 6 / 7 | C30: =+IFERROR(C27/C28,0) -> 0.01025891124 | D30: =+IFERROR(D27/D28,0) -> 0.01001469625
A31: 10 | B31: Venta de energía a clientes, Consumo de Alumbrado Público y el consumo de los Grandes Clientes (kWh) (Viene del FORM AT801 y AT821) | C31: =+SUM('Facturación-801 (energía)'!B111:G111)+SUM('Facturación-801 (energía)'!B457:G457)+(SUM('Facturación-801 (energía)'!B422:G422)+SUM('Facturación-801 (energía)'!B376:G376)) -> 2339025077 | D31: =+SUM('Facturación-821-A (energía)'!B111:G111)+SUM('Facturación-821-A (energía)'!B486:G486)+SUM('Facturación-821-A (energía)'!B450:G450)+SUM('Facturación-821-A (energía)'!B407:G407) -> 2148030530
A32: 11 | B32: Costos de Transmisión Permitidos (B/.) = 9 x 10 | C32: =+C30*C31 -> 23995850.66 | D32: =+D30*D31 -> 21511873.29
B34: Detalle | D34: Valor
A35: 12 | B35: Valor permitido a traspasar a la tarifa que la empresa aplicaría a los clientes para cubrir los costos puros de transmisión en el semestre p (B/.) (11) | D35: =+C32 -> 23995850.66
A36: 13 | B36: Ingresos estimados que resultan de aplicar los cargos Base por transmisión, que contienen las tarifas del semestre p-1 a la proyección de ventas de potencia y energía del semestre p (Viene del FORM AT303) (B/.) | D36: =+SUM('TRANSMISION-303'!B124:G124,'TRANSMISION-303'!B157:G157,'TRANSMISION-303'!B182:G182) -> 23713305.49
A37: 14 | B37: Costo permitido real de transmisión calculado en base a los costos reales de transmisión en el semestre p-2 (B/.) (11) | D37: =+D32 -> 21511873.29
A38: 15 | B38: Ingresos reales producidos por los cargos Base y las ventas reales del semestre p-2 (Viene del FORM AT306) (B/.) | D38: =+SUM('TRANSMISION-306'!B108:G108,'TRANSMISION-306'!B141:G141,'TRANSMISION-306'!B166:G166) -> 21806344.29
A39: 16 | B39: Ingresos permitidos producidos por los cargos Correcc por transmisión y las ventas estimadas en el semestre p-2 (Viene del FORM AT307) (B/.) | D39: =+SUM('TRANSMISION-307'!B108:G108,'TRANSMISION-307'!B141:G141,'TRANSMISION-307'!B166:G166) -> -187447.6804
A40: 17 | B40: Ingresos reales producidos por los cargos Correcc por transmisión y las ventas reales en el semestre p-2 (Viene del FORM AT308) (B/.) | D40: =+SUM('TRANSMISION-308'!B108:G108,'TRANSMISION-308'!B141:G141,'TRANSMISION-308'!B166:G166) -> -199202.9706
A41: 18 | B41: Monto necesario para cubrir las diferencias entre los ingresos permitidos (producidos por los cargos Correcc y las ventas estimadas) y los ingresos reales (producidos por los cargos Correcc y las ventas reales) en el semestre p-2 (B/.) = 16 - 17 | D41: =+D40-D39 -> -11755.29027
A42: 19 | B42: Monto necesario para cubrir los apartamientos que se produjeron entre los costos de transmisión reales y los ingresos reales (producidos por los cargos Base y las ventas reales) y por las diferencias entre los ingresos permitidos (producidos por los cargos Correcc y las ventas estimadas) y los ingresos reales (producidos por los cargos Correcc y las ventas reales), ambos referenciados al semestre p-2 (B/.) = 14 - 15 + 18 | D42: =+D37-D38+D41 -> -306226.292
A43: 20 | B43: Tasa de interés (Viene del FORM AT700) | D43: =+'TASAS DE INTERES-700'!B20 -> 0.05965
A44: 21 | B44: Factor de la tasa de interés | D44: =1+D43 -> 1.05965
A45: 22 | B45: Valor de los apartamientos actualizado con la tasa de descuento “r” (B/.) = 19 x 21 | D45: =+D42*D44 -> -324492.6903
A46: 23 | B46: Factor de Actualización o corrección BASE = (12 / 13) | D46: =+IFERROR(D35/D36,0) -> 1.011915048
A47: 24 | B47: Factor de Actualización o corrección = (22 / 13) | D47: =+IFERROR(D45/D36,0) -> -0.01368399232

Sheet AjustePérd de Trans-400
B1: CALCULO DEL FACTOR DE ACTUALIZACION DE:
B2: =+[1]Fecha!$A$1 -> EDEMET
B3: FORMULAS
B7: Donde
B20: Detalle | C20: =+"SEMESTRE p "&[1]Fecha!T4 -> SEMESTRE p Jul-Dic/2023 | D20: =+"SEMESTRE p-2 "&[1]Fecha!T8 -> SEMESTRE p-2 Jul-Dic/2022
A21: 1 | B21: Costos de las pérdidas en transmisión (B/.) (Viene del FORM AT402 y AT422) | C21: =+SUM('PERD TRANS-402'!B13:G13) -> 5576820.378 | D21: =+SUM('PERD TRANS-422'!B13:G13) -> 9185780.56
A22: 2 | B22: Energía transmitida (suma de la energía comprada por la distribuidora ingresada a su red en los nodos de compra o entrega (en contrato más mercado ocasional (kWh) (Viene del FORM AT302 Y AT322) | C22: =+SUM('TRANSMISION-302'!B17:G17)*1000 -> 2197462524 | D22: =+SUM('TRANSMISION-322'!B17:G17)*1000 -> 2112944735
A23: 3 | B23: Costo promedio de pérdidas en transmisión (B/./kWh) = 1 / 2 | C23: =+IFERROR(C21/C22,0) -> 0.0025378455 | D23: =+D21/D22 -> 0.004347383255
A24: 4 | B24: Venta de energía a clientes y Consumo de Alumbrado Público (kWh) (Viene del FORM AT801 y AT821) | C24: =+SUM('Facturación-801 (energía)'!B111:G111)+SUM('Facturación-801 (energía)'!B457:G457) -> 1913210828 | D24: =+SUM('Facturación-821-A (energía)'!B111:G111)+SUM('Facturación-821-A (energía)'!B486:G486) -> 1736536264
A25: 5 | B25: Costo permitido de pérdidas en transmisión (B/.) = 3 X 4 | C25: =+C23*C24 -> 4855433.49 | D25: =+D23*D24 -> 7549388.674
B27: Detalle | D27: Valor
A28: 6 | B28: Valor permitido en la tarifa que la empresa aplicaría a los clientes para cubrir los costos puros por pérdidas de energía en transmisión en el semestre p (B/.) (5) | D28: =+C25 -> 4855433.49
A29: 7 | B29: Ingresos estimados que resultan de aplicar los cargos Base por pérdidas de transmisión que contienen las tarifas del semestre p-1 a la proyección de ventas del semestre p (Viene del FORM AT403) (B/.) | D29: =+SUM('PERD TRANS-403'!B124:G124)+SUM('PERD TRANS-403'!B149:G149) -> 5069682.112
A30: 8 | B30: Costo permitido real de pérdidas de transmisión calculado en base a los costos reales de pérdidas de transmisión en el semestre p-2 (B/.) (5) | D30: =+D25 -> 7549388.674
A31: 9 | B31: Ingresos reales producidos por los cargos Base y las ventas reales del semestre p-2 (Viene del FORM AT406) (B/.) | D31: =+SUM('PERD TRANS-406'!B107:G107,'PERD TRANS-406'!B132:G132) -> 4581852.219
A32: 10 | B32: Ingresos reales producidos por los cargos CORREC por Pérdidas de Transmisión y las ventas reales del semestre p-2 (Viene del FORM AT407) (B/.) | D32: =+SUM('PERD TRANS-407'!B107:G107,'PERD TRANS-407'!B132:G132) -> 3864051.33
A33: 11 | B33: Ingresos permitidos producidos por los cargos CORREC por pérdidas transmisión y las ventas estimadas en el semestre p-2 (Viene del FORM AT408) (B/.) | D33: =+SUM('PERD TRANS-408'!B107:G107,'PERD TRANS-408'!B132:G132) -> 4259156.747
A34: 12 | B34: Monto necesario para cubrir las diferencias entre los ingresos permitidos (producidos por los cargos Correcc y las ventas estimadas) y los ingresos reales (producidos por los cargos CORREC y las ventas reales) en el semestre p-2 (B/.) = 10 - 11 | D34: =+D33-D32 -> 395105.4175
A35: 13 | B35: Monto necesario para cubrir los apartamientos que se produjeron en el semestre p-2 entre los costos de pérdidas de transmisión reales y los ingresos reales (producidos por los cargos Base y las ventas reales) y por las diferencias entre los ingresos permitidos (producidos por los cargos Correcc y las ventas estimadas) y los ingresos reales (producidos por los cargos Correcc y las ventas reales) (B/.) = 8 - 9 + 12 | D35: =+D30-D31+D34 -> 3362641.873
A36: 14 | B36: Tasa de interés (Viene del FORM AT700) | D36: =+'TASAS DE INTERES-700'!B20 -> 0.05965
A37: 15 | B37: Factor de la tasa de interés | D37: =1+D36 -> 1.05965
A38: 16 | B38: Valor de los apartamientos actualizado con la tasa de descuento “r” (B/.) = 13 x 15 | D38: =+D35*D37 -> 3563223.46
A39: 17 | B39: Factor de Actualización o corrección = (6 / 7) | D39: =+D28/D29 -> 0.9577392395
A40: 18 | B40: Factor de Actualización o corrección = (16 / 7) | D40: =+D38/D29 -> 0.7028494848

Sheet Ajuste Generación-500 (2)
C1: CALCULO DEL FACTOR DE ACTUALIZACION DE:
C2: =+[1]Fecha!$A$1 -> EDEMET
C3: FORMULAS
C9: Para todos los Cargos los factores de ajuste son:
C11: Para cargos Base
C13: Donde
C53: Detalle | E53: =+'AjustePérd de Trans-400'!C$20 -> SEMESTRE p Jul-Dic/2023 | F53: =+'AjustePérd de Trans-400'!D$20 -> SEMESTRE p-2 Jul-Dic/2022
A54: 1 | C54: Costos de Generación (B/.) = 2 + 3 + 4 | E54: =+E55+E59+E63 -> 242551720 | F54: =+F55+F59+F63 -> 261779568.9
A55: 2 | C55: Costos de compra de potencia (B/.) = 2.1 + 2.2 + 2.3 | E55: =+E56+E57+E58 -> 113036213.7 | F55: =+F56+F57+F58 -> 92608628.5
B56: 2.1 | C56: Costos de compra de potencia contratada mediante el mecanismo establecido por la ASEP (Viene del FORM AT502 y AT522) (B/.) | E56: =+SUM('GEN-502 Cos_Pot'!B24:G24) -> 112721433.2 | F56: =+SUM('GEN-522 Cos_Pot'!B24:G24) -> 92140049.85
B57: 2.2 | C57: Costos o ingresos por Compensaciones de Potencia (Viene del FORM AT502 y AT522) (B/.) | E57: =+SUM('GEN-502 Cos_Pot'!B17:G17) -> 10100.48626 | F57: =+SUM('GEN-522 Cos_Pot'!B17:G17) -> 4590.22
B58: 2.3 | C58: Costos por servicios auxiliares de potencia (Reserva, Seguimiento de la demanda) (Viene del FORM AT502 y AT522) (B/.) | E58: =+SUM('GEN-502 Cos_Pot'!B16:G16)+SUM('GEN-502 Cos_Pot'!B18:G18) -> 304680 | F58: =+SUM('GEN-522 Cos_Pot'!B16:G16)+SUM('GEN-522 Cos_Pot'!B18:G18) -> 463988.43
A59: 3 | C59: Costos por compra de energía (B/.) = 3.1 + 3.2 | E59: =+E60+E61+E62 -> 125169125.2 | F59: =+F60+F61+F62 -> 164325346.5
B60: 3.1 | C60: Costos por compra de energía asociada contratada mediante el mecanismo establecido por la ASEP (Viene del FORM AT502 y AT522) (B/.) | E60: =+SUM('GEN-502 Cos_Gen_P'!B24:G24)+SUM('GEN-502 Cos_Gen_FP'!B24:G24) -> 126773273.7 | F60: =+SUM('GEN-522 Cos_Gen_P'!B24:G24)+SUM('GEN-522 Cos_Gen_FP'!B24:G24) -> 155989038.5
B61: 3.2 | C61: Costos o ingresos por compras o ventas de energía en el mercado ocasional que hayan sido autorizadas por la ASEP (Viene del FORM AT502 y AT522) (B/.) | E61: =+SUM('GEN-502 Cos_Gen_P'!B16:G16)+SUM('GEN-502 Cos_Gen_FP'!B16:G16) -> -1604148.501 | F61: =+SUM('GEN-522 Cos_Gen_P'!B16:G16)+SUM('GEN-522 Cos_Gen_FP'!B16:G16) -> 8336307.988
B62: 3.3 | C62: Créditos que resultan a favor de los clientes producto de la aplicación del Procedimiento para Autoconsumo con Fuentes Nuevas, Renovables y Limpias aprobado mediante la Resolución AN No.10206-Elec de 11 de julio de 2016 (Viene del FORM AT502 y AT522) (B/.)
A63: 4 | C63: Costos del Mercado (B/.) = 4.1 + 4.2 + 4.3 + 4.4 - 4.5 | E63: =+E64+E65+E66+E67-E68 -> 4346381.197 | F63: =+F64+F65+F66+F67-F68 -> 4845593.94
B64: 4.1 | C64: Costos por servicios auxiliares (Viene del FORM AT502 y AT522) (B/.) | E64: =+SUM('GEN-502 Cos_Gen_P'!B17:G17) -> 1767614.685 | F64: =+SUM('GEN-522 Cos_Gen_P'!B17:G17) -> 1492510.31
B65: 4.2 | C65: Costo de Fianzas correspondientes a contratos (Viene del FORM AT502 y AT522) (B/.) | E65: =+SUM('GEN-502 Cos_Gen_P'!B20:G21) -> 2337703.202 | F65: =+SUM('GEN-522 Cos_Gen_P'!B20:G22) -> 3007200.45
B66: 4.3 | C66: Costos de Generación relacionados con el Mercado Regional y los servicios de operación integrada regional (Viene del FORM AT502 y AT522) (B/.) | E66: =+SUM('GEN-502 Cos_Gen_P'!B19:G19) -> 0 | F66: =+SUM('GEN-522 Cos_Gen_P'!B19:G19) -> 0
B67: 4.4 | C67: Sobrecostos por Generación Obligada (Viene del FORM AT502 y AT522) (B/.) | E67: =+SUM('GEN-502 Cos_Gen_P'!B18:G18) -> 315694.0477 | F67: =+SUM('GEN-522 Cos_Gen_P'!B18:G18) -> 421181.7
B68: 4.5 | C68: Descuento por Cargo Por Uso Esporádico del Sistema de Transmisión (Viene del FORM AT502 y AT522) (B/.) | E68: =+SUM('GEN-502 Cos_Gen_P'!B23:G23) -> 74630.7375 | F68: =+SUM('GEN-522 Cos_Gen_P'!B23:G23) -> 75298.52
A69: 5 | C69: Costo de generación extraordinario (Viene del MODELO AT500 (Extra), punto 1) (B/.) | E69: =+'Ajuste Generación-500 (Extra)'!D19 -> 0 | F69: =+'Ajuste Generación-500 (Extra)'!E19 -> 0
A70: 6 | C70: Ingresos que producen los cargos tarifarios por potencia de generación y las ventas del semeste correspondiente (Viene del FORM AT504-potencia y AT506-potencia) (B/.) | E70: =+SUM('GENERACION-504 (potencia)'!B124:G124,'GENERACION-504 (potencia)'!B140:G140,'GENERACION-504 (potencia)'!B166:G166) -> 90350199.5 | F70: =+SUM('GENERACION-506 (potencia)'!B111:G111,'GENERACION-506 (potencia)'!B308:G308,'GENERACION-506 (potencia)'!B335:G335) -> 71643360.59
A71: 7 | C71: Energía comprada por la distribuidora ingresada a la red de la distribuidora en los nodos de compra o entrega, generación propia y la energía total inyectada a su red por los clientes (contratos + mercado ocasional, incluye toda la energía de pérdidas en distribución) (Viene del FORM AT502 y AT522) (MWh) | E71: =+SUM('GEN-502 Gen_P'!B8:G8)*1000+SUM('GEN-502 Gen_FP'!B8:G8)*1000 -> 2197462524 | F71: =+SUM('GEN-522 Gen_P'!B8:G8)*1000+SUM('GEN-522 Gen_FP'!B8:G8)*1000 -> 2112944735
A72: 8 | C72: Precio promedio ponderado de generación permitido (B/./kWh) = (1 - 5 - 6) / 7 | E72: =+IFERROR((E54-E69-E70)/E71,0) -> 0.06926239643 | F72: =+(F54-F69-F70)/F71 -> 0.0899863613
A73: 9 | C73: Venta de energía a clientes y Consumo de Alumbrado Público (Viene del FORM AT801 y AT821 A) (kWh) | E73: =+SUM('Facturación-801 (energía)'!B111:G111)+SUM('Facturación-801 (energía)'!B457:G457) -> 1913210828 | F73: =+SUM('Facturación-821 (energía)'!H111:M111)+SUM('Facturación-821 (energía)'!H486:M486) -> 1736536264
A74: 10 | C74: Costo de generación permitido a trasladar a los cargos por energía de las tarifas (B/.) = 8 X 9 | E74: =+E72*E73 -> 132513566.8 | F74: =+F72*F73 -> 156264579.6
C76: Detalle | D76: Variable | G76: Valor
B77: 11 | C77: Porción de los costos de generación permitidos a trasladar a los cargos por energía de las tarifas en el semestre p (B/.) (10) | G77: =+E74 -> 132513566.8
B78: 12 | C78: Ingresos estimados que obtendría la distribuidora de los clientes que no se encuentran abastecidos por otro agente para cubrir los costos de generación asignados a energía. Resultan de aplicar los cargos Base por energía de generación que contienen las tarifas del semestre p-1 a la proyección de ventas del semestre p (Viene del FORM AT503) (B/.) | G78: =+SUM('GENERACION-503'!B124:G124,'GENERACION-503'!B211:G211,'GENERACION-503'!B331:G331,'GENERACION-503'!B364:G364,'GENERACION-503'!B397:G397,'GENERACION-503'!B422:G422) -> 142091921.5
B79: 13 | C79: Costo permitido Real de generación (asignados a energía) calculado en base a los costos reales y a las ventas reales en el semestre p-2. (B/.) (10) | G79: =+F74 -> 156264579.6
B80: 14 | C80: Ingresos reales producidos por los cargos Base por energía y las ventas reales del semestre p-2, incluyendo los ingresos producidos por los cargos por variación por combustible relacionados a los costos del semestre respectivo. (Viene del FORM AT506 + FORM AT506 CVC) (B/.) | G80: =+SUM('GENERACION-506'!B107:G107,'GENERACION-506'!B190:G190,'GENERACION-506'!B306:G306,'GENERACION-506'!B339:G339,'GENERACION-506'!B372:G372,'GENERACION-506'!B397:G397)+SUM('GENERACION-506 (CVC)'!B62:G62,'GENERACION-506 (CVC)'!B109:G109)+SUM('GENERACION-506 (cvc)a'!B62:G62,'GENERACION-506 (cvc)a'!B109:G109) -> 140722006.1
B81: 15 | C81: Ingresos permitidos producidos por los cargos Correcc por generación y las ventas estimadas en el semestre p-2 (Viene del FORM AT507) (B/.) | G81: =+SUM('GENERACION-507'!B107:G107,'GENERACION-507'!B190:G190,'GENERACION-507'!B306:G306,,'GENERACION-507'!B339:G339,'GENERACION-507'!B372:G372,'GENERACION-507'!B397:G397) -> 20390952.11
B82: 16 | C82: Ingresos reales producidos por los cargos Correcc por generación y las ventas reales en el semestre p-2 (Viene del FORM AT508) (B/.) | G82: =+SUM('GENERACION-508'!B107:G107,'GENERACION-508'!B190:G190,'GENERACION-508'!B306:G306,'GENERACION-508'!B339:G339,'GENERACION-508'!B372:G372,'GENERACION-508'!B397:G397) -> 22565620.35
B83: 17 | C83: Monto necesario para cubrir las diferencias entre los ingresos permitidos (producidos por los cargos Correcc y las ventas estimadas) y los ingresos reales (producidos por los cargos Correcc y las ventas reales) en el semestre p-2 (B/.) = 15 - 16 | G83: =+G82-G81 -> 2174668.236
B84: 18 | C84: Monto necesario para cubrir los apartamientos que se produjeron entre los costos de generación reales (asignados a la energía) y los ingresos reales (producidos por los cargos Base y las ventas reales, incluyendo los ingresos por los cargos variación por combustible) y por las diferencias entre los ingresos permitidos (producidos por los cargos Correcc y las ventas estimadas) y los ingresos reales (producidos por los cargos Correcc y las ventas reales) del semestre p-2 (B/.) = 13 - 14 + 17 | G84: =+G79-G80+G83 -> 17717241.73
B85: 19 | C85: Tasa de interés (Viene del FORM AT700) | D85: r | G85: =+'TASAS DE INTERES-700'!B20 -> 0.05965
B86: 20 | C86: Factor de la tasa de interés = (1 + 19) | D86: (1 + r) | G86: =+G85+1 -> 1.05965
B87: 21 | C87: Intereses generados dentro del semestre p-2 ocasionados por el desfase del costo permitido a recuperar en el ajuste mensual del cargo variable por combustible (Viene del FORM AT509) (B/.) | G87: =+'GENERACION-509'!B19 -> 2257540.724
B88: 22 | C88: Valor de los apartamientos actualizado con la tasa de descuento “r” (B/.) = ( 18 x 20 ) + 21 | G88: =+G84*G86+G87+G94 -> 21031615.92
B89: 23 | C89: Factor de Actualización o corrección = (11 / 12) | G89: =+IFERROR(G77/G78,0) -> 0.9325904349
B90: 24 | C90: Factor de Actualización o corrección = (22 / 12) | G90: =+IFERROR(G88/G78,0) -> 0.1480141566

Sheet Ajuste Generación-500 (Extra)
C1: CALCULO DEL FACTOR DE ACTUALIZACION DE:
C2: =+[1]Fecha!$A$1 -> EDEMET
C3: FORMULAS
C6: Donde:
C18: Detalle | D18: =+'AjustePérd de Trans-400'!C$20 -> SEMESTRE p Jul-Dic/2023 | E18: =+'AjustePérd de Trans-400'!D$20 -> SEMESTRE p-2 Jul-Dic/2022
A19: 1 | C19: Costo de generación extraordinario (B/.) = 1.1 + 1.2 + 1.3 + 1.4 | D19: =+D20+D21+D22+D23 -> 0 | E19: =+E20+E21+E22+E23 -> 0
B20: 1.1 | C20: Costos de compra de potencia que la ASEP determine relacionados con mitigación de riesgo de racionamiento (Viene del FORM AT502 y AT522) (B/.)
B21: 1.2 | C21: Costos de autoabastecimiento autorizados por la ASEP (Viene del FORM AT502 y AT522) (B/.)
B22: 1.3 | C22: Sobrecostos ocasionados por incrementos en los precios de contratos de generación que son resultado de arbitrajes (Viene del FORM AT502 y AT522) (B/.)
B23: 1.4 | C23: Sobrecostos por sobre contratación de potencia y/o energía que ASEP determine (Viene del FORM AT502 y AT522) (B/.) | D23: =+SUM('[1]Extra p'!C19:H19)+SUM('[1]Extra p'!C12:H12) -> 0 | E23: =+SUM('[1]Extra p-2'!C19:H19)+SUM('[1]Extra p-2'!C12:H12) -> 0
C25: Detalle | F25: Valor
B26: 2 | C26: Costos de generación extraordinario en el semestre p (B/.) (1) | F26: =+D19 -> 0
B27: 3 | C27: Ingresos estimados que resultan de aplicar los cargos de generación extraordinarios que contienen las tarifas del semestre p-1 a la proyección de ventas del semestre p de los clientes que no se encuentran abastecidos por otro agente (Viene del FORM AT503-extra) (B/.) | F27: =+SUM('GENERACION-503 (extra)'!B108:G108,'GENERACION-503 (extra)'!B134:G134,) -> 0.00177974658
B28: 4 | C28: Costo de generación extraordinario real calculado en base a los costos reales del semestre p-2 (B/.) (1) | F28: =+E23 -> 0
B29: 5 | C29: Ingresos producidos por los cargos extraordinarios y las ventas reales del semestre p-2. (Viene del FORM AT506-extra) (B/.) | F29: =+SUM('GENERACION-506 (extra)'!B108:G108,,'GENERACION-506 (extra)'!B136:G136) -> 0.00160564229
B30: 6 | C30: Ingresos permitidos producidos por los cargos Correcc por generación Extraordinarios y las ventas estimadas en el semestre p-2 (Viene del FORM AT507-extra) (B/.) | F30: =+SUM('GENERACION-507 (extra)'!B107:G107,'GENERACION-507 (extra)'!B135:G135) -> 0
B31: 7 | C31: Ingresos reales producidos por los cargos Correcc por generación Extraordinarios y las ventas reales en el semestre p-2 (Viene del FORM AT508- extra) (B/.) | F31: =+SUM('GENERACION-508 (extra)'!B108:G108,'GENERACION-508 (extra)'!B136:G136) -> 0
B32: 8 | C32: Monto necesario para cubrir las diferencias entre los ingresos permitidos (producidos por los cargos Correcc y las ventas estimadas) y los ingresos reales (producidos por los cargos Correcc y las ventas reales) en el semestre p-2 (B/.) = 6 - 7 | F32: =+F30-F31 -> 0
B33: 9 | C33: Monto necesario para cubrir los apartamientos que se produjeron entre los costos de generación extraordinarios reales y los ingresos reales (producidos por los cargos Base y las ventas reales) y por las diferencias entre los ingresos permitidos (producidos por los cargos Correcc y las ventas estimadas) y los ingresos reales (producidos por los cargos Correcc y las ventas reales) del semestre p-2 (B/.) = 4 - 5 + 8 | F33: =+F28-F29+F32 -> -0.00160564229
B34: 10 | C34: Tasa de interés (Viene del FORM AT700) | F34: =+'TASAS DE INTERES-700'!B20 -> 0.05965
B35: 11 | C35: Factor de la tasa de interés = (1 + 9) | F35: =+F34+1 -> 1.05965
B36: 12 | C36: Valor de los apartamientos actualizado con la tasa de descuento “r” (B/.) = ( 8 x 10 ) | F36: =+F33*F35 -> -0.001701418852
B37: 13 | C37: Factor de Actualización o corrección = (2 / 3) | F37: =+F26/F27 -> 0
B38: 14 | C38: Factor de Actualización o corrección = (12 / 3) | F38: =+F36/F27 -> -0.9559893927
C43: Sobrecosto Potencia Contratada | D43: 2022-07-01 | E43: 2022-08-01 | F43: 2022-09-01 | G43: 2022-10-01 | H43: 2022-11-01 | I43: 2022-12-01
C44: Costo de generación extraordinario real | D44: =+'[1]Extra p-2'!C12 -> 0 | E44: =+'[1]Extra p-2'!D12 -> 0 | F44: =+'[1]Extra p-2'!E12 -> 0 | G44: =+'[1]Extra p-2'!F12 -> 0 | H44: =+'[1]Extra p-2'!G12 -> 0 | I44: =+'[1]Extra p-2'!H12 -> 0
C45: Ingresos producidos por los cargos extraordinarios p-2 | D45: =+SUM('GENERACION-506 (extra)'!B108,'GENERACION-506 (extra)'!B136) -> 0.0002673179507 | E45: =+SUM('GENERACION-506 (extra)'!C108,'GENERACION-506 (extra)'!C136) -> 0.0002658425429 | F45: =+SUM('GENERACION-506 (extra)'!D108,'GENERACION-506 (extra)'!D136) -> 0.0002722875597 | G45: =+SUM('GENERACION-506 (extra)'!E108,'GENERACION-506 (extra)'!E136) -> 0.0002705573335 | H45: =+SUM('GENERACION-506 (extra)'!F108,'GENERACION-506 (extra)'!F136) -> 0.0002664216875 | I45: =+SUM('GENERACION-506 (extra)'!G108,'GENERACION-506 (extra)'!G136) -> 0.0002632152156
C46: Apartamientos entre costos de generación extraord. e ingresos reales | D46: =+D44-D45 -> -0.0002673179507 | E46: =+E44-E45 -> -0.0002658425429 | F46: =+F44-F45 -> -0.0002722875597 | G46: -0.0002705573335 | H46: -0.0002664216875 | I46: -0.0002632152156

Sheet Ajuste Generación-500 -En P (2)
B1: CALCULO DEL FACTOR DE ACTUALIZACION DE:
B2: =+[1]Fecha!$A$1 -> EDEMET
B3: FORMULAS
B4: Cargo por Potencia
B24: Detalle | C24: =+'Ajuste Generación-500 (2)'!E53 -> SEMESTRE p Jul-Dic/2023
A25: 1 | B25: Costo permitido Real de generación (asignados a energía) calculado en base a los costos reales y a las ventas reales en el semestre p-2 (Viene del MODELO AT500, punto 13) (B/.) | C25: =+'Ajuste Generación-500 (2)'!G79 -> 156264579.6
A26: 2 | B26: Ingresos reales producidos por los cargos Base por energía y las ventas reales del semestre p-2 (Viene del FORM AT506) (B/.) | C26: =+SUM('GENERACION-506'!B107:G107)+SUM('GENERACION-506'!B372:G372)+SUM('GENERACION-506'!B190:G190)+SUM('GENERACION-506'!B306:G306)+SUM('GENERACION-506'!B339:G339)+SUM('GENERACION-506'!B397:G397) -> 143153691.5
A27: 3 | B27: Monto necesario para cubrir las diferencias entre los ingresos permitidos (producidos por los cargos Correcc y las ventas estimadas) y los ingresos reales (producidos por los cargos Correcc y las ventas reales) en el semestre p-2 (Viene del MODELO AT500-En Punta, punto 23)(B/.) | C27: =+'Ajuste Generación-500 (2)'!G83 -> 2174668.236
A28: 4 | B28: Monto necesario para cubrir los apartamientos que se produjeron entre los costos de abastecimiento reales y los ingresos reales (producidos por los cargos Base y las ventas reales) y por las diferencias entre los ingresos permitidos (producidos por los cargos Correcc y las ventas estimadas) y los ingresos reales (producidos por los cargos Correcc y las ventas reales) en horas de Punta del semestre p-2 (B/.) = 1 - 2 + 3 | C28: =+C25-C26+C27 -> 15285556.33
A29: 5 | B29: Tasa de interés (Viene del FORM AT700) | C29: =+'TASAS DE INTERES-700'!B20 -> 0.05965
A30: 6 | B30: Factor de la tasa de interés = (1 + 5) | C30: =+C29+1 -> 1.05965
A31: 7 | B31: Valor de los apartamientos actualizado con la tasa de descuento “r” (B/.) = 4 x 6 | C31: =+C28*C30 -> 16197339.76

Sheet Ajuste Cons AlumPub-600
B1: CALCULO DEL FACTOR DE ACTUALIZACION DE:
B2: =+[1]Fecha!$A$1 -> EDEMET
C3: CARGO POR CONSUMO DEL ALUMBRADO PÚBLICO
B4: FORMULAS
B5: Cargo por Energía
B15: Detalle | C15: Variable | D15: =+'Ajuste Generación-500 (2)'!E53 -> SEMESTRE p Jul-Dic/2023
A16: 1 | B16: Factor de Actualización o corrección (Viene del MODELO AT500, punto 22) | D16: =+'Ajuste Generación-500 (2)'!G89 -> 0.9325904349
A17: 2 | B17: Factor de Actualización o corrección (Viene del MODELO AT500, punto 23) | D17: =+'Ajuste Generación-500 (2)'!G90 -> 0.1480141566

Sheet RES DE ACT TARIFARIA-1000
A1: =+"TARIFAS: "&[1]Fecha!$A$1 -> TARIFAS: EDEMET
A2: CARGOS | B2: Unidad | C2: Jul-Dic/2022 | G2: Factor de Ajuste | I2: Ene-Jun/2023 | M2: Factor de Ajuste | O2: =+[1]Fecha!T4 -> Jul-Dic/2023
C3: Cargo Tarifario Actualizado | D3: BASE | E3: Correcc | G3: BASE | H3: Correcc | I3: Cargo Tarifario Actualizado | J3: BASE | K3: Correcc | M3: BASE | N3: Correcc | O3: Cargo Tarifario Actualizado | P3: BASE | Q3: Correcc
A4: Pérdidas de Energía en Distribución | G4: MODELO AT202 | M4: MODELO AT202
A5: CPERDEP | G5: # 20 | H5: # 21 | M5: # 20 | N5: # 21
A6: BTH | B6: B/./kWh | C6: 0.01548 | D6: 0.01318 | E6: 0.002298447389 | G6: 0.9486153421 | H6: 0.1647050926 | I6: 0.01467 | J6: 0.0125 | K6: 0.00217081312 | M6: =+'AjustePérd de Dist-200'!D$65 -> 0.9443449121 | N6: =+'AjustePérd de Dist-200'!D$66 -> 0.1137444382 | O6: =+ROUND(P6+Q6,5) -> 0.01016 | P6: =+'[1]Tarifa ABASTECIMIENTO 22-26'!$C6 -> 0.008736104456 | Q6: =+J6*N6 -> 0.001421805478
A7: BTH | B7: B/./kW | M7: =+'AjustePérd de Dist-200'!D$65 -> 0.9443449121 | N7: =+'AjustePérd de Dist-200'!D$66 -> 0.1137444382 | O7: =+ROUND(P7+Q7,2) -> 0.11 | P7: =+'[1]Tarifa ABASTECIMIENTO 22-26'!$D6 -> 0.1065908091 | Q7: 0
A8: MTH | B8: B/./kWh | C8: 0.01561 | D8: 0.01329 | E8: 0.002316805595 | G8: 0.9486153421 | H8: 0.1647050926 | I8: 0.0148 | J8: 0.01261 | K8: 0.00218893068 | M8: =+'AjustePérd de Dist-200'!D$65 -> 0.9443449121 | N8: =+'AjustePérd de Dist-200'!D$66 -> 0.1137444382 | O8: 0.01025 | P8: =+'[1]Tarifa ABASTECIMIENTO 22-26'!$C7 -> 0.008813533147 | Q8: 0.001434317366
A9: MTH | B9: B/./kW | M9: =+'AjustePérd de Dist-200'!D$65 -> 0.9443449121 | N9: =+'AjustePérd de Dist-200'!D$66 -> 0.1137444382 | O9: =+ROUND(P9+Q9,2) -> 0.15 | P9: =+'[1]Tarifa ABASTECIMIENTO 22-26'!$D7 -> 0.1515871167 | Q9: 0
A10: ATH | B10: B/./kWh | C10: 0.01629 | D10: 0.01387 | E10: 0.002417775728 | G10: 0.9486153421 | H10: 0.1647050926 | I10: 0.01544 | J10: 0.01316 | K10: 0.002284459634 | M10: =+'AjustePérd de Dist-200'!D$65 -> 0.9443449121 | N10: =+'AjustePérd de Dist-200'!D$66 -> 0.1137444382 | O10: 0.01069 | P10: =+'[1]Tarifa ABASTECIMIENTO 22-26'!$C8 -> 0.009194658939 | Q10: 0.001496876807
A11: ATH | B11: B/./kW | M11: =+'AjustePérd de Dist-200'!D$65 -> 0.9443449121 | N11: =+'AjustePérd de Dist-200'!D$66 -> 0.1137444382 | O11: =+ROUND(P11+Q11,2) -> 0.21 | P11: =+'[1]Tarifa ABASTECIMIENTO 22-26'!$D8 -> 0.2140551668 | Q11: 0
A12: CPERDE FP MEDIO | G12: # 22 | H12: # 23 | M12: # 22 | N12: # 23
A13: BTH | B13: B/./kWh | C13: 0.01065 | D13: 0.00907 | E13: 0.001580641535 | G13: 0.9486153421 | H13: 0.1647050926 | I13: 0.01009 | J13: 0.0086 | K13: 0.00149387519 | M13: =+'AjustePérd de Dist-200'!D$65 -> 0.9443449121 | N13: =+'AjustePérd de Dist-200'!D$66 -> 0.1137444382 | O13: =+ROUND(P13+Q13,5) -> 0.00699 | P13: =+'[1]Tarifa ABASTECIMIENTO 22-26'!$C10 -> 0.006008677161 | Q13: =+J13*N13 -> 0.0009782021685
A14: BTH | B14: B/./kW | M14: =+'AjustePérd de Dist-200'!D$65 -> 0.9443449121 | N14: =+'AjustePérd de Dist-200'!D$66 -> 0.1137444382 | O14: =+ROUND(P14+Q14,2) -> 0.11 | P14: =+'[1]Tarifa ABASTECIMIENTO 22-26'!$D10 -> 0.1065908091 | Q14: 0
A15: MTH | B15: B/./kWh | C15: 0.01067 | D15: 0.00909 | E15: 0.001584313177 | G15: 0.9486153421 | H15: 0.1647050926 | I15: 0.01012 | J15: 0.00862 | K15: 0.001497169292 | M15: =+'AjustePérd de Dist-200'!D$65 -> 0.9443449121 | N15: =+'AjustePérd de Dist-200'!D$66 -> 0.1137444382 | O15: 0.00701 | P15: =+'[1]Tarifa ABASTECIMIENTO 22-26'!$C11 -> 0.006026551044 | Q15: 0.0009804770573
A16: MTH | B16: B/./kW | M16: =+'AjustePérd de Dist-200'!D$65 -> 0.9443449121 | N16: =+'AjustePérd de Dist-200'!D$66 -> 0.1137444382 | O16: =+ROUND(P16+Q16,2) -> 0.15 | P16: =+'[1]Tarifa ABASTECIMIENTO 22-26'!$D11 -> 0.1515871167 | Q16: 0
A17: ATH | B17: B/./kWh | C17: 0.01058 | D17: 0.00901 | E17: 0.001571462432 | G17: 0.9486153421 | H17: 0.1647050926 | I17: 0.01003 | J17: 0.00855 | K17: 0.001483992884 | M17: =+'AjustePérd de Dist-200'!D$65 -> 0.9443449121 | N17: =+'AjustePérd de Dist-200'!D$66 -> 0.1137444382 | O17: 0.00695 | P17: =+'[1]Tarifa ABASTECIMIENTO 22-26'!$C12 -> 0.005972955256 | Q17: 0.0009725149466
A18: ATH | B18: B/./kW | M18: =+'AjustePérd de Dist-200'!D$65 -> 0.9443449121 | N18: =+'AjustePérd de Dist-200'!D$66 -> 0.1137444382 | O18: =+ROUND(P18+Q18,2) -> 0.21 | P18: =+'[1]Tarifa ABASTECIMIENTO 22-26'!$D12 -> 0.2140551668 | Q18: 0
A19: CPERDE FP BAJO
A20: BTH | B20: B/./kWh | I20: =+I13 -> 0.01009 | J20: 0.0086 | K20: =+K13 -> 0.00149387519 | M20: =+'AjustePérd de Dist-200'!D$65 -> 0.9443449121 | N20: =+'AjustePérd de Dist-200'!D$66 -> 0.1137444382 | O20: =+ROUND(P20+Q20,5) -> 0.00699 | P20: =+'[1]Tarifa ABASTECIMIENTO 22-26'!$C14 -> 0.006008677161 | Q20: =+J20*N20 -> 0.0009782021685
A21: BTH | B21: B/./kW | M21: =+'AjustePérd de Dist-200'!D$65 -> 0.9443449121 | N21: =+'AjustePérd de Dist-200'!D$66 -> 0.1137444382 | O21: =+ROUND(P21+Q21,2) -> 0.11 | P21: =+'[1]Tarifa ABASTECIMIENTO 22-26'!$D14 -> 0.1065908091 | Q21: 0
A22: MTH | B22: B/./kWh | I22: =+I15 -> 0.01012 | J22: 0.00862 | K22: =+K15 -> 0.001497169292 | M22: =+'AjustePérd de Dist-200'!D$65 -> 0.9443449121 | N22: =+'AjustePérd de Dist-200'!D$66 -> 0.1137444382 | O22: 0.00701 | P22: =+'[1]Tarifa ABASTECIMIENTO 22-26'!$C15 -> 0.006026551044 | Q22: 0.0009804770573
A23: MTH | B23: B/./kW | M23: =+'AjustePérd de Dist-200'!D$65 -> 0.9443449121 | N23: =+'AjustePérd de Dist-200'!D$66 -> 0.1137444382 | O23: =+ROUND(P23+Q23,2) -> 0.15 | P23: =+'[1]Tarifa ABASTECIMIENTO 22-26'!$D15 -> 0.1515871167 | Q23: 0
A24: ATH | B24: B/./kWh | I24: =+I17 -> 0.01003 | J24: 0.00855 | K24: =+K17 -> 0.001483992884 | M24: =+'AjustePérd de Dist-200'!D$65 -> 0.9443449121 | N24: =+'AjustePérd de Dist-200'!D$66 -> 0.1137444382 | O24: 0.00695 | P24: =+'[1]Tarifa ABASTECIMIENTO 22-26'!$C16 -> 0.005972955256 | Q24: 0.0009725149466
A25: ATH | B25: B/./kW | M25: =+'AjustePérd de Dist-200'!D$65 -> 0.9443449121 | N25: =+'AjustePérd de Dist-200'!D$66 -> 0.1137444382 | O25: =+ROUND(P25+Q25,2) -> 0.21 | P25: =+'[1]Tarifa ABASTECIMIENTO 22-26'!$D16 -> 0.2140551668 | Q25: 0
A26: CPERDESM | G26: # 26 | H26: # 27 | M26: # 26 | N26: # 27
A27: BTS (0-300) | B27: B/./kWh | C27: 0.01275 | D27: 0.01086 | E27: 0.001892731037 | G27: 0.9486153421 | H27: 0.1647050926 | I27: 0.01209 | J27: 0.0103 | K27: 0.001788697305 | M27: =+'AjustePérd de Dist-200'!D$65 -> 0.9443449121 | N27: =+'AjustePérd de Dist-200'!D$66 -> 0.1137444382 | O27: =+ROUND(P27+Q27,5) -> 0.00893 | P27: =+'[1]Tarifa ABASTECIMIENTO 22-26'!$C18 -> 0.007760516735 | Q27: =+J27*N27 -> 0.001171567713
A28: BTS (301-750) | B28: B/./kWh | C28: 0.01275 | D28: 0.01086 | E28: 0.001892731037 | G28: 0.9486153421 | H28: 0.1647050926 | I28: 0.01209 | J28: 0.0103 | K28: 0.001788697305 | M28: =+'AjustePérd de Dist-200'!D$65 -> 0.9443449121 | N28: =+'AjustePérd de Dist-200'!D$66 -> 0.1137444382 | O28: 0.00893 | P28: =+'[1]Tarifa ABASTECIMIENTO 22-26'!$C19 -> 0.007760516735 | Q28: 0.001171567713
A29: BTS (750-más) | B29: B/./kWh | C29: 0.01275 | D29: 0.01086 | E29: 0.001892731037 | G29: 0.9486153421 | H29: 0.1647050926 | I29: 0.01209 | J29: 0.0103 | K29: 0.001788697305 | M29: =+'AjustePérd de Dist-200'!D$65 -> 0.9443449121 | N29: =+'AjustePérd de Dist-200'!D$66 -> 0.1137444382 | O29: 0.00893 | P29: =+'[1]Tarifa ABASTECIMIENTO 22-26'!$C20 -> 0.007760516735 | Q29: 0.001171567713
A30: BTD (0-10,000) | B30: B/./kWh | C30: 0.01192 | D30: 0.01015 | E30: 0.001769731057 | G30: 0.9486153421 | H30: 0.1647050926 | I30: 0.0113 | J30: 0.00963 | K30: 0.00167175669 | M30: =+'AjustePérd de Dist-200'!D$65 -> 0.9443449121 | N30: =+'AjustePérd de Dist-200'!D$66 -> 0.1137444382 | O30: 0.00782 | P30: =+'[1]Tarifa ABASTECIMIENTO 22-26'!$C21 -> 0.00672925148 | Q30: 0.00109535894
A31: BTD (0-10,000) | B31: B/./kW | M31: =+'AjustePérd de Dist-200'!D$65 -> 0.9443449121 | N31: =+'AjustePérd de Dist-200'!D$66 -> 0.1137444382 | O31: 0.16978 | P31: =+'[1]Tarifa ABASTECIMIENTO 22-26'!$D21 -> 0.169775936 | Q31: 0
A32: BTD (10,001-30,000) | B32: B/./kWh | C32: 0.01192 | D32: 0.01015 | E32: 0.001769731057 | G32: 0.9486153421 | H32: 0.1647050926 | I32: 0.0113 | J32: 0.00963 | K32: 0.00167175669 | M32: =+'AjustePérd de Dist-200'!D$65 -> 0.9443449121 | N32: =+'AjustePérd de Dist-200'!D$66 -> 0.1137444382 | O32: 0.00782 | P32: =+'[1]Tarifa ABASTECIMIENTO 22-26'!$C22 -> 0.00672925148 | Q32: 0.00109535894
A33: BTD (10,001-30,000) | B33: B/./kW | M33: =+'AjustePérd de Dist-200'!D$65 -> 0.9443449121 | N33: =+'AjustePérd de Dist-200'!D$66 -> 0.1137444382 | O33: 0.16978 | P33: =+'[1]Tarifa ABASTECIMIENTO 22-26'!$D22 -> 0.169775936 | Q33: 0
A34: BTD (30,001-50,000) | B34: B/./kWh | C34: 0.01192 | D34: 0.01015 | E34: 0.001769731057 | G34: 0.9486153421 | H34: 0.1647050926 | I34: 0.0113 | J34: 0.00963 | K34: 0.00167175669 | M34: =+'AjustePérd de Dist-200'!D$65 -> 0.9443449121 | N34: =+'AjustePérd de Dist-200'!D$66 -> 0.1137444382 | O34: 0.00782 | P34: =+'[1]Tarifa ABASTECIMIENTO 22-26'!$C23 -> 0.00672925148 | Q34: 0.00109535894
A35: BTD (30,001-50,000) | B35: B/./kW | M35: =+'AjustePérd de Dist-200'!D$65 -> 0.9443449121 | N35: =+'AjustePérd de Dist-200'!D$66 -> 0.1137444382 | O35: 0.16978 | P35: =+'[1]Tarifa ABASTECIMIENTO 22-26'!$D23 -> 0.169775936 | Q35: 0
A36: BTD (50,001-más) | B36: B/./kWh | C36: 0.01192 | D36: 0.01015 | E36: 0.001769731057 | G36: 0.9486153421 | H36: 0.1647050926 | I36: 0.0113 | J36: 0.00963 | K36: 0.00167175669 | M36: =+'AjustePérd de Dist-200'!D$65 -> 0.9443449121 | N36: =+'AjustePérd de Dist-200'!D$66 -> 0.1137444382 | O36: 0.00782 | P36: =+'[1]Tarifa ABASTECIMIENTO 22-26'!$C24 -> 0.00672925148 | Q36: 0.00109535894
A37: BTD (50,001-más) | B37: B/./kW | M37: =+'AjustePérd de Dist-200'!D$65 -> 0.9443449121 | N37: =+'AjustePérd de Dist-200'!D$66 -> 0.1137444382 | O37: 0.16978 | P37: =+'[1]Tarifa ABASTECIMIENTO 22-26'!$D24 -> 0.169775936 | Q37: 0
A38: MTD (0-10,000) | B38: B/./kWh | C38: 0.01192 | D38: 0.01015 | E38: 0.001769731057 | G38: 0.9486153421 | H38: 0.1647050926 | I38: 0.0113 | J38: 0.00963 | K38: 0.00167175669 | M38: =+'AjustePérd de Dist-200'!D$65 -> 0.9443449121 | N38: =+'AjustePérd de Dist-200'!D$66 -> 0.1137444382 | O38: 0.00782 | P38: =+'[1]Tarifa ABASTECIMIENTO 22-26'!$C25 -> 0.006729251618 | Q38: 0.00109535894
A39: MTD (0-10,000) | B39: B/./kW | M39: =+'AjustePérd de Dist-200'!D$65 -> 0.9443449121 | N39: =+'AjustePérd de Dist-200'!D$66 -> 0.1137444382 | O39: 0.25706 | P39: =+'[1]Tarifa ABASTECIMIENTO 22-26'!$D25 -> 0.2570595281 | Q39: 0
A40: MTD (10,001-30,000) | B40: B/./kWh | C40: 0.01192 | D40: 0.01015 | E40: 0.001769731057 | G40: 0.9486153421 | H40: 0.1647050926 | I40: 0.0113 | J40: 0.00963 | K40: 0.00167175669 | M40: =+'AjustePérd de Dist-200'!D$65 -> 0.9443449121 | N40: =+'AjustePérd de Dist-200'!D$66 -> 0.1137444382 | O40: 0.00782 | P40: =+'[1]Tarifa ABASTECIMIENTO 22-26'!$C26 -> 0.006729251618 | Q40: 0.00109535894
A41: MTD (10,001-30,000) | B41: B/./kW | M41: =+'AjustePérd de Dist-200'!D$65 -> 0.9443449121 | N41: =+'AjustePérd de Dist-200'!D$66 -> 0.1137444382 | O41: 0.25706 | P41: =+'[1]Tarifa ABASTECIMIENTO 22-26'!$D26 -> 0.2570595281 | Q41: 0
A42: MTD (30,001-50,000) | B42: B/./kWh | C42: 0.01192 | D42: 0.01015 | E42: 0.001769731057 | G42: 0.9486153421 | H42: 0.1647050926 | I42: 0.0113 | J42: 0.00963 | K42: 0.00167175669 | M42: =+'AjustePérd de Dist-200'!D$65 -> 0.9443449121 | N42: =+'AjustePérd de Dist-200'!D$66 -> 0.1137444382 | O42: 0.00782 | P42: =+'[1]Tarifa ABASTECIMIENTO 22-26'!$C27 -> 0.006729251618 | Q42: 0.00109535894
A43: MTD (30,001-50,000) | B43: B/./kW | M43: =+'AjustePérd de Dist-200'!D$65 -> 0.9443449121 | N43: =+'AjustePérd de Dist-200'!D$66 -> 0.1137444382 | O43: 0.25706 | P43: =+'[1]Tarifa ABASTECIMIENTO 22-26'!$D27 -> 0.2570595281 | Q43: 0
A44: MTD (50,001-más) | B44: B/./kWh | C44: 0.01192 | D44: 0.01015 | E44: 0.001769731057 | G44: 0.9486153421 | H44: 0.1647050926 | I44: 0.0113 | J44: 0.00963 | K44: 0.00167175669 | M44: =+'AjustePérd de Dist-200'!D$65 -> 0.9443449121 | N44: =+'AjustePérd de Dist-200'!D$66 -> 0.1137444382 | O44: 0.00782 | P44: =+'[1]Tarifa ABASTECIMIENTO 22-26'!$C28 -> 0.006729251618 | Q44: 0.00109535894
A45: MTD (50,001-más) | B45: B/./kW | M45: =+'AjustePérd de Dist-200'!D$65 -> 0.9443449121 | N45: =+'AjustePérd de Dist-200'!D$66 -> 0.1137444382 | O45: 0.25706 | P45: =+'[1]Tarifa ABASTECIMIENTO 22-26'!$D28 -> 0.2570595281 | Q45: 0
A46: ATD | B46: B/./kWh | C46: 0.01192 | D46: 0.01015 | E46: 0.001769731057 | G46: 0.9486153421 | H46: 0.1647050926 | I46: 0.0113 | J46: 0.00963 | K46: 0.00167175669 | M46: =+'AjustePérd de Dist-200'!D$65 -> 0.9443449121 | N46: =+'AjustePérd de Dist-200'!D$66 -> 0.1137444382 | O46: 0.00782 | P46: =+'[1]Tarifa ABASTECIMIENTO 22-26'!$C29 -> 0.006729251685 | Q46: 0.00109535894
A47: ATD | B47: B/./kW | M47: =+'AjustePérd de Dist-200'!D$65 -> 0.9443449121 | N47: =+'AjustePérd de Dist-200'!D$66 -> 0.1137444382 | O47: 0.05605 | P47: =+'[1]Tarifa ABASTECIMIENTO 22-26'!$D29 -> 0.05605307724 | Q47: 0
A48: Pérdidas de Potencia en Distribución
A49: CPERDP | B49: B/./kWh o B/./kW | G49: # 20 | H49: # 21 | M49: # 20 | N49: # 21
A50: BTS (0-300) | C50: 0 | D50: 0 | E50: 0 | G50: 0.9486153421 | H50: 0.1647050926 | I50: 0 | J50: 0 | K50: 0 | M50: =+'AjustePérd de Dist-200'!D$65 -> 0.9443449121 | N50: =+'AjustePérd de Dist-200'!D$66 -> 0.1137444382 | O50: =+ROUND(P50+Q50,5) -> 0 | P50: =+'[1]Tarifa ABASTECIMIENTO 22-26'!$C32 -> 0 | Q50: =+J50*N50 -> 0
A51: BTS (301-750) | C51: 0 | D51: 0 | E51: 0 | G51: 0.9486153421 | H51: 0.1647050926 | I51: 0 | J51: 0 | K51: 0 | M51: =+'AjustePérd de Dist-200'!D$65 -> 0.9443449121 | N51: =+'AjustePérd de Dist-200'!D$66 -> 0.1137444382 | O51: =+ROUND(P51+Q51,5) -> 0 | P51: =+'[1]Tarifa ABASTECIMIENTO 22-26'!$C33 -> 0 | Q51: 0
A52: BTS (750-más) | C52: 0 | D52: 0 | E52: 0 | G52: 0.9486153421 | H52: 0.1647050926 | I52: 0 | J52: 0 | K52: 0 | M52: =+'AjustePérd de Dist-200'!D$65 -> 0.9443449121 | N52: =+'AjustePérd de Dist-200'!D$66 -> 0.1137444382 | O52: =+ROUND(P52+Q52,5) -> 0 | P52: =+'[1]Tarifa ABASTECIMIENTO 22-26'!$C34 -> 0 | Q52: 0
A53: BTD (0-10,000) | C53: 0 | D53: 0 | E53: 0 | G53: 0.9486153421 | H53: 0.1647050926 | I53: 0 | J53: 0 | K53: 0 | M53: =+'AjustePérd de Dist-200'!D$65 -> 0.9443449121 | N53: =+'AjustePérd de Dist-200'!D$66 -> 0.1137444382 | O53: =+ROUND(P53+Q53,2) -> 0 | P53: =+'[1]Tarifa ABASTECIMIENTO 22-26'!$C35 -> 0 | Q53: 0
A54: BTD (10,001-30,000) | C54: 0 | D54: 0 | E54: 0 | G54: 0.9486153421 | H54: 0.1647050926 | I54: 0 | J54: 0 | K54: 0 | M54: =+'AjustePérd de Dist-200'!D$65 -> 0.9443449121 | N54: =+'AjustePérd de Dist-200'!D$66 -> 0.1137444382 | O54: =+ROUND(P54+Q54,2) -> 0 | P54: =+'[1]Tarifa ABASTECIMIENTO 22-26'!$C36 -> 0 | Q54: 0
A55: BTD (30,001-50,000) | C55: 0 | D55: 0 | E55: 0 | G55: 0.9486153421 | H55: 0.1647050926 | I55: 0 | J55: 0 | K55: 0 | M55: =+'AjustePérd de Dist-200'!D$65 -> 0.9443449121 | N55: =+'AjustePérd de Dist-200'!D$66 -> 0.1137444382 | O55: =+ROUND(P55+Q55,2) -> 0 | P55: =+'[1]Tarifa ABASTECIMIENTO 22-26'!$C37 -> 0 | Q55: 0
A56: BTD (50,001-más) | C56: 0 | D56: 0 | E56: 0 | G56: 0.9486153421 | H56: 0.1647050926 | I56: 0 | J56: 0 | K56: 0 | M56: =+'AjustePérd de Dist-200'!D$65 -> 0.9443449121 | N56: =+'AjustePérd de Dist-200'!D$66 -> 0.1137444382 | O56: =+ROUND(P56+Q56,2) -> 0 | P56: =+'[1]Tarifa ABASTECIMIENTO 22-26'!$C38 -> 0 | Q56: 0
A57: BTH | C57: 0 | D57: 0 | E57: 0 | G57: 0.9486153421 | H57: 0.1647050926 | I57: 0 | J57: 0 | K57: 0 | M57: =+'AjustePérd de Dist-200'!D$65 -> 0.9443449121 | N57: =+'AjustePérd de Dist-200'!D$66 -> 0.1137444382 | O57: =+ROUND(P57+Q57,2) -> 0 | P57: =+'[1]Tarifa ABASTECIMIENTO 22-26'!$C39 -> 0 | Q57: =+J57*N57 -> 0
A58: MTD (0-10,000) | C58: 0 | D58: 0 | E58: 0 | G58: 0.9486153421 | H58: 0.1647050926 | I58: 0 | J58: 0 | K58: 0 | M58: =+'AjustePérd de Dist-200'!D$65 -> 0.9443449121 | N58: =+'AjustePérd de Dist-200'!D$66 -> 0.1137444382 | O58: 0 | P58: =+'[1]Tarifa ABASTECIMIENTO 22-26'!$C40 -> 0 | Q58: =+J58*N58 -> 0
A59: MTD (10,001-30,000) | C59: 0 | D59: 0 | E59: 0 | G59: 0.9486153421 | H59: 0.1647050926 | I59: 0 | J59: 0 | K59: 0 | M59: =+'AjustePérd de Dist-200'!D$65 -> 0.9443449121 | N59: =+'AjustePérd de Dist-200'!D$66 -> 0.1137444382 | O59: 0 | P59: =+'[1]Tarifa ABASTECIMIENTO 22-26'!$C41 -> 0 | Q59: =+J59*N59 -> 0
A60: MTD (30,001-50,000) | C60: 0 | D60: 0 | E60: 0 | G60: 0.9486153421 | H60: 0.1647050926 | I60: 0 | J60: 0 | K60: 0 | M60: =+'AjustePérd de Dist-200'!D$65 -> 0.9443449121 | N60: =+'AjustePérd de Dist-200'!D$66 -> 0.1137444382 | O60: 0 | P60: =+'[1]Tarifa ABASTECIMIENTO 22-26'!$C42 -> 0 | Q60: =+J60*N60 -> 0
A61: MTD (50,001-más) | C61: 0 | D61: 0 | E61: 0 | G61: 0.9486153421 | H61: 0.1647050926 | I61: 0 | J61: 0 | K61: 0 | M61: =+'AjustePérd de Dist-200'!D$65 -> 0.9443449121 | N61: =+'AjustePérd de Dist-200'!D$66 -> 0.1137444382 | O61: 0 | P61: =+'[1]Tarifa ABASTECIMIENTO 22-26'!$C43 -> 0 | Q61: =+J61*N61 -> 0
A62: MTH | C62: 0 | D62: 0 | E62: 0 | G62: 0.9486153421 | H62: 0.1647050926 | I62: 0 | J62: 0 | K62: 0 | M62: =+'AjustePérd de Dist-200'!D$65 -> 0.9443449121 | N62: =+'AjustePérd de Dist-200'!D$66 -> 0.1137444382 | O62: 0 | P62: =+'[1]Tarifa ABASTECIMIENTO 22-26'!$C44 -> 0 | Q62: 0
A63: ATD | C63: 0 | D63: 0 | E63: 0 | G63: 0.9486153421 | H63: 0.1647050926 | I63: 0 | J63: 0 | K63: 0 | M63: =+'AjustePérd de Dist-200'!D$65 -> 0.9443449121 | N63: =+'AjustePérd de Dist-200'!D$66 -> 0.1137444382 | O63: 0 | P63: =+'[1]Tarifa ABASTECIMIENTO 22-26'!$C45 -> 0 | Q63: 0
A64: ATH | C64: 0 | D64: 0 | E64: 0 | G64: 0.9486153421 | H64: 0.1647050926 | I64: 0 | J64: 0 | K64: 0 | M64: =+'AjustePérd de Dist-200'!D$65 -> 0.9443449121 | N64: =+'AjustePérd de Dist-200'!D$66 -> 0.1137444382 | O64: 0 | P64: =+'[1]Tarifa ABASTECIMIENTO 22-26'!$C46 -> 0 | Q64: 0
A65: Alumbrado Público | G65: MODELO AT602 | M65: MODELO AT602
A66: CCONAP | B66: B/./KWh | G66: # 8 | H66: # 9 | M66: # 8 | N66: # 9
A67: BTS (0-300) | C67: 0.00259 | D67: 0.00227 | E67: 0.0003232040189 | G67: 0.9429259123 | H67: 0.149540653 | I67: 0.00248 | J67: 0.00214 | K67: 0.0003394572823 | M67: =+'Ajuste Generación-500 (2)'!G$89 -> 0.9325904349 | N67: =+'Ajuste Generación-500 (2)'!G$90 -> 0.1480141566 | O67: =+ROUND(P67+Q67,5) -> 0.00217 | P67: =+'[1]Tarifa ABASTECIMIENTO 22-26'!$C49 -> 0.00185335444 | Q67: =+J67*N67 -> 0.0003167502952
A68: BTS (301-750) | C68: 0.00259 | D68: 0.00227 | E68: 0.0003232040189 | G68: 0.9429259123 | H68: 0.149540653 | I68: 0.00248 | J68: 0.00214 | K68: 0.0003394572823 | M68: =+'Ajuste Generación-500 (2)'!G$89 -> 0.9325904349 | N68: =+'Ajuste Generación-500 (2)'!G90 -> 0.1480141566 | O68: 0.00217 | P68: =+'[1]Tarifa ABASTECIMIENTO 22-26'!$C50 -> 0.00185335444 | Q68: =+J68*N68 -> 0.0003167502952
A69: BTS (750-más) | C69: 0.00259 | D69: 0.00227 | E69: 0.0003232040189 | G69: 0.9429259123 | H69: 0.149540653 | I69: 0.00248 | J69: 0.00214 | K69: 0.0003394572823 | M69: =+'Ajuste Generación-500 (2)'!G$89 -> 0.9325904349 | N69: =+'Ajuste Generación-500 (2)'!G90 -> 0.1480141566 | O69: 0.00217 | P69: =+'[1]Tarifa ABASTECIMIENTO 22-26'!$C51 -> 0.00185335444 | Q69: =+J69*N69 -> 0.0003167502952
A70: BTD (0-10,000) | C70: 0.00243 | D70: 0.00213 | E70: 0.000303196151 | G70: 0.9429259123 | H70: 0.149540653 | I70: 0.00233 | J70: 0.00201 | K70: 0.0003185215909 | M70: =+'Ajuste Generación-500 (2)'!G$89 -> 0.9325904349 | N70: =+'Ajuste Generación-500 (2)'!G90 -> 0.1480141566 | O70: 0.00204 | P70: =+'[1]Tarifa ABASTECIMIENTO 22-26'!$C52 -> 0.001741088122 | Q70: =+J70*N70 -> 0.0002975084549
A71: BTD (10,001-30,000) | C71: 0.00243 | D71: 0.00213 | E71: 0.000303196151 | G71: 0.9429259123 | H71: 0.149540653 | I71: 0.00233 | J71: 0.00201 | K71: 0.0003185215909 | M71: =+'Ajuste Generación-500 (2)'!G$89 -> 0.9325904349 | N71: =+'Ajuste Generación-500 (2)'!G90 -> 0.1480141566 | O71: 0.00204 | P71: =+'[1]Tarifa ABASTECIMIENTO 22-26'!$C53 -> 0.001741088122 | Q71: =+J71*N71 -> 0.0002975084549
A72: BTD (30,001-50,000) | C72: 0.00243 | D72: 0.00213 | E72: 0.000303196151 | G72: 0.9429259123 | H72: 0.149540653 | I72: 0.00233 | J72: 0.00201 | K72: 0.0003185215909 | M72: =+'Ajuste Generación-500 (2)'!G$89 -> 0.9325904349 | N72: =+'Ajuste Generación-500 (2)'!G90 -> 0.1480141566 | O72: 0.00204 | P72: =+'[1]Tarifa ABASTECIMIENTO 22-26'!$C54 -> 0.001741088122 | Q72: =+J72*N72 -> 0.0002975084549
A73: BTD (50,001-más) | C73: 0.00243 | D73: 0.00213 | E73: 0.000303196151 | G73: 0.9429259123 | H73: 0.149540653 | I73: 0.00233 | J73: 0.00201 | K73: 0.0003185215909 | M73: =+'Ajuste Generación-500 (2)'!G$89 -> 0.9325904349 | N73: =+'Ajuste Generación-500 (2)'!G90 -> 0.1480141566 | O73: 0.00204 | P73: =+'[1]Tarifa ABASTECIMIENTO 22-26'!$C55 -> 0.001741088122 | Q73: 0.0002975084549
A74: BTH | C74: 0.00243 | D74: 0.00213 | E74: 0.000303196151 | G74: 0.9429259123 | H74: 0.149540653 | I74: 0.00233 | J74: 0.00201 | K74: 0.0003185215909 | M74: =+'Ajuste Generación-500 (2)'!G$89 -> 0.9325904349 | N74: =+'Ajuste Generación-500 (2)'!G90 -> 0.1480141566 | O74: 0.00204 | P74: =+'[1]Tarifa ABASTECIMIENTO 22-26'!$C56 -> 0.001741085657 | Q74: 0.0002975084549
A75: MTD (0-10,000) | C75: 0.00243 | D75: 0.00213 | E75: 0.000303196151 | G75: 0.9429259123 | H75: 0.149540653 | I75: 0.00233 | J75: 0.00201 | K75: 0.0003185215909 | M75: =+'Ajuste Generación-500 (2)'!G$89 -> 0.9325904349 | N75: =+'Ajuste Generación-500 (2)'!G90 -> 0.1480141566 | O75: 0.00204 | P75: =+'[1]Tarifa ABASTECIMIENTO 22-26'!$C57 -> 0.001741088157 | Q75: 0.0002975084549
A76: MTD (10,001-30,000) | C76: 0.00243 | D76: 0.00213 | E76: 0.000303196151 | G76: 0.9429259123 | H76: 0.149540653 | I76: 0.00233 | J76: 0.00201 | K76: 0.0003185215909 | M76: =+'Ajuste Generación-500 (2)'!G$89 -> 0.9325904349 | N76: =+'Ajuste Generación-500 (2)'!G90 -> 0.1480141566 | O76: 0.00204 | P76: =+'[1]Tarifa ABASTECIMIENTO 22-26'!$C58 -> 0.001741088157 | Q76: 0.0002975084549
A77: MTD (30,001-50,000) | C77: 0.00243 | D77: 0.00213 | E77: 0.000303196151 | G77: 0.9429259123 | H77: 0.149540653 | I77: 0.00233 | J77: 0.00201 | K77: 0.0003185215909 | M77: =+'Ajuste Generación-500 (2)'!G$89 -> 0.9325904349 | N77: =+'Ajuste Generación-500 (2)'!G90 -> 0.1480141566 | O77: 0.00204 | P77: =+'[1]Tarifa ABASTECIMIENTO 22-26'!$C59 -> 0.001741088157 | Q77: 0.0002975084549
A78: MTD (50,001-más) | C78: 0.00243 | D78: 0.00213 | E78: 0.000303196151 | G78: 0.9429259123 | H78: 0.149540653 | I78: 0.00233 | J78: 0.00201 | K78: 0.0003185215909 | M78: =+'Ajuste Generación-500 (2)'!G$89 -> 0.9325904349 | N78: =+'Ajuste Generación-500 (2)'!G90 -> 0.1480141566 | O78: 0.00204 | P78: =+'[1]Tarifa ABASTECIMIENTO 22-26'!$C60 -> 0.001741088157 | Q78: 0.0002975084549
A79: MTH | C79: 0.00243 | D79: 0.00213 | E79: 0.000303196151 | G79: 0.9429259123 | H79: 0.149540653 | I79: 0.00233 | J79: 0.00201 | K79: 0.0003185215909 | M79: =+'Ajuste Generación-500 (2)'!G$89 -> 0.9325904349 | N79: =+'Ajuste Generación-500 (2)'!G90 -> 0.1480141566 | O79: 0.00204 | P79: =+'[1]Tarifa ABASTECIMIENTO 22-26'!$C61 -> 0.001741088167 | Q79: 0.0002975084549
A80: ATD | C80: 0.00243 | D80: 0.00213 | E80: 0.000303196151 | G80: 0.9429259123 | H80: 0.149540653 | I80: 0.00233 | J80: 0.00201 | K80: 0.0003185215909 | M80: =+'Ajuste Generación-500 (2)'!G$89 -> 0.9325904349 | N80: =+'Ajuste Generación-500 (2)'!G90 -> 0.1480141566 | O80: 0.00204 | P80: =+'[1]Tarifa ABASTECIMIENTO 22-26'!$C62 -> 0.001741088175 | Q80: 0.0002975084549
A81: ATH | C81: 0.00243 | D81: 0.00213 | E81: 0.000303196151 | G81: 0.9429259123 | H81: 0.149540653 | I81: 0.00233 | J81: 0.00201 | K81: 0.0003185215909 | M81: =+'Ajuste Generación-500 (2)'!G$89 -> 0.9325904349 | N81: =+'Ajuste Generación-500 (2)'!G90 -> 0.1480141566 | O81: 0.00204 | P81: =+'[1]Tarifa ABASTECIMIENTO 22-26'!$C63 -> 0.001741088175 | Q81: 0.0002975084549
A82: Transmisión | G82: MODELO AT302 | M82: MODELO AT302
A83: CPT (energía) | B83: B/./kWh | G83: # 23 | H83: # 24 | M83: # 23 | N83: # 24
A84: BTS (0-300) | C84: 0.01269 | D84: 0.01279 | E84: -9.882990463e-05 | G84: 0.9788536327 | H84: -0.04294737849 | I84: 0.01197 | J84: 0.01252 | K84: -0.0005492969709 | M84: =+'Ajuste Transmisión-300'!D$46 -> 1.011915048 | N84: =+'Ajuste Transmisión-300'!D$47 -> -0.01368399232 | O84: =+ROUND(P84+Q84,5) -> 0.0128 | P84: =+'[1]Tarifa ABASTECIMIENTO 22-26'!$C66 -> 0.01297604865 | Q84: =+J84*N84 -> -0.0001713235839
A85: BTS (301-750) | C85: 0.01269 | D85: 0.01279 | E85: -9.882990463e-05 | G85: 0.9788536327 | H85: -0.04294737849 | I85: 0.01197 | J85: 0.01252 | K85: -0.0005492969709 | M85: =+'Ajuste Transmisión-300'!D$46 -> 1.011915048 | N85: =+'Ajuste Transmisión-300'!D$47 -> -0.01368399232 | O85: =+ROUND(P85+Q85,5) -> 0.0128 | P85: =+'[1]Tarifa ABASTECIMIENTO 22-26'!$C67 -> 0.01297604865 | Q85: -0.0001713235839
A86: BTS (750-más) | C86: 0.01269 | D86: 0.01279 | E86: -9.882990463e-05 | G86: 0.9788536327 | H86: -0.04294737849 | I86: 0.01197 | J86: 0.01252 | K86: -0.0005492969709 | M86: =+'Ajuste Transmisión-300'!D$46 -> 1.011915048 | N86: =+'Ajuste Transmisión-300'!D$47 -> -0.01368399232 | O86: =+ROUND(P86+Q86,5) -> 0.0128 | P86: =+'[1]Tarifa ABASTECIMIENTO 22-26'!$C68 -> 0.01297604865 | Q86: -0.0001713235839
A87: BTD (0-10,000) | E87: 0 | G87: 0.9788536327 | H87: -0.04294737849 | K87: 0 | M87: =+'Ajuste Transmisión-300'!D$46 -> 1.011915048 | N87: =+'Ajuste Transmisión-300'!D$47 -> -0.01368399232 | Q87: 0
A88: BTD (10,001-30,000) | E88: 0 | G88: 0.9788536327 | H88: -0.04294737849 | K88: 0 | M88: =+'Ajuste Transmisión-300'!D$46 -> 1.011915048 | N88: =+'Ajuste Transmisión-300'!D$47 -> -0.01368399232 | Q88: 0
A89: BTD (30,001-50,000) | E89: 0 | G89: 0.9788536327 | H89: -0.04294737849 | K89: 0 | M89: =+'Ajuste Transmisión-300'!D$46 -> 1.011915048 | N89: =+'Ajuste Transmisión-300'!D$47 -> -0.01368399232 | Q89: 0
A90: BTD (50,001-más) | E90: 0 | G90: 0.9788536327 | H90: -0.04294737849 | K90: 0 | M90: =+'Ajuste Transmisión-300'!D$46 -> 1.011915048 | N90: =+'Ajuste Transmisión-300'!D$47 -> -0.01368399232 | Q90: 0
A91: BTD (0-10,000) | C91: 0.00713 | D91: 0.00719 | E91: -5.555923802e-05 | G91: 0.9788536327 | H91: -0.04294737849 | I91: 0.00673 | J91: 0.00704 | K91: -0.0003087916513 | M91: =+'Ajuste Transmisión-300'!D$46 -> 1.011915048 | N91: =+'Ajuste Transmisión-300'!D$47 -> -0.01368399232 | O91: =+ROUND(P91+Q91,5) -> 0.00429 | P91: =+'[1]Tarifa ABASTECIMIENTO 22-26'!$C69 -> 0.004386131973 | Q91: -9.633530596e-05
A92: BTD (10,001-30,000) | C92: 0.00713 | D92: 0.00719 | E92: -5.555923802e-05 | G92: 0.9788536327 | H92: -0.04294737849 | I92: 0.00673 | J92: 0.00704 | K92: -0.0003087916513 | M92: =+'Ajuste Transmisión-300'!D$46 -> 1.011915048 | N92: =+'Ajuste Transmisión-300'!D$47 -> -0.01368399232 | O92: =+ROUND(P92+Q92,5) -> 0.00429 | P92: =+'[1]Tarifa ABASTECIMIENTO 22-26'!$C70 -> 0.004386131973 | Q92: -9.633530596e-05
A93: BTD (30,001-50,000) | C93: 0.00713 | D93: 0.00719 | E93: -5.555923802e-05 | G93: 0.9788536327 | H93: -0.04294737849 | I93: 0.00673 | J93: 0.00704 | K93: -0.0003087916513 | M93: =+'Ajuste Transmisión-300'!D$46 -> 1.011915048 | N93: =+'Ajuste Transmisión-300'!D$47 -> -0.01368399232 | O93: =+ROUND(P93+Q93,5) -> 0.00429 | P93: =+'[1]Tarifa ABASTECIMIENTO 22-26'!$C71 -> 0.004386131973 | Q93: -9.633530596e-05
A94: BTD (50,001-más) | C94: 0.00713 | D94: 0.00719 | E94: -5.555923802e-05 | G94: 0.9788536327 | H94: -0.04294737849 | I94: 0.00673 | J94: 0.00704 | K94: -0.0003087916513 | M94: =+'Ajuste Transmisión-300'!D$46 -> 1.011915048 | N94: =+'Ajuste Transmisión-300'!D$47 -> -0.01368399232 | O94: 0.00429 | P94: =+'[1]Tarifa ABASTECIMIENTO 22-26'!$C72 -> 0.004386131973 | Q94: -9.633530596e-05
A95: BTH | C95: 0.00915 | D95: 0.00922 | E95: -7.127371419e-05 | G95: 0.9788536327 | H95: -0.04294737849 | I95: 0.00863 | J95: 0.00903 | K95: -0.0003959748297 | M95: =+'Ajuste Transmisión-300'!D$46 -> 1.011915048 | N95: =+'Ajuste Transmisión-300'!D$47 -> -0.01368399232 | O95: 0.00673 | P95: =+'[1]Tarifa ABASTECIMIENTO 22-26'!$C73 -> 0.006853588481 | Q95: -0.0001235664507
A96: MTD (0-10,000) | C96: 0.00613 | D96: 0.00618 | E96: -4.773923803e-05 | G96: 0.9788536327 | H96: -0.04294737849 | I96: 0.00578 | J96: 0.00605 | K96: -0.0002654147991 | M96: =+'Ajuste Transmisión-300'!D$46 -> 1.011915048 | N96: =+'Ajuste Transmisión-300'!D$47 -> -0.01368399232 | O96: 0.00414 | P96: =+'[1]Tarifa ABASTECIMIENTO 22-26'!$C74 -> 0.004218281432 | Q96: -8.278815356e-05
A97: MTD (10,001-30,000) | C97: 0.00613 | D97: 0.00618 | E97: -4.773923803e-05 | G97: 0.9788536327 | H97: -0.04294737849 | I97: 0.00578 | J97: 0.00605 | K97: -0.0002654147991 | M97: =+'Ajuste Transmisión-300'!D$46 -> 1.011915048 | N97: =+'Ajuste Transmisión-300'!D$47 -> -0.01368399232 | O97: 0.00414 | P97: =+'[1]Tarifa ABASTECIMIENTO 22-26'!$C75 -> 0.004218281432 | Q97: -8.278815356e-05
A98: MTD (30,001-50,000) | C98: 0.00613 | D98: 0.00618 | E98: -4.773923803e-05 | G98: 0.9788536327 | H98: -0.04294737849 | I98: 0.00578 | J98: 0.00605 | K98: -0.0002654147991 | M98: =+'Ajuste Transmisión-300'!D$46 -> 1.011915048 | N98: =+'Ajuste Transmisión-300'!D$47 -> -0.01368399232 | O98: 0.00414 | P98: =+'[1]Tarifa ABASTECIMIENTO 22-26'!$C76 -> 0.004218281432 | Q98: -8.278815356e-05
A99: MTD (50,001-más) | C99: 0.00613 | D99: 0.00618 | E99: -4.773923803e-05 | G99: 0.9788536327 | H99: -0.04294737849 | I99: 0.00578 | J99: 0.00605 | K99: -0.0002654147991 | M99: =+'Ajuste Transmisión-300'!D$46 -> 1.011915048 | N99: =+'Ajuste Transmisión-300'!D$47 -> -0.01368399232 | O99: 0.00414 | P99: =+'[1]Tarifa ABASTECIMIENTO 22-26'!$C77 -> 0.004218281432 | Q99: -8.278815356e-05
A100: MTH | C100: 0.00665 | D100: 0.0067 | E100: -5.176095231e-05 | G100: 0.9788536327 | H100: -0.04294737849 | I100: 0.00627 | J100: 0.00656 | K100: -0.0002877474359 | M100: =+'Ajuste Transmisión-300'!D$46 -> 1.011915048 | N100: =+'Ajuste Transmisión-300'!D$47 -> -0.01368399232 | O100: 0.00575 | P100: =+'[1]Tarifa ABASTECIMIENTO 22-26'!$C78 -> 0.005840536072 | Q100: -8.976698965e-05
A101: ATD | C101: 0.00262 | D101: 0.00264 | E101: -2.040647616e-05 | G101: 0.9788536327 | H101: -0.04294737849 | I101: 0.00247 | J101: 0.00258 | K101: -0.0001133810792 | M101: =+'Ajuste Transmisión-300'!D$46 -> 1.011915048 | N101: =+'Ajuste Transmisión-300'!D$47 -> -0.01368399232 | O101: 0.03088 | P101: =+'[1]Tarifa ABASTECIMIENTO 22-26'!$C79 -> 0.03091325534 | Q101: -3.53047002e-05
A102: ATH | C102: 0.00262 | D102: 0.00264 | E102: -2.040647616e-05 | G102: 0.9788536327 | H102: -0.04294737849 | I102: 0.00247 | J102: 0.00258 | K102: -0.0001133810792 | M102: =+'Ajuste Transmisión-300'!D$46 -> 1.011915048 | N102: =+'Ajuste Transmisión-300'!D$47 -> -0.01368399232 | O102: 0.00175 | P102: =+'[1]Tarifa ABASTECIMIENTO 22-26'!$C80 -> 0.001781123645 | Q102: -3.53047002e-05
A103: CPT (potencia) | B103: B/./kW | G103: # 23 | H103: # 24 | M103: # 23 | N103: # 24
A104: BTS
A105: BTD (0-10,000)
A106: BTD (10,001-30,000)
A107: BTD (30,001-50,000)
A108: BTD (50,001-más)
A109: BTD (0-10,000) | C109: 0.69 | D109: 0.7 | E109: -0.005436761898 | G109: 0.9788536327 | H109: -0.04294737849 | I109: 0.66 | J109: 0.69 | K109: -0.03006316494 | M109: =+'Ajuste Transmisión-300'!D$46 -> 1.011915048 | N109: =+'Ajuste Transmisión-300'!D$47 -> -0.01368399232 | O109: =+ROUND(P109+Q109,2) -> 1.26 | P109: =+'[1]Tarifa ABASTECIMIENTO 22-26'!$C83 -> 1.272591183 | Q109: =+J109*N109 -> -0.009441954704
A110: BTD (10,001-30,000) | C110: 0.69 | D110: 0.7 | E110: -0.005436761898 | G110: 0.9788536327 | H110: -0.04294737849 | I110: 0.66 | J110: 0.69 | K110: -0.03006316494 | M110: =+'Ajuste Transmisión-300'!D$46 -> 1.011915048 | N110: =+'Ajuste Transmisión-300'!D$47 -> -0.01368399232 | O110: 1.26 | P110: =+'[1]Tarifa ABASTECIMIENTO 22-26'!$C84 -> 1.272591183 | Q110: -0.009441954704
A111: BTD (30,001-50,000) | C111: 0.69 | D111: 0.7 | E111: -0.005436761898 | G111: 0.9788536327 | H111: -0.04294737849 | I111: 0.66 | J111: 0.69 | K111: -0.03006316494 | M111: =+'Ajuste Transmisión-300'!D$46 -> 1.011915048 | N111: =+'Ajuste Transmisión-300'!D$47 -> -0.01368399232 | O111: 1.26 | P111: =+'[1]Tarifa ABASTECIMIENTO 22-26'!$C85 -> 1.272591183 | Q111: -0.009441954704
A112: BTD (50,001-más) | C112: 0.69 | D112: 0.7 | E112: -0.005436761898 | G112: 0.9788536327 | H112: -0.04294737849 | I112: 0.66 | J112: 0.69 | K112: -0.03006316494 | M112: =+'Ajuste Transmisión-300'!D$46 -> 1.011915048 | N112: =+'Ajuste Transmisión-300'!D$47 -> -0.01368399232 | O112: 1.26 | P112: =+'[1]Tarifa ABASTECIMIENTO 22-26'!$C86 -> 1.272591183 | Q112: -0.009441954704
A113: BTH Punta | C113: 1.41 | D113: 1.42 | E113: -0.01094799999 | G113: 0.9788536327 | H113: -0.04294737849 | I113: 1.33 | J113: 1.39 | K113: -0.06098527746 | M113: =+'Ajuste Transmisión-300'!D$46 -> 1.011915048 | N113: =+'Ajuste Transmisión-300'!D$47 -> -0.01368399232 | O113: 2.4 | P113: =+'[1]Tarifa ABASTECIMIENTO 22-26'!$C87 -> 2.419881081 | Q113: -0.01902074933
A114: BTH Fuera de Punta Medio | C114: 0.14 | D114: 0.14 | E114: -0.001117142856 | G114: 0.9788536327 | H114: -0.04294737849 | I114: 0.13 | J114: 0.14 | K114: -0.006012632989 | M114: =+'Ajuste Transmisión-300'!D$46 -> 1.011915048 | N114: =+'Ajuste Transmisión-300'!D$47 -> -0.01368399232 | O114: 0.23 | P114: =+'[1]Tarifa ABASTECIMIENTO 22-26'!$C88 -> 0.2365297297 | Q114: -0.001915758925
A115: BTH Fuera de Punta Bajo | I115: =+I114 -> 0.13 | J115: 0.14 | K115: =+K114 -> -0.006012632989 | M115: =+'Ajuste Transmisión-300'!D$46 -> 1.011915048 | N115: =+'Ajuste Transmisión-300'!D$47 -> -0.01368399232 | O115: 0.23 | P115: =+'[1]Tarifa ABASTECIMIENTO 22-26'!$C89 -> 0.2365297297 | Q115: -0.001915758925
A116: MTD | C116: 0.87 | D116: 0.88 | E116: -0.006777333325 | G116: 0.9788536327 | H116: -0.04294737849 | I116: 0.82 | J116: 0.86 | K116: -0.03779369307 | M116: =+'Ajuste Transmisión-300'!D$46 -> 1.011915048 | N116: =+'Ajuste Transmisión-300'!D$47 -> -0.01368399232 | O116: 1.84 | P116: =+'[1]Tarifa ABASTECIMIENTO 22-26'!$C90 -> 1.853106289 | Q116: -0.0117682334
E117: 0 | K117: 0 | Q117: 0
E118: 0 | K118: 0 | Q118: 0
E119: 0 | K119: 0 | Q119: 0
A120: MTH punta | C120: 2.25 | D120: 2.27 | E120: -0.01757638093 | G120: 0.9788536327 | H120: -0.04294737849 | I120: 2.12 | J120: 2.22 | K120: -0.09749054917 | M120: =+'Ajuste Transmisión-300'!D$46 -> 1.011915048 | N120: =+'Ajuste Transmisión-300'!D$47 -> -0.01368399232 | O120: =+ROUND(P120+Q120,2) -> 2.88 | P120: =+'[1]Tarifa ABASTECIMIENTO 22-26'!$C91 -> 2.911228362 | Q120: -0.03037846296
A121: MTH Fuera de Punta Medio | C121: 0.23 | D121: 0.23 | E121: -0.001787428569 | G121: 0.9788536327 | H121: -0.04294737849 | I121: 0.22 | J121: 0.23 | K121: -0.009877897053 | M121: =+'Ajuste Transmisión-300'!D$46 -> 1.011915048 | N121: =+'Ajuste Transmisión-300'!D$47 -> -0.01368399232 | O121: =+ROUND(P121+Q121,2) -> 0.3 | P121: =+'[1]Tarifa ABASTECIMIENTO 22-26'!$C92 -> 0.3021086036 | Q121: =+J121*N121 -> -0.003147318235
A122: MTH Fuera de Punta Bajo | I122: =+I121 -> 0.22 | J122: 0.23 | K122: =+K121 -> -0.009877897053 | M122: =+'Ajuste Transmisión-300'!D$46 -> 1.011915048 | N122: =+'Ajuste Transmisión-300'!D$47 -> -0.01368399232 | O122: 0.3 | P122: =+'[1]Tarifa ABASTECIMIENTO 22-26'!$C93 -> 0.3021086036 | Q122: -0.003147318235
A123: ATD | C123: 5.29 | D123: 5.33 | E123: -0.04118533328 | G123: 0.9788536327 | H123: -0.04294737849 | I123: 4.99 | J123: 5.22 | K123: -0.2289095273 | M123: =+'Ajuste Transmisión-300'!D$46 -> 1.011915048 | N123: =+'Ajuste Transmisión-300'!D$47 -> -0.01368399232 | O123: 2.89 | P123: =+'[1]Tarifa ABASTECIMIENTO 22-26'!$C97 -> 2.961251334 | Q123: -0.07143043993
A124: ATH Punta | C124: 2.82 | D124: 2.84 | E124: -0.02197047616 | G124: 0.9788536327 | H124: -0.04294737849 | I124: 2.66 | J124: 2.78 | K124: -0.1219705549 | M124: =+'Ajuste Transmisión-300'!D$46 -> 1.011915048 | N124: =+'Ajuste Transmisión-300'!D$47 -> -0.01368399232 | O124: 6.2 | P124: =+'[1]Tarifa ABASTECIMIENTO 22-26'!C94 -> 6.235852755 | Q124: -0.03804149866
A125: ATH Fuera de Punta Medio | C125: 0.08 | D125: 0.08 | E125: -0.000595809523 | G125: 0.9788536327 | H125: -0.04294737849 | I125: 0.08 | J125: 0.08 | K125: -0.003435790279 | M125: =+'Ajuste Transmisión-300'!D$46 -> 1.011915048 | N125: =+'Ajuste Transmisión-300'!D$47 -> -0.01368399232 | O125: =+ROUND(P125+Q125,2) -> 0.19 | P125: =+'[1]Tarifa ABASTECIMIENTO 22-26'!C95 -> 0.1875444438 | Q125: -0.001094719386
A126: ATH Fuera de Punta Bajo | I126: =+I125 -> 0.08 | J126: 0.08 | K126: =+K125 -> -0.003435790279 | M126: =+'Ajuste Transmisión-300'!D$46 -> 1.011915048 | N126: =+'Ajuste Transmisión-300'!D$47 -> -0.01368399232 | O126: =+ROUND(P126+Q126,2) -> 0.19 | P126: =+'[1]Tarifa ABASTECIMIENTO 22-26'!C96 -> 0.1875444438 | Q126: -0.001094719386
A127: Pérdidas en Transmisión | G127: MODELO AT402 | M127: MODELO AT402
A128: CPET | B128: B/./kWh | G128: # 18 | H128: # 19 | M128: # 18 | N128: # 19
A129: BTS (0-300) | C129: 0.00542 | D129: 0.00294 | E129: 0.002476556324 | G129: 0.9852861531 | H129: -0.08286414021 | I129: 0.00266 | J129: 0.0029 | K129: -0.0002436205722 | M129: =+'AjustePérd de Trans-400'!D$39 -> 0.9577392395 | N129: =+'AjustePérd de Trans-400'!D$40 -> 0.7028494848 | O129: =+ROUND(P129+Q129,5) -> 0.00481 | P129: =+'[1]Tarifa ABASTECIMIENTO 22-26'!$C99 -> 0.002772862254 | Q129: =+J129*N129 -> 0.002038263506
A130: BTS (301-750) | C130: 0.00542 | D130: 0.00294 | E130: 0.002476556324 | G130: 0.9852861531 | H130: -0.08286414021 | I130: 0.00266 | J130: 0.0029 | K130: -0.0002436205722 | M130: =+'AjustePérd de Trans-400'!D$39 -> 0.9577392395 | N130: =+'AjustePérd de Trans-400'!D$40 -> 0.7028494848 | O130: 0.00481 | P130: =+'[1]Tarifa ABASTECIMIENTO 22-26'!$C100 -> 0.002772862254 | Q130: 0.002038263506
A131: BTS (750-más) | C131: 0.00542 | D131: 0.00294 | E131: 0.002476556324 | G131: 0.9852861531 | H131: -0.08286414021 | I131: 0.00266 | J131: 0.0029 | K131: -0.0002436205722 | M131: =+'AjustePérd de Trans-400'!D$39 -> 0.9577392395 | N131: =+'AjustePérd de Trans-400'!D$40 -> 0.7028494848 | O131: 0.00481 | P131: =+'[1]Tarifa ABASTECIMIENTO 22-26'!$C101 -> 0.002772862254 | Q131: 0.002038263506
A132: BTD (0-10,000) | C132: 0.00505 | D132: 0.00274 | E132: 0.002305759336 | G132: 0.9852861531 | H132: -0.08286414021 | I132: 0.00247 | J132: 0.0027 | K132: -0.0002270477442 | M132: =+'AjustePérd de Trans-400'!D$39 -> 0.9577392395 | N132: =+'AjustePérd de Trans-400'!D$40 -> 0.7028494848 | O132: 0.00449 | P132: =+'[1]Tarifa ABASTECIMIENTO 22-26'!$C102 -> 0.00259643105 | Q132: 0.001897693609
A133: BTD (10,001-30,000) | C133: 0.00505 | D133: 0.00274 | E133: 0.002305759336 | G133: 0.9852861531 | H133: -0.08286414021 | I133: 0.00247 | J133: 0.0027 | K133: -0.0002270477442 | M133: =+'AjustePérd de Trans-400'!D$39 -> 0.9577392395 | N133: =+'AjustePérd de Trans-400'!D$40 -> 0.7028494848 | O133: 0.00449 | P133: =+'[1]Tarifa ABASTECIMIENTO 22-26'!$C103 -> 0.00259643105 | Q133: 0.001897693609
A134: BTD (30,001-50,000) | C134: 0.00505 | D134: 0.00274 | E134: 0.002305759336 | G134: 0.9852861531 | H134: -0.08286414021 | I134: 0.00247 | J134: 0.0027 | K134: -0.0002270477442 | M134: =+'AjustePérd de Trans-400'!D$39 -> 0.9577392395 | N134: =+'AjustePérd de Trans-400'!D$40 -> 0.7028494848 | O134: 0.00449 | P134: =+'[1]Tarifa ABASTECIMIENTO 22-26'!$C104 -> 0.00259643105 | Q134: 0.001897693609
A135: BTD (50,001-más) | C135: 0.00505 | D135: 0.00274 | E135: 0.002305759336 | G135: 0.9852861531 | H135: -0.08286414021 | I135: 0.00247 | J135: 0.0027 | K135: -0.0002270477442 | M135: =+'AjustePérd de Trans-400'!D$39 -> 0.9577392395 | N135: =+'AjustePérd de Trans-400'!D$40 -> 0.7028494848 | O135: 0.00449 | P135: =+'[1]Tarifa ABASTECIMIENTO 22-26'!$C105 -> 0.00259643105 | Q135: 0.001897693609
A136: BTH | C136: 0.00505 | D136: 0.00274 | E136: 0.002305759336 | G136: 0.9852861531 | H136: -0.08286414021 | I136: 0.00247 | J136: 0.0027 | K136: -0.0002270477442 | M136: =+'AjustePérd de Trans-400'!D$39 -> 0.9577392395 | N136: =+'AjustePérd de Trans-400'!D$40 -> 0.7028494848 | O136: 0.00449 | P136: =+'[1]Tarifa ABASTECIMIENTO 22-26'!$C106 -> 0.002596427375 | Q136: 0.001897693609
A137: MTD | C137: 0.00505 | D137: 0.00274 | E137: 0.002305759336 | G137: 0.9852861531 | H137: -0.08286414021 | I137: 0.00247 | J137: 0.0027 | K137: -0.0002270477442 | M137: =+'AjustePérd de Trans-400'!D$39 -> 0.9577392395 | N137: =+'AjustePérd de Trans-400'!D$40 -> 0.7028494848 | O137: 0.00449 | P137: =+'[1]Tarifa ABASTECIMIENTO 22-26'!$C107 -> 0.002596431104 | Q137: 0.001897693609
A138: MTD | E138: 0 | K138: 0 | Q138: 0
A139: MTD | E139: 0 | K139: 0 | Q139: 0
A140: MTD | E140: 0 | K140: 0 | Q140: 0
A141: MTH | C141: 0.00505 | D141: 0.00274 | E141: 0.002305759336 | G141: 0.9852861531 | H141: -0.08286414021 | I141: 0.00247 | J141: 0.0027 | K141: -0.0002270477442 | M141: =+'AjustePérd de Trans-400'!D$39 -> 0.9577392395 | N141: =+'AjustePérd de Trans-400'!D$40 -> 0.7028494848 | O141: =+ROUND(P141+Q141,5) -> 0.00449 | P141: =+'[1]Tarifa ABASTECIMIENTO 22-26'!$C111 -> 0.002596431119 | Q141: 0.001897693609
A142: ATD | C142: 0.00505 | D142: 0.00274 | E142: 0.002305759336 | G142: 0.9852861531 | H142: -0.08286414021 | I142: 0.00247 | J142: 0.0027 | K142: -0.0002270477442 | M142: =+'AjustePérd de Trans-400'!D$39 -> 0.9577392395 | N142: =+'AjustePérd de Trans-400'!D$40 -> 0.7028494848 | O142: 0.00449 | P142: =+'[1]Tarifa ABASTECIMIENTO 22-26'!$C112 -> 0.002596431129 | Q142: 0.001897693609
A143: ATH | C143: 0.00505 | D143: 0.00274 | E143: 0.002305759336 | G143: 0.9852861531 | H143: -0.08286414021 | I143: 0.00247 | J143: 0.0027 | K143: -0.0002270477442 | M143: =+'AjustePérd de Trans-400'!D$39 -> 0.9577392395 | N143: =+'AjustePérd de Trans-400'!D$40 -> 0.7028494848 | O143: 0.00449 | P143: =+'[1]Tarifa ABASTECIMIENTO 22-26'!$C113 -> 0.002596431129 | Q143: =+J143*N143 -> 0.001897693609
A144: Generación | G144: MODELO AT502 | M144: MODELO AT502
A145: CPGENGC | B145: B/./Kw
A146: BTD | C146: 8.96 | D146: 8.96 | I146: 8.96 | J146: 8.96 | O146: =+ROUND(P146+Q146,2) -> 8.96 | P146: 8.96
A147: BTH | C147: 8.96 | D147: 8.96 | I147: 8.96 | J147: 8.96 | O147: 8.96 | P147: 8.96
A148: MTD | C148: 8.96 | D148: 8.96 | I148: 8.96 | J148: 8.96 | O148: 8.96 | P148: 8.96
A149: MTH | C149: 8.96 | D149: 8.96 | I149: 8.96 | J149: 8.96 | O149: 8.96 | P149: 8.96
A150: ATD | C150: 8.96 | D150: 8.96 | I150: 8.96 | J150: 8.96 | O150: 8.96 | P150: 8.96
A151: ATH | C151: 8.96 | D151: 8.96 | I151: 8.96 | J151: 8.96 | O151: 8.96 | P151: 8.96
A153: CPOTGEN | B153: B/./kWh o B/./kW | G153: # 28 | M153: # 28
A154: BTS (0-300) | C154: 0.02961 | D154: 0.02961 | E154: 0 | G154: 1 | H154: 0 | I154: 0.02961 | J154: 0.02961 | K154: 0 | M154: 1 | N154: 0 | O154: =+ROUND(P154+Q154,5) -> 0.03346 | P154: =+'[1]Tarifa ABASTECIMIENTO 22-26'!$C133 -> 0.03346111746 | Q154: =+ROUND(J154*N154,5) -> 0
A155: BTS (301-750) | C155: 0.04746 | D155: 0.04746 | E155: 0 | G155: 1 | H155: 0 | I155: 0.04746 | J155: 0.04746 | K155: 0 | M155: 1 | N155: 0 | O155: 0.05363 | P155: =+'[1]Tarifa ABASTECIMIENTO 22-26'!$C134 -> 0.05363315419 | Q155: 0
A156: BTS (750-más) | C156: 0.0606 | D156: 0.0606 | E156: 0 | G156: 1 | H156: 0 | I156: 0.0606 | J156: 0.0606 | K156: 0 | M156: 1 | N156: 0 | O156: 0.06849 | P156: =+'[1]Tarifa ABASTECIMIENTO 22-26'!$C135 -> 0.06849370499 | Q156: 0
A157: BTD (0-10,000) | C157: 0.02196 | D157: 0.02196 | E157: 0 | G157: 1 | H157: 0 | I157: 0.02196 | J157: 0.02196 | K157: 0 | M157: 1 | N157: 0 | O157: 0.02632 | P157: =+'[1]Tarifa ABASTECIMIENTO 22-26'!$C136 -> 0.02631886929 | Q157: 0
A158: BTD (10,001-30,000) | C158: 0.02315 | D158: 0.02315 | E158: 0 | G158: 1 | H158: 0 | I158: 0.02315 | J158: 0.02315 | K158: 0 | M158: 1 | N158: 0 | O158: 0.02775 | P158: =+'[1]Tarifa ABASTECIMIENTO 22-26'!$C137 -> 0.02774507396 | Q158: 0
A159: BTD (30,001-50,000) | C159: 0.02542 | D159: 0.02542 | E159: 0 | G159: 1 | H159: 0 | I159: 0.02542 | J159: 0.02542 | K159: 0 | M159: 1 | N159: 0 | O159: 0.03047 | P159: =+'[1]Tarifa ABASTECIMIENTO 22-26'!$C138 -> 0.03046564924 | Q159: 0
A160: BTD (50,001-más) | C160: 0.02767 | D160: 0.02767 | E160: 0 | G160: 1 | H160: 0 | I160: 0.02767 | J160: 0.02767 | K160: 0 | M160: 1 | N160: 0 | O160: 0.03316 | P160: =+'[1]Tarifa ABASTECIMIENTO 22-26'!$C139 -> 0.0331622547 | Q160: 0
A161: BTD | C161: 1.22 | D161: 1.22 | E161: 0 | G161: 1 | H161: 0 | I161: 1.22 | J161: 1.22 | K161: 0 | M161: 1 | N161: 0 | O161: =+ROUND(P161+Q161,2) -> 1.42 | P161: =+'[1]Tarifa ABASTECIMIENTO 22-26'!$C$129 -> 1.421491833 | Q161: 0
A162: BTH Punta | C162: 0.00691 | D162: 0.00691 | E162: 0 | G162: 1 | H162: 0 | I162: 0.00691 | J162: 0.00691 | K162: 0 | M162: 1 | N162: 0 | O162: =+ROUND(P162+Q162,5) -> 0.00181 | P162: =+'[1]Tarifa ABASTECIMIENTO 22-26'!$C140 -> 0.001809559074 | Q162: =+J162*N162 -> 0
A163: BTH Fuera de Punta Medio | I163: =+I162 -> 0.00691 | J163: 0.00691 | M163: 1 | N163: 0 | O163: =+ROUND(P163+Q163,5) -> 0.00181 | P163: =+'[1]Tarifa ABASTECIMIENTO 22-26'!$C141 -> 0.001809559074 | Q163: =+J163*N163 -> 0
A164: BTH Fuera de Punta Bajo | I164: =+I163 -> 0.00691 | J164: 0.00691 | M164: 1 | N164: 0 | O164: 0.00181 | P164: =+'[1]Tarifa ABASTECIMIENTO 22-26'!$C142 -> 0.001809559074 | Q164: =+J164*N164 -> 0
A165: BTH Punta | C165: 0.63 | D165: 0.63 | E165: 0 | G165: 1 | H165: 0 | I165: 0.63 | J165: 0.63 | K165: 0 | M165: 1 | N165: 0 | O165: =+ROUND(P165+Q165,2) -> 0.13 | P165: =+'[1]Tarifa ABASTECIMIENTO 22-26'!$C143 -> 0.125356166 | Q165: =+ROUND(J165*N165,2) -> 0
A166: BTH Fuera de Punta Medio | I166: =+I165 -> 0.63 | J166: 0.63 | M166: 1 | N166: 0 | O166: =+ROUND(P166+Q166,2) -> 0 | P166: =+'[1]Tarifa ABASTECIMIENTO 22-26'!$C144 -> 0 | Q166: =+ROUND(J166*N166,2) -> 0
A167: BTH Fuera de Punta Bajo | I167: =+I166 -> 0.63 | J167: 0.63 | M167: 1 | N167: 0 | O167: =+ROUND(P167+Q167,2) -> 0 | P167: =+'[1]Tarifa ABASTECIMIENTO 22-26'!$C145 -> 0 | Q167: =+ROUND(J167*N167,2) -> 0
A168: MTD | C168: 0.02346 | D168: 0.02346 | E168: 0 | G168: 1 | H168: 0 | I168: 0.02346 | J168: 0.02346 | K168: 0 | M168: 1 | N168: 0 | O168: =+ROUND(P168+Q168,5) -> 0.03008 | P168: =+'[1]Tarifa ABASTECIMIENTO 22-26'!$C146 -> 0.03007862445 | Q168: =+ROUND(J168*N168,5) -> 0
A169: MTD | C169: 0.02346 | D169: 0.02346 | E169: 0 | G169: 1 | H169: 0 | I169: 0.02346 | J169: 0.02346 | K169: 0 | M169: 1 | N169: 0 | O169: =+ROUND(P169+Q169,5) -> 0.03008 | P169: =+'[1]Tarifa ABASTECIMIENTO 22-26'!$C147 -> 0.03007862445 | Q169: =+ROUND(J169*N169,5) -> 0
A170: MTD | C170: 0.02346 | D170: 0.02346 | E170: 0 | G170: 1 | H170: 0 | I170: 0.02346 | J170: 0.02346 | K170: 0 | M170: 1 | N170: 0 | O170: =+ROUND(P170+Q170,5) -> 0.03008 | P170: =+'[1]Tarifa ABASTECIMIENTO 22-26'!$C148 -> 0.03007862445 | Q170: =+ROUND(J170*N170,5) -> 0
A171: MTD | C171: 0.02346 | D171: 0.02346 | E171: 0 | G171: 1 | H171: 0 | I171: 0.02346 | J171: 0.02346 | K171: 0 | M171: 1 | N171: 0 | O171: =+ROUND(P171+Q171,5) -> 0.03008 | P171: =+'[1]Tarifa ABASTECIMIENTO 22-26'!$C149 -> 0.03007862445 | Q171: =+ROUND(J171*N171,5) -> 0
A172: MTD | C172: 1.79 | D172: 1.79 | E172: 0 | G172: 1 | H172: 0 | I172: 1.79 | J172: 1.79 | K172: 0 | M172: 1 | N172: 0 | O172: =+ROUND(P172+Q172,2) -> 2.33 | P172: =+'[1]Tarifa ABASTECIMIENTO 22-26'!$C$130 -> 2.331820324 | Q172: =+ROUND(J172*N172,2) -> 0
A173: MTH punta | C173: 0.00303 | D173: 0.00303 | E173: 0 | G173: 1 | H173: 0 | I173: 0.00303 | J173: 0.00303 | K173: 0 | M173: 1 | N173: 0 | O173: =+ROUND(P173+Q173,5) -> 0.00121 | P173: =+'[1]Tarifa ABASTECIMIENTO 22-26'!$C150 -> 0.001213425118 | Q173: =+ROUND(J173*N173,5) -> 0
A174: MTH Fuera de Punta Medio | I174: =+I173 -> 0.00303 | J174: 0.00303 | M174: 1 | N174: 0 | O174: =+ROUND(P174+Q174,5) -> 0.00121 | P174: =+'[1]Tarifa ABASTECIMIENTO 22-26'!$C151 -> 0.001213425118 | Q174: =+ROUND(J174*N174,5) -> 0
A175: MTH Fuera de Punta Bajo | I175: =+I174 -> 0.00303 | J175: 0.00303 | M175: 1 | N175: 0 | O175: =+ROUND(P175+Q175,5) -> 0.00121 | P175: =+'[1]Tarifa ABASTECIMIENTO 22-26'!$C152 -> 0.001213425118 | Q175: =+ROUND(J175*N175,5) -> 0
A176: MTH punta | C176: 0.6 | D176: 0.6 | E176: 0 | G176: 1 | H176: 0 | I176: 0.6 | J176: 0.6 | K176: 0 | M176: 1 | N176: 0 | O176: =+ROUND(P176+Q176,2) -> 0.12 | P176: =+'[1]Tarifa ABASTECIMIENTO 22-26'!$C153 -> 0.1194285614 | Q176: =+ROUND(J176*N176,2) -> 0
A177: MTH Fuera de Punta Medio | I177: =+I176 -> 0.6 | J177: 0.6 | M177: 1 | N177: 0 | O177: =+ROUND(P177+Q177,2) -> 0 | P177: =+'[1]Tarifa ABASTECIMIENTO 22-26'!$C154 -> 0 | Q177: =+ROUND(J177*N177,2) -> 0
A178: MTH Fuera de Punta Bajo | I178: =+I177 -> 0.6 | J178: 0.6 | M178: 1 | N178: 0 | O178: =+ROUND(P178+Q178,2) -> 0 | P178: =+'[1]Tarifa ABASTECIMIENTO 22-26'!$C155 -> 0 | Q178: 0
A179: ATD | C179: 1.94 | D179: 1.94 | E179: 0 | G179: 1 | H179: 0 | I179: 1.94 | J179: 1.94 | K179: 0 | M179: 1 | N179: 0 | O179: =+ROUND(P179+Q179,2) -> 0.42 | P179: =+'[1]Tarifa ABASTECIMIENTO 22-26'!$C131 -> 0.419571316 | Q179: 0
A180: ATD | C180: 0.00182 | D180: 0.00182 | E180: 0 | G180: 1 | H180: 0 | I180: 0.00182 | J180: 0.00182 | K180: 0 | M180: 1 | N180: 0 | O180: =+ROUND(P180+Q180,5) -> 0.02482 | P180: =+'[1]Tarifa ABASTECIMIENTO 22-26'!$C132 -> 0.0248200658 | Q180: =+ROUND(J180*N180,5) -> 0
A181: ATH | C181: 6.98 | D181: 6.98 | E181: 0 | G181: 1 | H181: 0 | I181: 6.98 | J181: 6.98 | K181: 0 | M181: 1 | N181: 0 | O181: =+ROUND(P181+Q181,2) -> 1.39 | P181: =+'[1]Tarifa ABASTECIMIENTO 22-26'!$C156 -> 1.389352265 | Q181: =+ROUND(J181*N181,2) -> 0
A182: ATH Punta | C182: 0.00916 | D182: 0.00916 | E182: 0 | G182: 1 | H182: 0 | I182: 0.00916 | J182: 0.00916 | K182: 0 | M182: 1 | N182: 0 | O182: =+ROUND(P182+Q182,5) -> 0.00165 | P182: =+'[1]Tarifa ABASTECIMIENTO 22-26'!$C157 -> 0.001652385302 | Q182: =+ROUND(J182*N182,5) -> 0
A183: ATH Fuera de Punta Medio | C183: 0.00916 | D183: 0.00916 | E183: 0 | G183: 1 | H183: 0 | I183: 0.00916 | J183: 0.00916 | K183: 0 | M183: 1 | N183: 0 | O183: =+ROUND(P183+Q183,5) -> 0.00165 | P183: =+'[1]Tarifa ABASTECIMIENTO 22-26'!$C158 -> 0.001652385302 | Q183: 0
A184: ATH Fuera de Punta Bajo | I184: =+I183 -> 0.00916 | J184: 0.00916 | M184: 1 | N184: 0 | O184: =+ROUND(P184+Q184,5) -> 0.00165 | P184: =+'[1]Tarifa ABASTECIMIENTO 22-26'!$C159 -> 0.001652385302 | Q184: =+ROUND(J184*N184,5) -> 0
A185: CENEGEN PUNTA | B185: B/./kWh
A186: BTH | C186: 0.20282 | D186: 0.17752 | E186: 0.0253 | G186: 0.9429259123 | H186: 0.149540653 | I186: 0.19391 | J186: 0.16739 | K186: 0.02655 | M186: =+'Ajuste Generación-500 (2)'!G$89 -> 0.9325904349 | N186: =+'Ajuste Generación-500 (2)'!G$90 -> 0.1480141566 | O186: =+ROUND(P186+Q186,5)+O240 -> 0.20895 | P186: =+'[1]Tarifa ABASTECIMIENTO 22-26'!$C161 -> 0.1841706038 | Q186: =+ROUND(J186*N186,5) -> 0.02478
A187: MTH | C187: 0.19589 | D187: 0.17146 | E187: 0.02443 | G187: 0.9429259123 | H187: 0.149540653 | I187: 0.18728 | J187: 0.16167 | K187: 0.02564 | M187: =+'Ajuste Generación-500 (2)'!G$89 -> 0.9325904349 | N187: =+'Ajuste Generación-500 (2)'!G$90 -> 0.1480141566 | O187: =+ROUND(P187+Q187,5)+O235 -> 0.21463 | P187: =+'[1]Tarifa ABASTECIMIENTO 22-26'!$C$164 -> 0.1907049424 | Q187: =+ROUND(J187*N187,5) -> 0.02393
A188: ATH | C188: 0.15235 | D188: 0.13335 | E188: 0.019 | G188: 0.9429259123 | H188: 0.149540653 | I188: 0.14565 | J188: 0.12574 | K188: 0.01994 | M188: =+'Ajuste Generación-500 (2)'!G$89 -> 0.9325904349 | N188: =+'Ajuste Generación-500 (2)'!G$90 -> 0.1480141566 | O188: =+ROUND(P188+Q188,5)+O233 -> 0.16856 | P188: =+'[1]Tarifa ABASTECIMIENTO 22-26'!$C$167 -> 0.1499506472 | Q188: =+ROUND(J188*N188,5) -> 0.01861
A189: CENEGEN FP MEDIO | B189: B/./kWh
A190: BTH | C190: 0.1263 | D190: 0.11055 | E190: 0.01575 | G190: 0.9429259123 | H190: 0.149540653 | I190: 0.12074 | J190: 0.10424 | K190: 0.01653 | M190: =+'Ajuste Generación-500 (2)'!G$89 -> 0.9325904349 | N190: =+'Ajuste Generación-500 (2)'!G$90 -> 0.1480141566 | O190: =+ROUND(P190+Q190,5)+O240 -> 0.10752 | P190: =+'[1]Tarifa ABASTECIMIENTO 22-26'!$C$162 -> 0.09208530191 | Q190: =+ROUND(J190*N190,5) -> 0.01543
A191: MTH | C191: 0.13937 | D191: 0.12199 | E191: 0.01738 | G191: 0.9429259123 | H191: 0.149540653 | I191: 0.13324 | J191: 0.11503 | K191: 0.01824 | M191: =+'Ajuste Generación-500 (2)'!G$89 -> 0.9325904349 | N191: =+'Ajuste Generación-500 (2)'!G$90 -> 0.1480141566 | O191: =+ROUND(P191+Q191,5)+O235 -> 0.11692 | P191: =+'[1]Tarifa ABASTECIMIENTO 22-26'!$C$165 -> 0.09989306505 | Q191: =+ROUND(J191*N191,5) -> 0.01703
A192: ATH | C192: 0.10641 | D192: 0.09314 | E192: 0.01327 | G192: 0.9429259123 | H192: 0.149540653 | I192: 0.10172 | J192: 0.08782 | K192: 0.01393 | M192: =+'Ajuste Generación-500 (2)'!G$89 -> 0.9325904349 | N192: =+'Ajuste Generación-500 (2)'!G$90 -> 0.1480141566 | O192: =+ROUND(P192+Q192,5)+O233 -> 0.08972 | P192: =+'[1]Tarifa ABASTECIMIENTO 22-26'!$C$168 -> 0.07671893578 | Q192: =+ROUND(J192*N192,5) -> 0.013
A193: CENEGEN FP BAJO
A194: BTH | I194: =+I190 -> 0.12074 | J194: 0.10424 | K194: =+K190 -> 0.01653 | M194: =+'Ajuste Generación-500 (2)'!G$89 -> 0.9325904349 | N194: =+'Ajuste Generación-500 (2)'!G$90 -> 0.1480141566 | O194: =+ROUND(P194+Q194,5)+O244 -> 0.05729 | P194: =+'[1]Tarifa ABASTECIMIENTO 22-26'!$C$163 -> 0.04185695541 | Q194: =+ROUND(J194*N194,5) -> 0.01543
A195: MTH | I195: =+I191 -> 0.13324 | J195: 0.11503 | K195: =+K191 -> 0.01824 | M195: =+'Ajuste Generación-500 (2)'!G$89 -> 0.9325904349 | N195: =+'Ajuste Generación-500 (2)'!G$90 -> 0.1480141566 | O195: =+ROUND(P195+Q195,5)+O239 -> 0.06244 | P195: =+'[1]Tarifa ABASTECIMIENTO 22-26'!$C$166 -> 0.04540593866 | Q195: =+ROUND(J195*N195,5) -> 0.01703
A196: ATH | I196: =+I192 -> 0.10172 | J196: 0.08782 | K196: =+K192 -> 0.01393 | M196: =+'Ajuste Generación-500 (2)'!G$89 -> 0.9325904349 | N196: =+'Ajuste Generación-500 (2)'!G$90 -> 0.1480141566 | O196: =+ROUND(P196+Q196,5)+O237 -> 0.04787 | P196: =+'[1]Tarifa ABASTECIMIENTO 22-26'!$C$169 -> 0.03487224354 | Q196: =+ROUND(J196*N196,5) -> 0.013
A197: CENEGEN SM | B197: B/./kWh | G197: # 48 | H197: # 49 | M197: # 48 | N197: # 49
A198: BTS (0-300) | C198: 0.05346 | D198: 0.04679 | E198: 0.00667 | G198: 0.9429259123 | H198: 0.149540653 | I198: 0.05109 | J198: 0.04412 | K198: 0.007 | M198: =+'Ajuste Generación-500 (2)'!G$89 -> 0.9325904349 | N198: =+'Ajuste Generación-500 (2)'!G$90 -> 0.1480141566 | O198: =+ROUND(P198+Q198,5)+O245 -> 0.0377 | P198: =+'[1]Tarifa ABASTECIMIENTO 22-26'!$C171 -> 0.03116832647 | Q198: =+ROUND(J198*N198,5) -> 0.00653
A199: BTS (301-750) | C199: 0.08568 | D199: 0.07499 | E199: 0.01069 | G199: 0.9429259123 | H199: 0.149540653 | I199: 0.08189 | J199: 0.07071 | K199: 0.01121 | M199: =+'Ajuste Generación-500 (2)'!G$89 -> 0.9325904349 | N199: =+'Ajuste Generación-500 (2)'!G$90 -> 0.1480141566 | O199: =+ROUND(P199+Q199,5)+O246 -> 0.07904 | P199: =+'[1]Tarifa ABASTECIMIENTO 22-26'!$C172 -> 0.06857031824 | Q199: 0.01047
A200: BTS (750-más) | C200: 0.10942 | D200: 0.09577 | E200: 0.01365 | G200: 0.9429259123 | H200: 0.149540653 | I200: 0.10459 | J200: 0.0903 | K200: 0.01432 | M200: =+'Ajuste Generación-500 (2)'!G$89 -> 0.9325904349 | N200: =+'Ajuste Generación-500 (2)'!G$90 -> 0.1480141566 | O200: =+ROUND(P200+Q200,5)+O247 -> 0.15051 | P200: =+'[1]Tarifa ABASTECIMIENTO 22-26'!$C173 -> 0.1371406365 | Q200: 0.01337
A201: BTD (0-10,000) | C201: 0.10853 | D201: 0.09499 | E201: 0.01354 | G201: 0.9429259123 | H201: 0.149540653 | I201: 0.10374 | J201: 0.08957 | K201: 0.0142 | M201: =+'Ajuste Generación-500 (2)'!G$89 -> 0.9325904349 | N201: =+'Ajuste Generación-500 (2)'!G$90 -> 0.1480141566 | O201: =+ROUND(P201+Q201,5)+O241 -> 0.08516 | P201: =+'[1]Tarifa ABASTECIMIENTO 22-26'!$C174 -> 0.0718970603 | Q201: 0.01326
... 141 more rows

Sheet RES DE ACT TARIFARIA-1000-T (2)
A1: =+"TARIFAS: "&[1]Fecha!$A$1 -> TARIFAS: EDEMET
A3: CARGOS | B3: Factor de Ajuste | C3: Jul-Dic/2022 | E3: Factor de Ajuste | F3: Ene-Jun/2023 | G3: Nuevo Régimen jul/2022 | H3: Factor de Ajuste ene/2023 | I3: Factor de Ajuste julio 2023 | J3: Jul-Dic/2023 | L3: Jul-Dic/2023
C4: Cargo Actualizado | F4: Cargo Actualizado | J4: Cargo Actualizado | L4: Cargo Actualizado
A5: Comercialización
A6: CCOMF | B6: MODELO AT100 # 8 | E6: MODELO AT100 # 8 | I6: MODELO AT100 # 8
A7: BTS (0-300) | B7: 1.006666795 | C7: 2.84 | E7: 1.0388843 | F7: 2.95 | G7: =+'[1]Tarifa VAD 22-26'!$C$7 -> 2.998437224 | H7: =+'Ajuste COMER DISTR Y AP-100'!D32 -> 1.0388843 | I7: =+'Ajuste COMER DISTR Y AP-100'!E32 -> 0.9802820184 | J7: =+ROUND(G7*H7*I7, 2) -> 3.05 | L7: =+ROUND(J7*(1+K7), 2) -> 3.05
A8: BTS (301-750) | B8: 1.006666795 | C8: 2.84 | E8: 1.0388843 | F8: 2.95 | G8: =+'[1]Tarifa VAD 22-26'!$C$7 -> 2.998437224 | H8: =+H7 -> 1.0388843 | I8: =+I7 -> 0.9802820184 | J8: =+ROUND(G8*H8*I8, 2) -> 3.05 | L8: 3.05
A9: BTS (750-más) | B9: 1.006666795 | C9: 2.84 | E9: 1.0388843 | F9: 2.95 | G9: =+'[1]Tarifa VAD 22-26'!$C$7 -> 2.998437224 | H9: =+H8 -> 1.0388843 | I9: =+I8 -> 0.9802820184 | J9: 3.05 | L9: =+ROUND(J9*(1+K9), 2) -> 3.05
A10: BTD (0-10,000) | B10: 1.006666795 | C10: 5.09 | E10: 1.0388843 | F10: 5.29 | G10: =+'[1]Tarifa VAD 22-26'!$C$8 -> 5.378343647 | H10: =+'Ajuste COMER DISTR Y AP-100'!D32 -> 1.0388843 | I10: =+'Ajuste COMER DISTR Y AP-100'!E32 -> 0.9802820184 | J10: 5.48 | L10: 5.48
A11: BTD (10,001-30,000) | B11: 1.006666795 | C11: 5.09 | E11: 1.0388843 | F11: 5.29 | G11: =+'[1]Tarifa VAD 22-26'!$C$8 -> 5.378343647 | H11: =+H10 -> 1.0388843 | I11: 0.9802820184 | J11: 5.48 | L11: 5.48
A12: BTD (30,001-50,000) | B12: 1.006666795 | C12: 5.09 | E12: 1.0388843 | F12: 5.29 | G12: =+'[1]Tarifa VAD 22-26'!$C$8 -> 5.378343647 | H12: 1.0388843 | I12: 0.9802820184 | J12: 5.48 | L12: 5.48
A13: BTD (50,001-más) | B13: 1.006666795 | C13: 5.09 | E13: 1.0388843 | F13: 5.29 | G13: =+'[1]Tarifa VAD 22-26'!$C$8 -> 5.378343647 | H13: 1.0388843 | I13: 0.9802820184 | J13: 5.48 | L13: 5.48
A14: BTH | B14: 1.006666795 | C14: 5.1 | E14: 1.0388843 | F14: 5.3 | G14: =+'[1]Tarifa VAD 22-26'!$C$9 -> 5.387807071 | H14: =+'Ajuste COMER DISTR Y AP-100'!D32 -> 1.0388843 | I14: =+'Ajuste COMER DISTR Y AP-100'!E32 -> 0.9802820184 | J14: 5.49 | L14: 5.49
A15: MTD (0-10,000) | B15: 1.006666795 | C15: 12.85 | E15: 1.0388843 | F15: 13.35 | G15: =+'[1]Tarifa VAD 22-26'!$C$10 -> 13.57285677 | H15: =+'Ajuste COMER DISTR Y AP-100'!D32 -> 1.0388843 | I15: =+'Ajuste COMER DISTR Y AP-100'!E32 -> 0.9802820184 | J15: 13.82 | L15: 13.82
A16: MTD (10,001-30,000) | B16: 1.006666795 | C16: 12.85 | E16: 1.0388843 | F16: 13.35 | G16: =+'[1]Tarifa VAD 22-26'!$C$10 -> 13.57285677 | H16: =+H15 -> 1.0388843 | I16: 0.9802820184 | J16: 13.82 | L16: 13.82
A17: MTD (30,001-50,000) | B17: 1.006666795 | C17: 12.85 | E17: 1.0388843 | F17: 13.35 | G17: =+'[1]Tarifa VAD 22-26'!$C$10 -> 13.57285677 | H17: 1.0388843 | I17: 0.9802820184 | J17: 13.82 | L17: 13.82
A18: MTD (50,001-más) | B18: 1.006666795 | C18: 12.85 | E18: 1.0388843 | F18: 13.35 | G18: =+'[1]Tarifa VAD 22-26'!$C$10 -> 13.57285677 | H18: 1.0388843 | I18: 0.9802820184 | J18: 13.82 | L18: 13.82
A19: MTH | B19: 1.006666795 | C19: 12.91 | E19: 1.0388843 | F19: 13.41 | G19: =+'[1]Tarifa VAD 22-26'!$C$11 -> 13.63347296 | H19: =+'Ajuste COMER DISTR Y AP-100'!D32 -> 1.0388843 | I19: =+'Ajuste COMER DISTR Y AP-100'!E32 -> 0.9802820184 | J19: 13.88 | L19: =+ROUND(J19*(1+K19), 2) -> 13.88
A20: ATD | B20: 1.006666795 | C20: 12.91 | E20: 1.0388843 | F20: 13.41 | G20: =+'[1]Tarifa VAD 22-26'!$C$12 -> 13.6339525 | H20: =+'Ajuste COMER DISTR Y AP-100'!D32 -> 1.0388843 | I20: =+'Ajuste COMER DISTR Y AP-100'!E32 -> 0.9802820184 | J20: 13.88 | L20: 13.88
A21: ATH | B21: 1.006666795 | C21: 12.91 | E21: 1.0388843 | F21: 13.41 | G21: =+'[1]Tarifa VAD 22-26'!$C$13 -> 13.63392504 | H21: =+'Ajuste COMER DISTR Y AP-100'!D32 -> 1.0388843 | I21: =+'Ajuste COMER DISTR Y AP-100'!E32 -> 0.9802820184 | J21: 13.88 | L21: 13.88
A22: CCOMV | B22: MODELO AT100 # 8 | E22: MODELO AT100 # 8 | I22: MODELO AT100 # 8
A23: BTS (0-300) | B23: 1.006666795 | C23: 0.0067 | E23: 1.0388843 | F23: 0.00696 | G23: =+'[1]Tarifa VAD 22-26'!$C$15 -> 0.008273705289 | H23: =+'Ajuste COMER DISTR Y AP-100'!D32 -> 1.0388843 | I23: =+'Ajuste COMER DISTR Y AP-100'!E32 -> 0.9802820184 | J23: =+ROUND(G23*H23*I23, 5) -> 0.00843 | L23: =+ROUND(J23*(1+K23), 5) -> 0.00843
A24: BTS (301-750) | B24: 1.006666795 | C24: 0.0067 | E24: 1.0388843 | F24: 0.00696 | G24: =+'[1]Tarifa VAD 22-26'!$C$16 -> 0.008273705289 | H24: =+'Ajuste COMER DISTR Y AP-100'!D32 -> 1.0388843 | I24: =+'Ajuste COMER DISTR Y AP-100'!E32 -> 0.9802820184 | J24: 0.00843 | L24: 0.00843
A25: BTS (750-más) | B25: 1.006666795 | C25: 0.0067 | E25: 1.0388843 | F25: 0.00696 | G25: =+'[1]Tarifa VAD 22-26'!$C$17 -> 0.008273705289 | H25: =+'Ajuste COMER DISTR Y AP-100'!D32 -> 1.0388843 | I25: =+'Ajuste COMER DISTR Y AP-100'!E32 -> 0.9802820184 | J25: 0.00843 | L25: 0.00843
A26: BTD (0-10,000) | B26: 1.006666795 | C26: 0.00626 | E26: 1.0388843 | F26: 0.0065 | G26: =+'[1]Tarifa VAD 22-26'!$C$18 -> 0.007721864919 | H26: =+'Ajuste COMER DISTR Y AP-100'!D32 -> 1.0388843 | I26: =+'Ajuste COMER DISTR Y AP-100'!E32 -> 0.9802820184 | J26: 0.00786 | L26: 0.00786
A27: BTD (10,001-30,000) | B27: 1.006666795 | C27: 0.00626 | E27: 1.0388843 | F27: 0.0065 | G27: =+'[1]Tarifa VAD 22-26'!$C$19 -> 0.007721864919 | H27: =+H26 -> 1.0388843 | I27: 0.9802820184 | J27: 0.00786 | L27: 0.00786
A28: BTD (30,001-50,000) | B28: 1.006666795 | C28: 0.00626 | E28: 1.0388843 | F28: 0.0065 | G28: =+'[1]Tarifa VAD 22-26'!$C$20 -> 0.007721864919 | H28: 1.0388843 | I28: 0.9802820184 | J28: 0.00786 | L28: 0.00786
A29: BTD (50,001-más) | B29: 1.006666795 | C29: 0.00626 | E29: 1.0388843 | F29: 0.0065 | G29: =+'[1]Tarifa VAD 22-26'!$C$21 -> 0.007721864919 | H29: 1.0388843 | I29: 0.9802820184 | J29: 0.00786 | L29: 0.00786
A30: BTH | B30: 1.006666795 | C30: 0.00625 | E30: 1.0388843 | F30: 0.00649 | G30: =+'[1]Tarifa VAD 22-26'!$C$22 -> 0.00771029218 | H30: =+'Ajuste COMER DISTR Y AP-100'!D32 -> 1.0388843 | I30: =+'Ajuste COMER DISTR Y AP-100'!E32 -> 0.9802820184 | J30: 0.00785 | L30: 0.00785
A31: MTD (0-10,000) | B31: 1.006666795 | C31: 0.00626 | E31: 1.0388843 | F31: 0.0065 | G31: =+'[1]Tarifa VAD 22-26'!$C$23 -> 0.007721860458 | H31: =+'Ajuste COMER DISTR Y AP-100'!D32 -> 1.0388843 | I31: =+'Ajuste COMER DISTR Y AP-100'!E32 -> 0.9802820184 | J31: 0.00786 | L31: 0.00786
A32: MTD (10,001-30,000) | B32: 1.006666795 | C32: 0.00626 | E32: 1.0388843 | F32: 0.0065 | G32: =+'[1]Tarifa VAD 22-26'!$C$24 -> 0.007721860458 | H32: =+H31 -> 1.0388843 | I32: 0.9802820184 | J32: 0.00786 | L32: 0.00786
A33: MTD (30,001-50,000) | B33: 1.006666795 | C33: 0.00626 | E33: 1.0388843 | F33: 0.0065 | G33: =+'[1]Tarifa VAD 22-26'!$C$25 -> 0.007721860458 | H33: 1.0388843 | I33: 0.9802820184 | J33: 0.00786 | L33: 0.00786
A34: MTD (50,001-más) | B34: 1.006666795 | C34: 0.00626 | E34: 1.0388843 | F34: 0.0065 | G34: =+'[1]Tarifa VAD 22-26'!$C$26 -> 0.007721860458 | H34: 1.0388843 | I34: 0.9802820184 | J34: 0.00786 | L34: 0.00786
A35: MTH | B35: 1.006666795 | C35: 0.00625 | E35: 1.0388843 | F35: 0.00649 | G35: =+'[1]Tarifa VAD 22-26'!$C$27 -> 0.007709979423 | H35: =+'Ajuste COMER DISTR Y AP-100'!D32 -> 1.0388843 | I35: =+'Ajuste COMER DISTR Y AP-100'!E32 -> 0.9802820184 | J35: 0.00785 | L35: 0.00785
A36: ATD | B36: 1.006666795 | C36: 0.00625 | E36: 1.0388843 | F36: 0.00649 | G36: =+'[1]Tarifa VAD 22-26'!$C$28 -> 0.007709978526 | H36: =+'Ajuste COMER DISTR Y AP-100'!D32 -> 1.0388843 | I36: =+'Ajuste COMER DISTR Y AP-100'!E32 -> 0.9802820184 | J36: 0.00785 | L36: 0.00785
A37: ATH | B37: 1.006666795 | C37: 0.00625 | E37: 1.0388843 | F37: 0.00649 | G37: =+'[1]Tarifa VAD 22-26'!$C$29 -> 0.007709978526 | H37: =+'Ajuste COMER DISTR Y AP-100'!D32 -> 1.0388843 | I37: =+'Ajuste COMER DISTR Y AP-100'!E32 -> 0.9802820184 | J37: 0.00785 | L37: 0.00785
A38: Distribución
A39: CD | B39: MODELO AT100 # 9 | E39: MODELO AT100 # 9 | I39: MODELO AT100 # 9
A40: BTS (0-300) | B40: 1.002837111 | C40: 0.03248 | E40: 1.016547543 | F40: 0.03302 | G40: =+'[1]Tarifa VAD 22-26'!$C$32 -> 0.04668075071 | H40: =+'Ajuste COMER DISTR Y AP-100'!D33 -> 1.016547543 | I40: =+'Ajuste COMER DISTR Y AP-100'!E33 -> 0.9916088462 | J40: =+ROUND(G40*H40*I40, 5) -> 0.04706 | L40: =+ROUND(J40*(1+K40), 5) -> 0.04706
A41: BTS (301-750) | B41: 1.002837111 | C41: 0.03248 | E41: 1.016547543 | F41: 0.03302 | G41: =+'[1]Tarifa VAD 22-26'!$C$33 -> 0.04668075071 | H41: =+'Ajuste COMER DISTR Y AP-100'!D33 -> 1.016547543 | I41: =+'Ajuste COMER DISTR Y AP-100'!E33 -> 0.9916088462 | J41: 0.04706 | L41: 0.04706
A42: BTS (750-más) | B42: 1.002837111 | C42: 0.03248 | E42: 1.016547543 | F42: 0.03302 | G42: =+'[1]Tarifa VAD 22-26'!$C$34 -> 0.04668075071 | H42: =+'Ajuste COMER DISTR Y AP-100'!D33 -> 1.016547543 | I42: =+'Ajuste COMER DISTR Y AP-100'!E33 -> 0.9916088462 | J42: 0.04706 | L42: 0.04706
A43: BTD (0-10,000) | B43: 1.002837111 | C43: 0 | E43: 1.016547543 | F43: 0 | G43: =+'[1]Tarifa VAD 22-26'!$C$35 -> 0 | H43: =+'Ajuste COMER DISTR Y AP-100'!D33 -> 1.016547543 | I43: =+'Ajuste COMER DISTR Y AP-100'!E33 -> 0.9916088462 | J43: 0 | L43: 0
A44: BTD (10,001-30,000) | B44: 1.002837111 | C44: 0 | E44: 1.016547543 | F44: 0 | G44: =+'[1]Tarifa VAD 22-26'!$C$36 -> 0 | H44: =+H43 -> 1.016547543 | I44: 0.9916088462 | J44: 0 | L44: 0
A45: BTD (30,001-50,000) | B45: 1.002837111 | C45: 0 | E45: 1.016547543 | F45: 0 | G45: =+'[1]Tarifa VAD 22-26'!$C$37 -> 0 | H45: 1.016547543 | I45: 0.9916088462 | J45: 0 | L45: 0
A46: BTD (50,001-más) | B46: 1.002837111 | C46: 0 | E46: 1.016547543 | F46: 0 | G46: =+'[1]Tarifa VAD 22-26'!$C$38 -> 0 | H46: 1.016547543 | I46: 0.9916088462 | J46: 0 | L46: 0
A47: BTD (0-10,000) | B47: 1.002837111 | C47: 10.54 | E47: 1.016547543 | F47: 10.71 | G47: =+'[1]Tarifa VAD 22-26'!$C$39 -> 15.24951172 | H47: =+'Ajuste COMER DISTR Y AP-100'!D33 -> 1.016547543 | I47: =+'Ajuste COMER DISTR Y AP-100'!E33 -> 0.9916088462 | J47: =+ROUND(G47*H47*I47, 2) -> 15.37 | L47: =+ROUND(J47*(1+K47), 2) -> 15.37
A48: BTD (10,001-30,000) | B48: 1.002837111 | C48: 10.54 | E48: 1.016547543 | F48: 10.71 | G48: =+'[1]Tarifa VAD 22-26'!$C$40 -> 15.24951172 | H48: =+H47 -> 1.016547543 | I48: 0.9916088462 | J48: 15.37 | L48: 15.37
A49: BTD (30,001-50,000) | B49: 1.002837111 | C49: 10.54 | E49: 1.016547543 | F49: 10.71 | G49: =+'[1]Tarifa VAD 22-26'!$C$41 -> 15.24951172 | H49: 1.016547543 | I49: 0.9916088462 | J49: 15.37 | L49: 15.37
A50: BTD (50,001-más) | B50: 1.002837111 | C50: 10.54 | E50: 1.016547543 | F50: 10.71 | G50: =+'[1]Tarifa VAD 22-26'!$C$42 -> 15.24951172 | H50: 1.016547543 | I50: 0.9916088462 | J50: 15.37 | L50: 15.37
A51: MTD (0-10,000) | B51: 1.002837111 | C51: 11.1 | E51: 1.016547543 | F51: 11.28 | G51: =+'[1]Tarifa VAD 22-26'!$C$43 -> 16.06107753 | H51: =+'Ajuste COMER DISTR Y AP-100'!D33 -> 1.016547543 | I51: =+'Ajuste COMER DISTR Y AP-100'!E33 -> 0.9916088462 | J51: 16.19 | L51: 16.19
A52: MTD (10,001-30,000) | B52: 1.002837111 | C52: 11.1 | E52: 1.016547543 | F52: 11.28 | G52: =+'[1]Tarifa VAD 22-26'!$C$44 -> 16.06107753 | H52: =+H51 -> 1.016547543 | I52: 0.9916088462 | J52: 16.19 | L52: 16.19
A53: MTD (30,001-50,000) | B53: 1.002837111 | C53: 11.1 | E53: 1.016547543 | F53: 11.28 | G53: =+'[1]Tarifa VAD 22-26'!$C$45 -> 16.06107753 | H53: 1.016547543 | I53: 0.9916088462 | J53: 16.19 | L53: 16.19
A54: MTD (50,001-más) | B54: 1.002837111 | C54: 11.1 | E54: 1.016547543 | F54: 11.28 | G54: =+'[1]Tarifa VAD 22-26'!$C$46 -> 16.06107753 | H54: 1.016547543 | I54: 0.9916088462 | J54: 16.19 | L54: 16.19
A55: ATD | B55: 1.002837111 | C55: 4.27 | E55: 1.016547543 | F55: 4.34 | G55: =+'[1]Tarifa VAD 22-26'!$C$47 -> 6.179510719 | H55: =+'Ajuste COMER DISTR Y AP-100'!D33 -> 1.016547543 | I55: =+'Ajuste COMER DISTR Y AP-100'!E33 -> 0.9916088462 | J55: 6.23 | L55: 6.23
A56: CDPUNTA | B56: MODELO AT100 # 9 | E56: MODELO AT100 # 9 | I56: MODELO AT100 # 9
A57: BTH | B57: 1.002837111 | C57: 10.9 | E57: 1.016547543 | F57: 11.08 | G57: =+'[1]Tarifa VAD 22-26'!$C$49 -> 15.7772715 | H57: =+'Ajuste COMER DISTR Y AP-100'!D33 -> 1.016547543 | I57: =+'Ajuste COMER DISTR Y AP-100'!E33 -> 0.9916088462 | J57: =+ROUND(G57*H57*I57, 2) -> 15.9 | L57: =+ROUND(J57*(1+K57), 2) -> 15.9
A58: MTH | B58: 1.002837111 | C58: 9.97 | E58: 1.016547543 | F58: 10.13 | G58: =+'[1]Tarifa VAD 22-26'!$C$50 -> 14.4236051 | H58: =+'Ajuste COMER DISTR Y AP-100'!D33 -> 1.016547543 | I58: =+'Ajuste COMER DISTR Y AP-100'!E33 -> 0.9916088462 | J58: 14.54 | L58: =+ROUND(J58*(1+K58), 2) -> 14.54
A59: ATH | B59: 1.002837111 | C59: 4.53 | E59: 1.016547543 | F59: 4.6 | G59: =+'[1]Tarifa VAD 22-26'!$C$51 -> 6.549711822 | H59: =+'Ajuste COMER DISTR Y AP-100'!D33 -> 1.016547543 | I59: =+'Ajuste COMER DISTR Y AP-100'!E33 -> 0.9916088462 | J59: =+ROUND(G59*H59*I59, 2) -> 6.6 | L59: =+ROUND(J59*(1+K59), 2) -> 6.6
A60: CDFUERA DE PUNTA MEDIO | B60: MODELO AT100 # 9 | E60: MODELO AT100 # 9 | I60: MODELO AT100 # 9
A61: BTH | B61: 1.002837111 | C61: 1.51 | E61: 1.016547543 | F61: 1.53 | G61: =+'[1]Tarifa VAD 22-26'!$C$53 -> 2.17863045 | H61: =+'Ajuste COMER DISTR Y AP-100'!D33 -> 1.016547543 | I61: =+'Ajuste COMER DISTR Y AP-100'!E33 -> 0.9916088462 | J61: =+ROUND(G61*H61*I61, 2) -> 2.2 | L61: =+ROUND(J61*(1+K61), 2) -> 2.2
A62: MTH | B62: 1.002837111 | C62: 1.65 | E62: 1.016547543 | F62: 1.68 | G62: =+'[1]Tarifa VAD 22-26'!$C$54 -> 2.392068763 | H62: =+'Ajuste COMER DISTR Y AP-100'!D33 -> 1.016547543 | I62: =+'Ajuste COMER DISTR Y AP-100'!E33 -> 0.9916088462 | J62: 2.41 | L62: =+ROUND(J62*(1+K62), 2) -> 2.41
A63: ATH | B63: 1.002837111 | C63: 3.72 | E63: 1.016547543 | F63: 3.78 | G63: =+'[1]Tarifa VAD 22-26'!$C$55 -> 5.382154497 | H63: =+'Ajuste COMER DISTR Y AP-100'!D33 -> 1.016547543 | I63: =+'Ajuste COMER DISTR Y AP-100'!E33 -> 0.9916088462 | J63: 5.43 | L63: =+ROUND(J63*(1+K63), 2) -> 5.43
A64: CDFUERA DE PUNTA BAJO | I64: MODELO AT100 # 9
A65: BTH | E65: 1.016547543 | F65: =+F61 -> 1.53 | G65: =+'[1]Tarifa VAD 22-26'!C57 -> 2.17863045 | H65: =+'Ajuste COMER DISTR Y AP-100'!D33 -> 1.016547543 | I65: =+'Ajuste COMER DISTR Y AP-100'!E33 -> 0.9916088462 | J65: =+ROUND(G65*H65*I65, 2) -> 2.2 | L65: =+ROUND(J65*(1+K65), 2) -> 2.2
A66: MTH | E66: 1.016547543 | F66: =+F62 -> 1.68 | G66: =+'[1]Tarifa VAD 22-26'!C58 -> 2.392068763 | H66: =+'Ajuste COMER DISTR Y AP-100'!D33 -> 1.016547543 | I66: =+'Ajuste COMER DISTR Y AP-100'!E33 -> 0.9916088462 | J66: 2.41 | L66: =+ROUND(J66*(1+K66), 2) -> 2.41
A67: ATH | E67: 1.016547543 | F67: =+F63 -> 3.78 | G67: =+'[1]Tarifa VAD 22-26'!C59 -> 5.382154497 | H67: =+'Ajuste COMER DISTR Y AP-100'!D33 -> 1.016547543 | I67: =+'Ajuste COMER DISTR Y AP-100'!E33 -> 0.9916088462 | J67: 5.43 | L67: =+ROUND(J67*(1+K67), 2) -> 5.43
A68: Alumbrado Público
A69: CSERAP | B69: MODELO AT100 # 10 | E69: MODELO AT100 # 10 | I69: MODELO AT100 # 10
A70: BTS (0-300) | B70: 1.00159356 | C70: 0.00152 | E70: 1.00929449 | F70: 0.00153 | G70: =+'[1]Tarifa VAD 22-26'!$C$62 -> 0.001417803863 | H70: =+'Ajuste COMER DISTR Y AP-100'!D34 -> 1.00929449 | I70: =+'Ajuste COMER DISTR Y AP-100'!E34 -> 0.9952868233 | J70: =+ROUND(G70*H70*I70, 5) -> 0.00142 | L70: =+ROUND(J70*(1+K70), 5) -> 0.00142
A71: BTS (301-750) | B71: 1.00159356 | C71: 0.00152 | E71: 1.00929449 | F71: 0.00153 | G71: =+'[1]Tarifa VAD 22-26'!$C$63 -> 0.001417803863 | H71: =+'Ajuste COMER DISTR Y AP-100'!D34 -> 1.00929449 | I71: =+'Ajuste COMER DISTR Y AP-100'!E34 -> 0.9952868233 | J71: 0.00142 | L71: 0.00142
A72: BTS (750-más) | B72: 1.00159356 | C72: 0.00152 | E72: 1.00929449 | F72: 0.00153 | G72: =+'[1]Tarifa VAD 22-26'!$C$64 -> 0.001417803863 | H72: =+'Ajuste COMER DISTR Y AP-100'!D34 -> 1.00929449 | I72: =+'Ajuste COMER DISTR Y AP-100'!E34 -> 0.9952868233 | J72: 0.00142 | L72: 0.00142
A73: BTD (0-10,000) | B73: 1.00159356 | C73: 0.00142 | E73: 1.00929449 | F73: 0.00143 | G73: =+'[1]Tarifa VAD 22-26'!$C$65 -> 0.001336608224 | H73: =+'Ajuste COMER DISTR Y AP-100'!D34 -> 1.00929449 | I73: =+'Ajuste COMER DISTR Y AP-100'!E34 -> 0.9952868233 | J73: 0.00134 | L73: 0.00134
A74: BTD (10,001-30,000) | B74: 1.00159356 | C74: 0.00142 | E74: 1.00929449 | F74: 0.00143 | G74: =+'[1]Tarifa VAD 22-26'!$C$66 -> 0.001336608224 | H74: =+H73 -> 1.00929449 | I74: 0.9952868233 | J74: 0.00134 | L74: 0.00134
A75: BTD (30,001-50,000) | B75: 1.00159356 | C75: 0.00142 | E75: 1.00929449 | F75: 0.00143 | G75: =+'[1]Tarifa VAD 22-26'!$C$67 -> 0.001336608224 | H75: 1.00929449 | I75: 0.9952868233 | J75: 0.00134 | L75: 0.00134
A76: BTD (50,001-más) | B76: 1.00159356 | C76: 0.00142 | E76: 1.00929449 | F76: 0.00143 | G76: =+'[1]Tarifa VAD 22-26'!$C$68 -> 0.001336608224 | H76: 1.00929449 | I76: 0.9952868233 | J76: 0.00134 | L76: 0.00134
A77: BTH | B77: 1.00159356 | C77: 0.00141 | E77: 1.00929449 | F77: 0.00142 | G77: =+'[1]Tarifa VAD 22-26'!$C$69 -> 0.00132724306 | H77: =+'Ajuste COMER DISTR Y AP-100'!D34 -> 1.00929449 | I77: =+'Ajuste COMER DISTR Y AP-100'!E34 -> 0.9952868233 | J77: 0.00133 | L77: 0.00133
A78: MTD (0-10,000) | B78: 1.00159356 | C78: 0.00142 | E78: 1.00929449 | F78: 0.00143 | G78: =+'[1]Tarifa VAD 22-26'!$C$70 -> 0.001336608491 | H78: =+'Ajuste COMER DISTR Y AP-100'!D34 -> 1.00929449 | I78: =+'Ajuste COMER DISTR Y AP-100'!E34 -> 0.9952868233 | J78: 0.00134 | L78: 0.00134
A79: MTD (10,001-30,000) | B79: 1.00159356 | C79: 0.00142 | E79: 1.00929449 | F79: 0.00143 | G79: =+'[1]Tarifa VAD 22-26'!$C$71 -> 0.001336608491 | H79: =+H78 -> 1.00929449 | I79: 0.9952868233 | J79: 0.00134 | L79: 0.00134
A80: MTD (30,001-50,000) | B80: 1.00159356 | C80: 0.00142 | E80: 1.00929449 | F80: 0.00143 | G80: =+'[1]Tarifa VAD 22-26'!$C$72 -> 0.001336608491 | H80: 1.00929449 | I80: 0.9952868233 | J80: 0.00134 | L80: 0.00134
A81: MTD (50,001-más) | B81: 1.00159356 | C81: 0.00142 | E81: 1.00929449 | F81: 0.00143 | G81: =+'[1]Tarifa VAD 22-26'!$C$73 -> 0.001336608491 | H81: 1.00929449 | I81: 0.9952868233 | J81: 0.00134 | L81: 0.00134
A82: MTH | B82: 1.00159356 | C82: 0.00141 | E82: 1.00929449 | F82: 0.00142 | G82: =+'[1]Tarifa VAD 22-26'!$C$74 -> 0.001327261653 | H82: =+'Ajuste COMER DISTR Y AP-100'!D34 -> 1.00929449 | I82: =+'Ajuste COMER DISTR Y AP-100'!E34 -> 0.9952868233 | J82: 0.00133 | L82: 0.00133
A83: ATD | B83: 1.00159356 | C83: 0.00141 | E83: 1.00929449 | F83: 0.00142 | G83: =+'[1]Tarifa VAD 22-26'!$C$75 -> 0.001327261706 | H83: =+'Ajuste COMER DISTR Y AP-100'!D34 -> 1.00929449 | I83: =+'Ajuste COMER DISTR Y AP-100'!E34 -> 0.9952868233 | J83: 0.00133 | L83: 0.00133
A84: ATH | B84: 1.00159356 | C84: 0.00141 | E84: 1.00929449 | F84: 0.00142 | G84: =+'[1]Tarifa VAD 22-26'!$C$76 -> 0.001327261706 | H84: =+'Ajuste COMER DISTR Y AP-100'!D34 -> 1.00929449 | I84: =+'Ajuste COMER DISTR Y AP-100'!E34 -> 0.9952868233 | J84: 0.00133 | L84: 0.00133
A86: Cargo por Conexión y Reconexión
B87: MODELO AT100 # 9 | E87: MODELO AT100 # 9 | I87: MODELO AT100 # 9
A88: BTS | B88: 1.002837111 | C88: 10.95 | E88: 1.016547543 | F88: 11.13 | G88: =+'[1]Tarifa VAD 22-26'!$C$80 -> 11.30813094 | H88: =+'Ajuste COMER DISTR Y AP-100'!D33 -> 1.016547543 | I88: =+'Ajuste COMER DISTR Y AP-100'!E33 -> 0.9916088462 | J88: =+ROUND(G88*H88*I88, 2) -> 11.4 | L88: =+ROUND(J88*(1+K88), 2) -> 11.4
A89: BTD | B89: 1.002837111 | C89: 109.43 | E89: 1.016547543 | F89: 111.24 | G89: =+'[1]Tarifa VAD 22-26'!$C$81 -> 112.7855792 | H89: =+'Ajuste COMER DISTR Y AP-100'!D33 -> 1.016547543 | I89: =+'Ajuste COMER DISTR Y AP-100'!E33 -> 0.9916088462 | J89: 113.69 | L89: 113.69
A90: BTH | B90: 1.002837111 | C90: 109.43 | E90: 1.016547543 | F90: 111.24 | G90: =+'[1]Tarifa VAD 22-26'!$C$82 -> 112.7875558 | H90: =+'Ajuste COMER DISTR Y AP-100'!D33 -> 1.016547543 | I90: =+'Ajuste COMER DISTR Y AP-100'!E33 -> 0.9916088462 | J90: 113.69 | L90: 113.69
A91: MTD | B91: 1.002837111 | C91: 109.43 | E91: 1.016547543 | F91: 111.24 | G91: =+'[1]Tarifa VAD 22-26'!$C$83 -> 112.7893583 | H91: =+'Ajuste COMER DISTR Y AP-100'!D33 -> 1.016547543 | I91: =+'Ajuste COMER DISTR Y AP-100'!E33 -> 0.9916088462 | J91: 113.69 | L91: 113.69
A92: MTH | B92: 1.002837111 | C92: 109.43 | E92: 1.016547543 | F92: 111.24 | G92: =+'[1]Tarifa VAD 22-26'!$C$84 -> 112.7885388 | H92: =+'Ajuste COMER DISTR Y AP-100'!D33 -> 1.016547543 | I92: =+'Ajuste COMER DISTR Y AP-100'!E33 -> 0.9916088462 | J92: 113.69 | L92: 113.69
A93: ATD | B93: 1.002837111 | C93: 109.43 | E93: 1.016547543 | F93: 111.24 | G93: =+'[1]Tarifa VAD 22-26'!$C$85 -> 112.791688 | H93: =+'Ajuste COMER DISTR Y AP-100'!D33 -> 1.016547543 | I93: =+'Ajuste COMER DISTR Y AP-100'!E33 -> 0.9916088462 | J93: 113.7 | L93: 113.7
A94: ATH | B94: 1.002837111 | C94: 109.43 | E94: 1.016547543 | F94: 111.24 | G94: =+'[1]Tarifa VAD 22-26'!$C$86 -> 112.7913997 | H94: =+'Ajuste COMER DISTR Y AP-100'!D33 -> 1.016547543 | I94: =+'Ajuste COMER DISTR Y AP-100'!E33 -> 0.9916088462 | J94: 113.7 | L94: 113.7
A95: PREPAGO | E95: 1.016547543 | G95: =+'[1]Tarifa VAD 22-26'!$C$93 -> 11.30809086 | H95: =+'Ajuste COMER DISTR Y AP-100'!D33 -> 1.016547543 | I95: =+'Ajuste COMER DISTR Y AP-100'!E33 -> 0.9916088462 | J95: 11.4 | L95: 11.4
A96: BTSH | E96: 1.016547543 | G96: =+'[1]Tarifa VAD 22-26'!$F$101 -> 11.30732059 | H96: =+'Ajuste COMER DISTR Y AP-100'!D33 -> 1.016547543 | I96: =+'Ajuste COMER DISTR Y AP-100'!E33 -> 0.9916088462 | J96: 11.4 | L96: 11.4
A97: =+IF('Ajuste Cons AlumPub-600'!B2="EDECHI","CHANGUINOLA","") -> 
A99: Comercialización
A100: CCOMF
A101: BTS (0-300) | B101: 1.006666795 | C101: 2.84 | E101: 1.0388843 | F101: 2.95 | G101: =+G7 -> 2.998437224 | H101: =+'Ajuste COMER DISTR Y AP-100'!D32 -> 1.0388843 | I101: =+'Ajuste COMER DISTR Y AP-100'!E32 -> 0.9802820184 | J101: =+ROUND(G101*H101*I101, 2) -> 3.05 | L101: =+ROUND(J101*(1+K101), 2) -> 3.05
A102: BTS (301-750) | B102: 1.006666795 | C102: 2.84 | E102: 1.0388843 | F102: 2.95 | G102: =+G8 -> 2.998437224 | H102: =+'Ajuste COMER DISTR Y AP-100'!D32 -> 1.0388843 | I102: =+'Ajuste COMER DISTR Y AP-100'!E32 -> 0.9802820184 | J102: 3.05 | L102: =+ROUND(J102*(1+K102), 2) -> 3.05
A103: BTS (750-más) | B103: 1.006666795 | C103: 2.84 | E103: 1.0388843 | F103: 2.95 | G103: =+G9 -> 2.998437224 | H103: =+'Ajuste COMER DISTR Y AP-100'!D32 -> 1.0388843 | I103: =+'Ajuste COMER DISTR Y AP-100'!E32 -> 0.9802820184 | J103: 3.05 | L103: =+ROUND(J103*(1+K103), 2) -> 3.05
A105: CCOMV
A106: BTS (0-300) | B106: 1.006666795 | C106: 0.0067 | E106: 1.0388843 | F106: 0.00696 | G106: =+G23 -> 0.008273705289 | H106: =+'Ajuste COMER DISTR Y AP-100'!D32 -> 1.0388843 | I106: =+'Ajuste COMER DISTR Y AP-100'!E32 -> 0.9802820184 | J106: =+ROUND(G106*H106*I106, 5) -> 0.00843 | L106: =+ROUND(J106*(1+K106), 5) -> 0.00843
A107: BTS (301-750) | B107: 1.006666795 | C107: 0.0067 | E107: 1.0388843 | F107: 0.00696 | G107: =+G24 -> 0.008273705289 | H107: =+'Ajuste COMER DISTR Y AP-100'!D32 -> 1.0388843 | I107: =+'Ajuste COMER DISTR Y AP-100'!E32 -> 0.9802820184 | J107: =+ROUND(G107*H107*I107, 5) -> 0.00843 | L107: =+ROUND(J107*(1+K107), 5) -> 0.00843
A108: BTS (750-más) | B108: 1.006666795 | C108: 0.0067 | E108: 1.0388843 | F108: 0.00696 | G108: =+G25 -> 0.008273705289 | H108: =+'Ajuste COMER DISTR Y AP-100'!D32 -> 1.0388843 | I108: =+'Ajuste COMER DISTR Y AP-100'!E32 -> 0.9802820184 | J108: =+ROUND(G108*H108*I108, 5) -> 0.00843 | L108: =+ROUND(J108*(1+K108), 5) -> 0.00843
A110: Distribución
A111: CD
A112: BTS (0-300) | B112: 1.002837111 | C112: 0.03248 | E112: 1.016547543 | F112: 0.03302 | G112: =+G40 -> 0.04668075071 | H112: =+'Ajuste COMER DISTR Y AP-100'!D33 -> 1.016547543 | I112: =+'Ajuste COMER DISTR Y AP-100'!E33 -> 0.9916088462 | J112: =+ROUND(G112*H112*I112, 5) -> 0.04706 | L112: =+ROUND(J112*(1+K112), 5) -> 0.04706
A113: BTS (301-750) | B113: 1.002837111 | C113: 0.03248 | E113: 1.016547543 | F113: 0.03302 | G113: =+G41 -> 0.04668075071 | H113: =+'Ajuste COMER DISTR Y AP-100'!D33 -> 1.016547543 | I113: =+'Ajuste COMER DISTR Y AP-100'!E33 -> 0.9916088462 | J113: =+ROUND(G113*H113*I113, 5) -> 0.04706 | L113: =+ROUND(J113*(1+K113), 5) -> 0.04706
A114: BTS (750-más) | B114: 1.002837111 | C114: 0.03248 | E114: 1.016547543 | F114: 0.03302 | G114: =+G42 -> 0.04668075071 | H114: =+'Ajuste COMER DISTR Y AP-100'!D33 -> 1.016547543 | I114: =+'Ajuste COMER DISTR Y AP-100'!E33 -> 0.9916088462 | J114: =+ROUND(G114*H114*I114, 5) -> 0.04706 | L114: =+ROUND(J114*(1+K114), 5) -> 0.04706
A116: Alumbrado Público
A117: CSERAP
A118: BTS (0-300) | B118: 1.00159356 | C118: 0.00152 | E118: 1.00929449 | F118: 0.00153 | G118: =+G70 -> 0.001417803863 | H118: =+'Ajuste COMER DISTR Y AP-100'!D34 -> 1.00929449 | I118: =+'Ajuste COMER DISTR Y AP-100'!E34 -> 0.9952868233 | J118: =+ROUND(G118*H118*I118, 5) -> 0.00142 | L118: =+ROUND(J118*(1+K118), 5) -> 0.00142
A119: BTS (301-750) | B119: 1.00159356 | C119: 0.00152 | E119: 1.00929449 | F119: 0.00153 | G119: =+G71 -> 0.001417803863 | H119: =+'Ajuste COMER DISTR Y AP-100'!D34 -> 1.00929449 | I119: =+'Ajuste COMER DISTR Y AP-100'!E34 -> 0.9952868233 | J119: =+ROUND(G119*H119*I119, 5) -> 0.00142 | L119: =+ROUND(J119*(1+K119), 5) -> 0.00142
A120: BTS (750-más) | B120: 1.00159356 | C120: 0.00152 | E120: 1.00929449 | F120: 0.00153 | G120: 0.001417803863 | H120: =+'Ajuste COMER DISTR Y AP-100'!D34 -> 1.00929449 | I120: =+'Ajuste COMER DISTR Y AP-100'!E34 -> 0.9952868233 | J120: =+ROUND(G120*H120*I120, 5) -> 0.00142 | L120: =+ROUND(J120*(1+K120), 5) -> 0.00142
A123: PREPAGO
A124: CD | B124: 1.002837111 | C124: 0.03585 | E124: 1.016547543 | F124: 0.03644 | G124: =+'[1]Tarifa VAD 22-26'!$C$89 -> 0.04732898747 | H124: =+'Ajuste COMER DISTR Y AP-100'!D33 -> 1.016547543 | I124: =+'Ajuste COMER DISTR Y AP-100'!E33 -> 0.9916088462 | J124: =+ROUND(G124*H124*I124, 5) -> 0.04771 | L124: =+ROUND(J124*(1+K124), 5) -> 0.04771
A125: CCOMF | B125: 1.006666795 | C125: 0.01055 | E125: 1.0388843 | F125: 0.01096 | G125: =+'[1]Tarifa VAD 22-26'!$C$90 -> 0.01068814436 | H125: =+'Ajuste COMER DISTR Y AP-100'!D32 -> 1.0388843 | I125: =+'Ajuste COMER DISTR Y AP-100'!E32 -> 0.9802820184 | J125: =+ROUND(G125*H125*I125, 5) -> 0.01088 | L125: =+ROUND(J125*(1+K125), 5) -> 0.01088
A126: CCOMV | B126: 1.006666795 | C126: 0.00709 | E126: 1.0388843 | F126: 0.00737 | G126: =+'[1]Tarifa VAD 22-26'!$C$91 -> 0.00836430404 | H126: =+'Ajuste COMER DISTR Y AP-100'!D32 -> 1.0388843 | I126: =+'Ajuste COMER DISTR Y AP-100'!E32 -> 0.9802820184 | J126: =+ROUND(G126*H126*I126, 5) -> 0.00852 | L126: =+ROUND(J126*(1+K126), 5) -> 0.00852
A127: CSERAP | B127: 1.00159356 | C127: 0.00161 | E127: 1.00929449 | F127: 0.00162 | G127: =+'[1]Tarifa VAD 22-26'!$C$92 -> 0.001439958912 | H127: =+'Ajuste COMER DISTR Y AP-100'!D34 -> 1.00929449 | I127: =+'Ajuste COMER DISTR Y AP-100'!E34 -> 0.9952868233 | J127: =+ROUND(G127*H127*I127, 5) -> 0.00145 | L127: =+ROUND(J127*(1+K127), 5) -> 0.00145
A130: BTSH
A131: CCOMF | E131: 1.0388843 | G131: =+'[1]Tarifa VAD 22-26'!$B101 -> 3.003099348 | H131: =+'Ajuste COMER DISTR Y AP-100'!D32 -> 1.0388843 | I131: =+'Ajuste COMER DISTR Y AP-100'!E32 -> 0.9802820184 | J131: =+ROUND(G131*H131*I131, 2) -> 3.06 | L131: =+ROUND(J131*(1+K131), 2) -> 3.06
A132: CCOMV
A133: BTSH_1
A134: BTSH_1 Punta | E134: 1.0388843 | G134: =+'[1]Tarifa VAD 22-26'!$C101 -> 0.007952233726 | H134: =+'Ajuste COMER DISTR Y AP-100'!D32 -> 1.0388843 | I134: =+'Ajuste COMER DISTR Y AP-100'!E32 -> 0.9802820184 | J134: =+ROUND(G134*H134*I134, 5) -> 0.0081 | L134: =+ROUND(J134*(1+K134), 5) -> 0.0081
A135: BTSH_1 Fuera de Punta Medio | E135: 1.0388843 | G135: =+'[1]Tarifa VAD 22-26'!$C102 -> 0.007952233726 | H135: =+'Ajuste COMER DISTR Y AP-100'!D32 -> 1.0388843 | I135: =+'Ajuste COMER DISTR Y AP-100'!E32 -> 0.9802820184 | J135: 0.0081 | L135: =+ROUND(J135*(1+K135), 5) -> 0.0081
A136: BTSH_1 Fuera de Punta Bajo | E136: 1.0388843 | G136: =+'[1]Tarifa VAD 22-26'!$C103 -> 0.007952233726 | H136: =+'Ajuste COMER DISTR Y AP-100'!D32 -> 1.0388843 | I136: =+'Ajuste COMER DISTR Y AP-100'!E32 -> 0.9802820184 | J136: 0.0081 | L136: =+ROUND(J136*(1+K136), 5) -> 0.0081
A137: BTSH_2
A138: BTSH_2 Punta
A139: BTSH_2 Fuera de Punta Medio
A140: BTSH_2 Fuera de Punta Bajo
A141: BTSH_3
A142: BTSH_3 Punta
A143: BTSH_3 Fuera de Punta Medio
A144: BTSH_3 Fuera de Punta Bajo
A145: CD
A146: BTSH_1
A147: BTSH_1 Punta | E147: 1.016547543 | G147: =+'[1]Tarifa VAD 22-26'!$D101 -> 0.04489016449 | H147: =+'Ajuste COMER DISTR Y AP-100'!D33 -> 1.016547543 | I147: =+'Ajuste COMER DISTR Y AP-100'!E33 -> 0.9916088462 | J147: =+ROUND(G147*H147*I147, 5) -> 0.04525 | L147: =+ROUND(J147*(1+K147), 5) -> 0.04525
A148: BTSH_1 Fuera de Punta Medio | E148: 1.016547543 | G148: =+'[1]Tarifa VAD 22-26'!$D102 -> 0.04489016449 | H148: =+'Ajuste COMER DISTR Y AP-100'!D33 -> 1.016547543 | I148: =+'Ajuste COMER DISTR Y AP-100'!E33 -> 0.9916088462 | J148: =+ROUND(G148*H148*I148, 5) -> 0.04525 | L148: =+ROUND(J148*(1+K148), 5) -> 0.04525
A149: BTSH_1 Fuera de Punta Bajo | E149: 1.016547543 | G149: =+'[1]Tarifa VAD 22-26'!$D103 -> 0.04489016449 | H149: =+'Ajuste COMER DISTR Y AP-100'!D33 -> 1.016547543 | I149: =+'Ajuste COMER DISTR Y AP-100'!E33 -> 0.9916088462 | J149: =+ROUND(G149*H149*I149, 5) -> 0.04525 | L149: =+ROUND(J149*(1+K149), 5) -> 0.04525
A150: BTSH_2
A151: BTSH_2 Punta
A152: BTSH_2 Fuera de Punta Medio
A153: BTSH_2 Fuera de Punta Bajo
A154: BTSH_3
A155: BTSH_3 Punta
A156: BTSH_3 Fuera de Punta Medio
A157: BTSH_3 Fuera de Punta Bajo
A158: CSERAP
A159: BTSH_1
A160: BTSH_1 Punta | E160: 1.00929449 | G160: =+'[1]Tarifa VAD 22-26'!$E101 -> 0.001379175962 | H160: =+'Ajuste COMER DISTR Y AP-100'!D34 -> 1.00929449 | I160: =+'Ajuste COMER DISTR Y AP-100'!E34 -> 0.9952868233 | J160: =+ROUND(G160*H160*I160, 5) -> 0.00139 | L160: =+ROUND(J160*(1+K160), 5) -> 0.00139
A161: BTSH_1 Fuera de Punta Medio | E161: 1.00929449 | G161: =+'[1]Tarifa VAD 22-26'!$E102 -> 0.001379175962 | H161: =+'Ajuste COMER DISTR Y AP-100'!D34 -> 1.00929449 | I161: =+'Ajuste COMER DISTR Y AP-100'!E34 -> 0.9952868233 | J161: =+ROUND(G161*H161*I161, 5) -> 0.00139 | L161: =+ROUND(J161*(1+K161), 5) -> 0.00139
A162: BTSH_1 Fuera de Punta Bajo | E162: 1.00929449 | G162: =+'[1]Tarifa VAD 22-26'!$E103 -> 0.001379175962 | H162: =+'Ajuste COMER DISTR Y AP-100'!D34 -> 1.00929449 | I162: =+'Ajuste COMER DISTR Y AP-100'!E34 -> 0.9952868233 | J162: =+ROUND(G162*H162*I162, 5) -> 0.00139 | L162: =+ROUND(J162*(1+K162), 5) -> 0.00139
A163: BTSH_2
A164: BTSH_2 Punta
A165: BTSH_2 Fuera de Punta Medio
A166: BTSH_2 Fuera de Punta Bajo
A167: BTSH_3
A168: BTSH_3 Punta
A169: BTSH_3 Fuera de Punta Medio
A170: BTSH_3 Fuera de Punta Bajo

Sheet RES DE ACT TARIFARIA-1000-T(4) (hidden)
A1: =+"TARIFAS: "&[1]Fecha!$A$1 -> TARIFAS: EDEMET
A3: Cargo Mensual
A4: VARIACION DEL COMBUSTIBLE
A5: BTS
A6: BTD
A7: BTH
A8: MTD
A9: MTH
A10: ATD
A11: ATH
A13: Cargo en la Factura del Cliente
A14: VARIACION DEL COMBUSTIBLE
A15: BTS
A16: BTD
A17: BTH
A18: MTD
A19: MTH
A20: ATD
A21: ATH

Sheet VAR PRECIO PROM
A1: =+[1]Fecha!$A$1&": Variación del Precio Promedio Estimado de la Energía Eléctrica de Clientes Regulados" -> EDEMET: Variación del Precio Promedio Estimado de la Energía Eléctrica de Clientes Regulados
A2: (En B/./kWh)
A4: EDEMET | B4: =+"Referencia FORM tarifas p-1: "&[1]Fecha!T7&" ventas p: "&[1]Fecha!T4 -> Referencia FORM tarifas p-1: Ene-Jun/2023 ventas p: Jul-Dic/2023 | C4: =+"Semestre p-1 "&[1]Fecha!T$7 -> Semestre p-1 Ene-Jun/2023 | D4: =+"Referencia FORM tarifas p: "&[1]Fecha!T4&" ventas p: "&[1]Fecha!T4 -> Referencia FORM tarifas p: Jul-Dic/2023 ventas p: Jul-Dic/2023 | E4: =+"Semestre p "&[1]Fecha!T$4 -> Semestre p Jul-Dic/2023 | F4: Variación (%)
A5: Comercialización | B5: AT102 / AT809 | C5: =+(SUM('COMER DISTR Y AP-102'!$B$124:$G$124,'COMER DISTR Y AP-102'!$B$182:$G$182))/(SUM('Facturación-801 (energía)'!$B$107:$G$107,'Facturación-801 (energía)'!$B$457:$G$457,'Facturación-801 (energía)'!$B$545:$G$545)-SUM('Facturación-801 (energía)'!$B$455:$G$455)) -> 0.01152502493 | D5: AT101 / AT809 | E5: =+(SUM('COMER DISTR Y AP-101'!B124:G124,'COMER DISTR Y AP-101'!B182:G182))/(SUM('Facturación-801 (energía)'!B107:G107,'Facturación-801 (energía)'!B457:G457,'Facturación-801 (energía)'!B545:G545)-SUM('Facturación-801 (energía)'!B455:G455)) -> 0.01305644477 | F5: =+E5/C5-1 -> 0.13287779
A6: Distribución | B6: AT104 / AT809 | C6: =+SUM('COMER DISTR Y AP-104'!$B$124:$G$124,'COMER DISTR Y AP-104'!$B$182:$G$182)/(SUM('Facturación-801 (energía)'!$B$107:$G$107,'Facturación-801 (energía)'!$B$457:$G$457,'Facturación-801 (energía)'!$B$545:$G$545)-SUM('Facturación-801 (energía)'!$B$455:$G$455)) -> 0.03406103947 | D6: AT103 / AT809 | E6: =+SUM('COMER DISTR Y AP-103'!B124:G124,'COMER DISTR Y AP-103'!B182:G182)/(SUM('Facturación-801 (energía)'!B107:G107,'Facturación-801 (energía)'!B457:G457,'Facturación-801 (energía)'!B545:G545)-SUM('Facturación-801 (energía)'!B455:G455)) -> 0.04868316792 | F6: 0.4292919029
A7: Alumbrado Público | B7: AT603 / AT809 | C7: =+SUM('ALUMB PUB-603'!$B$124:$G$124,'ALUMB PUB-603'!$B$182:$G$182)/(SUM('Facturación-801 (energía)'!$B$107:$G$107,'Facturación-801 (energía)'!$B$457:$G$457,'Facturación-801 (energía)'!$B$545:$G$545)-SUM('Facturación-801 (energía)'!$B$455:$G$455)) -> 0.001428032061 | D7: AT604 / AT809 | E7: =+SUM('ALUMB PUB-604'!B124:G124,'ALUMB PUB-604'!B182:G182)/(SUM('Facturación-801 (energía)'!B107:G107,'Facturación-801 (energía)'!B457:G457,'Facturación-801 (energía)'!B545:G545)-SUM('Facturación-801 (energía)'!B455:G455)) -> 0.001330067407 | F7: -0.06860115919
A8: Precio Promedio de Distribución | C8: =+SUM(C5:$C7) -> 0.04701409646 | E8: =+SUM(E5:E7) -> 0.0630696801 | F8: 0.3415057365
A9: Peaje de Transmisión | B9: AT305 / AT809 | C9: =+SUM('TRANSMISION-305'!$B$124:$G$124,'TRANSMISION-305'!$B$182:$G$182)/(SUM('Facturación-801 (energía)'!$B$107:$G$107,'Facturación-801 (energía)'!$B$457:$G$457,'Facturación-801 (energía)'!$B$545:$G$545)-SUM('Facturación-801 (energía)'!$B$455:$G$455)) -> 0.01029828761 | D9: AT304 / AT809 | E9: =+SUM('TRANSMISION-304'!B124:G124,'TRANSMISION-304'!B182:G182)/(SUM('Facturación-801 (energía)'!B107:G107,'Facturación-801 (energía)'!B457:G457,'Facturación-801 (energía)'!B545:G545)-SUM('Facturación-801 (energía)'!B455:G455)) -> 0.01082773212 | F9: 0.05141092683
A10: Pérdidas de Transmisión | B10: AT405 / AT809 | C10: =+SUM('PERD TRANS-405'!$B$124:$G$124,'PERD TRANS-405'!$B$149:$G$149)/(SUM('Facturación-801 (energía)'!$B$107:$G$107,'Facturación-801 (energía)'!$B$457:$G$457,'Facturación-801 (energía)'!$B$545:$G$545)-SUM('Facturación-801 (energía)'!$B$455:$G$455)) -> 0.002476208855 | D10: AT404 / AT809 | E10: =+SUM('PERD TRANS-404'!B124:G124,'PERD TRANS-404'!B149:G149)/(SUM('Facturación-801 (energía)'!B107:G107,'Facturación-801 (energía)'!B457:G457,'Facturación-801 (energía)'!B545:G545)-SUM('Facturación-801 (energía)'!B455:G455)) -> 0.004485567738 | F10: 0.8114658337
A11: Precio Promedio de Transmisión | C11: =+C10+C9 -> 0.01277449647 | E11: =+E10+E9 -> 0.01531329986 | F11: 0.1987399973
A12: Pérdidas en Distribución | B12: AT202 / AT809 | C12: =+SUM('PERD DISTR Y GEN-202'!$B$124:$G$124,'PERD DISTR Y GEN-202'!$B$182:$G$182)/(SUM('Facturación-801 (energía)'!$B$107:$G$107,'Facturación-801 (energía)'!$B$457:$G$457,'Facturación-801 (energía)'!$B$545:$G$545)-SUM('Facturación-801 (energía)'!$B$455:$G$455)) -> 0.01128401511 | D12: AT201 / AT809 | E12: =+SUM('PERD DISTR Y GEN-201'!$B$124:$G$124,'PERD DISTR Y GEN-201'!$B$182:$G$182)/(SUM('Facturación-801 (energía)'!$B$107:$G$107,'Facturación-801 (energía)'!$B$457:$G$457,'Facturación-801 (energía)'!$B$545:$G$545)-SUM('Facturación-801 (energía)'!$B$455:$G$455)) -> 0.008390593187 | F12: =+E12/C12-1 -> -0.2564177642
A13: Alumbrado Público | B13: AT505 / AT805 | C13: =+SUM('GENERACION-505'!$B$298:$G$298,'GENERACION-505'!$B$447:$G$447)/(SUM('Facturación-801 (energía)'!$B$107:$G$107,'Facturación-801 (energía)'!$B$457:$G$457,'Facturación-801 (energía)'!$B$545:$G$545)-SUM('Facturación-801 (energía)'!$B$455:$G$455)) -> 0.002319653689 | D13: AT504 / AT805 | E13: =+SUM('GENERACION-504'!$B$298:$G$298,'GENERACION-504'!$B$447:$G$447)/(SUM('Facturación-801 (energía)'!$B$107:$G$107,'Facturación-801 (energía)'!$B$457:$G$457,'Facturación-801 (energía)'!$B$545:$G$545)-SUM('Facturación-801 (energía)'!$B$455:$G$455)) -> 0.002029071003 | F13: -0.1252698571
A14: Generación | B14: AT505 / AT805 | C14: =+SUM('GENERACION-505'!B124:G124,'GENERACION-505'!B211:G211,'GENERACION-505'!B397:G397,'GENERACION-505'!B422:G422)/(SUM('Facturación-801 (energía)'!B107:G107,'Facturación-801 (energía)'!B457:G457,'Facturación-801 (energía)'!B545:G545)-SUM('Facturación-801 (energía)'!B455:G455))-C13 -> 0.128393984 | D14: AT504 / AT805 | E14: =+(SUM('GENERACION-504'!B124:G124, 'GENERACION-504'!B211:G211, 'GENERACION-504'!B397:G397, 'GENERACION-504'!B422:G422) + SUM('GENERACION-504 (extra)'!B108:G108, 'GENERACION-504 (extra)'!B134:G134)) / (SUM('Facturación-801 (energía)'!B107:G107, 'Facturación-801 (energía)'!B457:G457, 'Facturación-801 (energía)'!B545:G545) - SUM('Facturación-801 (energía)'!B455:G455)) - E13 -> 0.1193056749 | F14: -0.07078453946
A15: Precio Promedio de Generación | C15: =+C14+C13+C12 -> 0.1419976528 | E15: =+E14+E13+E12 -> 0.1297253391 | F15: -0.08642617254
A16: Precio Promedio CR | C16: =+C15+C11+C8 -> 0.2017862457 | E16: =+E15+E11+E8 -> 0.2081083191 | F16: 0.0313305467
A17: Precio Promedio GC | C17: =+'VAR PRECIO PROM (2)'!C26 -> 0.07434966883 | E17: =+'VAR PRECIO PROM (2)'!E26 -> 0.0982529026 | F17: =+E17/C17-1 -> 0.321497515
A19: =+A1&" (En B/)" -> EDEMET: Variación del Precio Promedio Estimado de la Energía Eléctrica de Clientes Regulados (En B/)
A20: Cargos | B20: =+"Referencia FORM tarifas p-1: "&[1]Fecha!T7&" ventas p: "&[1]Fecha!T4 -> Referencia FORM tarifas p-1: Ene-Jun/2023 ventas p: Jul-Dic/2023 | C20: =+"Semestre p-1 "&[1]Fecha!T$7 -> Semestre p-1 Ene-Jun/2023 | D20: =+"Referencia FORM tarifas p: "&[1]Fecha!T4&" ventas p: "&[1]Fecha!T4 -> Referencia FORM tarifas p: Jul-Dic/2023 ventas p: Jul-Dic/2023 | E20: =+"Semestre p "&[1]Fecha!T$4 -> Semestre p Jul-Dic/2023 | F20: Variación (%)
A21: Comercialización | B21: AT104 | C21: =+(SUM('COMER DISTR Y AP-102'!$B$124:$G$124,'COMER DISTR Y AP-102'!$B$182:$G$182)) -> 21619722.71 | D21: AT103 | E21: =+(SUM('COMER DISTR Y AP-101'!B124:G124,'COMER DISTR Y AP-101'!B182:G182)) -> 24492503.69 | F21: =+E21/C21-1 -> 0.13287779
A22: Distribución | B22: AT106 | C22: =+SUM('COMER DISTR Y AP-104'!$B$124:$G$124,'COMER DISTR Y AP-104'!$B$182:$G$182) -> 63894892.5 | D22: AT105 | E22: =+SUM('COMER DISTR Y AP-103'!B124:G124,'COMER DISTR Y AP-103'!B182:G182) -> 91324452.49 | F22: 0.4292919029
A23: Alumbrado Público | B23: AT605 | C23: =+SUM('ALUMB PUB-603'!$B$124:$G$124,'ALUMB PUB-603'!$B$182:$G$182) -> 2678836.479 | D23: AT606 | E23: =+SUM('ALUMB PUB-604'!$B$124:$G$124,'ALUMB PUB-604'!$B$182:$G$182) -> 2495065.191 | F23: -0.06860115919
A24: Precio Promedio de Distribución | C24: =+SUM(C21:C23) -> 88193451.69 | E24: =+SUM(E21:E23) -> 118312021.4 | F24: 0.3415057365
A25: Peaje de Transmisión | B25: AT307 | C25: =+SUM('TRANSMISION-305'!$B$124:$G$124,'TRANSMISION-305'!$B$182:$G$182) -> 19318493.8 | D25: AT306 | E25: =+SUM('TRANSMISION-304'!$B$124:$G$124,'TRANSMISION-304'!$B$182:$G$182) -> 20311675.47 | F25: 0.05141092683
A26: Pérdidas de Transmisión | B26: AT407 | C26: =+SUM('PERD TRANS-405'!$B$124:$G$124,'PERD TRANS-405'!$B$149:$G$149) -> 4645104.819 | D26: AT406 | E26: =+SUM('PERD TRANS-404'!$B$124:$G$124,'PERD TRANS-404'!$B$149:$G$149) -> 8414448.673 | F26: 0.8114658337
A27: Precio Promedio de Transmisión | C27: =+C26+C25 -> 23963598.62 | E27: =+E26+E25 -> 28726124.15 | F27: 0.1987399973
A28: Pérdidas en Distribución | B28: AT204 | C28: =+SUM('PERD DISTR Y GEN-202'!$B$124:$G$124,'PERD DISTR Y GEN-202'!$B$182:$G$182) -> 21167613.9 | D28: AT203 | E28: =+SUM('PERD DISTR Y GEN-201'!$B$124:$G$124,'PERD DISTR Y GEN-201'!$B$182:$G$182) -> 15739861.67 | F28: =+E28/C28-1 -> -0.2564177642
A29: Alumbrado Público | B29: AT507 | C29: =+SUM('GENERACION-505'!$B$298:$G$298,'GENERACION-505'!$B$447:$G$447) -> 4351423.956 | D29: AT506 | E29: =+SUM('GENERACION-504'!$B$298:$G$298,'GENERACION-504'!$B$447:$G$447) -> 3806321.699 | F29: -0.1252698571
A30: Generación | B30: AT507 | C30: =+SUM('GENERACION-505'!$B$124:$G$124,'GENERACION-505'!$B$211:$G$211,'GENERACION-505'!$B$397:$G$397,'GENERACION-505'!$B$422:$G$422)-C29 -> 240853477.5 | D30: AT506 | E30: =+SUM('GENERACION-504'!B124:G124,'GENERACION-504'!B211:G211,'GENERACION-504'!B397:G397,'GENERACION-504'!B422:G422)+SUM('GENERACION-504 (extra)'!B108:G108,'GENERACION-504 (extra)'!B134:G134)- E29 -> 223804775 | F30: -0.07078453946
A31: Precio Promedio de Generación | C31: =+C30+C29+C28 -> 266372515.3 | E31: =+E30+E29+E28 -> 243350958.4 | F31: -0.08642617254
A32: Precio Promedio de Total | C32: =+C31+C27+C24 -> 378529565.6 | E32: =+E31+E27+E24 -> 390389103.9 | F32: 0.0313305467
A35: EDEMET: Variación del Precio Promedio Estimado de la Energía Eléctrica de Grandes Clientes (En B/)
A36: Cargos | B36: =+B20 -> Referencia FORM tarifas p-1: Ene-Jun/2023 ventas p: Jul-Dic/2023 | C36: =+C20 -> Semestre p-1 Ene-Jun/2023 | D36: Referencia FORM tarifas p: Jul-Dic/2023 ventas p: Jul-Dic/2023 | E36: Semestre p Jul-Dic/2023 | F36: Variación (%)
A37: Comercialización | B37: AT103 | C37: =+(SUM('COMER DISTR Y AP-102'!B157:G157)) -> 2784585.187 | D37: AT102 | E37: =+(SUM('COMER DISTR Y AP-101'!B157:G157)) -> 3364293.075 | F37: =+E37/C37-1 -> 0.2081846486
A38: Distribución | B38: AT105 | C38: =+SUM('COMER DISTR Y AP-104'!B157:G157) -> 10222885.83 | D38: AT104 | E38: =+SUM('COMER DISTR Y AP-103'!B157:G157) -> 14730901.9 | F38: 0.4409729454
A39: Pérdidas en Distribución | B39: AT203 | C39: =+SUM('PERD DISTR Y GEN-202'!B157:G157) -> 4811428.455 | D39: AT202 | E39: =+SUM('PERD DISTR Y GEN-201'!B157:G157) -> 3542419.699 | F39: -0.263748857
A40: Alumbrado Público | B40: AT604 | C40: =+SUM('ALUMB PUB-603'!B157:G157) -> 608791.0542 | D40: AT605 | E40: =+SUM('ALUMB PUB-604'!B157:G157) -> 570467.7718 | F40: -0.062949812
A41: Precio Promedio de Distribución | C41: =+SUM(C37:C40) -> 18427690.53 | E41: =+SUM(E37:E40) -> 22208082.45 | F41: 0.2051473526
A42: Peaje de Transmisión | B42: AT306 | C42: =+SUM('TRANSMISION-305'!B157:G157) -> 3348901.953 | D42: AT305 | E42: =+SUM('TRANSMISION-304'!B157:G157) -> 3347392.074 | F42: -0.0004508579741
A43: Pérdidas de Transmisión | B43: AT406 | D43: AT405
A44: Precio Promedio de Transmisión | C44: =+C43+C42 -> 3348901.953 | E44: =+E43+E42 -> 3347392.074 | F44: -0.0004508579741
A45: Alumbrado Público | B45: AT506 | C45: =+SUM('GENERACION-505'!B331:G331) -> 992147.2002 | D45: AT505 | E45: =+SUM('GENERACION-504'!B331:G331) -> 868661.068 | F45: -0.1244635193
A46: Generación | B46: AT506 | C46: =+SUM('GENERACION-505'!B364:G364) -> 8890408.717 | D46: AT505 | E46: =+SUM('GENERACION-504'!B364:G364) -> 15413350.34 | F46: 0.7337054828
A47: Precio Promedio de Generación | C47: =+C46+C45 -> 9882555.918 | E47: =+E46+E45 -> 16282011.41 | F47: 0.647550648
A48: Precio Promedio de Total | C48: =+C47+C44+C41 -> 31659148.4 | E48: =+E47+E44+E41 -> 41837485.93 | F48: 0.321497515 | G48: =+E48-C48 -> 10178337.54
A51: Precio promedio global
A52: Cargos | B52: =+"Referencia FORM tarifas p-1: "&[1]Fecha!T39&" ventas p: "&[1]Fecha!T36 -> Referencia FORM tarifas p-1: ventas p: | C52: =+"Semestre p-1 "&[1]Fecha!T$7 -> Semestre p-1 Ene-Jun/2023 | D52: =+"Referencia FORM tarifas p: "&[1]Fecha!T36&" ventas p: "&[1]Fecha!T36 -> Referencia FORM tarifas p: ventas p: | E52: =+"Semestre p "&[1]Fecha!T$4 -> Semestre p Jul-Dic/2023 | F52: Variación (%) | G52: =+(SUM('Facturación-801 (energía)'!$B$107:$G$107,'Facturación-801 (energía)'!$B$457:$G$457,'Facturación-801 (energía)'!$B$545:$G$545)-SUM('Facturación-801 (energía)'!$B$455:$G$455))+SUM('Facturación-801 (energía)'!B$376:G$376,'Facturación-801 (energía)'!B$422:G$422) -> 2301708041
A53: Comercialización | B53: AT102 / AT809 | C53: =+C67/$G$52 -> 0.01060269481 | D53: =+D67/$G$52 ->  | E53: =+E67/$G$52 -> 0.01210266301 | F53: =+E53/C53-1 -> 0.1414704682 | G53: =+(SUM('Facturación-801 (energía)'!B107:G107)+SUM('Facturación-801 (energía)'!B457:G457)-SUM('Facturación-801 (energía)'!B455:G455)+SUM('Facturación-801 (energía)'!B$376:G$376,'Facturación-801 (energía)'!B$422:G$422)) -> 2281151849
A54: Distribución | B54: AT104 / AT809 | C54: =+C68/$G$52 -> 0.03220120754 | E54: 0.04607680579 | F54: 0.4309030408
A55: Alumbrado Público | B55: AT603 / AT809 | C55: =+C69/$G$52 -> 0.00142834255 | E55: 0.00133185135 | F55: -0.06755466303
A56: Precio Promedio de Distribución | C56: =+SUM(C53:$C55) -> 0.0442322449 | E56: =+SUM(E53:$E55) -> 0.05951132015 | F56: 0.3454284376
A57: Peaje de Transmisión | B57: AT305 / AT809 | C57: 0.009848076016 | E57: 0.01027891771 | F57: 0.04374881891
A58: Pérdidas de Transmisión | B58: AT405 / AT809 | C58: 0.002018112087 | E58: 0.003655741094 | F58: 0.8114658337
A59: Precio Promedio de Transmisión | C59: =+C58+C57 -> 0.0118661881 | E59: =+E58+E57 -> 0.0139346588 | F59: 0.1743163587 | I59: =92403/2 -> 46201.5
A60: Pérdidas en Distribución | B60: AT202 / AT809 | C60: 0.01128685389 | E60: 0.008377379331 | F60: =+E60/C60-1 -> -0.2577755136
A61: Alumbrado Público | B61: AT505 / AT805 | C61: 0.002321567749 | E61: 0.002031092859 | F61: =+E61/C61-1 -> -0.1251201434
A62: Generación | B62: AT505 / AT805 | C62: 0.1085037206 | E62: 0.1039306989 | F62: -0.04214622036
A63: Precio Promedio de Generación | C63: =+C62+C61+C60 -> 0.1221121422 | E63: =+E62+E61+E60 -> 0.1143391711 | F63: -0.0636543674
A64: Precio Promedio de Total | C64: =+C63+C59+C56 -> 0.1782105752 | E64: =+E63+E59+E56 -> 0.18778515 | F64: 0.05372618752
A66: Cargos | B66: =+"Referencia FORM tarifas p-1: "&[1]Fecha!T38&" ventas p: "&[1]Fecha!T35 -> Referencia FORM tarifas p-1: ventas p: | C66: =+"Semestre p-1 "&[1]Fecha!T$7 -> Semestre p-1 Ene-Jun/2023 | D66: =+"Referencia FORM tarifas p: "&[1]Fecha!T35&" ventas p: "&[1]Fecha!T35 -> Referencia FORM tarifas p: ventas p: | E66: =+"Semestre p "&[1]Fecha!T$4 -> Semestre p Jul-Dic/2023 | F66: Variación (%)
A67: Comercialización | B67: AT104 | C67: =+(SUM('COMER DISTR Y AP-102'!$B$124:$G$124,'COMER DISTR Y AP-102'!$B$157:$G$157,'COMER DISTR Y AP-102'!$B$182:$G$182)) -> 24404307.9 | D67: AT103 | E67: =+(SUM('COMER DISTR Y AP-101'!$B$124:$G$124,'COMER DISTR Y AP-101'!$B$157:$G$157,'COMER DISTR Y AP-101'!$B$182:$G$182)) -> 27856796.76 | F67: =+E67/C67-1 -> 0.1414704682
A68: Distribución | B68: AT106 | C68: =+SUM('COMER DISTR Y AP-104'!$B$124:$G$124,'COMER DISTR Y AP-104'!$B$157:$G$157,'COMER DISTR Y AP-104'!$B$182:$G$182) -> 74117778.33 | D68: AT105 | E68: =+SUM('COMER DISTR Y AP-103'!$B$124:$G$124,'COMER DISTR Y AP-103'!$B$157:$G$157,'COMER DISTR Y AP-103'!$B$182:$G$182) -> 106055354.4 | F68: 0.4309030408
A69: Alumbrado Público | B69: AT605 | C69: =+SUM('ALUMB PUB-603'!$B$124:$G$124,'ALUMB PUB-603'!$B$157:$G$157,'ALUMB PUB-603'!$B$182:$G$182) -> 3287627.533 | D69: AT606 | E69: =+SUM('ALUMB PUB-604'!$B$124:$G$124,'ALUMB PUB-604'!$B$157:$G$157,'ALUMB PUB-604'!$B$182:$G$182) -> 3065532.963 | F69: -0.06755466303
A70: Precio Promedio de Distribución | C70: =+SUM(C67:C69) -> 101809713.8 | E70: =+SUM(E67:E69) -> 136977684.1 | F70: 0.3454284376
A71: Peaje de Transmisión | B71: AT307 | C71: =+SUM('TRANSMISION-305'!$B$124:$G$124,'TRANSMISION-305'!$B$157:$G$157,'TRANSMISION-305'!$B$182:$G$182) -> 22667395.75 | D71: AT306 | E71: =+SUM('TRANSMISION-304'!$B$124:$G$124,'TRANSMISION-304'!$B$157:$G$157,'TRANSMISION-304'!$B$182:$G$182) -> 23659067.55 | F71: 0.04374881891
A72: Pérdidas de Transmisión | B72: AT407 | C72: =+SUM('PERD TRANS-405'!$B$124:$G$124,'PERD TRANS-405'!$B$149:$G$149) -> 4645104.819 | D72: AT406 | E72: =+SUM('PERD TRANS-404'!$B$124:$G$124,'PERD TRANS-404'!$B$149:$G$149) -> 8414448.673 | F72: 0.8114658337
A73: Precio Promedio de Transmisión | C73: =+C72+C71 -> 27312500.57 | E73: =+E72+E71 -> 32073516.22 | F73: 0.1743163587
A74: Pérdidas en Distribución | B74: AT204 | C74: =+SUM('PERD DISTR Y GEN-202'!$B$124:$G$124,'PERD DISTR Y GEN-202'!$B$157:$G$157,'PERD DISTR Y GEN-202'!$B$182:$G$182) -> 25979042.36 | D74: AT203 | E74: =+SUM('PERD DISTR Y GEN-201'!$B$124:$G$124,'PERD DISTR Y GEN-201'!$B$157:$G$157,'PERD DISTR Y GEN-201'!$B$182:$G$182) -> 19282281.37 | F74: =+E74/C74-1 -> -0.2577755136
A75: Alumbrado Público | B75: AT507 | C75: =+SUM('GENERACION-505'!$B$298:$G$298,'GENERACION-505'!$B$331:$G$331,'GENERACION-505'!$B$447:$G$447) -> 5343571.156 | D75: AT506 | E75: =+SUM('GENERACION-504'!$B$298:$G$298,'GENERACION-504'!$B$331:$G$331,'GENERACION-504'!$B$447:$G$447) -> 4674982.767 | F75: =+E75/C75-1 -> -0.1251201434
A76: Generación | B76: AT507 | C76: =+SUM('GENERACION-505'!$B$124:$G$124,'GENERACION-505'!$B$211:$G$211,'GENERACION-505'!$B$364:$G$364,'GENERACION-505'!$B$397:$G$397,'GENERACION-505'!$B$422:$G$422)-C75+SUM('GENERACION-505'!B331:G331) -> 249743886.2 | D76: AT506 | E76: =+SUM('GENERACION-504'!$B$124:$G$124,'GENERACION-504'!$B$211:$G$211,'GENERACION-504'!$B$364:$G$364,'GENERACION-504'!$B$397:$G$397,'GENERACION-504'!$B$422:$G$422)-E75+SUM('GENERACION-504'!$B$331:$G$331) -> 239218125.3 | F76: -0.04214622036
A77: Precio Promedio de Generación | C77: =+C76+C75+C74 -> 281066499.7 | E77: =+E76+E75+E74 -> 263175389.5 | F77: -0.0636543674
A78: Precio Promedio de Total | C78: =+C77+C73+C70 -> 410188714 | E78: =+E77+E73+E70 -> 432226589.8 | F78: 0.05372618752

Sheet VAR PRECIO PROM (2)
A1: =+[1]Fecha!$A$1&": Ingreso Estimado por la Aplicación de la Energía Eléctrica de Clientes Regulados por Tarifa" -> EDEMET: Ingreso Estimado por la Aplicación de la Energía Eléctrica de Clientes Regulados por Tarifa
A2: (En B/./kWh)
A5: Tarifas | B5: =+"Referencia FORM Cargos Tarifarios p-1: "&[1]Fecha!T7&" ventas p: "&[1]Fecha!T4 -> Referencia FORM Cargos Tarifarios p-1: Ene-Jun/2023 ventas p: Jul-Dic/2023 | C5: =+"Semestre p-1 "&[1]Fecha!T$7 -> Semestre p-1 Ene-Jun/2023 | D5: =+"Referencia FORM Cargos Tarifarios p-1: "&[1]Fecha!T4&" ventas p: "&[1]Fecha!T4 -> Referencia FORM Cargos Tarifarios p-1: Jul-Dic/2023 ventas p: Jul-Dic/2023 | E5: =+"Semestre p "&[1]Fecha!T$4 -> Semestre p Jul-Dic/2023 | F5: Variación (%)
A6: BTS (0-300) | B6: (AT102 + AT104 + AT202 + AT603 + AT305 + AT405 + AT505) / AT806 | C6: =+IF(SUM('Facturación-801 (energía)'!B85:G85)=0,0,(SUM('COMER DISTR Y AP-102'!B98:G98)+SUM('COMER DISTR Y AP-104'!B98:G98)+SUM('PERD DISTR Y GEN-202'!B98:G98)+SUM('ALUMB PUB-603'!B98:G98)+SUM('TRANSMISION-305'!B98:G98)+SUM('PERD TRANS-405'!B98:G98)+SUM('GENERACION-505'!B98:G98)+SUM('GENERACION-505'!B185:G185)+SUM('COMER DISTR Y AP-102'!B161:G161)+SUM('COMER DISTR Y AP-104'!B161:G161)+SUM('PERD DISTR Y GEN-202'!B161:G161)+SUM('ALUMB PUB-603'!B161:G161)+SUM('TRANSMISION-305'!B161:G161)+SUM('PERD TRANS-405'!B128:G128)+SUM('GENERACION-505'!B376:G376)+SUM('GENERACION-505'!B401:G401))/(SUM('Facturación-801 (energía)'!B85:G85)+SUM('Facturación-801 (energía)'!B433:G433))) -> 0.1519182547 | D6: (AT101 + AT103 + AT201 + AT604 +AT304 + AT404 + AT504) / AT806 | E6: =+IF(SUM('Facturación-801 (energía)'!B85:G85)=0,0,(SUM('COMER DISTR Y AP-101'!B98:G98)+SUM('COMER DISTR Y AP-103'!B98:G98)+SUM('PERD DISTR Y GEN-201'!B98:G98)+SUM('ALUMB PUB-604'!B98:G98)+SUM('TRANSMISION-304'!B98:G98)+SUM('PERD TRANS-404'!B98:G98)+SUM('GENERACION-504'!B98:G98)+SUM('GENERACION-504'!B185:G185)+SUM('COMER DISTR Y AP-101'!B161:G161)+SUM('COMER DISTR Y AP-103'!B161:G161)+SUM('PERD DISTR Y GEN-201'!B161:G161)+SUM('ALUMB PUB-604'!B161:G161)+SUM('TRANSMISION-304'!B161:G161)+SUM('PERD TRANS-404'!B128:G128)+SUM('GENERACION-504'!B376:G376)+SUM('GENERACION-504'!B401:G401)+SUM('GENERACION-504 (extra)'!B86:G86,'GENERACION-504 (extra)'!B113:G113))/(SUM('Facturación-801 (energía)'!B85:G85)+SUM('Facturación-801 (energía)'!B433:G433))) -> 0.1572755681 | F6: =+IF(C6=0,0,E6/C6-1) -> 0.035264448
A7: BTS (301-750) | C7: =+IF(SUM('Facturación-801 (energía)'!B92:G92)=0,0,(SUM('COMER DISTR Y AP-102'!B105:G105)+SUM('COMER DISTR Y AP-104'!B105:G105)+SUM('PERD DISTR Y GEN-202'!B105:G105)+SUM('ALUMB PUB-603'!B105:G105)+SUM('TRANSMISION-305'!B105:G105)+SUM('PERD TRANS-405'!B105:G105)+SUM('GENERACION-505'!B105:G105)+SUM('GENERACION-505'!B192:G192)+SUM('COMER DISTR Y AP-102'!B168:G168)+SUM('COMER DISTR Y AP-104'!B168:G168)+SUM('PERD DISTR Y GEN-202'!B168:G168)+SUM('ALUMB PUB-603'!B168:G168)+SUM('TRANSMISION-305'!B168:G168)+SUM('PERD TRANS-405'!B135:G135)+SUM('GENERACION-505'!B383:G383)+SUM('GENERACION-505'!B408:G408))/(SUM('Facturación-801 (energía)'!B92:G92)+SUM('Facturación-801 (energía)'!B440:G440))) -> 0.1891705129 | E7: =+IF(SUM('Facturación-801 (energía)'!B92:G92)=0,0,(SUM('COMER DISTR Y AP-101'!B105:G105)+SUM('COMER DISTR Y AP-103'!B105:G105)+SUM('PERD DISTR Y GEN-201'!B105:G105)+SUM('ALUMB PUB-604'!B105:G105)+SUM('TRANSMISION-304'!B105:G105)+SUM('PERD TRANS-404'!B105:G105)+SUM('GENERACION-504'!B105:G105)+SUM('GENERACION-504'!B192:G192)+SUM('COMER DISTR Y AP-101'!B168:G168)+SUM('COMER DISTR Y AP-103'!B168:G168)+SUM('PERD DISTR Y GEN-201'!B168:G168)+SUM('ALUMB PUB-604'!B168:G168)+SUM('TRANSMISION-304'!B168:G168)+SUM('PERD TRANS-404'!B135:G135)+SUM('GENERACION-504'!B383:G383)+SUM('GENERACION-504'!B408:G408)+SUM('GENERACION-504 (extra)'!B93:G93,'GENERACION-504 (extra)'!B120:G120))/(SUM('Facturación-801 (energía)'!B92:G92)+SUM('Facturación-801 (energía)'!B440:G440))) -> 0.1727698908 | F7: -0.08669756134
A8: BTS (751-más) | C8: =+IF(SUM('Facturación-801 (energía)'!B99:G99)=0,0,(SUM('COMER DISTR Y AP-102'!B112:G112)+SUM('COMER DISTR Y AP-104'!B112:G112)+SUM('PERD DISTR Y GEN-202'!B112:G112)+SUM('ALUMB PUB-603'!B112:G112)+SUM('TRANSMISION-305'!B112:G112)+SUM('PERD TRANS-405'!B112:G112)+SUM('GENERACION-505'!B112:G112)+SUM('GENERACION-505'!B199:G199)+SUM('COMER DISTR Y AP-102'!B175:G175)+SUM('COMER DISTR Y AP-104'!B175:G175)+SUM('PERD DISTR Y GEN-202'!B175:G175)+SUM('ALUMB PUB-603'!B175:G175)+SUM('TRANSMISION-305'!B175:G175)+SUM('PERD TRANS-405'!B142:G142)+SUM('GENERACION-505'!B390:G390)+SUM('GENERACION-505'!B415:G415))/(SUM('Facturación-801 (energía)'!B99:G99)+SUM('Facturación-801 (energía)'!B447:G447))) -> 0.2335759719 | E8: =+IF(SUM('Facturación-801 (energía)'!B99:G99)=0,0,(SUM('COMER DISTR Y AP-101'!B112:G112)+SUM('COMER DISTR Y AP-103'!B112:G112)+SUM('PERD DISTR Y GEN-201'!B112:G112)+SUM('ALUMB PUB-604'!B112:G112)+SUM('TRANSMISION-304'!B112:G112)+SUM('PERD TRANS-404'!B112:G112)+SUM('GENERACION-504'!B112:G112)+SUM('GENERACION-504'!B199:G199)+SUM('COMER DISTR Y AP-101'!B175:G175)+SUM('COMER DISTR Y AP-103'!B175:G175)+SUM('PERD DISTR Y GEN-201'!B175:G175)+SUM('ALUMB PUB-604'!B175:G175)+SUM('TRANSMISION-304'!B175:G175)+SUM('PERD TRANS-404'!B142:G142)+SUM('GENERACION-504'!B390:G390)+SUM('GENERACION-504'!B415:G415)+SUM('GENERACION-504 (extra)'!B100:G100,'GENERACION-504 (extra)'!B127:G127))/(SUM('Facturación-801 (energía)'!B99:G99)+SUM('Facturación-801 (energía)'!B447:G447))) -> 0.2590379158 | F8: 0.1090092605
A9: BTD (0-10,000) | C9: =+IF(SUM('Facturación-801 (energía)'!B50:G50)=0,0,(SUM('COMER DISTR Y AP-102'!B70:G70)+SUM('COMER DISTR Y AP-104'!B70:G70)+SUM('PERD DISTR Y GEN-202'!B70:G70)+SUM('ALUMB PUB-603'!B70:G70)+SUM('TRANSMISION-305'!B70:G70)+SUM('PERD TRANS-405'!B70:G70)+SUM('GENERACION-505'!B70:G70)+SUM('GENERACION-505'!B157:G157))/SUM('Facturación-801 (energía)'!B50:G50)) -> 0.2235449179 | E9: =+IF(SUM('Facturación-801 (energía)'!B50:G50)=0,0,(SUM('COMER DISTR Y AP-101'!B70:G70)+SUM('COMER DISTR Y AP-103'!B70:G70)+SUM('PERD DISTR Y GEN-201'!B70:G70)+SUM('ALUMB PUB-604'!B70:G70)+SUM('TRANSMISION-304'!B70:G70)+SUM('PERD TRANS-404'!B70:G70)+SUM('GENERACION-504'!B70:G70)+SUM('GENERACION-504'!B157:G157)+SUM('GENERACION-504 (extra)'!B58:G58))/SUM('Facturación-801 (energía)'!B50:G50)) -> 0.2360296531 | F9: 0.05584888882
A10: BTD (10,001-30,000) | C10: =+IF(SUM('Facturación-801 (energía)'!B57:G57)=0,0,(SUM('COMER DISTR Y AP-102'!B77:G77)+SUM('COMER DISTR Y AP-104'!B77:G77)+SUM('PERD DISTR Y GEN-202'!B77:G77)+SUM('ALUMB PUB-603'!B77:G77)+SUM('TRANSMISION-305'!B77:G77)+SUM('PERD TRANS-405'!B77:G77)+SUM('GENERACION-505'!B77:G77)+SUM('GENERACION-505'!B164:G164))/SUM('Facturación-801 (energía)'!B57:G57)) -> 0.2047104162 | E10: =+IF(SUM('Facturación-801 (energía)'!B57:G57)=0,0,(SUM('COMER DISTR Y AP-101'!B77:G77)+SUM('COMER DISTR Y AP-103'!B77:G77)+SUM('PERD DISTR Y GEN-201'!B77:G77)+SUM('ALUMB PUB-604'!B77:G77)+SUM('TRANSMISION-304'!B77:G77)+SUM('PERD TRANS-404'!B77:G77)+SUM('GENERACION-504'!B77:G77)+SUM('GENERACION-504'!B164:G164)+SUM('GENERACION-504 (extra)'!B65:G65))/SUM('Facturación-801 (energía)'!B57:G57)) -> 0.2074224635 | F10: 0.01324821345
A11: BTD (30,001-50,000) | C11: =+IF(SUM('Facturación-801 (energía)'!B64:G64)=0,0,(SUM('COMER DISTR Y AP-102'!B84:G84)+SUM('COMER DISTR Y AP-104'!B84:G84)+SUM('PERD DISTR Y GEN-202'!B84:G84)+SUM('ALUMB PUB-603'!B84:G84)+SUM('TRANSMISION-305'!B84:G84)+SUM('PERD TRANS-405'!B84:G84)+SUM('GENERACION-505'!B84:G84)+SUM('GENERACION-505'!B171:G171))/SUM('Facturación-801 (energía)'!B64:G64)) -> 0.2060415512 | E11: =+IF(SUM('Facturación-801 (energía)'!B64:G64)=0,0,(SUM('COMER DISTR Y AP-101'!B84:G84)+SUM('COMER DISTR Y AP-103'!B84:G84)+SUM('PERD DISTR Y GEN-201'!B84:G84)+SUM('ALUMB PUB-604'!B84:G84)+SUM('TRANSMISION-304'!B84:G84)+SUM('PERD TRANS-404'!B84:G84)+SUM('GENERACION-504'!B84:G84)+SUM('GENERACION-504'!B171:G171)+SUM('GENERACION-504 (extra)'!B72:G72))/SUM('Facturación-801 (energía)'!B64:G64)) -> 0.206127081 | F11: 0.0004151096297
A12: BTD (50,001-más) | C12: =+IF(SUM('Facturación-801 (energía)'!B71:G71)=0,0,(SUM('COMER DISTR Y AP-102'!B91:G91)+SUM('COMER DISTR Y AP-104'!B91:G91)+SUM('PERD DISTR Y GEN-202'!B91:G91)+SUM('ALUMB PUB-603'!B91:G91)+SUM('TRANSMISION-305'!B91:G91)+SUM('PERD TRANS-405'!B91:G91)+SUM('GENERACION-505'!B91:G91)+SUM('GENERACION-505'!B178:G178))/SUM('Facturación-801 (energía)'!B71:G71)) -> 0.2217905033 | E12: =+IF(SUM('Facturación-801 (energía)'!B71:G71)=0,0,(SUM('COMER DISTR Y AP-101'!B91:G91)+SUM('COMER DISTR Y AP-103'!B91:G91)+SUM('PERD DISTR Y GEN-201'!B91:G91)+SUM('ALUMB PUB-604'!B91:G91)+SUM('TRANSMISION-304'!B91:G91)+SUM('PERD TRANS-404'!B91:G91)+SUM('GENERACION-504'!B91:G91)+SUM('GENERACION-504'!B178:G178)+SUM('GENERACION-504 (extra)'!B79:G79))/SUM('Facturación-801 (energía)'!B71:G71)) -> 0.2162616793 | F12: -0.02492813674
A13: BTH | C13: =+IF(SUM('Facturación-801 (energía)'!B42:G42)=0,0,(SUM('COMER DISTR Y AP-102'!B69:G69)+SUM('COMER DISTR Y AP-104'!B69:G69)+SUM('PERD DISTR Y GEN-202'!B69:G69)+SUM('ALUMB PUB-603'!B69:G69)+SUM('TRANSMISION-305'!B69:G69)+SUM('PERD TRANS-405'!B69:G69)+SUM('GENERACION-505'!B69:G69)+SUM('GENERACION-505'!B156:G156))/SUM('Facturación-801 (energía)'!B42:G42)) -> 0.2302071065 | E13: =+IF(SUM('Facturación-801 (energía)'!B42:G42)=0,0,(SUM('COMER DISTR Y AP-101'!B69:G69)+SUM('COMER DISTR Y AP-103'!B69:G69)+SUM('PERD DISTR Y GEN-201'!B69:G69)+SUM('ALUMB PUB-604'!B69:G69)+SUM('TRANSMISION-304'!B69:G69)+SUM('PERD TRANS-404'!B69:G69)+SUM('GENERACION-504'!B69:G69)+SUM('GENERACION-504'!B156:G156)+SUM('GENERACION-504 (extra)'!B57:G57))/SUM('Facturación-801 (energía)'!B42:G42)) -> 0.2249550673 | F13: -0.02281440964
A14: MTD (0-10,000) | C14: =+IF(SUM('Facturación-801 (energía)'!B20:G20)=0,0,(SUM('COMER DISTR Y AP-102'!B47:G47)+SUM('COMER DISTR Y AP-104'!B47:G47)+SUM('PERD DISTR Y GEN-202'!B47:G47)+SUM('ALUMB PUB-603'!B47:G47)+SUM('TRANSMISION-305'!B47:G47)+SUM('PERD TRANS-405'!B47:G47)+SUM('GENERACION-505'!B47:G47)+SUM('GENERACION-505'!B134:G134))/SUM('Facturación-801 (energía)'!B20:G20)) -> 0.2888092269 | E14: =+IF(SUM('Facturación-801 (energía)'!B20:G20)=0,0,(SUM('COMER DISTR Y AP-101'!B47:G47)+SUM('COMER DISTR Y AP-103'!B47:G47)+SUM('PERD DISTR Y GEN-201'!B47:G47)+SUM('ALUMB PUB-604'!B47:G47)+SUM('TRANSMISION-304'!B47:G47)+SUM('PERD TRANS-404'!B47:G47)+SUM('GENERACION-504'!B47:G47)+SUM('GENERACION-504'!B134:G134)+SUM('GENERACION-504 (extra)'!B35:G35))/SUM('Facturación-801 (energía)'!B20:G20)) -> 0.3323458262 | F14: 0.1507451811
A15: MTD (10,001-30,000) | C15: =+IF(SUM('Facturación-801 (energía)'!B25:G25)=0,0,(SUM('COMER DISTR Y AP-102'!B52:G52)+SUM('COMER DISTR Y AP-104'!B52:G52)+SUM('PERD DISTR Y GEN-202'!B52:G52)+SUM('ALUMB PUB-603'!B52:G52)+SUM('TRANSMISION-305'!B52:G52)+SUM('PERD TRANS-405'!B52:G52)+SUM('GENERACION-505'!B52:G52)+SUM('GENERACION-505'!B139:G139))/SUM('Facturación-801 (energía)'!B25:G25)) -> 0.223301051 | E15: =+IF(SUM('Facturación-801 (energía)'!B25:G25)=0,0,(SUM('COMER DISTR Y AP-101'!B52:G52)+SUM('COMER DISTR Y AP-103'!B52:G52)+SUM('PERD DISTR Y GEN-201'!B52:G52)+SUM('ALUMB PUB-604'!B52:G52)+SUM('TRANSMISION-304'!B52:G52)+SUM('PERD TRANS-404'!B52:G52)+SUM('GENERACION-504'!B52:G52)+SUM('GENERACION-504'!B139:G139)+SUM('GENERACION-504 (extra)'!B40:G40))/SUM('Facturación-801 (energía)'!B25:G25)) -> 0.2369995802 | F15: 0.06134556551
A16: MTD (30,001-50,000) | C16: =+IF(SUM('Facturación-801 (energía)'!B30:G30)=0,0,(SUM('COMER DISTR Y AP-102'!B57:G57)+SUM('COMER DISTR Y AP-104'!B57:G57)+SUM('PERD DISTR Y GEN-202'!B57:G57)+SUM('ALUMB PUB-603'!B57:G57)+SUM('TRANSMISION-305'!B57:G57)+SUM('PERD TRANS-405'!B57:G57)+SUM('GENERACION-505'!B57:G57)+SUM('GENERACION-505'!B144:G144))/SUM('Facturación-801 (energía)'!B30:G30)) -> 0.2216456363 | E16: =+IF(SUM('Facturación-801 (energía)'!B30:G30)=0,0,(SUM('COMER DISTR Y AP-101'!B57:G57)+SUM('COMER DISTR Y AP-103'!B57:G57)+SUM('PERD DISTR Y GEN-201'!B57:G57)+SUM('ALUMB PUB-604'!B57:G57)+SUM('TRANSMISION-304'!B57:G57)+SUM('PERD TRANS-404'!B57:G57)+SUM('GENERACION-504'!B57:G57)+SUM('GENERACION-504'!B144:G144)+SUM('GENERACION-504 (extra)'!B45:G45))/SUM('Facturación-801 (energía)'!B30:G30)) -> 0.2343697719 | F16: 0.05740756202
A17: MTD (50,001-más) | C17: =+IF(SUM('Facturación-801 (energía)'!B35:G35)=0,0,(SUM('COMER DISTR Y AP-102'!B62:G62)+SUM('COMER DISTR Y AP-104'!B62:G62)+SUM('PERD DISTR Y GEN-202'!B62:G62)+SUM('ALUMB PUB-603'!B62:G62)+SUM('TRANSMISION-305'!B62:G62)+SUM('PERD TRANS-405'!B62:G62)+SUM('GENERACION-505'!B62:G62)+SUM('GENERACION-505'!B149:G149))/SUM('Facturación-801 (energía)'!B35:G35)) -> 0.2000368769 | E17: =+IF(SUM('Facturación-801 (energía)'!B35:G35)=0,0,(SUM('COMER DISTR Y AP-101'!B62:G62)+SUM('COMER DISTR Y AP-103'!B62:G62)+SUM('PERD DISTR Y GEN-201'!B62:G62)+SUM('ALUMB PUB-604'!B62:G62)+SUM('TRANSMISION-304'!B62:G62)+SUM('PERD TRANS-404'!B62:G62)+SUM('GENERACION-504'!B62:G62)+SUM('GENERACION-504'!B149:G149)+SUM('GENERACION-504 (extra)'!B50:G50))/SUM('Facturación-801 (energía)'!B35:G35)) -> 0.2025009208 | F17: 0.01231794854
A18: MTH | C18: =+IF(SUM('Facturación-801 (energía)'!B14:G14)=0,0,(SUM('COMER DISTR Y AP-102'!B46:G46)+SUM('COMER DISTR Y AP-104'!B46:G46)+SUM('PERD DISTR Y GEN-202'!B46:G46)+SUM('ALUMB PUB-603'!B46:G46)+SUM('TRANSMISION-305'!B46:G46)+SUM('PERD TRANS-405'!B46:G46)+SUM('GENERACION-505'!B46:G46)+SUM('GENERACION-505'!B133:G133))/SUM('Facturación-801 (energía)'!B14:G14)) -> 0.204572701 | E18: =+IF(SUM('Facturación-801 (energía)'!B14:G14)=0,0,(SUM('COMER DISTR Y AP-101'!B46:G46)+SUM('COMER DISTR Y AP-103'!B46:G46)+SUM('PERD DISTR Y GEN-201'!B46:G46)+SUM('ALUMB PUB-604'!B46:G46)+SUM('TRANSMISION-304'!B46:G46)+SUM('PERD TRANS-404'!B46:G46)+SUM('GENERACION-504'!B46:G46)+SUM('GENERACION-504'!B133:G133)+SUM('GENERACION-504 (extra)'!B34:G34))/SUM('Facturación-801 (energía)'!B14:G14)) -> 0.1805072544 | F18: -0.1176376246
A19: ATD | C19: =+IF(SUM('Facturación-801 (energía)'!B11:G11)=0,0,(SUM('COMER DISTR Y AP-102'!B43:G43)+SUM('COMER DISTR Y AP-104'!B43:G43)+SUM('PERD DISTR Y GEN-202'!B43:G43)+SUM('ALUMB PUB-603'!B43:G43)+SUM('TRANSMISION-305'!B43:G43)+SUM('PERD TRANS-405'!B43:G43)+SUM('GENERACION-505'!B43:G43)+SUM('GENERACION-505'!B130:G130))/SUM('Facturación-801 (energía)'!B11:G11)) -> 0.1829115077 | E19: =+IF(SUM('Facturación-801 (energía)'!B11:G11)=0,0,(SUM('COMER DISTR Y AP-101'!B43:G43)+SUM('COMER DISTR Y AP-103'!B43:G43)+SUM('PERD DISTR Y GEN-201'!B43:G43)+SUM('ALUMB PUB-604'!B43:G43)+SUM('TRANSMISION-304'!B43:G43)+SUM('PERD TRANS-404'!B43:G43)+SUM('GENERACION-504'!B43:G43)+SUM('GENERACION-504'!B130:G130)+SUM('GENERACION-504 (extra)'!B31:G31))/SUM('Facturación-801 (energía)'!B11:G11)) -> 0.208803781 | F19: 0.1415562834
A20: ATH | C20: =+IF(SUM('Facturación-801 (energía)'!B10:G10)=0,0,(SUM('COMER DISTR Y AP-102'!B42:G42)+SUM('COMER DISTR Y AP-104'!B42:G42)+SUM('PERD DISTR Y GEN-202'!B42:G42)+SUM('ALUMB PUB-603'!B42:G42)+SUM('TRANSMISION-305'!B42:G42)+SUM('PERD TRANS-405'!B42:G42)+SUM('GENERACION-505'!B42:G42)+SUM('GENERACION-505'!B129:G129))/SUM('Facturación-801 (energía)'!B10:G10)) -> 0 | E20: =+IF(SUM('Facturación-801 (energía)'!B10:G10)=0,0,(SUM('COMER DISTR Y AP-101'!B42:G42)+SUM('COMER DISTR Y AP-103'!B42:G42)+SUM('PERD DISTR Y GEN-201'!B42:G42)+SUM('ALUMB PUB-604'!B42:G42)+SUM('TRANSMISION-304'!B42:G42)+SUM('PERD TRANS-404'!B42:G42)+SUM('GENERACION-504'!B42:G42)+SUM('GENERACION-504'!B129:G129)+SUM('GENERACION-504 (extra)'!B30:G30))/SUM('Facturación-801 (energía)'!B10:G10)) -> 0 | F20: 0
A21: PREPAGO | C21: =+IF(SUM('Facturación-801 (energía)'!B106:G106)=0,0,(SUM('COMER DISTR Y AP-102'!B123:G123)+SUM('COMER DISTR Y AP-104'!B123:G123)+SUM('PERD DISTR Y GEN-202'!B123:G123)+SUM('ALUMB PUB-603'!B123:G123)+SUM('TRANSMISION-305'!B123:G123)+SUM('PERD TRANS-405'!B123:G123)+SUM('GENERACION-505'!B123:G123)+SUM('GENERACION-505'!B210:G210))/SUM('Facturación-801 (energía)'!B106:G106)) -> 0.15874 | E21: =+IF(SUM('Facturación-801 (energía)'!B106:G106)=0,0,(SUM('COMER DISTR Y AP-101'!B123:G123)+SUM('COMER DISTR Y AP-103'!B123:G123)+SUM('PERD DISTR Y GEN-201'!B123:G123)+SUM('ALUMB PUB-604'!B123:G123)+SUM('TRANSMISION-304'!B123:G123)+SUM('PERD TRANS-404'!B123:G123)+SUM('GENERACION-504'!B123:G123)+SUM('GENERACION-504'!B210:G210)+SUM('GENERACION-504 (extra)'!B107:G107))/SUM('Facturación-801 (energía)'!B106:G106)) -> 0.19132 | F21: 0.205241275
A22: BTSH_1 | C22: =+IF(SUM('Facturación-801 (energía)'!$B$533:$G$533)=0,0, (SUM('COMER DISTR Y AP-102'!B120:G120)+ SUM('COMER DISTR Y AP-104'!B120:G120)+ SUM('PERD DISTR Y GEN-202'!B120:G120)+ SUM('ALUMB PUB-603'!B120:G120)+ SUM('TRANSMISION-305'!B120:G120)+ SUM('PERD TRANS-405'!B120:G120)+ SUM('GENERACION-505'!B120:G120)+ SUM('GENERACION-505'!B207:G207))/SUM('Facturación-801 (energía)'!$B$533:$G$533)) -> 0.1377894448 | E22: =+IF(SUM('Facturación-801 (energía)'!$B$533:$G$533)=0,0, (SUM('COMER DISTR Y AP-101'!B120:G120)+ SUM('COMER DISTR Y AP-103'!B120:G120)+ SUM('PERD DISTR Y GEN-201'!B120:G120)+ SUM('ALUMB PUB-604'!B120:G120)+ SUM('TRANSMISION-304'!B120:G120)+ SUM('PERD TRANS-404'!B120:G120)+ SUM('GENERACION-504'!B120:G120)+ SUM('GENERACION-504'!B207:G207))/SUM('Facturación-801 (energía)'!$B$533:$G$533)) -> 0.2072668197 | F22: 0.504228571
A23: BTSH_2 | C23: =+IF(SUM('Facturación-801 (energía)'!$B$537:$G$537)=0,0, (SUM('COMER DISTR Y AP-102'!B121:G121)+ SUM('COMER DISTR Y AP-104'!B121:G121)+ SUM('PERD DISTR Y GEN-202'!B121:G121)+ SUM('ALUMB PUB-603'!B121:G121)+ SUM('TRANSMISION-305'!B121:G121)+ SUM('PERD TRANS-405'!B121:G121)+ SUM('GENERACION-505'!B121:G121)+ SUM('GENERACION-505'!B208:G208))/SUM('Facturación-801 (energía)'!$B$537:$G$537)) -> 0 | E23: =+IF(SUM('Facturación-801 (energía)'!$B$537:$G$537)=0,0, (SUM('COMER DISTR Y AP-101'!B121:G121)+ SUM('COMER DISTR Y AP-103'!B121:G121)+ SUM('PERD DISTR Y GEN-201'!B121:G121)+ SUM('ALUMB PUB-604'!B121:G121)+ SUM('TRANSMISION-304'!B121:G121)+ SUM('PERD TRANS-404'!B121:G121)+ SUM('GENERACION-504'!B121:G121)+ SUM('GENERACION-504'!B208:G208))/SUM('Facturación-801 (energía)'!$B$537:$G$537)) -> 0 | F23: 0
A24: BTSH_3 | C24: =+IF(SUM('Facturación-801 (energía)'!$B$541:$G$541)=0,0, (SUM('COMER DISTR Y AP-102'!B122:G122)+ SUM('COMER DISTR Y AP-104'!B122:G122)+ SUM('PERD DISTR Y GEN-202'!B122:G122)+ SUM('ALUMB PUB-603'!B122:G122)+ SUM('TRANSMISION-305'!B122:G122)+ SUM('PERD TRANS-405'!B122:G122)+ SUM('GENERACION-505'!B122:G122)+ SUM('GENERACION-505'!B209:G209))/SUM('Facturación-801 (energía)'!$B$541:$G$541)) -> 0 | E24: =+IF(SUM('Facturación-801 (energía)'!$B$541:$G$541)=0,0, (SUM('COMER DISTR Y AP-101'!B122:G122)+ SUM('COMER DISTR Y AP-103'!B122:G122)+ SUM('PERD DISTR Y GEN-201'!B122:G122)+ SUM('ALUMB PUB-604'!B122:G122)+ SUM('TRANSMISION-304'!B122:G122)+ SUM('PERD TRANS-404'!B122:G122)+ SUM('GENERACION-504'!B122:G122)+ SUM('GENERACION-504'!B209:G209))/SUM('Facturación-801 (energía)'!$B$541:$G$541)) -> 0 | F24: 0
A25: Precio Promedio | C25: =+IF(SUM('Facturación-801 (energía)'!B107:G107)=0,0,(SUM('COMER DISTR Y AP-102'!B124:G124)+SUM('COMER DISTR Y AP-104'!B124:G124)+SUM('PERD DISTR Y GEN-202'!B124:G124)+SUM('ALUMB PUB-603'!B124:G124)+SUM('TRANSMISION-305'!B124:G124)+SUM('PERD TRANS-405'!B124:G124)+SUM('GENERACION-505'!B124:G124)+SUM('GENERACION-505'!B211:G211)+SUM('COMER DISTR Y AP-102'!B182:G182)+SUM('COMER DISTR Y AP-104'!B182:G182)+SUM('PERD DISTR Y GEN-202'!B182:G182)+SUM('ALUMB PUB-603'!B182:G182)+SUM('TRANSMISION-305'!B182:G182)+SUM('PERD TRANS-405'!B149:G149)+SUM('GENERACION-505'!B397:G397)+SUM('GENERACION-505'!B422:G422))/(SUM('Facturación-801 (energía)'!B107:G107)+SUM('Facturación-801 (energía)'!B457:G457)+SUM('Facturación-801 (energía)'!B545:G545)-SUM('Facturación-801 (energía)'!B455:G455))) -> 0.2017862457 | E25: =+IF(SUM('Facturación-801 (energía)'!B107:G107)=0,0,(SUM('COMER DISTR Y AP-101'!B124:G124)+SUM('COMER DISTR Y AP-103'!B124:G124)+SUM('PERD DISTR Y GEN-201'!B124:G124)+SUM('ALUMB PUB-604'!B124:G124)+SUM('TRANSMISION-304'!B124:G124)+SUM('PERD TRANS-404'!B124:G124)+SUM('GENERACION-504'!B124:G124)+SUM('GENERACION-504'!B211:G211)+SUM('COMER DISTR Y AP-101'!B182:G182)+SUM('COMER DISTR Y AP-103'!B182:G182)+SUM('PERD DISTR Y GEN-201'!B182:G182)+SUM('ALUMB PUB-604'!B182:G182)+SUM('TRANSMISION-304'!B182:G182)+SUM('PERD TRANS-404'!B149:G149)+SUM('GENERACION-504'!B397:G397)+SUM('GENERACION-504'!B422:G422)+SUM('GENERACION-504 (extra)'!B108:G108,'GENERACION-504 (extra)'!B134:G134))/(SUM('Facturación-801 (energía)'!B107:G107)+SUM('Facturación-801 (energía)'!B457:G457)+SUM('Facturación-801 (energía)'!B545:G545)-SUM('Facturación-801 (energía)'!B455:G455))) -> 0.2081083191 | F25: =+E25/C25-1 -> 0.0313305467
A26: Grandes Clientes | C26: =+IF(SUM('Facturación-801 (energía)'!B$376:G$376,'Facturación-801 (energía)'!B$422:G$422)=0,0,(SUM('COMER DISTR Y AP-102'!B157:G157)+SUM('COMER DISTR Y AP-104'!B157:G157)+SUM('PERD DISTR Y GEN-202'!B157:G157)+SUM('ALUMB PUB-603'!B157:G157)+SUM('TRANSMISION-305'!B157:G157)+SUM('GENERACION-505'!B331:G331)+SUM('GENERACION-505'!B364:G364))/SUM('Facturación-801 (energía)'!B$376:G$376,'Facturación-801 (energía)'!B$422:G$422)) -> 0.07434966883 | E26: =+IF(SUM('Facturación-801 (energía)'!B$376:G$376,'Facturación-801 (energía)'!B$422:G$422)=0,0,(SUM('COMER DISTR Y AP-101'!B157:G157)+SUM('COMER DISTR Y AP-103'!B157:G157)+SUM('PERD DISTR Y GEN-201'!B157:G157)+SUM('ALUMB PUB-604'!B157:G157)+SUM('TRANSMISION-304'!B157:G157)+SUM('GENERACION-504'!B331:G331)+SUM('GENERACION-504'!B364:G364))/SUM('Facturación-801 (energía)'!B$376:G$376,'Facturación-801 (energía)'!B$422:G$422)) -> 0.0982529026 | F26: =+IF(C26=0,0,E26/C26-1) -> 0.321497515
A27: Precio Promedio de Total | C27: =+IF(SUM('Facturación-801 (energía)'!B107:G107)=0,0,(SUM('COMER DISTR Y AP-102'!B124:G124)+SUM('COMER DISTR Y AP-104'!B124:G124)+SUM('PERD DISTR Y GEN-202'!B124:G124)+SUM('ALUMB PUB-603'!B124:G124)+SUM('TRANSMISION-305'!B124:G124)+SUM('PERD TRANS-405'!B124:G124)+SUM('GENERACION-505'!B124:G124)+SUM('GENERACION-505'!B211:G211)+SUM('COMER DISTR Y AP-102'!B182:G182)+SUM('COMER DISTR Y AP-104'!B182:G182)+SUM('PERD DISTR Y GEN-202'!B182:G182)+SUM('ALUMB PUB-603'!B182:G182)+SUM('TRANSMISION-305'!B182:G182)+SUM('PERD TRANS-405'!B149:G149)+SUM('GENERACION-505'!B397:G397)+SUM('GENERACION-505'!B422:G422)+SUM('COMER DISTR Y AP-102'!B157:G157)+SUM('COMER DISTR Y AP-104'!B157:G157)+SUM('PERD DISTR Y GEN-202'!B157:G157)+SUM('ALUMB PUB-603'!B157:G157)+SUM('TRANSMISION-305'!B157:G157)+SUM('GENERACION-505'!B331:G331)+SUM('GENERACION-505'!B364:G364))/(SUM('Facturación-801 (energía)'!B107:G107)+SUM('Facturación-801 (energía)'!B457:G457)+SUM('Facturación-801 (energía)'!B545:G545)-SUM('Facturación-801 (energía)'!B455:G455)+SUM('Facturación-801 (energía)'!B$376:G$376,'Facturación-801 (energía)'!B$422:G$422))) -> 0.1782105752 | E27: =+IF(SUM('Facturación-801 (energía)'!B107:G107)=0,0,(SUM('COMER DISTR Y AP-101'!B124:G124)+SUM('COMER DISTR Y AP-103'!B124:G124)+SUM('PERD DISTR Y GEN-201'!B124:G124)+SUM('ALUMB PUB-604'!B124:G124)+SUM('TRANSMISION-304'!B124:G124)+SUM('PERD TRANS-404'!B124:G124)+SUM('GENERACION-504'!B124:G124)+SUM('GENERACION-504'!B211:G211)+SUM('COMER DISTR Y AP-101'!B182:G182)+SUM('COMER DISTR Y AP-103'!B182:G182)+SUM('PERD DISTR Y GEN-201'!B182:G182)+SUM('ALUMB PUB-604'!B182:G182)+SUM('TRANSMISION-304'!B182:G182)+SUM('PERD TRANS-404'!B149:G149)+SUM('GENERACION-504'!B397:G397)+SUM('GENERACION-504'!B422:G422)+SUM('COMER DISTR Y AP-101'!B157:G157)+SUM('COMER DISTR Y AP-103'!B157:G157)+SUM('PERD DISTR Y GEN-201'!B157:G157)+SUM('ALUMB PUB-604'!B157:G157)+SUM('TRANSMISION-304'!B157:G157)+SUM('GENERACION-504'!B331:G331)+SUM('GENERACION-504'!B364:G364)+SUM('GENERACION-504 (extra)'!B108:G108,'GENERACION-504 (extra)'!B134:G134))/(SUM('Facturación-801 (energía)'!B107:G107)+SUM('Facturación-801 (energía)'!B457:G457)+SUM('Facturación-801 (energía)'!B545:G545)-SUM('Facturación-801 (energía)'!B455:G455)+SUM('Facturación-801 (energía)'!B$376:G$376,'Facturación-801 (energía)'!B$422:G$422))) -> 0.18778515 | F27: =+E27/C27-1 -> 0.05372618752
A29: =+A1&" (En B/)" -> EDEMET: Ingreso Estimado por la Aplicación de la Energía Eléctrica de Clientes Regulados por Tarifa (En B/)
A30: Tarifas | B30: =+"Referencia FORM Cargos Tarifarios p-1: "&[1]Fecha!T7&" ventas p: "&[1]Fecha!T4 -> Referencia FORM Cargos Tarifarios p-1: Ene-Jun/2023 ventas p: Jul-Dic/2023 | C30: =+"Semestre p-1 "&[1]Fecha!T$7 -> Semestre p-1 Ene-Jun/2023 | D30: =+"Referencia FORM Cargos Tarifarios p-1: "&[1]Fecha!T4&" ventas p: "&[1]Fecha!T4 -> Referencia FORM Cargos Tarifarios p-1: Jul-Dic/2023 ventas p: Jul-Dic/2023 | E30: =+"Semestre p "&[1]Fecha!T$4 -> Semestre p Jul-Dic/2023 | F30: Variación (%)
A31: BTS (0-300) | B31: (AT102 + AT104 + AT202 + AT603 + AT305 + AT405 + AT505) / AT806 | C31: =+IF(SUM('Facturación-801 (energía)'!B85:G85)=0,0,(SUM('COMER DISTR Y AP-102'!B98:G98)+SUM('COMER DISTR Y AP-104'!B98:G98)+SUM('PERD DISTR Y GEN-202'!B98:G98)+SUM('ALUMB PUB-603'!B98:G98)+SUM('TRANSMISION-305'!B98:G98)+SUM('PERD TRANS-405'!B98:G98)+SUM('GENERACION-505'!B98:G98)+SUM('GENERACION-505'!B185:G185)+SUM('COMER DISTR Y AP-102'!B161:G161)+SUM('COMER DISTR Y AP-104'!B161:G161)+SUM('PERD DISTR Y GEN-202'!B161:G161)+SUM('ALUMB PUB-603'!B161:G161)+SUM('TRANSMISION-305'!B161:G161)+SUM('PERD TRANS-405'!B128:G128)+SUM('GENERACION-505'!B376:G376)+SUM('GENERACION-505'!B401:G401))) -> 50208698.5 | D31: (AT101 + AT103 + AT201 + AT604 +AT304 + AT404 + AT504) / AT806 | E31: =+IF(SUM('Facturación-801 (energía)'!B85:G85)=0,0,(SUM('COMER DISTR Y AP-101'!B98:G98)+SUM('COMER DISTR Y AP-103'!B98:G98)+SUM('PERD DISTR Y GEN-201'!B98:G98)+SUM('ALUMB PUB-604'!B98:G98)+SUM('TRANSMISION-304'!B98:G98)+SUM('PERD TRANS-404'!B98:G98)+SUM('GENERACION-504'!B98:G98)+SUM('GENERACION-504'!B185:G185)+SUM('COMER DISTR Y AP-101'!B161:G161)+SUM('COMER DISTR Y AP-103'!B161:G161)+SUM('PERD DISTR Y GEN-201'!B161:G161)+SUM('ALUMB PUB-604'!B161:G161)+SUM('TRANSMISION-304'!B161:G161)+SUM('PERD TRANS-404'!B128:G128)+SUM('GENERACION-504'!B376:G376)+SUM('GENERACION-504'!B401:G401))+SUM('GENERACION-504 (extra)'!B86:G86,'GENERACION-504 (extra)'!B113:G113)) -> 51979280.53 | F31: =+IF(C31=0,0,E31/C31-1) -> 0.035264448
A32: BTS (301-750) | C32: =+IF(SUM('Facturación-801 (energía)'!B92:G92)=0,0,(SUM('COMER DISTR Y AP-102'!B105:G105)+SUM('COMER DISTR Y AP-104'!B105:G105)+SUM('PERD DISTR Y GEN-202'!B105:G105)+SUM('ALUMB PUB-603'!B105:G105)+SUM('TRANSMISION-305'!B105:G105)+SUM('PERD TRANS-405'!B105:G105)+SUM('GENERACION-505'!B105:G105)+SUM('GENERACION-505'!B192:G192)+SUM('COMER DISTR Y AP-102'!B168:G168)+SUM('COMER DISTR Y AP-104'!B168:G168)+SUM('PERD DISTR Y GEN-202'!B168:G168)+SUM('ALUMB PUB-603'!B168:G168)+SUM('TRANSMISION-305'!B168:G168)+SUM('PERD TRANS-405'!B135:G135)+SUM('GENERACION-505'!B383:G383)+SUM('GENERACION-505'!B408:G408))) -> 60079877.22 | E32: =+IF(SUM('Facturación-801 (energía)'!B92:G92)=0,0,(SUM('COMER DISTR Y AP-101'!B105:G105)+SUM('COMER DISTR Y AP-103'!B105:G105)+SUM('PERD DISTR Y GEN-201'!B105:G105)+SUM('ALUMB PUB-604'!B105:G105)+SUM('TRANSMISION-304'!B105:G105)+SUM('PERD TRANS-404'!B105:G105)+SUM('GENERACION-504'!B105:G105)+SUM('GENERACION-504'!B192:G192)+SUM('COMER DISTR Y AP-101'!B168:G168)+SUM('COMER DISTR Y AP-103'!B168:G168)+SUM('PERD DISTR Y GEN-201'!B168:G168)+SUM('ALUMB PUB-604'!B168:G168)+SUM('TRANSMISION-304'!B168:G168)+SUM('PERD TRANS-404'!B135:G135)+SUM('GENERACION-504'!B383:G383)+SUM('GENERACION-504'!B408:G408))+SUM('GENERACION-504 (extra)'!B93:G93,'GENERACION-504 (extra)'!B120:G120)) -> 54871098.38 | F32: -0.08669756134
A33: BTS (751-más) | C33: =+IF(SUM('Facturación-801 (energía)'!B99:G99)=0,0,(SUM('COMER DISTR Y AP-102'!B112:G112)+SUM('COMER DISTR Y AP-104'!B112:G112)+SUM('PERD DISTR Y GEN-202'!B112:G112)+SUM('ALUMB PUB-603'!B112:G112)+SUM('TRANSMISION-305'!B112:G112)+SUM('PERD TRANS-405'!B112:G112)+SUM('GENERACION-505'!B112:G112)+SUM('GENERACION-505'!B199:G199)+SUM('COMER DISTR Y AP-102'!B175:G175)+SUM('COMER DISTR Y AP-104'!B175:G175)+SUM('PERD DISTR Y GEN-202'!B175:G175)+SUM('ALUMB PUB-603'!B175:G175)+SUM('TRANSMISION-305'!B175:G175)+SUM('PERD TRANS-405'!B142:G142)+SUM('GENERACION-505'!B390:G390)+SUM('GENERACION-505'!B415:G415))) -> 102821887.3 | E33: =+IF(SUM('Facturación-801 (energía)'!B99:G99)=0,0,(SUM('COMER DISTR Y AP-101'!B112:G112)+SUM('COMER DISTR Y AP-103'!B112:G112)+SUM('PERD DISTR Y GEN-201'!B112:G112)+SUM('ALUMB PUB-604'!B112:G112)+SUM('TRANSMISION-304'!B112:G112)+SUM('PERD TRANS-404'!B112:G112)+SUM('GENERACION-504'!B112:G112)+SUM('GENERACION-504'!B199:G199)+SUM('COMER DISTR Y AP-101'!B175:G175)+SUM('COMER DISTR Y AP-103'!B175:G175)+SUM('PERD DISTR Y GEN-201'!B175:G175)+SUM('ALUMB PUB-604'!B175:G175)+SUM('TRANSMISION-304'!B175:G175)+SUM('PERD TRANS-404'!B142:G142)+SUM('GENERACION-504'!B390:G390)+SUM('GENERACION-504'!B415:G415))+SUM('GENERACION-504 (extra)'!B100:G100,'GENERACION-504 (extra)'!B127:G127)) -> 114030425.2 | F33: 0.1090092605
A34: BTD (0-10,000) | C34: =+IF(SUM('Facturación-801 (energía)'!B50:G50)=0,0,(SUM('COMER DISTR Y AP-102'!B70:G70)+SUM('COMER DISTR Y AP-104'!B70:G70)+SUM('PERD DISTR Y GEN-202'!B70:G70)+SUM('ALUMB PUB-603'!B70:G70)+SUM('TRANSMISION-305'!B70:G70)+SUM('PERD TRANS-405'!B70:G70)+SUM('GENERACION-505'!B70:G70)+SUM('GENERACION-505'!B157:G157))) -> 35009767.72 | E34: =+IF(SUM('Facturación-801 (energía)'!B50:G50)=0,0,(SUM('COMER DISTR Y AP-101'!B70:G70)+SUM('COMER DISTR Y AP-103'!B70:G70)+SUM('PERD DISTR Y GEN-201'!B70:G70)+SUM('ALUMB PUB-604'!B70:G70)+SUM('TRANSMISION-304'!B70:G70)+SUM('PERD TRANS-404'!B70:G70)+SUM('GENERACION-504'!B70:G70)+SUM('GENERACION-504'!B157:G157))+SUM('GENERACION-504 (extra)'!B58:G58)) -> 36965024.35 | F34: 0.05584888882
A35: BTD (10,001-30,000) | C35: =+IF(SUM('Facturación-801 (energía)'!B57:G57)=0,0,(SUM('COMER DISTR Y AP-102'!B77:G77)+SUM('COMER DISTR Y AP-104'!B77:G77)+SUM('PERD DISTR Y GEN-202'!B77:G77)+SUM('ALUMB PUB-603'!B77:G77)+SUM('TRANSMISION-305'!B77:G77)+SUM('PERD TRANS-405'!B77:G77)+SUM('GENERACION-505'!B77:G77)+SUM('GENERACION-505'!B164:G164))) -> 40321365.44 | E35: =+IF(SUM('Facturación-801 (energía)'!B57:G57)=0,0,(SUM('COMER DISTR Y AP-101'!B77:G77)+SUM('COMER DISTR Y AP-103'!B77:G77)+SUM('PERD DISTR Y GEN-201'!B77:G77)+SUM('ALUMB PUB-604'!B77:G77)+SUM('TRANSMISION-304'!B77:G77)+SUM('PERD TRANS-404'!B77:G77)+SUM('GENERACION-504'!B77:G77)+SUM('GENERACION-504'!B164:G164))+SUM('GENERACION-504 (extra)'!B65:G65)) -> 40855551.49 | F35: 0.01324821345
A36: BTD (30,001-50,000) | C36: =+IF(SUM('Facturación-801 (energía)'!B64:G64)=0,0,(SUM('COMER DISTR Y AP-102'!B84:G84)+SUM('COMER DISTR Y AP-104'!B84:G84)+SUM('PERD DISTR Y GEN-202'!B84:G84)+SUM('ALUMB PUB-603'!B84:G84)+SUM('TRANSMISION-305'!B84:G84)+SUM('PERD TRANS-405'!B84:G84)+SUM('GENERACION-505'!B84:G84)+SUM('GENERACION-505'!B171:G171))) -> 17470226.04 | E36: =+IF(SUM('Facturación-801 (energía)'!B64:G64)=0,0,(SUM('COMER DISTR Y AP-101'!B84:G84)+SUM('COMER DISTR Y AP-103'!B84:G84)+SUM('PERD DISTR Y GEN-201'!B84:G84)+SUM('ALUMB PUB-604'!B84:G84)+SUM('TRANSMISION-304'!B84:G84)+SUM('PERD TRANS-404'!B84:G84)+SUM('GENERACION-504'!B84:G84)+SUM('GENERACION-504'!B171:G171))+SUM('GENERACION-504 (extra)'!B72:G72)) -> 17477478.1 | F36: 0.0004151096297
A37: BTD (50,001-más) | C37: =+IF(SUM('Facturación-801 (energía)'!B71:G71)=0,0,(SUM('COMER DISTR Y AP-102'!B91:G91)+SUM('COMER DISTR Y AP-104'!B91:G91)+SUM('PERD DISTR Y GEN-202'!B91:G91)+SUM('ALUMB PUB-603'!B91:G91)+SUM('TRANSMISION-305'!B91:G91)+SUM('PERD TRANS-405'!B91:G91)+SUM('GENERACION-505'!B91:G91)+SUM('GENERACION-505'!B178:G178))) -> 32835669.04 | E37: =+IF(SUM('Facturación-801 (energía)'!B71:G71)=0,0,(SUM('COMER DISTR Y AP-101'!B91:G91)+SUM('COMER DISTR Y AP-103'!B91:G91)+SUM('PERD DISTR Y GEN-201'!B91:G91)+SUM('ALUMB PUB-604'!B91:G91)+SUM('TRANSMISION-304'!B91:G91)+SUM('PERD TRANS-404'!B91:G91)+SUM('GENERACION-504'!B91:G91)+SUM('GENERACION-504'!B178:G178))+SUM('GENERACION-504 (extra)'!B79:G79)) -> 32017137 | F37: -0.02492813674
A38: BTH | C38: =+IF(SUM('Facturación-801 (energía)'!B42:G42)=0,0,(SUM('COMER DISTR Y AP-102'!B69:G69)+SUM('COMER DISTR Y AP-104'!B69:G69)+SUM('PERD DISTR Y GEN-202'!B69:G69)+SUM('ALUMB PUB-603'!B69:G69)+SUM('TRANSMISION-305'!B69:G69)+SUM('PERD TRANS-405'!B69:G69)+SUM('GENERACION-505'!B69:G69)+SUM('GENERACION-505'!B156:G156))) -> 1215759.642 | E38: =+IF(SUM('Facturación-801 (energía)'!B42:G42)=0,0,(SUM('COMER DISTR Y AP-101'!B69:G69)+SUM('COMER DISTR Y AP-103'!B69:G69)+SUM('PERD DISTR Y GEN-201'!B69:G69)+SUM('ALUMB PUB-604'!B69:G69)+SUM('TRANSMISION-304'!B69:G69)+SUM('PERD TRANS-404'!B69:G69)+SUM('GENERACION-504'!B69:G69)+SUM('GENERACION-504'!B156:G156))+SUM('GENERACION-504 (extra)'!B57:G57)) -> 1188022.803 | F38: -0.02281440964
A39: MTD (0-10,000) | C39: =+IF(SUM('Facturación-801 (energía)'!B20:G20)=0,0,(SUM('COMER DISTR Y AP-102'!B47:G47)+SUM('COMER DISTR Y AP-104'!B47:G47)+SUM('PERD DISTR Y GEN-202'!B47:G47)+SUM('ALUMB PUB-603'!B47:G47)+SUM('TRANSMISION-305'!B47:G47)+SUM('PERD TRANS-405'!B47:G47)+SUM('GENERACION-505'!B47:G47)+SUM('GENERACION-505'!B134:G134))) -> 1267732.145 | E39: =+IF(SUM('Facturación-801 (energía)'!B20:G20)=0,0,(SUM('COMER DISTR Y AP-101'!B47:G47)+SUM('COMER DISTR Y AP-103'!B47:G47)+SUM('PERD DISTR Y GEN-201'!B47:G47)+SUM('ALUMB PUB-604'!B47:G47)+SUM('TRANSMISION-304'!B47:G47)+SUM('PERD TRANS-404'!B47:G47)+SUM('GENERACION-504'!B47:G47)+SUM('GENERACION-504'!B134:G134))+SUM('GENERACION-504 (extra)'!B35:G35)) -> 1458836.657 | F39: 0.1507451811
A40: MTD (10,001-30,000) | C40: =+IF(SUM('Facturación-801 (energía)'!B25:G25)=0,0,(SUM('COMER DISTR Y AP-102'!B52:G52)+SUM('COMER DISTR Y AP-104'!B52:G52)+SUM('PERD DISTR Y GEN-202'!B52:G52)+SUM('ALUMB PUB-603'!B52:G52)+SUM('TRANSMISION-305'!B52:G52)+SUM('PERD TRANS-405'!B52:G52)+SUM('GENERACION-505'!B52:G52)+SUM('GENERACION-505'!B139:G139))) -> 2393184.577 | E40: =+IF(SUM('Facturación-801 (energía)'!B25:G25)=0,0,(SUM('COMER DISTR Y AP-101'!B52:G52)+SUM('COMER DISTR Y AP-103'!B52:G52)+SUM('PERD DISTR Y GEN-201'!B52:G52)+SUM('ALUMB PUB-604'!B52:G52)+SUM('TRANSMISION-304'!B52:G52)+SUM('PERD TRANS-404'!B52:G52)+SUM('GENERACION-504'!B52:G52)+SUM('GENERACION-504'!B139:G139))+SUM('GENERACION-504 (extra)'!B40:G40)) -> 2539995.838 | F40: 0.06134556551
A41: MTD (30,001-50,000) | C41: =+IF(SUM('Facturación-801 (energía)'!B30:G30)=0,0,(SUM('COMER DISTR Y AP-102'!B57:G57)+SUM('COMER DISTR Y AP-104'!B57:G57)+SUM('PERD DISTR Y GEN-202'!B57:G57)+SUM('ALUMB PUB-603'!B57:G57)+SUM('TRANSMISION-305'!B57:G57)+SUM('PERD TRANS-405'!B57:G57)+SUM('GENERACION-505'!B57:G57)+SUM('GENERACION-505'!B144:G144))) -> 2573127.634 | E41: =+IF(SUM('Facturación-801 (energía)'!B30:G30)=0,0,(SUM('COMER DISTR Y AP-101'!B57:G57)+SUM('COMER DISTR Y AP-103'!B57:G57)+SUM('PERD DISTR Y GEN-201'!B57:G57)+SUM('ALUMB PUB-604'!B57:G57)+SUM('TRANSMISION-304'!B57:G57)+SUM('PERD TRANS-404'!B57:G57)+SUM('GENERACION-504'!B57:G57)+SUM('GENERACION-504'!B144:G144))+SUM('GENERACION-504 (extra)'!B45:G45)) -> 2720844.618 | F41: 0.05740756202
A42: MTD (50,001-más) | C42: =+IF(SUM('Facturación-801 (energía)'!B35:G35)=0,0,(SUM('COMER DISTR Y AP-102'!B62:G62)+SUM('COMER DISTR Y AP-104'!B62:G62)+SUM('PERD DISTR Y GEN-202'!B62:G62)+SUM('ALUMB PUB-603'!B62:G62)+SUM('TRANSMISION-305'!B62:G62)+SUM('PERD TRANS-405'!B62:G62)+SUM('GENERACION-505'!B62:G62)+SUM('GENERACION-505'!B149:G149))) -> 28529060.34 | E42: =+IF(SUM('Facturación-801 (energía)'!B35:G35)=0,0,(SUM('COMER DISTR Y AP-101'!B62:G62)+SUM('COMER DISTR Y AP-103'!B62:G62)+SUM('PERD DISTR Y GEN-201'!B62:G62)+SUM('ALUMB PUB-604'!B62:G62)+SUM('TRANSMISION-304'!B62:G62)+SUM('PERD TRANS-404'!B62:G62)+SUM('GENERACION-504'!B62:G62)+SUM('GENERACION-504'!B149:G149))+SUM('GENERACION-504 (extra)'!B50:G50)) -> 28880479.84 | F42: 0.01231794854
A43: MTH | C43: =+IF(SUM('Facturación-801 (energía)'!B14:G14)=0,0,(SUM('COMER DISTR Y AP-102'!B46:G46)+SUM('COMER DISTR Y AP-104'!B46:G46)+SUM('PERD DISTR Y GEN-202'!B46:G46)+SUM('ALUMB PUB-603'!B46:G46)+SUM('TRANSMISION-305'!B46:G46)+SUM('PERD TRANS-405'!B46:G46)+SUM('GENERACION-505'!B46:G46)+SUM('GENERACION-505'!B133:G133))) -> 79188.86513 | E43: =+IF(SUM('Facturación-801 (energía)'!B14:G14)=0,0,(SUM('COMER DISTR Y AP-101'!B46:G46)+SUM('COMER DISTR Y AP-103'!B46:G46)+SUM('PERD DISTR Y GEN-201'!B46:G46)+SUM('ALUMB PUB-604'!B46:G46)+SUM('TRANSMISION-304'!B46:G46)+SUM('PERD TRANS-404'!B46:G46)+SUM('GENERACION-504'!B46:G46)+SUM('GENERACION-504'!B133:G133))+SUM('GENERACION-504 (extra)'!B34:G34)) -> 69873.27514 | F43: -0.1176376246
A44: ATD | C44: =+IF(SUM('Facturación-801 (energía)'!B11:G11)=0,0,(SUM('COMER DISTR Y AP-102'!B43:G43)+SUM('COMER DISTR Y AP-104'!B43:G43)+SUM('PERD DISTR Y GEN-202'!B43:G43)+SUM('ALUMB PUB-603'!B43:G43)+SUM('TRANSMISION-305'!B43:G43)+SUM('PERD TRANS-405'!B43:G43)+SUM('GENERACION-505'!B43:G43)+SUM('GENERACION-505'!B130:G130))) -> 2319.317918 | E44: =+IF(SUM('Facturación-801 (energía)'!B11:G11)=0,0,(SUM('COMER DISTR Y AP-101'!B43:G43)+SUM('COMER DISTR Y AP-103'!B43:G43)+SUM('PERD DISTR Y GEN-201'!B43:G43)+SUM('ALUMB PUB-604'!B43:G43)+SUM('TRANSMISION-304'!B43:G43)+SUM('PERD TRANS-404'!B43:G43)+SUM('GENERACION-504'!B43:G43)+SUM('GENERACION-504'!B130:G130))+SUM('GENERACION-504 (extra)'!B31:G31)) -> 2647.631943 | F44: 0.1415562834
A45: ATH | C45: =+IF(SUM('Facturación-801 (energía)'!B10:G10)=0,0,(SUM('COMER DISTR Y AP-102'!B42:G42)+SUM('COMER DISTR Y AP-104'!B42:G42)+SUM('PERD DISTR Y GEN-202'!B42:G42)+SUM('ALUMB PUB-603'!B42:G42)+SUM('TRANSMISION-305'!B42:G42)+SUM('PERD TRANS-405'!B42:G42)+SUM('GENERACION-505'!B42:G42)+SUM('GENERACION-505'!B129:G129))) -> 0 | E45: =+IF(SUM('Facturación-801 (energía)'!B10:G10)=0,0,(SUM('COMER DISTR Y AP-101'!B42:G42)+SUM('COMER DISTR Y AP-103'!B42:G42)+SUM('PERD DISTR Y GEN-201'!B42:G42)+SUM('ALUMB PUB-604'!B42:G42)+SUM('TRANSMISION-304'!B42:G42)+SUM('PERD TRANS-404'!B42:G42)+SUM('GENERACION-504'!B42:G42)+SUM('GENERACION-504'!B129:G129))+SUM('GENERACION-504 (extra)'!B30:G30)) -> 0 | F45: 0
A46: PREPAGO | C46: =+IF(SUM('Facturación-801 (energía)'!B106:G106)=0,0,(SUM('COMER DISTR Y AP-102'!B123:G123)+SUM('COMER DISTR Y AP-104'!B123:G123)+SUM('PERD DISTR Y GEN-202'!B123:G123)+SUM('ALUMB PUB-603'!B123:G123)+SUM('TRANSMISION-305'!B123:G123)+SUM('PERD TRANS-405'!B123:G123)+SUM('GENERACION-505'!B123:G123)+SUM('GENERACION-505'!B210:G210))) -> 889275.5407 | E46: =+IF(SUM('Facturación-801 (energía)'!B106:G106)=0,0,(SUM('COMER DISTR Y AP-101'!B123:G123)+SUM('COMER DISTR Y AP-103'!B123:G123)+SUM('PERD DISTR Y GEN-201'!B123:G123)+SUM('ALUMB PUB-604'!B123:G123)+SUM('TRANSMISION-304'!B123:G123)+SUM('PERD TRANS-404'!B123:G123)+SUM('GENERACION-504'!B123:G123)+SUM('GENERACION-504'!B210:G210))+SUM('GENERACION-504 (extra)'!B107:G107)) -> 1071791.587 | F46: 0.205241275
A47: BTSH_1 | C47: =+IF(SUM('Facturación-801 (energía)'!$B$533:$G$533)=0,0, (SUM('COMER DISTR Y AP-102'!B120:G120)+ SUM('COMER DISTR Y AP-104'!B120:G120)+ SUM('PERD DISTR Y GEN-202'!B120:G120)+ SUM('ALUMB PUB-603'!B120:G120)+ SUM('TRANSMISION-305'!B120:G120)+ SUM('PERD TRANS-405'!B120:G120)+ SUM('GENERACION-505'!B120:G120)+ SUM('GENERACION-505'!B207:G207))) -> 2832426.284 | E47: =+IF(SUM('Facturación-801 (energía)'!$B$533:$G$533)=0,0, (SUM('COMER DISTR Y AP-101'!B120:G120)+ SUM('COMER DISTR Y AP-103'!B120:G120)+ SUM('PERD DISTR Y GEN-201'!B120:G120)+ SUM('ALUMB PUB-604'!B120:G120)+ SUM('TRANSMISION-304'!B120:G120)+ SUM('PERD TRANS-404'!B120:G120)+ SUM('GENERACION-504'!B120:G120)+ SUM('GENERACION-504'!B207:G207))) -> 4260616.541 | F47: 0.504228571
A48: BTSH_2 | C48: =+IF(SUM('Facturación-801 (energía)'!$B$537:$G$537)=0,0, (SUM('COMER DISTR Y AP-102'!B121:G121)+ SUM('COMER DISTR Y AP-104'!B121:G121)+ SUM('PERD DISTR Y GEN-202'!B121:G121)+ SUM('ALUMB PUB-603'!B121:G121)+ SUM('TRANSMISION-305'!B121:G121)+ SUM('PERD TRANS-405'!B121:G121)+ SUM('GENERACION-505'!B121:G121)+ SUM('GENERACION-505'!B208:G208))) -> 0 | E48: =+IF(SUM('Facturación-801 (energía)'!$B$537:$G$537)=0,0, (SUM('COMER DISTR Y AP-101'!B121:G121)+ SUM('COMER DISTR Y AP-103'!B121:G121)+ SUM('PERD DISTR Y GEN-201'!B121:G121)+ SUM('ALUMB PUB-604'!B121:G121)+ SUM('TRANSMISION-304'!B121:G121)+ SUM('PERD TRANS-404'!B121:G121)+ SUM('GENERACION-504'!B121:G121)+ SUM('GENERACION-504'!B208:G208))) -> 0 | F48: 0
A49: BTSH_3 | C49: =+IF(SUM('Facturación-801 (energía)'!$B$541:$G$541)=0,0, (SUM('COMER DISTR Y AP-102'!B122:G122)+ SUM('COMER DISTR Y AP-104'!B122:G122)+ SUM('PERD DISTR Y GEN-202'!B122:G122)+ SUM('ALUMB PUB-603'!B122:G122)+ SUM('TRANSMISION-305'!B122:G122)+ SUM('PERD TRANS-405'!B122:G122)+ SUM('GENERACION-505'!B122:G122)+ SUM('GENERACION-505'!B209:G209))) -> 0 | E49: =+IF(SUM('Facturación-801 (energía)'!$B$541:$G$541)=0,0, (SUM('COMER DISTR Y AP-101'!B122:G122)+ SUM('COMER DISTR Y AP-103'!B122:G122)+ SUM('PERD DISTR Y GEN-201'!B122:G122)+ SUM('ALUMB PUB-604'!B122:G122)+ SUM('TRANSMISION-304'!B122:G122)+ SUM('PERD TRANS-404'!B122:G122)+ SUM('GENERACION-504'!B122:G122)+ SUM('GENERACION-504'!B209:G209))) -> 0 | F49: 0
A50: Precio Promedio de Total | C50: =+IF(SUM('Facturación-801 (energía)'!B107:G107)=0,0,(SUM('COMER DISTR Y AP-102'!B124:G124)+SUM('COMER DISTR Y AP-104'!B124:G124)+SUM('PERD DISTR Y GEN-202'!B124:G124)+SUM('ALUMB PUB-603'!B124:G124)+SUM('TRANSMISION-305'!B124:G124)+SUM('PERD TRANS-405'!B124:G124)+SUM('GENERACION-505'!B124:G124)+SUM('GENERACION-505'!B211:G211)+SUM('COMER DISTR Y AP-102'!B182:G182)+SUM('COMER DISTR Y AP-104'!B182:G182)+SUM('PERD DISTR Y GEN-202'!B182:G182)+SUM('ALUMB PUB-603'!B182:G182)+SUM('TRANSMISION-305'!B182:G182)+SUM('PERD TRANS-405'!B149:G149)+SUM('GENERACION-505'!B397:G397)+SUM('GENERACION-505'!B422:G422))) -> 378529565.6 | E50: =+IF(SUM('Facturación-801 (energía)'!B107:G107)=0,0,(SUM('COMER DISTR Y AP-101'!B124:G124)+SUM('COMER DISTR Y AP-103'!B124:G124)+SUM('PERD DISTR Y GEN-201'!B124:G124)+SUM('ALUMB PUB-604'!B124:G124)+SUM('TRANSMISION-304'!B124:G124)+SUM('PERD TRANS-404'!B124:G124)+SUM('GENERACION-504'!B124:G124)+SUM('GENERACION-504'!B211:G211)+SUM('COMER DISTR Y AP-101'!B182:G182)+SUM('COMER DISTR Y AP-103'!B182:G182)+SUM('PERD DISTR Y GEN-201'!B182:G182)+SUM('ALUMB PUB-604'!B182:G182)+SUM('TRANSMISION-304'!B182:G182)+SUM('PERD TRANS-404'!B149:G149)+SUM('GENERACION-504'!B397:G397)+SUM('GENERACION-504'!B422:G422))+SUM('GENERACION-504 (extra)'!B108:G108,'GENERACION-504 (extra)'!B134:G134)) -> 390389103.9 | F50: =+E50/C50-1 -> 0.0313305467
A51: Grandes Clientes | C51: =+IF(SUM('Facturación-801 (energía)'!B$376:G$376,'Facturación-801 (energía)'!B$422:G$422)=0,0,(SUM('COMER DISTR Y AP-102'!B157:G157)+SUM('COMER DISTR Y AP-104'!B157:G157)+SUM('PERD DISTR Y GEN-202'!B157:G157)+SUM('ALUMB PUB-603'!B157:G157)+SUM('TRANSMISION-305'!B157:G157)+SUM('GENERACION-505'!B331:G331)+SUM('GENERACION-505'!B364:G364))) -> 31659148.4 | E51: =+IF(SUM('Facturación-801 (energía)'!B$376:G$376,'Facturación-801 (energía)'!B$422:G$422)=0,0,(SUM('COMER DISTR Y AP-101'!B157:G157)+SUM('COMER DISTR Y AP-103'!B157:G157)+SUM('PERD DISTR Y GEN-201'!B157:G157)+SUM('ALUMB PUB-604'!B157:G157)+SUM('TRANSMISION-304'!B157:G157)+SUM('GENERACION-504'!B331:G331)+SUM('GENERACION-504'!B364:G364))) -> 41837485.93 | F51: =+IF(C51=0,0,E51/C51-1) -> 0.321497515
A52: Precio Promedio de Total | C52: =+IF(SUM('Facturación-801 (energía)'!B107:G107)=0,0,(SUM('COMER DISTR Y AP-102'!B124:G124)+SUM('COMER DISTR Y AP-104'!B124:G124)+SUM('PERD DISTR Y GEN-202'!B124:G124)+SUM('ALUMB PUB-603'!B124:G124)+SUM('TRANSMISION-305'!B124:G124)+SUM('PERD TRANS-405'!B124:G124)+SUM('GENERACION-505'!B124:G124)+SUM('GENERACION-505'!B211:G211)+SUM('COMER DISTR Y AP-102'!B182:G182)+SUM('COMER DISTR Y AP-104'!B182:G182)+SUM('PERD DISTR Y GEN-202'!B182:G182)+SUM('ALUMB PUB-603'!B182:G182)+SUM('TRANSMISION-305'!B182:G182)+SUM('PERD TRANS-405'!B149:G149)+SUM('GENERACION-505'!B397:G397)+SUM('GENERACION-505'!B422:G422)+SUM('COMER DISTR Y AP-102'!B157:G157)+SUM('COMER DISTR Y AP-104'!B157:G157)+SUM('PERD DISTR Y GEN-202'!B157:G157)+SUM('ALUMB PUB-603'!B157:G157)+SUM('TRANSMISION-305'!B157:G157)+SUM('GENERACION-505'!B331:G331)+SUM('GENERACION-505'!B364:G364))) -> 410188714 | E52: =+IF(SUM('Facturación-801 (energía)'!B107:G107)=0,0,(SUM('COMER DISTR Y AP-101'!B124:G124)+SUM('COMER DISTR Y AP-103'!B124:G124)+SUM('PERD DISTR Y GEN-201'!B124:G124)+SUM('ALUMB PUB-604'!B124:G124)+SUM('TRANSMISION-304'!B124:G124)+SUM('PERD TRANS-404'!B124:G124)+SUM('GENERACION-504'!B124:G124)+SUM('GENERACION-504'!B211:G211)+SUM('COMER DISTR Y AP-101'!B182:G182)+SUM('COMER DISTR Y AP-103'!B182:G182)+SUM('PERD DISTR Y GEN-201'!B182:G182)+SUM('ALUMB PUB-604'!B182:G182)+SUM('TRANSMISION-304'!B182:G182)+SUM('PERD TRANS-404'!B149:G149)+SUM('GENERACION-504'!B397:G397)+SUM('GENERACION-504'!B422:G422)+SUM('COMER DISTR Y AP-101'!B157:G157)+SUM('COMER DISTR Y AP-103'!B157:G157)+SUM('PERD DISTR Y GEN-201'!B157:G157)+SUM('ALUMB PUB-604'!B157:G157)+SUM('TRANSMISION-304'!B157:G157)+SUM('GENERACION-504'!B331:G331)+SUM('GENERACION-504'!B364:G364))+SUM('GENERACION-504 (extra)'!B108:G108,'GENERACION-504 (extra)'!B134:G134)) -> 432226589.8 | F52: =+E52/C52-1 -> 0.05372618752
E54: 400700310.4
E55: 39685751.03
E56: 440386061.4
E58: =+E52-E56 -> -8159471.593

Sheet Tarifas
A1: CARGO TARIFARIO ACTUALIZADO
A2: =+[1]Fecha!$A$1 -> EDEMET
A4: BTS (0-300) | B4: Ene-Jun/2023 | C4: =+[1]Fecha!T4 -> Jul-Dic/2023
A5: Cargo Fijo por los primeros 10 kWh | B5: 2.95 | C5: =+C11 -> 3.05
A6: Cargo por los siguientes kWh de 11-301 | B6: =+B$12+B$15+B$16+B$19+B$20+B$23+B$24+B26 -> 0.15141 | C6: 0.15678
A7: Cargo por los siguientes kWh de 301-750 | B7: 0.20006 | C7: 0.21829
A8: Cargo por los siguientes en exceso a 751 kWh | B8: 0.2359 | C8: 0.30462
A10: Comercialización
A11: - Fijo (Primeros 10 kWh) | B11: 2.95 | C11: =+'RES DE ACT TARIFARIA-1000-T (2)'!L7 -> 3.05 | E11: =+INDIRECT(MID(MID(_xlfn.FORMULATEXT(C11),1,FIND("!",_xlfn.FORMULATEXT(C11))),3,100)&"A"&MID(_xlfn.FORMULATEXT(C11),FIND("!",_xlfn.FORMULATEXT(C11))+2,3)) -> BTS (0-300)
A12: - Energía (Siguientes kWh) | B12: 0.00696 | C12: =+'RES DE ACT TARIFARIA-1000-T (2)'!L23 -> 0.00843 | E12: =+INDIRECT(MID(MID(_xlfn.FORMULATEXT(C12),1,FIND("!",_xlfn.FORMULATEXT(C12))),3,100)&"A"&MID(_xlfn.FORMULATEXT(C12),FIND("!",_xlfn.FORMULATEXT(C12))+2,3)) -> BTS (0-300)
A14: Distribución
A15: - Energía, excluyendo pérdidas | B15: 0.03302 | C15: =+'RES DE ACT TARIFARIA-1000-T (2)'!L40 -> 0.04706 | E15: =+INDIRECT(MID(MID(_xlfn.FORMULATEXT(C15),1,FIND("!",_xlfn.FORMULATEXT(C15))),3,100)&"A"&MID(_xlfn.FORMULATEXT(C15),FIND("!",_xlfn.FORMULATEXT(C15))+2,3)) -> BTS (0-300)
A16: - Pérdidas Energía en Distribución | B16: 0.01209 | C16: =+'RES DE ACT TARIFARIA-1000'!O27+'RES DE ACT TARIFARIA-1000'!O50 -> 0.00893 | E16: =+INDIRECT(MID(MID(_xlfn.FORMULATEXT(C16),1,FIND("!",_xlfn.FORMULATEXT(C16))),3,100)&"A"&MID(_xlfn.FORMULATEXT(C16),FIND("!",_xlfn.FORMULATEXT(C16))+2,FIND("+",_xlfn.FORMULATEXT(C16),5)-FIND("!",_xlfn.FORMULATEXT(C16))-2)) -> BTS (0-300) | F16: =+INDIRECT(MID(MID(_xlfn.FORMULATEXT(C16),FIND("+",_xlfn.FORMULATEXT(C16),5)+1,FIND("!",_xlfn.FORMULATEXT(C16),FIND("!",_xlfn.FORMULATEXT(C16))+5)-FIND("+",_xlfn.FORMULATEXT(C16),5)),1,100)&"A"&MID(_xlfn.FORMULATEXT(C16),FIND("!",_xlfn.FORMULATEXT(C16),FIND("!",_xlfn.FORMULATEXT(C16))+5)+2,10)) -> BTS (0-300)
A18: Alumbrado Público
A19: - Sistema | B19: 0.00153 | C19: =+'RES DE ACT TARIFARIA-1000-T (2)'!L70 -> 0.00142 | E19: =+INDIRECT(MID(MID(_xlfn.FORMULATEXT(C19),1,FIND("!",_xlfn.FORMULATEXT(C19))),3,100)&"A"&MID(_xlfn.FORMULATEXT(C19),FIND("!",_xlfn.FORMULATEXT(C19))+2,3)) -> BTS (0-300)
A20: - Consumo de energía | B20: 0.00248 | C20: =+'RES DE ACT TARIFARIA-1000'!O67 -> 0.00217 | E20: =+INDIRECT(MID(MID(_xlfn.FORMULATEXT(C20),1,FIND("!",_xlfn.FORMULATEXT(C20))),3,100)&"A"&MID(_xlfn.FORMULATEXT(C20),FIND("!",_xlfn.FORMULATEXT(C20))+2,3)) -> BTS (0-300)
A22: Transmisión
A23: - Energía | B23: 0.01197 | C23: =+'RES DE ACT TARIFARIA-1000'!O84 -> 0.0128 | E23: =+INDIRECT(MID(MID(_xlfn.FORMULATEXT(C23),1,FIND("!",_xlfn.FORMULATEXT(C23))),3,100)&"A"&MID(_xlfn.FORMULATEXT(C23),FIND("!",_xlfn.FORMULATEXT(C23))+2,3)) -> BTS (0-300)
A24: - Pérdidas de Energía en Transmisión | B24: 0.00266 | C24: =+'RES DE ACT TARIFARIA-1000'!O129 -> 0.00481 | E24: =+INDIRECT(MID(MID(_xlfn.FORMULATEXT(C24),1,FIND("!",_xlfn.FORMULATEXT(C24))),3,100)&"A"&MID(_xlfn.FORMULATEXT(C24),FIND("!",_xlfn.FORMULATEXT(C24))+2,3)) -> BTS (0-300)
A26: Generación (Siguientes kWh de 11-300) | B26: =+'RES DE ACT TARIFARIA-1000'!I154+'RES DE ACT TARIFARIA-1000'!I198 -> 0.0807 | C26: =+'RES DE ACT TARIFARIA-1000'!O154+'RES DE ACT TARIFARIA-1000'!O198 -> 0.07116 | E26: =+INDIRECT(MID(MID(_xlfn.FORMULATEXT(C26),1,FIND("!",_xlfn.FORMULATEXT(C26))),3,100)&"A"&MID(_xlfn.FORMULATEXT(C26),FIND("!",_xlfn.FORMULATEXT(C26))+2,FIND("+",_xlfn.FORMULATEXT(C26),5)-FIND("!",_xlfn.FORMULATEXT(C26))-2)) -> BTS (0-300) | F26: =+INDIRECT(MID(MID(_xlfn.FORMULATEXT(C26),FIND("+",_xlfn.FORMULATEXT(C26),5)+1,FIND("!",_xlfn.FORMULATEXT(C26),FIND("!",_xlfn.FORMULATEXT(C26))+5)-FIND("+",_xlfn.FORMULATEXT(C26),5)),1,100)&"A"&MID(_xlfn.FORMULATEXT(C26),FIND("!",_xlfn.FORMULATEXT(C26),FIND("!",_xlfn.FORMULATEXT(C26))+5)+2,10)) -> BTS (0-300)
A27: Generación (Siguientes kWh de 301-750) | B27: =+'RES DE ACT TARIFARIA-1000'!I155+'RES DE ACT TARIFARIA-1000'!I199 -> 0.12935 | C27: =+'RES DE ACT TARIFARIA-1000'!O155+'RES DE ACT TARIFARIA-1000'!O199 -> 0.13267 | E27: =+INDIRECT(MID(MID(_xlfn.FORMULATEXT(C27),1,FIND("!",_xlfn.FORMULATEXT(C27))),3,100)&"A"&MID(_xlfn.FORMULATEXT(C27),FIND("!",_xlfn.FORMULATEXT(C27))+2,FIND("+",_xlfn.FORMULATEXT(C27),5)-FIND("!",_xlfn.FORMULATEXT(C27))-2)) -> BTS (301-750) | F27: =+INDIRECT(MID(MID(_xlfn.FORMULATEXT(C27),FIND("+",_xlfn.FORMULATEXT(C27),5)+1,FIND("!",_xlfn.FORMULATEXT(C27),FIND("!",_xlfn.FORMULATEXT(C27))+5)-FIND("+",_xlfn.FORMULATEXT(C27),5)),1,100)&"A"&MID(_xlfn.FORMULATEXT(C27),FIND("!",_xlfn.FORMULATEXT(C27),FIND("!",_xlfn.FORMULATEXT(C27))+5)+2,10)) -> BTS (301-750)
A28: Generación (Siguientes en exceso a 751 kWh) | B28: =+'RES DE ACT TARIFARIA-1000'!I156+'RES DE ACT TARIFARIA-1000'!I200 -> 0.16519 | C28: =+'RES DE ACT TARIFARIA-1000'!O156+'RES DE ACT TARIFARIA-1000'!O200 -> 0.219 | E28: =+INDIRECT(MID(MID(_xlfn.FORMULATEXT(C28),1,FIND("!",_xlfn.FORMULATEXT(C28))),3,100)&"A"&MID(_xlfn.FORMULATEXT(C28),FIND("!",_xlfn.FORMULATEXT(C28))+2,FIND("+",_xlfn.FORMULATEXT(C28),5)-FIND("!",_xlfn.FORMULATEXT(C28))-2)) -> BTS (750-más) | F28: =+INDIRECT(MID(MID(_xlfn.FORMULATEXT(C28),FIND("+",_xlfn.FORMULATEXT(C28),5)+1,FIND("!",_xlfn.FORMULATEXT(C28),FIND("!",_xlfn.FORMULATEXT(C28))+5)-FIND("+",_xlfn.FORMULATEXT(C28),5)),1,100)&"A"&MID(_xlfn.FORMULATEXT(C28),FIND("!",_xlfn.FORMULATEXT(C28),FIND("!",_xlfn.FORMULATEXT(C28))+5)+2,10)) -> BTS (750-más)
A29: BTD (0-10,000) | B29: Ene-Jun/2023 | C29: =+C4 -> Jul-Dic/2023
A30: Cargo Fijo | B30: 5.29 | C30: =+C35 -> 5.48
A31: Cargo por Energía | B31: 0.15646 | C31: =+C36+C40+C43+C44+C47+C48+C51+C52+C38 -> 0.13932
A32: Cargo por Demanda Máxima | B32: 12.59 | C32: =+C39+C41+C46+C50 -> 18.21978
A34: Comercialización
A35: - Fijo | B35: 5.29 | C35: =+'RES DE ACT TARIFARIA-1000-T (2)'!L10 -> 5.48 | E35: =+INDIRECT(MID(MID(_xlfn.FORMULATEXT(C35),1,FIND("!",_xlfn.FORMULATEXT(C35))),3,100)&"A"&MID(_xlfn.FORMULATEXT(C35),FIND("!",_xlfn.FORMULATEXT(C35))+2,3)) -> BTD (0-10,000)
A36: - Energía | B36: 0.0065 | C36: =+'RES DE ACT TARIFARIA-1000-T (2)'!L26 -> 0.00786 | E36: =+INDIRECT(MID(MID(_xlfn.FORMULATEXT(C36),1,FIND("!",_xlfn.FORMULATEXT(C36))),3,100)&"A"&MID(_xlfn.FORMULATEXT(C36),FIND("!",_xlfn.FORMULATEXT(C36))+2,3)) -> BTD (0-10,000)
A37: Distribución
A38: - Energía | B38: 0 | C38: =+'RES DE ACT TARIFARIA-1000-T (2)'!L43 -> 0 | E38: =+INDIRECT(MID(MID(_xlfn.FORMULATEXT(C38),1,FIND("!",_xlfn.FORMULATEXT(C38))),3,100)&"A"&MID(_xlfn.FORMULATEXT(C38),FIND("!",_xlfn.FORMULATEXT(C38))+2,3)) -> BTD (0-10,000)
A39: - Demanda Máxima | B39: 10.71 | C39: =+'RES DE ACT TARIFARIA-1000-T (2)'!L47 -> 15.37 | E39: =+INDIRECT(MID(MID(_xlfn.FORMULATEXT(C39),1,FIND("!",_xlfn.FORMULATEXT(C39))),3,100)&"A"&MID(_xlfn.FORMULATEXT(C39),FIND("!",_xlfn.FORMULATEXT(C39))+2,3)) -> BTD (0-10,000)
A40: - Pérdidas Energía en Distribución | B40: 0.0113 | C40: =+'RES DE ACT TARIFARIA-1000'!O30 -> 0.00782 | E40: =+INDIRECT(MID(MID(_xlfn.FORMULATEXT(C40),1,FIND("!",_xlfn.FORMULATEXT(C40))),3,100)&"A"&MID(_xlfn.FORMULATEXT(C40),FIND("!",_xlfn.FORMULATEXT(C40))+2,3)) -> BTD (0-10,000)
A41: - Pérdidas Potencia en Distribución | B41: 0 | C41: =+'RES DE ACT TARIFARIA-1000'!O53 + 'RES DE ACT TARIFARIA-1000'!O31 -> 0.16978 | E41: =+INDIRECT(MID(MID(_xlfn.FORMULATEXT(C41),1,FIND("!",_xlfn.FORMULATEXT(C41))),3,100)&"A"&MID(_xlfn.FORMULATEXT(C41),FIND("!",_xlfn.FORMULATEXT(C41))+2,3)) -> BTD (0-10,000) | F41: =+INDIRECT(MID(_xlfn.FORMULATEXT(C41),FIND("'",_xlfn.FORMULATEXT(C41),FIND("!",_xlfn.FORMULATEXT(C41))+1),FIND("!",_xlfn.FORMULATEXT(C41),FIND("!",_xlfn.FORMULATEXT(C41))+1) - FIND("'",_xlfn.FORMULATEXT(C41),FIND("!",_xlfn.FORMULATEXT(C41))+1) + 1)&"A"&MID(_xlfn.FORMULATEXT(C41),FIND("!",_xlfn.FORMULATEXT(C41),FIND("!",_xlfn.FORMULATEXT(C41))+1)+2,3)) -> BTD (0-10,000)
A42: Alumbrado Público
A43: - Sistema | B43: 0.00143 | C43: =+'RES DE ACT TARIFARIA-1000-T (2)'!L73 -> 0.00134 | E43: =+INDIRECT(MID(MID(_xlfn.FORMULATEXT(C43),1,FIND("!",_xlfn.FORMULATEXT(C43))),3,100)&"A"&MID(_xlfn.FORMULATEXT(C43),FIND("!",_xlfn.FORMULATEXT(C43))+2,3)) -> BTD (0-10,000)
A44: - Consumo de energía | B44: 0.00233 | C44: =+'RES DE ACT TARIFARIA-1000'!O70 -> 0.00204 | E44: =+INDIRECT(MID(MID(_xlfn.FORMULATEXT(C44),1,FIND("!",_xlfn.FORMULATEXT(C44))),3,100)&"A"&MID(_xlfn.FORMULATEXT(C44),FIND("!",_xlfn.FORMULATEXT(C44))+2,3)) -> BTD (0-10,000)
A45: Transmisión
A46: - Demanda Máxima | B46: 0.66 | C46: =+'RES DE ACT TARIFARIA-1000'!O109 -> 1.26 | E46: =+INDIRECT(MID(MID(_xlfn.FORMULATEXT(C46),1,FIND("!",_xlfn.FORMULATEXT(C46))),3,100)&"A"&MID(_xlfn.FORMULATEXT(C46),FIND("!",_xlfn.FORMULATEXT(C46))+2,3)) -> BTD (0-10,000)
A47: - Energía | B47: 0.00673 | C47: =+'RES DE ACT TARIFARIA-1000'!O91 -> 0.00429 | E47: =+INDIRECT(MID(MID(_xlfn.FORMULATEXT(C47),1,FIND("!",_xlfn.FORMULATEXT(C47))),3,100)&"A"&MID(_xlfn.FORMULATEXT(C47),FIND("!",_xlfn.FORMULATEXT(C47))+2,3)) -> BTD (0-10,000)
A48: - Pérdidas de Energía en Transmisión | B48: 0.00247 | C48: =+'RES DE ACT TARIFARIA-1000'!O132 -> 0.00449 | E48: =+INDIRECT(MID(MID(_xlfn.FORMULATEXT(C48),1,FIND("!",_xlfn.FORMULATEXT(C48))),3,100)&"A"&MID(_xlfn.FORMULATEXT(C48),FIND("!",_xlfn.FORMULATEXT(C48))+2,3)) -> BTD (0-10,000)
A49: Generación
A50: - Demanda Máxima | B50: 1.22 | C50: =+'RES DE ACT TARIFARIA-1000'!O161 -> 1.42 | E50: =+INDIRECT(MID(MID(_xlfn.FORMULATEXT(C50),1,FIND("!",_xlfn.FORMULATEXT(C50))),3,100)&"A"&MID(_xlfn.FORMULATEXT(C50),FIND("!",_xlfn.FORMULATEXT(C50))+2,3)) -> BTD
A51: - Energía | B51: 0.10374 | C51: =+'RES DE ACT TARIFARIA-1000'!O201 -> 0.08516 | E51: =+INDIRECT(MID(MID(_xlfn.FORMULATEXT(C51),1,FIND("!",_xlfn.FORMULATEXT(C51))),3,100)&"A"&MID(_xlfn.FORMULATEXT(C51),FIND("!",_xlfn.FORMULATEXT(C51))+2,3)) -> BTD (0-10,000)
A52: - Potencia Energizada | B52: 0.02196 | C52: =+'RES DE ACT TARIFARIA-1000'!O157 -> 0.02632 | E52: =+INDIRECT(MID(MID(_xlfn.FORMULATEXT(C52),1,FIND("!",_xlfn.FORMULATEXT(C52))),3,100)&"A"&MID(_xlfn.FORMULATEXT(C52),FIND("!",_xlfn.FORMULATEXT(C52))+2,3)) -> BTD (0-10,000)
A53: BTD (10,001-30,000) | B53: Ene-Jun/2023 | C53: =+C29 -> Jul-Dic/2023
A54: Cargo Fijo | B54: 5.29 | C54: =+C59 -> 5.48
A55: Cargo por Energía | B55: 0.1632 | C55: =+C60+C64+C67+C68+C71+C72+C75+C76+C62 -> 0.1453
A56: Cargo por Demanda Máxima | B56: 12.59 | C56: =+C63+C65+C70+C74 -> 18.21978
A58: Comercialización
A59: - Fijo | B59: 5.29 | C59: =+'RES DE ACT TARIFARIA-1000-T (2)'!L$11 -> 5.48 | E59: =+INDIRECT(MID(MID(_xlfn.FORMULATEXT(C59),1,FIND("!",_xlfn.FORMULATEXT(C59))),3,100)&"A"&MID(_xlfn.FORMULATEXT(C59),FIND("!",_xlfn.FORMULATEXT(C59))+2,3)) -> BTD (10,001-30,000)
A60: - Energía | B60: 0.0065 | C60: =+'RES DE ACT TARIFARIA-1000-T (2)'!L$27 -> 0.00786 | E60: =+INDIRECT(MID(MID(_xlfn.FORMULATEXT(C60),1,FIND("!",_xlfn.FORMULATEXT(C60))),3,100)&"A"&MID(_xlfn.FORMULATEXT(C60),FIND("!",_xlfn.FORMULATEXT(C60))+2,3)) -> BTD (10,001-30,000)
A61: Distribución
A62: - Energía | B62: 0 | C62: =+'RES DE ACT TARIFARIA-1000-T (2)'!L$44 -> 0 | E62: =+INDIRECT(MID(MID(_xlfn.FORMULATEXT(C62),1,FIND("!",_xlfn.FORMULATEXT(C62))),3,100)&"A"&MID(_xlfn.FORMULATEXT(C62),FIND("!",_xlfn.FORMULATEXT(C62))+2,3)) -> BTD (10,001-30,000)
A63: - Demanda Máxima | B63: 10.71 | C63: =+'RES DE ACT TARIFARIA-1000-T (2)'!L$48 -> 15.37 | E63: =+INDIRECT(MID(MID(_xlfn.FORMULATEXT(C63),1,FIND("!",_xlfn.FORMULATEXT(C63))),3,100)&"A"&MID(_xlfn.FORMULATEXT(C63),FIND("!",_xlfn.FORMULATEXT(C63))+2,3)) -> BTD (10,001-30,000)
A64: - Pérdidas Energía en Distribución | B64: 0.0113 | C64: =+'RES DE ACT TARIFARIA-1000'!O$32 -> 0.00782 | E64: =+INDIRECT(MID(MID(_xlfn.FORMULATEXT(C64),1,FIND("!",_xlfn.FORMULATEXT(C64))),3,100)&"A"&MID(_xlfn.FORMULATEXT(C64),FIND("!",_xlfn.FORMULATEXT(C64))+2,3)) -> BTD (10,001-30,000)
A65: - Pérdidas Potencia en Distribución | B65: 0 | C65: =+'RES DE ACT TARIFARIA-1000'!O$54 + 'RES DE ACT TARIFARIA-1000'!O33 -> 0.16978 | E65: =+INDIRECT(MID(MID(_xlfn.FORMULATEXT(C65),1,FIND("!",_xlfn.FORMULATEXT(C65))),3,100)&"A"&MID(_xlfn.FORMULATEXT(C65),FIND("!",_xlfn.FORMULATEXT(C65))+2,3)) -> BTD (10,001-30,000) | F65: =+INDIRECT(MID(_xlfn.FORMULATEXT(C65),FIND("'",_xlfn.FORMULATEXT(C65),FIND("!",_xlfn.FORMULATEXT(C65))+1),FIND("!",_xlfn.FORMULATEXT(C65),FIND("!",_xlfn.FORMULATEXT(C65))+1) - FIND("'",_xlfn.FORMULATEXT(C65),FIND("!",_xlfn.FORMULATEXT(C65))+1) + 1)&"A"&MID(_xlfn.FORMULATEXT(C65),FIND("!",_xlfn.FORMULATEXT(C65),FIND("!",_xlfn.FORMULATEXT(C65))+1)+2,3)) -> BTD (10,001-30,000)
A66: Alumbrado Público
A67: - Sistema | B67: 0.00143 | C67: =+'RES DE ACT TARIFARIA-1000-T (2)'!L$74 -> 0.00134 | E67: =+INDIRECT(MID(MID(_xlfn.FORMULATEXT(C67),1,FIND("!",_xlfn.FORMULATEXT(C67))),3,100)&"A"&MID(_xlfn.FORMULATEXT(C67),FIND("!",_xlfn.FORMULATEXT(C67))+2,3)) -> BTD (10,001-30,000)
A68: - Consumo de energía | B68: 0.00233 | C68: =+'RES DE ACT TARIFARIA-1000'!O$71 -> 0.00204 | E68: =+INDIRECT(MID(MID(_xlfn.FORMULATEXT(C68),1,FIND("!",_xlfn.FORMULATEXT(C68))),3,100)&"A"&MID(_xlfn.FORMULATEXT(C68),FIND("!",_xlfn.FORMULATEXT(C68))+2,3)) -> BTD (10,001-30,000)
A69: Transmisión
A70: - Demanda Máxima | B70: 0.66 | C70: =+'RES DE ACT TARIFARIA-1000'!O$110 -> 1.26 | E70: =+INDIRECT(MID(MID(_xlfn.FORMULATEXT(C70),1,FIND("!",_xlfn.FORMULATEXT(C70))),3,100)&"A"&MID(_xlfn.FORMULATEXT(C70),FIND("!",_xlfn.FORMULATEXT(C70))+3,3)) -> BTD (10,001-30,000)
A71: - Energía | B71: 0.00673 | C71: =+'RES DE ACT TARIFARIA-1000'!O$92 -> 0.00429 | E71: =+INDIRECT(MID(MID(_xlfn.FORMULATEXT(C71),1,FIND("!",_xlfn.FORMULATEXT(C71))),3,100)&"A"&MID(_xlfn.FORMULATEXT(C71),FIND("!",_xlfn.FORMULATEXT(C71))+2,3)) -> BTD (10,001-30,000)
A72: - Pérdidas de Energía en Transmisión | B72: 0.00247 | C72: =+'RES DE ACT TARIFARIA-1000'!O$133 -> 0.00449 | E72: =+INDIRECT(MID(MID(_xlfn.FORMULATEXT(C72),1,FIND("!",_xlfn.FORMULATEXT(C72))),3,100)&"A"&MID(_xlfn.FORMULATEXT(C72),FIND("!",_xlfn.FORMULATEXT(C72))+3,3)) -> BTD (10,001-30,000)
A73: Generación
A74: - Demanda Máxima | B74: 1.22 | C74: =+'RES DE ACT TARIFARIA-1000'!O$161 -> 1.42 | E74: =+INDIRECT(MID(MID(_xlfn.FORMULATEXT(C74),1,FIND("!",_xlfn.FORMULATEXT(C74))),3,100)&"A"&MID(_xlfn.FORMULATEXT(C74),FIND("!",_xlfn.FORMULATEXT(C74))+3,3)) -> BTD
A75: - Energía | B75: 0.10929 | C75: =+'RES DE ACT TARIFARIA-1000'!O$202 -> 0.08971 | E75: =+INDIRECT(MID(MID(_xlfn.FORMULATEXT(C75),1,FIND("!",_xlfn.FORMULATEXT(C75))),3,100)&"A"&MID(_xlfn.FORMULATEXT(C75),FIND("!",_xlfn.FORMULATEXT(C75))+3,3)) -> BTD (10,001-30,000)
A76: - Potencia Energizada | B76: 0.02315 | C76: =+'RES DE ACT TARIFARIA-1000'!O$158 -> 0.02775 | E76: =+INDIRECT(MID(MID(_xlfn.FORMULATEXT(C76),1,FIND("!",_xlfn.FORMULATEXT(C76))),3,100)&"A"&MID(_xlfn.FORMULATEXT(C76),FIND("!",_xlfn.FORMULATEXT(C76))+3,3)) -> BTD (10,001-30,000)
A77: BTD (30,001-50,000) | B77: Ene-Jun/2023 | C77: =+C53 -> Jul-Dic/2023
A78: Cargo Fijo | B78: 5.29 | C78: =+C83 -> 5.48
A79: Cargo por Energía | B79: 0.17626 | C79: =+C84+C88+C91+C92+C95+C96+C99+C100+C86 -> 0.15687
A80: Cargo por Demanda Máxima | B80: 12.59 | C80: =+C87+C89+C94+C98 -> 18.21978
A82: Comercialización
A83: - Fijo | B83: 5.29 | C83: =+'RES DE ACT TARIFARIA-1000-T (2)'!L$12 -> 5.48 | E83: =+INDIRECT(MID(MID(_xlfn.FORMULATEXT(C83),1,FIND("!",_xlfn.FORMULATEXT(C83))),3,100)&"A"&MID(_xlfn.FORMULATEXT(C83),FIND("!",_xlfn.FORMULATEXT(C83))+3,3)) -> BTD (30,001-50,000)
A84: - Energía | B84: 0.0065 | C84: =+'RES DE ACT TARIFARIA-1000-T (2)'!L$28 -> 0.00786 | E84: =+INDIRECT(MID(MID(_xlfn.FORMULATEXT(C84),1,FIND("!",_xlfn.FORMULATEXT(C84))),3,100)&"A"&MID(_xlfn.FORMULATEXT(C84),FIND("!",_xlfn.FORMULATEXT(C84))+3,3)) -> BTD (30,001-50,000)
A85: Distribución
A86: - Energía | B86: 0 | C86: =+'RES DE ACT TARIFARIA-1000-T (2)'!L$45 -> 0 | E86: =+INDIRECT(MID(MID(_xlfn.FORMULATEXT(C86),1,FIND("!",_xlfn.FORMULATEXT(C86))),3,100)&"A"&MID(_xlfn.FORMULATEXT(C86),FIND("!",_xlfn.FORMULATEXT(C86))+3,3)) -> BTD (30,001-50,000)
A87: - Demanda Máxima | B87: 10.71 | C87: =+'RES DE ACT TARIFARIA-1000-T (2)'!L$49 -> 15.37 | E87: =+INDIRECT(MID(MID(_xlfn.FORMULATEXT(C87),1,FIND("!",_xlfn.FORMULATEXT(C87))),3,100)&"A"&MID(_xlfn.FORMULATEXT(C87),FIND("!",_xlfn.FORMULATEXT(C87))+3,3)) -> BTD (30,001-50,000)
A88: - Pérdidas Energía en Distribución | B88: 0.0113 | C88: =+'RES DE ACT TARIFARIA-1000'!O$34 -> 0.00782 | E88: =+INDIRECT(MID(MID(_xlfn.FORMULATEXT(C88),1,FIND("!",_xlfn.FORMULATEXT(C88))),3,100)&"A"&MID(_xlfn.FORMULATEXT(C88),FIND("!",_xlfn.FORMULATEXT(C88))+3,3)) -> BTD (30,001-50,000)
A89: - Pérdidas Potencia en Distribución | B89: 0 | C89: =+'RES DE ACT TARIFARIA-1000'!O$55 + 'RES DE ACT TARIFARIA-1000'!O35 -> 0.16978 | E89: =+INDIRECT(MID(MID(_xlfn.FORMULATEXT(C89),1,FIND("!",_xlfn.FORMULATEXT(C89))),3,100)&"A"&MID(_xlfn.FORMULATEXT(C89),FIND("!",_xlfn.FORMULATEXT(C89))+3,3)) -> BTD (30,001-50,000) | F89: =+INDIRECT(MID(_xlfn.FORMULATEXT(C89),FIND("'",_xlfn.FORMULATEXT(C89),FIND("!",_xlfn.FORMULATEXT(C89))+1),FIND("!",_xlfn.FORMULATEXT(C89),FIND("!",_xlfn.FORMULATEXT(C89))+1) - FIND("'",_xlfn.FORMULATEXT(C89),FIND("!",_xlfn.FORMULATEXT(C89))+1) + 1)&"A"&MID(_xlfn.FORMULATEXT(C89),FIND("!",_xlfn.FORMULATEXT(C89),FIND("!",_xlfn.FORMULATEXT(C89))+1)+2,3)) -> BTD (30,001-50,000)
A90: Alumbrado Público
A91: - Sistema | B91: 0.00143 | C91: =+'RES DE ACT TARIFARIA-1000-T (2)'!L$75 -> 0.00134 | E91: =+INDIRECT(MID(MID(_xlfn.FORMULATEXT(C91),1,FIND("!",_xlfn.FORMULATEXT(C91))),3,100)&"A"&MID(_xlfn.FORMULATEXT(C91),FIND("!",_xlfn.FORMULATEXT(C91))+3,3)) -> BTD (30,001-50,000)
A92: - Consumo de energía | B92: 0.00233 | C92: =+'RES DE ACT TARIFARIA-1000'!O$72 -> 0.00204 | E92: =+INDIRECT(MID(MID(_xlfn.FORMULATEXT(C92),1,FIND("!",_xlfn.FORMULATEXT(C92))),3,100)&"A"&MID(_xlfn.FORMULATEXT(C92),FIND("!",_xlfn.FORMULATEXT(C92))+3,3)) -> BTD (30,001-50,000)
A93: Transmisión
A94: - Demanda Máxima | B94: 0.66 | C94: =+'RES DE ACT TARIFARIA-1000'!O$111 -> 1.26 | E94: =+INDIRECT(MID(MID(_xlfn.FORMULATEXT(C94),1,FIND("!",_xlfn.FORMULATEXT(C94))),3,100)&"A"&MID(_xlfn.FORMULATEXT(C94),FIND("!",_xlfn.FORMULATEXT(C94))+3,3)) -> BTD (30,001-50,000)
A95: - Energía | B95: 0.00673 | C95: =+'RES DE ACT TARIFARIA-1000'!O$93 -> 0.00429 | E95: =+INDIRECT(MID(MID(_xlfn.FORMULATEXT(C95),1,FIND("!",_xlfn.FORMULATEXT(C95))),3,100)&"A"&MID(_xlfn.FORMULATEXT(C95),FIND("!",_xlfn.FORMULATEXT(C95))+3,3)) -> BTD (30,001-50,000)
A96: - Pérdidas de Energía en Transmisión | B96: 0.00247 | C96: =+'RES DE ACT TARIFARIA-1000'!O$134 -> 0.00449 | E96: =+INDIRECT(MID(MID(_xlfn.FORMULATEXT(C96),1,FIND("!",_xlfn.FORMULATEXT(C96))),3,100)&"A"&MID(_xlfn.FORMULATEXT(C96),FIND("!",_xlfn.FORMULATEXT(C96))+3,3)) -> BTD (30,001-50,000)
A97: Generación
A98: - Demanda Máxima | B98: 1.22 | C98: =+'RES DE ACT TARIFARIA-1000'!O$161 -> 1.42 | E98: =+INDIRECT(MID(MID(_xlfn.FORMULATEXT(C98),1,FIND("!",_xlfn.FORMULATEXT(C98))),3,100)&"A"&MID(_xlfn.FORMULATEXT(C98),FIND("!",_xlfn.FORMULATEXT(C98))+3,3)) -> BTD
A99: - Energía | B99: 0.12008 | C99: =+'RES DE ACT TARIFARIA-1000'!O$203 -> 0.09856 | E99: =+INDIRECT(MID(MID(_xlfn.FORMULATEXT(C99),1,FIND("!",_xlfn.FORMULATEXT(C99))),3,100)&"A"&MID(_xlfn.FORMULATEXT(C99),FIND("!",_xlfn.FORMULATEXT(C99))+3,3)) -> BTD (30,001-50,000)
A100: - Potencia Energizada | B100: 0.02542 | C100: =+'RES DE ACT TARIFARIA-1000'!O$159 -> 0.03047 | E100: =+INDIRECT(MID(MID(_xlfn.FORMULATEXT(C100),1,FIND("!",_xlfn.FORMULATEXT(C100))),3,100)&"A"&MID(_xlfn.FORMULATEXT(C100),FIND("!",_xlfn.FORMULATEXT(C100))+3,3)) -> BTD (30,001-50,000)
A101: BTD (50,001-más) | B101: Ene-Jun/2023 | C101: =+C77 -> Jul-Dic/2023
A102: Cargo Fijo | B102: 5.29 | C102: =+C107 -> 5.48
A103: Cargo por Energía | B103: 0.18907 | C103: =+C108+C112+C115+C116+C119+C120+C123+C124+C110 -> 0.16823
A104: Cargo por Demanda Máxima | B104: 12.59 | C104: =+C111+C113+C118+C122 -> 18.21978
A106: Comercialización
A107: - Fijo | B107: 5.29 | C107: =+'RES DE ACT TARIFARIA-1000-T (2)'!L$13 -> 5.48 | E107: =+INDIRECT(MID(MID(_xlfn.FORMULATEXT(C107),1,FIND("!",_xlfn.FORMULATEXT(C107))),3,100)&"A"&MID(_xlfn.FORMULATEXT(C107),FIND("!",_xlfn.FORMULATEXT(C107))+3,3)) -> BTD (50,001-más)
A108: - Energía | B108: 0.0065 | C108: =+'RES DE ACT TARIFARIA-1000-T (2)'!L$29 -> 0.00786 | E108: =+INDIRECT(MID(MID(_xlfn.FORMULATEXT(C108),1,FIND("!",_xlfn.FORMULATEXT(C108))),3,100)&"A"&MID(_xlfn.FORMULATEXT(C108),FIND("!",_xlfn.FORMULATEXT(C108))+3,3)) -> BTD (50,001-más)
A109: Distribución
A110: - Energía | B110: 0 | C110: =+'RES DE ACT TARIFARIA-1000-T (2)'!L$46 -> 0 | E110: =+INDIRECT(MID(MID(_xlfn.FORMULATEXT(C110),1,FIND("!",_xlfn.FORMULATEXT(C110))),3,100)&"A"&MID(_xlfn.FORMULATEXT(C110),FIND("!",_xlfn.FORMULATEXT(C110))+3,3)) -> BTD (50,001-más)
A111: - Demanda Máxima | B111: 10.71 | C111: =+'RES DE ACT TARIFARIA-1000-T (2)'!L$50 -> 15.37 | E111: =+INDIRECT(MID(MID(_xlfn.FORMULATEXT(C111),1,FIND("!",_xlfn.FORMULATEXT(C111))),3,100)&"A"&MID(_xlfn.FORMULATEXT(C111),FIND("!",_xlfn.FORMULATEXT(C111))+3,3)) -> BTD (50,001-más)
A112: - Pérdidas Energía en Distribución | B112: 0.0113 | C112: =+'RES DE ACT TARIFARIA-1000'!O$36 -> 0.00782 | E112: =+INDIRECT(MID(MID(_xlfn.FORMULATEXT(C112),1,FIND("!",_xlfn.FORMULATEXT(C112))),3,100)&"A"&MID(_xlfn.FORMULATEXT(C112),FIND("!",_xlfn.FORMULATEXT(C112))+3,3)) -> BTD (50,001-más)
A113: - Pérdidas Potencia en Distribución | B113: 0 | C113: =+'RES DE ACT TARIFARIA-1000'!O$56 + 'RES DE ACT TARIFARIA-1000'!O37 -> 0.16978 | E113: =+INDIRECT(MID(MID(_xlfn.FORMULATEXT(C113),1,FIND("!",_xlfn.FORMULATEXT(C113))),3,100)&"A"&MID(_xlfn.FORMULATEXT(C113),FIND("!",_xlfn.FORMULATEXT(C113))+3,3)) -> BTD (50,001-más) | F113: =+INDIRECT(MID(_xlfn.FORMULATEXT(C113),FIND("'",_xlfn.FORMULATEXT(C113),FIND("!",_xlfn.FORMULATEXT(C113))+1),FIND("!",_xlfn.FORMULATEXT(C113),FIND("!",_xlfn.FORMULATEXT(C113))+1) - FIND("'",_xlfn.FORMULATEXT(C113),FIND("!",_xlfn.FORMULATEXT(C113))+1) + 1)&"A"&MID(_xlfn.FORMULATEXT(C113),FIND("!",_xlfn.FORMULATEXT(C113),FIND("!",_xlfn.FORMULATEXT(C113))+1)+2,3)) -> BTD (50,001-más)
A114: Alumbrado Público
A115: - Sistema | B115: 0.00143 | C115: =+'RES DE ACT TARIFARIA-1000-T (2)'!L$76 -> 0.00134 | E115: =+INDIRECT(MID(MID(_xlfn.FORMULATEXT(C115),1,FIND("!",_xlfn.FORMULATEXT(C115))),3,100)&"A"&MID(_xlfn.FORMULATEXT(C115),FIND("!",_xlfn.FORMULATEXT(C115))+3,3)) -> BTD (50,001-más)
A116: - Consumo de energía | B116: 0.00233 | C116: =+'RES DE ACT TARIFARIA-1000'!O$73 -> 0.00204 | E116: =+INDIRECT(MID(MID(_xlfn.FORMULATEXT(C116),1,FIND("!",_xlfn.FORMULATEXT(C116))),3,100)&"A"&MID(_xlfn.FORMULATEXT(C116),FIND("!",_xlfn.FORMULATEXT(C116))+3,3)) -> BTD (50,001-más)
A117: Transmisión
A118: - Demanda Máxima | B118: 0.66 | C118: =+'RES DE ACT TARIFARIA-1000'!O$112 -> 1.26 | E118: =+INDIRECT(MID(MID(_xlfn.FORMULATEXT(C118),1,FIND("!",_xlfn.FORMULATEXT(C118))),3,100)&"A"&MID(_xlfn.FORMULATEXT(C118),FIND("!",_xlfn.FORMULATEXT(C118))+3,3)) -> BTD (50,001-más)
A119: - Energía | B119: 0.00673 | C119: =+'RES DE ACT TARIFARIA-1000'!O$94 -> 0.00429 | E119: =+INDIRECT(MID(MID(_xlfn.FORMULATEXT(C119),1,FIND("!",_xlfn.FORMULATEXT(C119))),3,100)&"A"&MID(_xlfn.FORMULATEXT(C119),FIND("!",_xlfn.FORMULATEXT(C119))+3,3)) -> BTD (50,001-más)
A120: - Pérdidas de Energía en Transmisión | B120: 0.00247 | C120: =+'RES DE ACT TARIFARIA-1000'!O$135 -> 0.00449 | E120: =+INDIRECT(MID(MID(_xlfn.FORMULATEXT(C120),1,FIND("!",_xlfn.FORMULATEXT(C120))),3,100)&"A"&MID(_xlfn.FORMULATEXT(C120),FIND("!",_xlfn.FORMULATEXT(C120))+3,3)) -> BTD (50,001-más)
A121: Generación
A122: - Demanda Máxima | B122: 1.22 | C122: =+'RES DE ACT TARIFARIA-1000'!O$161 -> 1.42 | E122: =+INDIRECT(MID(MID(_xlfn.FORMULATEXT(C122),1,FIND("!",_xlfn.FORMULATEXT(C122))),3,100)&"A"&MID(_xlfn.FORMULATEXT(C122),FIND("!",_xlfn.FORMULATEXT(C122))+3,3)) -> BTD
A123: - Energía | B123: 0.13064 | C123: =+'RES DE ACT TARIFARIA-1000'!O$204 -> 0.10723 | E123: =+INDIRECT(MID(MID(_xlfn.FORMULATEXT(C123),1,FIND("!",_xlfn.FORMULATEXT(C123))),3,100)&"A"&MID(_xlfn.FORMULATEXT(C123),FIND("!",_xlfn.FORMULATEXT(C123))+3,3)) -> BTD (50,001-más)
A124: - Potencia Energizada | B124: 0.02767 | C124: =+'RES DE ACT TARIFARIA-1000'!O$160 -> 0.03316 | E124: =+INDIRECT(MID(MID(_xlfn.FORMULATEXT(C124),1,FIND("!",_xlfn.FORMULATEXT(C124))),3,100)&"A"&MID(_xlfn.FORMULATEXT(C124),FIND("!",_xlfn.FORMULATEXT(C124))+3,3)) -> BTD (50,001-más)
A125: BTH | B125: Ene-Jun/2023 | C125: =+C4 -> Jul-Dic/2023
A126: Cargo Fijo | B126: 5.3 | C126: =+C135 -> 5.49
A127: Cargo por Energía en Punta | B127: 0.23683 | C127: =+C136+C141+C146+C147+C152+C153+C156+C159 -> 0.24336
A128: Cargo por Energía Fuera de Punta Medio | B128: 0.15908 | C128: =+C136+C142+C146+C147+C152+C153+C157+C159 -> 0.13876
A129: Cargo por Energía Fuera de Punta Bajo | C129: =+C136+C143+C146+C147+C152+C153+C158+C159 -> 0.08853
A130: Cargo por Demanda Máxima en Punta | B130: 13.04 | C130: =+C138+C144+C149+C155 -> 18.54
A131: Cargo por Demanda Máxima Fuera de Punta Medio | B131: 1.66 | C131: =+C139+C150+C144 -> 2.54
A132: Cargo por Demanda Máxima Fuera de Punta Bajo | C132: =+C140+C151+C144 -> 2.54
A134: Comercialización
A135: - Fijo | B135: 5.3 | C135: =+'RES DE ACT TARIFARIA-1000-T (2)'!L14 -> 5.49 | E135: =+INDIRECT(MID(MID(_xlfn.FORMULATEXT(C135),1,FIND("!",_xlfn.FORMULATEXT(C135))),3,100)&"A"&MID(_xlfn.FORMULATEXT(C135),FIND("!",_xlfn.FORMULATEXT(C135))+2,3)) -> BTH
A136: - Energía | B136: 0.00649 | C136: =+'RES DE ACT TARIFARIA-1000-T (2)'!L30 -> 0.00785 | E136: =+INDIRECT(MID(MID(_xlfn.FORMULATEXT(C136),1,FIND("!",_xlfn.FORMULATEXT(C136))),3,100)&"A"&MID(_xlfn.FORMULATEXT(C136),FIND("!",_xlfn.FORMULATEXT(C136))+2,3)) -> BTH
A137: Distribución
A138: - Demanda Máxima en Punta | B138: 11.08 | C138: =+'RES DE ACT TARIFARIA-1000-T (2)'!L57 -> 15.9 | E138: =+INDIRECT(MID(MID(_xlfn.FORMULATEXT(C138),1,FIND("!",_xlfn.FORMULATEXT(C138))),3,100)&"A"&MID(_xlfn.FORMULATEXT(C138),FIND("!",_xlfn.FORMULATEXT(C138))+2,3)) -> BTH
A139: - Demanda Máxima Fuera de Punta Medio | B139: 1.53 | C139: =+'RES DE ACT TARIFARIA-1000-T (2)'!L61 -> 2.2 | E139: =+INDIRECT(MID(MID(_xlfn.FORMULATEXT(C139),1,FIND("!",_xlfn.FORMULATEXT(C139))),3,100)&"A"&MID(_xlfn.FORMULATEXT(C139),FIND("!",_xlfn.FORMULATEXT(C139))+2,3)) -> BTH
A140: - Demanda Máxima Fuera de Punta Bajo | C140: =+'RES DE ACT TARIFARIA-1000-T (2)'!L65 -> 2.2 | E140: =+INDIRECT(MID(MID(_xlfn.FORMULATEXT(C140),1,FIND("!",_xlfn.FORMULATEXT(C140))),3,100)&"A"&MID(_xlfn.FORMULATEXT(C140),FIND("!",_xlfn.FORMULATEXT(C140))+2,3)) -> BTH
A141: - Pérdidas Energía Distribución en Punta | B141: 0.01467 | C141: =+'RES DE ACT TARIFARIA-1000'!O6 -> 0.01016 | E141: =+INDIRECT(MID(MID(_xlfn.FORMULATEXT(C141),1,FIND("!",_xlfn.FORMULATEXT(C141))),3,100)&"A"&MID(_xlfn.FORMULATEXT(C141),FIND("!",_xlfn.FORMULATEXT(C141))+2,3)) -> BTH
A142: - Pérdidas Energía Distribución Fuera de Punta Medio | B142: 0.01009 | C142: =+'RES DE ACT TARIFARIA-1000'!O13 -> 0.00699 | E142: =+INDIRECT(MID(MID(_xlfn.FORMULATEXT(C142),1,FIND("!",_xlfn.FORMULATEXT(C142))),3,100)&"A"&MID(_xlfn.FORMULATEXT(C142),FIND("!",_xlfn.FORMULATEXT(C142))+2,3)) -> BTH
A143: - Pérdidas Energía Distribución Fuera de Punta Bajo | C143: =+'RES DE ACT TARIFARIA-1000'!O20 -> 0.00699 | E143: =+INDIRECT(MID(MID(_xlfn.FORMULATEXT(C143),1,FIND("!",_xlfn.FORMULATEXT(C143))),3,100)&"A"&MID(_xlfn.FORMULATEXT(C143),FIND("!",_xlfn.FORMULATEXT(C143))+2,3)) -> BTH
A144: - Pérdidas Potencia en Distribución | B144: 0 | C144: =+'RES DE ACT TARIFARIA-1000'!O57 + 'RES DE ACT TARIFARIA-1000'!O7 -> 0.11 | E144: =+INDIRECT(MID(MID(_xlfn.FORMULATEXT(C144),1,FIND("!",_xlfn.FORMULATEXT(C144))),3,100)&"A"&MID(_xlfn.FORMULATEXT(C144),FIND("!",_xlfn.FORMULATEXT(C144))+2,3)) -> BTH | F144: =+INDIRECT(MID(_xlfn.FORMULATEXT(C144),FIND("'",_xlfn.FORMULATEXT(C144),FIND("!",_xlfn.FORMULATEXT(C144))+1),FIND("!",_xlfn.FORMULATEXT(C144),FIND("!",_xlfn.FORMULATEXT(C144))+1) - FIND("'",_xlfn.FORMULATEXT(C144),FIND("!",_xlfn.FORMULATEXT(C144))+1) + 1)&"A"&MID(_xlfn.FORMULATEXT(C144),FIND("!",_xlfn.FORMULATEXT(C144),FIND("!",_xlfn.FORMULATEXT(C144))+1)+2,3)) -> BTH
A145: Alumbrado Público
A146: - Sistema | B146: 0.00142 | C146: =+'RES DE ACT TARIFARIA-1000-T (2)'!L77 -> 0.00133 | E146: =+INDIRECT(MID(MID(_xlfn.FORMULATEXT(C146),1,FIND("!",_xlfn.FORMULATEXT(C146))),3,100)&"A"&MID(_xlfn.FORMULATEXT(C146),FIND("!",_xlfn.FORMULATEXT(C146))+2,3)) -> BTH
A147: - Consumo de energía | B147: 0.00233 | C147: =+'RES DE ACT TARIFARIA-1000'!O74 -> 0.00204 | E147: =+INDIRECT(MID(MID(_xlfn.FORMULATEXT(C147),1,FIND("!",_xlfn.FORMULATEXT(C147))),3,100)&"A"&MID(_xlfn.FORMULATEXT(C147),FIND("!",_xlfn.FORMULATEXT(C147))+2,3)) -> BTH
A148: Transmisión
A149: - Demanda en Punta | B149: 1.33 | C149: =+'RES DE ACT TARIFARIA-1000'!O113 -> 2.4 | E149: =+INDIRECT(MID(MID(_xlfn.FORMULATEXT(C149),1,FIND("!",_xlfn.FORMULATEXT(C149))),3,100)&"A"&MID(_xlfn.FORMULATEXT(C149),FIND("!",_xlfn.FORMULATEXT(C149))+2,3)) -> BTH Punta
A150: - Demanda Fuera de Punta Medio | B150: 0.13 | C150: =+'RES DE ACT TARIFARIA-1000'!O114 -> 0.23 | E150: =+INDIRECT(MID(MID(_xlfn.FORMULATEXT(C150),1,FIND("!",_xlfn.FORMULATEXT(C150))),3,100)&"A"&MID(_xlfn.FORMULATEXT(C150),FIND("!",_xlfn.FORMULATEXT(C150))+2,3)) -> BTH Fuera de Punta Medio
A151: - Demanda Fuera de Punta Bajo | C151: =+'RES DE ACT TARIFARIA-1000'!O115 -> 0.23 | E151: =+INDIRECT(MID(MID(_xlfn.FORMULATEXT(C151),1,FIND("!",_xlfn.FORMULATEXT(C151))),3,100)&"A"&MID(_xlfn.FORMULATEXT(C151),FIND("!",_xlfn.FORMULATEXT(C151))+2,3)) -> BTH Fuera de Punta Bajo
A152: - Energía | B152: 0.00863 | C152: =+'RES DE ACT TARIFARIA-1000'!O95 -> 0.00673 | E152: =+INDIRECT(MID(MID(_xlfn.FORMULATEXT(C152),1,FIND("!",_xlfn.FORMULATEXT(C152))),3,100)&"A"&MID(_xlfn.FORMULATEXT(C152),FIND("!",_xlfn.FORMULATEXT(C152))+2,3)) -> BTH
A153: - Pérdidas de Energía en Transmisión | B153: 0.00247 | C153: =+'RES DE ACT TARIFARIA-1000'!O136 -> 0.00449 | E153: =+INDIRECT(MID(MID(_xlfn.FORMULATEXT(C153),1,FIND("!",_xlfn.FORMULATEXT(C153))),3,100)&"A"&MID(_xlfn.FORMULATEXT(C153),FIND("!",_xlfn.FORMULATEXT(C153))+2,3)) -> BTH
A154: Generación
A155: - Demanda Máxima | B155: 0.63 | C155: =+'RES DE ACT TARIFARIA-1000'!O165 -> 0.13 | E155: =+INDIRECT(MID(MID(_xlfn.FORMULATEXT(C155),1,FIND("!",_xlfn.FORMULATEXT(C155))),3,100)&"A"&MID(_xlfn.FORMULATEXT(C155),FIND("!",_xlfn.FORMULATEXT(C155))+2,3)) -> BTH Punta
A156: - Energía en Punta | B156: 0.19391 | C156: =+'RES DE ACT TARIFARIA-1000'!O186 -> 0.20895 | E156: =+INDIRECT(MID(MID(_xlfn.FORMULATEXT(C156),1,FIND("!",_xlfn.FORMULATEXT(C156))),3,100)&"A"&MID(_xlfn.FORMULATEXT(C156),FIND("!",_xlfn.FORMULATEXT(C156))+2,3)) -> BTH
A157: - Energía Fuera de Punta Medio | B157: 0.12074 | C157: =+'RES DE ACT TARIFARIA-1000'!O190 -> 0.10752 | E157: =+INDIRECT(MID(MID(_xlfn.FORMULATEXT(C157),1,FIND("!",_xlfn.FORMULATEXT(C157))),3,100)&"A"&MID(_xlfn.FORMULATEXT(C157),FIND("!",_xlfn.FORMULATEXT(C157))+2,3)) -> BTH
A158: - Energía Fuera de Punta Bajo | C158: =+'RES DE ACT TARIFARIA-1000'!O194 -> 0.05729 | E158: =+INDIRECT(MID(MID(_xlfn.FORMULATEXT(C158),1,FIND("!",_xlfn.FORMULATEXT(C158))),3,100)&"A"&MID(_xlfn.FORMULATEXT(C158),FIND("!",_xlfn.FORMULATEXT(C158))+2,3)) -> BTH
A159: - Potencia Energizada | B159: 0.00691 | C159: =+'RES DE ACT TARIFARIA-1000'!O162 -> 0.00181 | E159: =+INDIRECT(MID(MID(_xlfn.FORMULATEXT(C159),1,FIND("!",_xlfn.FORMULATEXT(C159))),3,100)&"A"&MID(_xlfn.FORMULATEXT(C159),FIND("!",_xlfn.FORMULATEXT(C159))+2,3)) -> BTH Punta
A160: MTD (0-10,000) | B160: Ene-Jun/2023 | C160: =+C4 -> Jul-Dic/2023
A161: Cargo Fijo | B161: 13.35 | C161: =+C166 -> 13.82
A162: Cargo por Energía | B162: 0.16376 | C162: =+C167+C170+C173+C174+C177+C178+C181+C182 -> 0.14847
A163: Cargo por Demanda Máxima | B163: 13.89 | C163: =+C169+C171+C176+C180 -> 20.61706
A165: Comercialización
A166: – Fijo | B166: 13.35 | C166: =+'RES DE ACT TARIFARIA-1000-T (2)'!L$15 -> 13.82 | E166: =+INDIRECT(MID(MID(_xlfn.FORMULATEXT(C166),1,FIND("!",_xlfn.FORMULATEXT(C166))),3,100)&"A"&MID(_xlfn.FORMULATEXT(C166),FIND("!",_xlfn.FORMULATEXT(C166))+2,3)) -> MTD (0-10,000)
A167: – Energía | B167: 0.0065 | C167: =+'RES DE ACT TARIFARIA-1000-T (2)'!L$31 -> 0.00786 | E167: =+INDIRECT(MID(MID(_xlfn.FORMULATEXT(C167),1,FIND("!",_xlfn.FORMULATEXT(C167))),3,100)&"A"&MID(_xlfn.FORMULATEXT(C167),FIND("!",_xlfn.FORMULATEXT(C167))+2,3)) -> MTD (0-10,000)
A168: Distribución
A169: - Demanda Máxima | B169: 11.28 | C169: =+'RES DE ACT TARIFARIA-1000-T (2)'!L$51 -> 16.19 | E169: =+INDIRECT(MID(MID(_xlfn.FORMULATEXT(C169),1,FIND("!",_xlfn.FORMULATEXT(C169))),3,100)&"A"&MID(_xlfn.FORMULATEXT(C169),FIND("!",_xlfn.FORMULATEXT(C169))+2,3)) -> MTD (0-10,000)
A170: - Pérdidas Energía en Distribución | B170: 0.0113 | C170: =+'RES DE ACT TARIFARIA-1000'!O$38 -> 0.00782 | E170: =+INDIRECT(MID(MID(_xlfn.FORMULATEXT(C170),1,FIND("!",_xlfn.FORMULATEXT(C170))),3,100)&"A"&MID(_xlfn.FORMULATEXT(C170),FIND("!",_xlfn.FORMULATEXT(C170))+2,3)) -> MTD (0-10,000)
A171: - Pérdidas Potencia en Distribución | B171: 0 | C171: =+'RES DE ACT TARIFARIA-1000'!O$58 + 'RES DE ACT TARIFARIA-1000'!O39 -> 0.25706 | E171: =+INDIRECT(MID(MID(_xlfn.FORMULATEXT(C171),1,FIND("!",_xlfn.FORMULATEXT(C171))),3,100)&"A"&MID(_xlfn.FORMULATEXT(C171),FIND("!",_xlfn.FORMULATEXT(C171))+2,3)) -> MTD (0-10,000) | F171: =+INDIRECT(MID(_xlfn.FORMULATEXT(C171),FIND("'",_xlfn.FORMULATEXT(C171),FIND("!",_xlfn.FORMULATEXT(C171))+1),FIND("!",_xlfn.FORMULATEXT(C171),FIND("!",_xlfn.FORMULATEXT(C171))+1) - FIND("'",_xlfn.FORMULATEXT(C171),FIND("!",_xlfn.FORMULATEXT(C171))+1) + 1)&"A"&MID(_xlfn.FORMULATEXT(C171),FIND("!",_xlfn.FORMULATEXT(C171),FIND("!",_xlfn.FORMULATEXT(C171))+1)+2,3)) -> MTD (0-10,000)
A172: Alumbrado Público
A173: - Sistema | B173: 0.00143 | C173: =+'RES DE ACT TARIFARIA-1000-T (2)'!L$78 -> 0.00134 | E173: =+INDIRECT(MID(MID(_xlfn.FORMULATEXT(C173),1,FIND("!",_xlfn.FORMULATEXT(C173))),3,100)&"A"&MID(_xlfn.FORMULATEXT(C173),FIND("!",_xlfn.FORMULATEXT(C173))+2,3)) -> MTD (0-10,000)
A174: - Consumo de energía | B174: 0.00233 | C174: =+'RES DE ACT TARIFARIA-1000'!O$75 -> 0.00204 | E174: =+INDIRECT(MID(MID(_xlfn.FORMULATEXT(C174),1,FIND("!",_xlfn.FORMULATEXT(C174))),3,100)&"A"&MID(_xlfn.FORMULATEXT(C174),FIND("!",_xlfn.FORMULATEXT(C174))+2,3)) -> MTD (0-10,000)
A175: Transmisión
A176: - Demanda Máxima | B176: 0.82 | C176: =+'RES DE ACT TARIFARIA-1000'!O$116 -> 1.84 | E176: =+INDIRECT(MID(MID(_xlfn.FORMULATEXT(C176),1,FIND("!",_xlfn.FORMULATEXT(C176))),3,100)&"A"&MID(_xlfn.FORMULATEXT(C176),FIND("!",_xlfn.FORMULATEXT(C176))+3,3)) -> MTD
A177: - Energía | B177: 0.00578 | C177: =+'RES DE ACT TARIFARIA-1000'!O$96 -> 0.00414 | E177: =+INDIRECT(MID(MID(_xlfn.FORMULATEXT(C177),1,FIND("!",_xlfn.FORMULATEXT(C177))),3,100)&"A"&MID(_xlfn.FORMULATEXT(C177),FIND("!",_xlfn.FORMULATEXT(C177))+2,3)) -> MTD (0-10,000)
A178: - Pérdidas de Energía en Transmisión | B178: 0.00247 | C178: =+'RES DE ACT TARIFARIA-1000'!O$137 -> 0.00449 | E178: =+INDIRECT(MID(MID(_xlfn.FORMULATEXT(C178),1,FIND("!",_xlfn.FORMULATEXT(C178))),3,100)&"A"&MID(_xlfn.FORMULATEXT(C178),FIND("!",_xlfn.FORMULATEXT(C178))+3,3)) -> MTD
A179: Generación
A180: - Demanda Máxima | B180: 1.79 | C180: =+'RES DE ACT TARIFARIA-1000'!O$172 -> 2.33 | E180: =+INDIRECT(MID(MID(_xlfn.FORMULATEXT(C180),1,FIND("!",_xlfn.FORMULATEXT(C180))),3,100)&"A"&MID(_xlfn.FORMULATEXT(C180),FIND("!",_xlfn.FORMULATEXT(C180))+3,3)) -> MTD
A181: - Energía | B181: 0.11049 | C181: =+'RES DE ACT TARIFARIA-1000'!O$205 -> 0.0907 | E181: =+INDIRECT(MID(MID(_xlfn.FORMULATEXT(C181),1,FIND("!",_xlfn.FORMULATEXT(C181))),3,100)&"A"&MID(_xlfn.FORMULATEXT(C181),FIND("!",_xlfn.FORMULATEXT(C181))+3,3)) -> MTD (0-10,000)
A182: - Potencia Energizada | B182: 0.02346 | C182: =+'RES DE ACT TARIFARIA-1000'!O$168 -> 0.03008 | E182: =+INDIRECT(MID(MID(_xlfn.FORMULATEXT(C182),1,FIND("!",_xlfn.FORMULATEXT(C182))),3,100)&"A"&MID(_xlfn.FORMULATEXT(C182),FIND("!",_xlfn.FORMULATEXT(C182))+3,3)) -> MTD
A183: MTD (10,001-30,000) | B183: Ene-Jun/2023 | C183: =+C160 -> Jul-Dic/2023
A184: Cargo Fijo | B184: 13.35 | C184: =+C189 -> 13.82
A185: Cargo por Energía | B185: 0.16376 | C185: =+C190+C193+C196+C197+C200+C201+C204+C205 -> 0.14847
A186: Cargo por Demanda Máxima | B186: 13.89 | C186: =+C192+C194+C199+C203 -> 20.61706
A188: Comercialización
A189: – Fijo | B189: 13.35 | C189: =+'RES DE ACT TARIFARIA-1000-T (2)'!L$15 -> 13.82 | E189: =+INDIRECT(MID(MID(_xlfn.FORMULATEXT(C189),1,FIND("!",_xlfn.FORMULATEXT(C189))),3,100)&"A"&MID(_xlfn.FORMULATEXT(C189),FIND("!",_xlfn.FORMULATEXT(C189))+2,3)) -> MTD (0-10,000)
A190: – Energía | B190: 0.0065 | C190: =+'RES DE ACT TARIFARIA-1000-T (2)'!L$31 -> 0.00786 | E190: =+INDIRECT(MID(MID(_xlfn.FORMULATEXT(C190),1,FIND("!",_xlfn.FORMULATEXT(C190))),3,100)&"A"&MID(_xlfn.FORMULATEXT(C190),FIND("!",_xlfn.FORMULATEXT(C190))+2,3)) -> MTD (0-10,000)
A191: Distribución
A192: - Demanda Máxima | B192: 11.28 | C192: =+'RES DE ACT TARIFARIA-1000-T (2)'!L$51 -> 16.19 | E192: =+INDIRECT(MID(MID(_xlfn.FORMULATEXT(C192),1,FIND("!",_xlfn.FORMULATEXT(C192))),3,100)&"A"&MID(_xlfn.FORMULATEXT(C192),FIND("!",_xlfn.FORMULATEXT(C192))+2,3)) -> MTD (0-10,000)
A193: - Pérdidas Energía en Distribución | B193: 0.0113 | C193: =+'RES DE ACT TARIFARIA-1000'!O$38 -> 0.00782 | E193: =+INDIRECT(MID(MID(_xlfn.FORMULATEXT(C193),1,FIND("!",_xlfn.FORMULATEXT(C193))),3,100)&"A"&MID(_xlfn.FORMULATEXT(C193),FIND("!",_xlfn.FORMULATEXT(C193))+2,3)) -> MTD (0-10,000)
A194: - Pérdidas Potencia en Distribución | B194: 0 | C194: =+'RES DE ACT TARIFARIA-1000'!O$58 + 'RES DE ACT TARIFARIA-1000'!O39 -> 0.25706 | E194: =+INDIRECT(MID(MID(_xlfn.FORMULATEXT(C194),1,FIND("!",_xlfn.FORMULATEXT(C194))),3,100)&"A"&MID(_xlfn.FORMULATEXT(C194),FIND("!",_xlfn.FORMULATEXT(C194))+2,3)) -> MTD (0-10,000)
A195: Alumbrado Público
A196: - Sistema | B196: 0.00143 | C196: =+'RES DE ACT TARIFARIA-1000-T (2)'!L$78 -> 0.00134 | E196: =+INDIRECT(MID(MID(_xlfn.FORMULATEXT(C196),1,FIND("!",_xlfn.FORMULATEXT(C196))),3,100)&"A"&MID(_xlfn.FORMULATEXT(C196),FIND("!",_xlfn.FORMULATEXT(C196))+2,3)) -> MTD (0-10,000)
A197: - Consumo de energía | B197: 0.00233 | C197: =+'RES DE ACT TARIFARIA-1000'!O$75 -> 0.00204 | E197: =+INDIRECT(MID(MID(_xlfn.FORMULATEXT(C197),1,FIND("!",_xlfn.FORMULATEXT(C197))),3,100)&"A"&MID(_xlfn.FORMULATEXT(C197),FIND("!",_xlfn.FORMULATEXT(C197))+2,3)) -> MTD (0-10,000)
A198: Transmisión
A199: - Demanda Máxima | B199: 0.82 | C199: =+'RES DE ACT TARIFARIA-1000'!O$116 -> 1.84 | E199: =+INDIRECT(MID(MID(_xlfn.FORMULATEXT(C199),1,FIND("!",_xlfn.FORMULATEXT(C199))),3,100)&"A"&MID(_xlfn.FORMULATEXT(C199),FIND("!",_xlfn.FORMULATEXT(C199))+2,3)) -> ATH
A200: - Energía | B200: 0.00578 | C200: =+'RES DE ACT TARIFARIA-1000'!O$96 -> 0.00414 | E200: =+INDIRECT(MID(MID(_xlfn.FORMULATEXT(C200),1,FIND("!",_xlfn.FORMULATEXT(C200))),3,100)&"A"&MID(_xlfn.FORMULATEXT(C200),FIND("!",_xlfn.FORMULATEXT(C200))+2,3)) -> MTD (0-10,000)
A201: - Pérdidas de Energía en Transmisión | B201: 0.00247 | C201: =+'RES DE ACT TARIFARIA-1000'!O$137 -> 0.00449 | E201: =+INDIRECT(MID(MID(_xlfn.FORMULATEXT(C201),1,FIND("!",_xlfn.FORMULATEXT(C201))),3,100)&"A"&MID(_xlfn.FORMULATEXT(C201),FIND("!",_xlfn.FORMULATEXT(C201))+3,3)) -> MTD
A202: Generación
A203: - Demanda Máxima | B203: 1.79 | C203: =+'RES DE ACT TARIFARIA-1000'!O$172 -> 2.33 | E203: =+INDIRECT(MID(MID(_xlfn.FORMULATEXT(C203),1,FIND("!",_xlfn.FORMULATEXT(C203))),3,100)&"A"&MID(_xlfn.FORMULATEXT(C203),FIND("!",_xlfn.FORMULATEXT(C203))+3,3)) -> MTD
A204: - Energía | B204: 0.11049 | C204: =+'RES DE ACT TARIFARIA-1000'!O$205 -> 0.0907 | E204: =+INDIRECT(MID(MID(_xlfn.FORMULATEXT(C204),1,FIND("!",_xlfn.FORMULATEXT(C204))),3,100)&"A"&MID(_xlfn.FORMULATEXT(C204),FIND("!",_xlfn.FORMULATEXT(C204))+3,3)) -> MTD (0-10,000)
A205: - Potencia Energizada | B205: 0.02346 | C205: =+'RES DE ACT TARIFARIA-1000'!O$168 -> 0.03008 | E205: =+INDIRECT(MID(MID(_xlfn.FORMULATEXT(C205),1,FIND("!",_xlfn.FORMULATEXT(C205))),3,100)&"A"&MID(_xlfn.FORMULATEXT(C205),FIND("!",_xlfn.FORMULATEXT(C205))+3,3)) -> MTD
A206: MTD (30,001-50,000) | B206: Ene-Jun/2023 | C206: =+C183 -> Jul-Dic/2023
A207: Cargo Fijo | B207: 13.35 | C207: =+C212 -> 13.82
A208: Cargo por Energía | B208: 0.16376 | C208: =+C213+C216+C219+C220+C223+C224+C227+C228 -> 0.14847
A209: Cargo por Demanda Máxima | B209: 13.89 | C209: =+C215+C217+C222+C226 -> 20.61706
A211: Comercialización
A212: – Fijo | B212: 13.35 | C212: =+'RES DE ACT TARIFARIA-1000-T (2)'!L$15 -> 13.82 | E212: =+INDIRECT(MID(MID(_xlfn.FORMULATEXT(C212),1,FIND("!",_xlfn.FORMULATEXT(C212))),3,100)&"A"&MID(_xlfn.FORMULATEXT(C212),FIND("!",_xlfn.FORMULATEXT(C212))+2,3)) -> MTD (0-10,000)
A213: – Energía | B213: 0.0065 | C213: =+'RES DE ACT TARIFARIA-1000-T (2)'!L$31 -> 0.00786 | E213: =+INDIRECT(MID(MID(_xlfn.FORMULATEXT(C213),1,FIND("!",_xlfn.FORMULATEXT(C213))),3,100)&"A"&MID(_xlfn.FORMULATEXT(C213),FIND("!",_xlfn.FORMULATEXT(C213))+2,3)) -> MTD (0-10,000)
A214: Distribución
... 227 more rows

Sheet CONTENIDO formularios
A1: FORM | B1: DETALLE DEL FORMULARIO
A2: AT100 | B2: INDICE DE PRECIOS AL CONSUMIDOR
A3: AT101 | B3: INGRESOS ESTIMADOS PARA p APLICANDO LOS NUEVOS CARGOS TARIFARIOS DE COMERCIALIZACION EN LA TARIFA
A4: AT102 | B4: INGRESOS ESTIMADOS PARA p APLICANDO LOS CARGOS TARIFARIOS DE COMERCIALIZACION EN LA TARIFA DE p-1
A5: AT103 | B5: INGRESOS ESTIMADOS PARA p APLICANDO LOS NUEVOS CARGOS TARIFARIOS DE DISTRIBUCION EN LA TARIFA
A6: AT104 | B6: INGRESOS ESTIMADOS PARA p APLICANDO LOS CARGOS TARIFARIOS DE DISTRIBUCION EN LA TARIFA DE p-1
A7: AT200 | B7: PARTICIPACIÓN DEL CONSUMO DE ENERGÍA DE LAS CATEGORÍAS SIN MEDICIÓN HORARIA EN EL BLOQUE HORARIO
A8: AT201 | B8: INGRESOS ESTIMADOS PARA p APLICANDO LOS NUEVOS CARGOS TARIFARIOS DE PERDIDAS EN DISTRIBUCION EN LA TARIFA
A9: AT202 | B9: INGRESOS ESTIMADOS PARA p APLICANDO LOS CARGOS TARIFARIOS DE PERDIDAS EN DISTRIBUCION EN LA TARIFA DE p-1
A10: AT302 | B10: INFORMACION PARA ACTUALIZAR CARGO POR TRANSMISION - DATOS RELACIONADOS A CLIENTES CONECTADOS A LA RED DE LA DISTRIBUIDORA PARA p
A11: AT303 | B11: INGRESOS ESTIMADOS APLICANDO LOS CARGOS BASE DE TRANSMISION DE p-1 A LA PROYECCION DE VENTAS PARA p
A12: AT304 | B12: INGRESOS ESTIMADOS PARA p APLICANDO LOS NUEVOS CARGOS TARIFARIOS DE TRANSMISION EN LA TARIFA
A13: AT305 | B13: INGRESOS ESTIMADOS PARA p APLICANDO LOS CARGOS TARIFARIOS DE TRANSMISIÓN DE p-1 A LA PROYECCION DE VENTAS DE p
A14: AT306 | B14: INGRESOS ESTIMADOS PARA p-2 APLICANDO LOS CARGOS BASE DE TRANSMISIÓN DE p-2 A LAS VENTAS REALES DE p-2
A15: AT307 | B15: INGRESOS REALES PARA p-2 APLICANDO LOS CARGOS CORREC DE TRANSMISIÓN DE p-2 A LAS VENTAS REALES DE p-2
A16: AT308 | B16: INGRESOS PERMITIDOS PARA p-2 APLICANDO LOS CARGOS CORREC DE TRANSMISIÓN DE p-2 A LAS VENTAS ESTIMADAS DE p-2
A17: AT322 | B17: INFORMACION PARA ACTUALIZAR CARGO POR TRANSMISION - DATOS RELACIONADOS A CLIENTES CONECTADOS A LA RED DE LA DISTRIBUIDORA PARA p-2
A18: AT402 | B18: INFORMACION PARA ACTUALIZAR CARGO POR PERDIDAS EN TRANSMISION - DATOS RELACIONADOS A CLIENTES NO ABASTECIDOS POR OTRO AGENTE PARA p
A19: AT403 | B19: INGRESOS ESTIMADOS APLICANDO LOS CARGOS BASE DE PERDIDAS EN TRANSMISION DE p-1 A LA PROYECCION DE VENTAS PARA p
A20: AT404 | B20: INGRESOS ESTIMADOS PARA p APLICANDO LOS NUEVOS CARGOS TARIFARIOS DE PERDIDAS EN TRANSMISION EN LA TARIFA
A21: AT405 | B21: INGRESOS ESTIMADOS PARA p APLICANDO LOS CARGOS TARIFARIOS DE PERDIDAS EN TRANSMISIÓN DE p-1 A LA PROYECCION DE VENTAS DE p
A22: AT406 | B22: INGRESOS ESTIMADOS PARA p-2 APLICANDO LOS CARGOS BASE DE PERDIDAS EN TRANSMISIÓN DE p-2 A LAS VENTAS REALES DE p-2
A23: AT407 | B23: INGRESOS REALES PARA p-2 APLICANDO LOS CARGOS CORREC DE PÉRDIDAS EN TRANSMISIÓN DE p-2 A LAS VENTAS REALES DE p-2
A24: AT408 | B24: INGRESOS PERMITIDOS PARA p-2 APLICANDO LOS CARGOS CORREC DE PÉRDIDAS EN TRANSMISIÓN DE p-2 A LAS VENTAS ESTIMADAS DE p-2
A25: AT422 | B25: INFORMACION PARA ACTUALIZAR CARGO POR PERDIDAS DE ENERGIA EN TRANSMISION - DATOS RELACIONADOS A CLIENTES NO ABASTECIDOS POR OTRO AGENTE PARA p-2
A26: AT502 | B26: INFORMACION PARA ACTUALIZAR CARGO POR GENERACION - DATOS RELACIONADOS A CLIENTES NO ABASTECIDOS POR OTRO AGENTE PARA p
A27: AT503 | B27: INGRESOS ESTIMADOS APLICANDO LOS CARGOS BASE DE GENERACION DE p-1 A LA PROYECCION DE VENTAS PARA p
A28: AT504 | B28: INGRESOS ESTIMADOS PARA p APLICANDO LOS NUEVOS CARGOS TARIFARIOS DE GENERACION EN LA TARIFA
A29: AT505 | B29: INGRESOS ESTIMADOS PARA p APLICANDO LOS CARGOS TARIFARIOS DE GENERACION DE p-1 A LA PROYECCION DE VENTAS DE p
A30: AT505 CVC | B30: INGRESOS ESTIMADOS APLICANDO LOS CARGOS POR VARIACIÓN POR COMBUSTIBLE APLICADOS EN p-1 A LA PROYECCIÓN DE VENTAS DE p
A31: AT506 | B31: INGRESOS ESTIMADOS PARA p-2 APLICANDO LOS CARGOS BASE DE GENERACION DE p-2 A LAS VENTAS REALES DE p-2
A32: AT506 CVC | B32: INGRESOS ESTIMADOS PARA p-2 APLICANDO LOS CARGOS VARIACION POR COMBUSTIBLE DE p-2 A LAS VENTAS REALES DE p-2
A33: AT507 | B33: INGRESOS REALES PARA p-2 APLICANDO LOS CARGOS CORREC DE GENERACION DE p-2 A LAS VENTAS REALES DE p-2
A34: AT508 | B34: INGRESOS PERMITIDOS PARA p-2 APLICANDO LOS CARGOS CORREC DE GENERACION DE p-2 A LAS VENTAS ESTIMADAS DE p-2
A35: AT509 | B35: INTERESES GENERADOS DENTRO DEL PERIODO TARIFARIO P-2 OCASIONADOS POR EL DESFASE DEL CARGO VARIACION POR COMBUSTIBLE
A36: AT522 | B36: INFORMACION PARA ACTUALIZAR CARGO POR GENERACION - DATOS RELACIONADOS A CLIENTES NO ABASTECIDOS POR OTRO AGENTE PARA p-2
A37: AT531 | B37: REQUERIMIENTOS DE ENERGIA PARA EL PERIODO p
A38: AT602 | B38: CONSUMO DE ENERGIA DE ALUMBRADO PUBLICO PARA p
A39: AT603 | B39: INGRESOS ESTIMADOS APLICANDO LOS CARGOS TARIFARIOS DE ALUMBRADO PUBLICO DE p-1 A LA PROYECCION DE VENTAS PARA p
A40: AT604 | B40: INGRESOS ESTIMADOS PARA p APLICANDO LOS NUEVOS CARGOS TARIFARIOS DE ALUMBRADO PUBLICO EN LA TARIFA
A41: AT622 | B41: CONSUMO DE ENERGIA DEL ALUMBRADO PUBLICO PARA p-2
A42: AT700 | B42: TASAS DE INTERES
A43: AT800 | B43: ESTRUCTURA DE MERCADO
A44: AT801- Clientes | B44: PROYECCION DE CANTIDAD DE CLIENTES PARA EL SEMESTRE p
A45: AT801- Energía | B45: PROYECCION DE VENTAS DE ENERGIA PARA EL SEMESTRE p
A46: AT801- Demanda | B46: PROYECCION DE DEMANDA PARA EL SEMESTRE p
A47: AT821- Clientes | B47: CANTIDAD DE CLIENTES EN EL SEMESTRE p-2
A48: AT821- Energía | B48: VENTAS DE ENERGIA FACTURADAS EN EL SEMESTRE p-2
A49: AT821- Energía - A | B49: VENTAS DE ENERGIA FACTURADAS EN EL SEMESTRE p-2
A50: AT821- Demanda | B50: DEMANDA FACTURADA EN EL SEMESTRE p-2
A51: AT821- Clientes Estimado Original | B51: CANTIDAD DE CLIENTES EN EL SEMESTRE p-2
A52: AT821- Energía Estimado Original | B52: VENTAS DE ENERGIA FACTURADAS EN EL SEMESTRE p-2
A53: AT821- Demanda Estimado Original | B53: DEMANDA FACTURADA EN EL SEMESTRE p-2
A54: AT811- Clientes BTS por rango de Consumo | B54: CANTIDAD DE CLIENTES BTS POR RANGO DE CONSUMO EN EL SEMESTRE p-1
A55: AT811- Energía BTS por rango de Consumo | B55: VENTAS DE ENERGIA FACTURADA A CLIENTES BTS POR RANGO DE CONSUMO EN EL SEMESTRE p-1

Sheet COMER DISTR Y AP-100
A1: INFORMACION PARA ACTUALIZAR:
A2: =+[1]Fecha!$A$1 -> EDEMET | C2: CARGOS DE COMERCIALIZACION, DISTRIBUCION
C3: Y SERVICIO DE ALUMBRADO PUBLICO
A5: INDICE DE PRECIOS AL CONSUMIDOR
A6: PUBLICADOS POR CONTRALORIA GENERAL DE LA REPUBLICA
A8: ="Actualización: "&[1]Fecha!T4 -> Actualización: Jul-Dic/2023
B9: =+"Semestre p-2 "&[1]Fecha!T8 -> Semestre p-2 Jul-Dic/2022 | E9: =+"Semestre p-3 "&[1]Fecha!T9 -> Semestre p-3 Ene-Jun/2022
A10: =+RIGHT(B9,8) -> Dic/2022 | B10: =+IF($A$2="EDEMET",SUMIF($A$18:$A$127,A10,$C$18:$C$127),SUMIF($A$18:$A$127,A10,$B$18:$B$127)) -> 107.845 | D10: =+RIGHT(E9,8) -> Jun/2022 | E10: =+IF($A$2="EDEMET",SUMIF($A$18:$A$127,D10,$C$18:$C$127),SUMIF($A$18:$A$127,D10,$B$18:$B$127)) -> 110.3114
A11: Jun/2022 | B11: =+IF($A$2="EDEMET",SUMIF($A$18:$A$127,A11,$C$18:$C$127),SUMIF($A$18:$A$127,A11,$B$18:$B$127)) -> 110.3114 | D11: Dic/2021 | E11: =+IF($A$2="EDEMET",SUMIF($A$18:$A$127,D11,$C$18:$C$127),SUMIF($A$18:$A$127,D11,$B$18:$B$127)) -> 105.653
A13: Fuente: Boletín de Estadística Panameña: Indice de Precios al por Mayor y al Consumidor.
A14: Situación Económica. Dirección de Estadística y Censo. Contraloría General de la República.
B17: IPC Resto Urbano (Áreas urbanas de los distritos Colón, La Chorrera, Aguadulce, Chitré, Santiago, David y Changuinola) EDECHI | C17: IPC (Nacional Urbano, DISTRITOS DE PANAMÁ Y SAN MIGUELITO) EDEMET
A18: 2015-12-01 | B18: 102.7 | C18: 102.5 | D18: http://www.contraloria.gob.pa/inec/Avance/Avance.aspx?ID_CATEGORIA=2&ID_CIFRAS=10
A19: 2016-01-01 | B19: 102.8 | C19: 102.6
A20: 2016-02-01 | B20: 102.7 | C20: 102.7
A21: 2016-03-01 | B21: 103.1 | C21: 103
A22: 2016-04-01 | B22: 103.6 | C22: 103.5
A23: 2016-05-01 | B23: 103.8 | C23: 103.7
A24: 2016-06-01 | B24: 103.8 | C24: 103.6
A25: 2016-07-01 | B25: 103.9 | C25: 103.7
A26: 2016-08-01 | B26: 103.8 | C26: 103.7
A27: 2016-09-01 | B27: 104 | C27: 103.9
A28: 2016-10-01 | B28: 104.1 | C28: 104
A29: 2016-11-01 | B29: 104.1 | C29: 103.9
A30: 2016-12-01 | B30: 104.2 | C30: 104
A31: 2017-01-01 | B31: 104.6 | C31: 104.3
A32: 2017-02-01 | B32: 104.8 | C32: 104.6
A33: 2017-03-01 | B33: 104.8 | C33: 104.5
A34: 2017-04-01 | B34: 104.9 | C34: 104.5
A35: 2017-05-01 | B35: 104.9 | C35: 104.5
A36: 2017-06-01 | B36: 104.7 | C36: 104.3
A37: 2017-07-01 | B37: 104.5 | C37: 104.1
A38: 2017-08-01 | B38: 104.8 | C38: 104.4
A39: 2017-09-01 | B39: 105.1 | C39: 104.7
A40: 2017-10-01 | B40: 104.8 | C40: 104.5
A41: 2017-11-01 | B41: 105 | C41: 104.3
A42: 2017-12-01 | B42: 105.1 | C42: 104.5
A43: 2018-01-01 | B43: 105.4 | C43: 104.7
A44: 2018-02-01 | B44: 106 | C44: 105
A45: 2018-03-01 | B45: 106 | C45: 105.1
A46: 2018-04-01 | B46: 106.2 | C46: 105.3
A47: 2018-05-01 | B47: 106.4 | C47: 105.3
A48: 2018-06-01 | B48: 106.4989 | C48: 105.5165
A49: 2018-07-01 | B49: 106.4828 | C49: 105.4581
A50: 2018-08-01 | B50: 106.6133 | C50: 105.527
A51: 2018-09-01 | B51: 106.5504 | C51: 105.4892
A52: 2018-10-01 | B52: 106.7814 | C52: 105.5743
A53: 2018-11-01 | B53: 106.2618 | C53: 105.1135 | D53: http://www.contraloria.gob.pa/inec
A54: 2018-12-01 | B54: 105.8339 | C54: 104.6655 | D54: http://www.contraloria.gob.pa/inec/archivos/A101Cuadro%2013.xlsx
A55: 2019-01-01 | B55: 105.4655 | C55: 104.3809 | D55: http://www.contraloria.gob.pa/inec/archivos/A101Cuadro%203.xlsx
A56: 2019-02-01 | B56: 105.6598 | C56: 104.4745
A57: 2019-03-01 | B57: 106.0612 | C57: 104.9066
A58: 2019-04-01 | B58: 106.3899 | C58: 105.2011
A59: 2019-05-01 | B59: 106.5792 | C59: 105.2952
A60: 2019-06-01 | B60: 106.1403 | C60: 104.9465
A61: 2019-07-01 | B61: 106.4336 | C61: 105.1781
A62: 2019-08-01 | B62: 106.1956 | C62: 104.8884
A63: 2019-09-01 | B63: 106.1487 | C63: 104.8386
A64: 2019-10-01 | B64: 106.1353 | C64: 104.7837
A65: 2019-11-01 | B65: 105.9484 | C65: 104.7681
A66: 2019-12-01 | B66: 105.8437 | C66: 104.5986
A67: 2020-01-01 | B67: 106.0203 | C67: 104.7523
A68: 2020-02-01 | B68: 105.6741 | C68: 104.4896
A69: 2020-03-01 | B69: 105.2421 | C69: 104.0257
A70: 2020-04-01 | B70: 103.9293 | C70: 102.704 | D70: https://www.inec.gob.pa/archivos/A0705547520200904124534Cuadro13.xlsx | I70: https://www.inec.gob.pa/archivos/A0705547520200904113941Cuadro3.xlsx
A71: 2020-05-01 | B71: 103.944 | C71: 102.6954
A72: 2020-06-01 | B72: 103.9 | C72: 102.7
A73: 2020-07-01 | B73: 104.1645 | C73: 102.8116
A74: 2020-08-01 | B74: 104.1751 | C74: 102.8287
A75: 2020-09-01 | B75: 104.2554 | C75: 102.8901
A76: 2020-10-01 | B76: 104.1443 | C76: 102.7416
A77: 2020-11-01 | B77: 104.1016 | C77: 102.6344
A78: 2020-12-01 | B78: 104.4206 | C78: 102.9512 | D78: https://www.inec.gob.pa/archivos/A0774740120210302152541Cuadro14.xlsx | I78: https://www.inec.gob.pa/archivos/A00140176420210302150259Cuadro4.xlsx
A79: 2021-01-01 | B79: 104.8083 | C79: 103.2744
A80: 2021-02-01 | B80: 105.1932 | C80: 103.8777
A81: 2021-03-01 | B81: 105.7384 | C81: 104.3257
A82: 2021-04-01 | B82: 105.8012 | C82: 104.4554
A83: 2021-05-01 | B83: 106.0035 | C83: 104.6713
A84: 2021-06-01 | B84: 106.2157 | C84: 104.8603 | D84: https://www.inec.gob.pa
A85: 2021-07-01 | B85: 106.6471 | C85: 105.2507 | D85: https://www.inec.gob.pa/archivos/A0705547520210813103016Cuadro13.xlsx | I85: https://www.inec.gob.pa/archivos/A0705547520210813102551Cuadro3.xlsx
A86: 2021-08-01 | B86: 106.7298 | C86: 105.2891
A87: 2021-09-01 | B87: 106.8191 | C87: 105.4479
A88: 2021-10-01 | B88: 107.1836 | C88: 105.7653 | D88: https://www.inec.gob.pa/archivos/A0774740120211115141045Cuadro13.xlsx | I88: https://www.inec.gob.pa/archivos/A0705547520211115140603Cuadro3.xlsx
A89: 2021-11-01 | B89: 107.5119 | C89: 106.0834
A90: 2021-12-01 | B90: 107.1067 | C90: 105.653 | D90: https://inec.gob.pa/archivos/A053342420220114142934Cuadro13.xlsx | I90: https://inec.gob.pa/archivos/A0579518620220114152535Cuadro3.xlsx
A91: 2022-01-01 | B91: 107.4349 | C91: 105.9866
A92: 2022-02-01 | B92: 108.3053 | C92: 106.7193
A93: 2022-03-01 | B93: 109.2342 | C93: 107.6479
A94: 2022-04-01 | B94: 109.9064 | C94: 108.2685
A95: 2022-05-01 | B95: 110.8149 | C95: 109.0885
A96: 2022-06-01 | B96: 111.9952 | C96: 110.3114 | D96: https://inec.gob.pa/archivos/A0705547520220715133157Cuadro13.xlsx | I96: https://inec.gob.pa/archivos/A0705547520220715132704Cuadro3.xlsx
A97: 2022-07-01 | B97: 110.6224 | C97: 108.9409
A98: 2022-08-01 | B98: 109.1482 | C98: 107.4655
A99: 2022-09-01 | B99: 109.2 | C99: 107.5 | D99: https://www.inec.gob.pa/archivos/A0289562520221014161448Cuadro13.xlsx | I99: https://www.inec.gob.pa/archivos/A0705547520221014160900Cuadro3.xlsx
A100: 2022-10-01 | B100: 109.2 | C100: 107.5296
A101: 2022-11-01 | B101: 109.3 | C101: 107.6666
A102: 2022-12-01 | B102: 109.5 | C102: 107.845 | D102: https://inec.gob.pa/archivos/A030194820230113105945Cuadro13.xlsx | I102: https://inec.gob.pa/archivos/A053342420230113105109Cuadro3.xlsx

Sheet COMER DISTR Y AP-101
A1: INFORMACION PARA ACTUALIZAR: CARGOS DE COMERCIALIZACIÓN | J1: INFORMACION PARA ACTUALIZAR: CARGOS DE COMERCIALIZACIÓN | S1: INFORMACION PARA ACTUALIZAR: CARGOS DE COMERCIALIZACIÓN
A2: =+[1]Fecha!$A$1 -> EDEMET | J2: =+[1]Fecha!$A$1 -> EDEMET | S2: =+[1]Fecha!$A$1 -> EDEMET
A4: Ingresos estimados que resultan de aplicar los cargos tarifarios por comercialización para cada clase de cliente que contienen las tarifas actualizadas para el semestre p a la proyección de clientes y ventas de energía de clientes que no se encuentran abastecidos por otro agente, por categoría tarifaria, del semestre p | J4: Ingresos estimados que resultan de aplicar los cargos tarifarios por comercialización para cada clase de cliente que contienen las tarifas actualizadas para el semestre p a la proyección de clientes y ventas de energía de clientes que no se encuentran abastecidos por otro agente, por categoría tarifaria, del semestre p | S4: Ingresos estimados que resultan de aplicar los cargos tarifarios por comercialización para cada clase de cliente que contienen las tarifas actualizadas para el semestre p a la proyección de clientes y ventas de energía de clientes que no se encuentran abastecidos por otro agente, por categoría tarifaria, del semestre p
A6: Nuevos Cargos por Comercialización en p | B6: CCOMFi,p | C6: CCOMVi,p | J6: Nuevos Cargos por Comercialización en p | K6: CCOMFi,p | L6: CCOMVi,p | S6: Nuevos Cargos por Comercialización en p | T6: CCOMFi,p | U6: CCOMVi,p
A7: Tarifa ATH | B7: =+'RES DE ACT TARIFARIA-1000-T (2)'!$L21 -> 13.88 | C7: =+'RES DE ACT TARIFARIA-1000-T (2)'!$L37 -> 0.00785 | J7: Tarifa ATH | K7: =+'RES DE ACT TARIFARIA-1000-T (2)'!$L21 -> 13.88 | S7: Tarifa ATH | U7: =+'RES DE ACT TARIFARIA-1000-T (2)'!$L37 -> 0.00785
A8: Tarifa ATD | B8: =+'RES DE ACT TARIFARIA-1000-T (2)'!$L20 -> 13.88 | C8: =+'RES DE ACT TARIFARIA-1000-T (2)'!$L36 -> 0.00785 | J8: Tarifa ATD | K8: =+'RES DE ACT TARIFARIA-1000-T (2)'!$L20 -> 13.88 | S8: Tarifa ATD | U8: =+'RES DE ACT TARIFARIA-1000-T (2)'!$L36 -> 0.00785
A9: Tarifa MTH | B9: =+'RES DE ACT TARIFARIA-1000-T (2)'!$L19 -> 13.88 | C9: =+'RES DE ACT TARIFARIA-1000-T (2)'!$L35 -> 0.00785 | J9: Tarifa MTH | K9: =+'RES DE ACT TARIFARIA-1000-T (2)'!$L19 -> 13.88 | S9: Tarifa MTH | U9: =+'RES DE ACT TARIFARIA-1000-T (2)'!$L35 -> 0.00785
A10: MTD (0-10,000) | B10: =+'RES DE ACT TARIFARIA-1000-T (2)'!$L15 -> 13.82 | C10: =+'RES DE ACT TARIFARIA-1000-T (2)'!$L31 -> 0.00786 | J10: MTD (0-10,000) | K10: =+'RES DE ACT TARIFARIA-1000-T (2)'!$L15 -> 13.82 | S10: MTD (0-10,000) | U10: =+'RES DE ACT TARIFARIA-1000-T (2)'!$L31 -> 0.00786
A11: MTD (10,001-30,000) | B11: =+'RES DE ACT TARIFARIA-1000-T (2)'!$L16 -> 13.82 | C11: =+'RES DE ACT TARIFARIA-1000-T (2)'!$L32 -> 0.00786 | J11: MTD (10,001-30,000) | K11: =+'RES DE ACT TARIFARIA-1000-T (2)'!$L16 -> 13.82 | S11: MTD (10,001-30,000) | U11: =+'RES DE ACT TARIFARIA-1000-T (2)'!$L32 -> 0.00786
A12: MTD (30,001-50,000) | B12: =+'RES DE ACT TARIFARIA-1000-T (2)'!$L17 -> 13.82 | C12: =+'RES DE ACT TARIFARIA-1000-T (2)'!$L33 -> 0.00786 | J12: MTD (30,001-50,000) | K12: =+'RES DE ACT TARIFARIA-1000-T (2)'!$L17 -> 13.82 | S12: MTD (30,001-50,000) | U12: =+'RES DE ACT TARIFARIA-1000-T (2)'!$L33 -> 0.00786
A13: MTD (50,001-más) | B13: =+'RES DE ACT TARIFARIA-1000-T (2)'!$L18 -> 13.82 | C13: =+'RES DE ACT TARIFARIA-1000-T (2)'!$L34 -> 0.00786 | J13: MTD (50,001-más) | K13: =+'RES DE ACT TARIFARIA-1000-T (2)'!$L18 -> 13.82 | S13: MTD (50,001-más) | U13: =+'RES DE ACT TARIFARIA-1000-T (2)'!$L34 -> 0.00786
A14: Tarifa BTH | B14: =+'RES DE ACT TARIFARIA-1000-T (2)'!$L14 -> 5.49 | C14: =+'RES DE ACT TARIFARIA-1000-T (2)'!$L30 -> 0.00785 | J14: Tarifa BTH | K14: =+'RES DE ACT TARIFARIA-1000-T (2)'!$L14 -> 5.49 | S14: Tarifa BTH | U14: =+'RES DE ACT TARIFARIA-1000-T (2)'!$L30 -> 0.00785
A15: BTD (0-10,000) | B15: =+'RES DE ACT TARIFARIA-1000-T (2)'!$L10 -> 5.48 | C15: =+'RES DE ACT TARIFARIA-1000-T (2)'!$L26 -> 0.00786 | J15: BTD (0-10,000) | K15: =+'RES DE ACT TARIFARIA-1000-T (2)'!$L10 -> 5.48 | S15: BTD (0-10,000) | U15: =+'RES DE ACT TARIFARIA-1000-T (2)'!$L26 -> 0.00786
A16: BTD (10,001-30,000) | B16: =+'RES DE ACT TARIFARIA-1000-T (2)'!$L11 -> 5.48 | C16: =+'RES DE ACT TARIFARIA-1000-T (2)'!$L27 -> 0.00786 | J16: BTD (10,001-30,000) | K16: =+'RES DE ACT TARIFARIA-1000-T (2)'!$L11 -> 5.48 | S16: BTD (10,001-30,000) | U16: =+'RES DE ACT TARIFARIA-1000-T (2)'!$L27 -> 0.00786
A17: BTD (30,001-50,000) | B17: =+'RES DE ACT TARIFARIA-1000-T (2)'!$L12 -> 5.48 | C17: =+'RES DE ACT TARIFARIA-1000-T (2)'!$L28 -> 0.00786 | J17: BTD (30,001-50,000) | K17: =+'RES DE ACT TARIFARIA-1000-T (2)'!$L12 -> 5.48 | S17: BTD (30,001-50,000) | U17: =+'RES DE ACT TARIFARIA-1000-T (2)'!$L28 -> 0.00786
A18: BTD (50,001-más) | B18: =+'RES DE ACT TARIFARIA-1000-T (2)'!$L13 -> 5.48 | C18: =+'RES DE ACT TARIFARIA-1000-T (2)'!$L29 -> 0.00786 | J18: BTD (50,001-más) | K18: =+'RES DE ACT TARIFARIA-1000-T (2)'!$L13 -> 5.48 | S18: BTD (50,001-más) | U18: =+'RES DE ACT TARIFARIA-1000-T (2)'!$L29 -> 0.00786
A19: Tarifa BTS (0-300) | B19: =+'RES DE ACT TARIFARIA-1000-T (2)'!$L7 -> 3.05 | C19: =+'RES DE ACT TARIFARIA-1000-T (2)'!$L23 -> 0.00843 | J19: Tarifa BTS (0-300) | K19: =+'RES DE ACT TARIFARIA-1000-T (2)'!$L7 -> 3.05 | S19: Tarifa BTS (0-300) | U19: =+'RES DE ACT TARIFARIA-1000-T (2)'!$L23 -> 0.00843
A20: Tarifa BTS (301-750) | B20: =+'RES DE ACT TARIFARIA-1000-T (2)'!$L8 -> 3.05 | C20: =+'RES DE ACT TARIFARIA-1000-T (2)'!$L24 -> 0.00843 | J20: Tarifa BTS (301-750) | K20: =+'RES DE ACT TARIFARIA-1000-T (2)'!$L8 -> 3.05 | S20: Tarifa BTS (301-750) | U20: =+'RES DE ACT TARIFARIA-1000-T (2)'!$L24 -> 0.00843
A21: Tarifa BTS (751-más) | B21: =+'RES DE ACT TARIFARIA-1000-T (2)'!$L9 -> 3.05 | C21: =+'RES DE ACT TARIFARIA-1000-T (2)'!$L25 -> 0.00843 | J21: Tarifa BTS (751-más) | K21: =+'RES DE ACT TARIFARIA-1000-T (2)'!$L9 -> 3.05 | S21: Tarifa BTS (751-más) | U21: =+'RES DE ACT TARIFARIA-1000-T (2)'!$L25 -> 0.00843
A22: Tarifa BTS (0-300) | B22: =+'RES DE ACT TARIFARIA-1000-T (2)'!$L101 -> 3.05 | C22: =+'RES DE ACT TARIFARIA-1000-T (2)'!$L106 -> 0.00843 | J22: =+IF($A$2="EDECHI","Tarifa BTS (0-300) Chang","") ->  | K22: =+'RES DE ACT TARIFARIA-1000-T (2)'!$L101 -> 3.05 | S22: =+IF($A$2="EDECHI","Tarifa BTS (0-300) Chang","") ->  | U22: =+'RES DE ACT TARIFARIA-1000-T (2)'!$L106 -> 0.00843
A23: Tarifa BTS (301-750) | B23: =+'RES DE ACT TARIFARIA-1000-T (2)'!$L102 -> 3.05 | C23: =+'RES DE ACT TARIFARIA-1000-T (2)'!$L107 -> 0.00843 | J23: =+IF($A$2="EDECHI","Tarifa BTS (301-750) Chang","") ->  | K23: =+'RES DE ACT TARIFARIA-1000-T (2)'!$L102 -> 3.05 | S23: =+IF($A$2="EDECHI","Tarifa BTS (301-750) Chang","") ->  | U23: =+'RES DE ACT TARIFARIA-1000-T (2)'!$L107 -> 0.00843
A24: Tarifa BTS (751-más) | B24: =+'RES DE ACT TARIFARIA-1000-T (2)'!$L103 -> 3.05 | C24: =+'RES DE ACT TARIFARIA-1000-T (2)'!$L108 -> 0.00843 | J24: =+IF($A$2="EDECHI","Tarifa BTS (751-más) Chang","") ->  | K24: =+'RES DE ACT TARIFARIA-1000-T (2)'!$L103 -> 3.05 | S24: =+IF($A$2="EDECHI","Tarifa BTS (751-más) Chang","") ->  | U24: =+'RES DE ACT TARIFARIA-1000-T (2)'!$L108 -> 0.00843
A25: PREPAGO | B25: =+'RES DE ACT TARIFARIA-1000-T (2)'!$L125 -> 0.01088 | C25: =+'RES DE ACT TARIFARIA-1000-T (2)'!$L126 -> 0.00852 | J25: PREPAGO | K25: =+'RES DE ACT TARIFARIA-1000-T (2)'!$L125 -> 0.01088 | S25: PREPAGO | U25: =+'RES DE ACT TARIFARIA-1000-T (2)'!$L126 -> 0.00852
A26: BTSH_1 | J26: BTSH_1 | S26: BTSH_1
A27: BTSH_1 Punta | B27: =+'RES DE ACT TARIFARIA-1000-T (2)'!$L131 -> 3.06 | C27: =+'RES DE ACT TARIFARIA-1000-T (2)'!$L134 -> 0.0081 | J27: BTSH_1 Punta | K27: =+'RES DE ACT TARIFARIA-1000-T (2)'!$L131 -> 3.06 | S27: BTSH_1 Punta | U27: =+'RES DE ACT TARIFARIA-1000-T (2)'!$L134 -> 0.0081
A28: BTSH_1 Fuera de Punta Medio | B28: =+'RES DE ACT TARIFARIA-1000-T (2)'!$L131 -> 3.06 | C28: =+'RES DE ACT TARIFARIA-1000-T (2)'!$L135 -> 0.0081 | J28: BTSH_1 Fuera de Punta Medio | K28: =+'RES DE ACT TARIFARIA-1000-T (2)'!$L131 -> 3.06 | S28: BTSH_1 Fuera de Punta Medio | U28: =+'RES DE ACT TARIFARIA-1000-T (2)'!$L135 -> 0.0081
A29: BTSH_1 Fuera de Punta Bajo | B29: =+'RES DE ACT TARIFARIA-1000-T (2)'!$L131 -> 3.06 | C29: =+'RES DE ACT TARIFARIA-1000-T (2)'!$L136 -> 0.0081 | J29: BTSH_1 Fuera de Punta Bajo | K29: =+'RES DE ACT TARIFARIA-1000-T (2)'!$L131 -> 3.06 | S29: BTSH_1 Fuera de Punta Bajo | U29: =+'RES DE ACT TARIFARIA-1000-T (2)'!$L136 -> 0.0081
A30: BTSH_2 | J30: BTSH_2 | S30: BTSH_2
A31: BTSH_2 Punta | B31: =+'RES DE ACT TARIFARIA-1000-T (2)'!$L131 -> 3.06 | C31: =+'RES DE ACT TARIFARIA-1000-T (2)'!$L138 -> 0 | J31: BTSH_2 Punta | K31: =+'RES DE ACT TARIFARIA-1000-T (2)'!$L131 -> 3.06 | S31: BTSH_2 Punta | U31: =+'RES DE ACT TARIFARIA-1000-T (2)'!$L138 -> 0
A32: BTSH_2 Fuera de Punta Medio | B32: =+'RES DE ACT TARIFARIA-1000-T (2)'!$L131 -> 3.06 | C32: =+'RES DE ACT TARIFARIA-1000-T (2)'!$L139 -> 0 | J32: BTSH_2 Fuera de Punta Medio | K32: =+'RES DE ACT TARIFARIA-1000-T (2)'!$L131 -> 3.06 | S32: BTSH_2 Fuera de Punta Medio | U32: =+'RES DE ACT TARIFARIA-1000-T (2)'!$L139 -> 0
A33: BTSH_2 Fuera de Punta Bajo | B33: =+'RES DE ACT TARIFARIA-1000-T (2)'!$L131 -> 3.06 | C33: =+'RES DE ACT TARIFARIA-1000-T (2)'!$L140 -> 0 | J33: BTSH_2 Fuera de Punta Bajo | K33: =+'RES DE ACT TARIFARIA-1000-T (2)'!$L131 -> 3.06 | S33: BTSH_2 Fuera de Punta Bajo | U33: =+'RES DE ACT TARIFARIA-1000-T (2)'!$L140 -> 0
A34: BTSH_3 | J34: BTSH_3 | S34: BTSH_3
A35: BTSH_3 Punta | B35: =+'RES DE ACT TARIFARIA-1000-T (2)'!$L131 -> 3.06 | C35: =+'RES DE ACT TARIFARIA-1000-T (2)'!$L142 -> 0 | J35: BTSH_3 Punta | K35: =+'RES DE ACT TARIFARIA-1000-T (2)'!$L131 -> 3.06 | S35: BTSH_3 Punta | U35: =+'RES DE ACT TARIFARIA-1000-T (2)'!$L142 -> 0
A36: BTSH_3 Fuera de Punta Medio | B36: =+'RES DE ACT TARIFARIA-1000-T (2)'!$L131 -> 3.06 | C36: =+'RES DE ACT TARIFARIA-1000-T (2)'!$L143 -> 0 | J36: BTSH_3 Fuera de Punta Medio | K36: =+'RES DE ACT TARIFARIA-1000-T (2)'!$L131 -> 3.06 | S36: BTSH_3 Fuera de Punta Medio | U36: =+'RES DE ACT TARIFARIA-1000-T (2)'!$L143 -> 0
A37: BTSH_3 Fuera de Punta Bajo | B37: =+'RES DE ACT TARIFARIA-1000-T (2)'!$L131 -> 3.06 | C37: =+'RES DE ACT TARIFARIA-1000-T (2)'!$L144 -> 0 | J37: BTSH_3 Fuera de Punta Bajo | K37: =+'RES DE ACT TARIFARIA-1000-T (2)'!$L131 -> 3.06 | S37: BTSH_3 Fuera de Punta Bajo | U37: =+'RES DE ACT TARIFARIA-1000-T (2)'!$L144 -> 0
A39: INGRESOS ESTIMADOS PARA p APLICANDO LOS NUEVOS CARGOS POR TARIFA A LA PROYECCION DE VENTAS (FORM AT801) [SUMi (CCOMFp, i x CLIENTESp, i) + SUMi (CCOMVp, i x VEp, i)] | J39: INGRESOS ESTIMADOS PARA p APLICANDO LOS NUEVOS CARGOS FIJOS POR TARIFA A LA PROYECCION DE VENTAS (FORM AT801) [SUMi (CCOMFp, i x CLIENTESp, i) + SUMi (CCOMVp, i x VEp, i)] | S39: INGRESOS ESTIMADOS PARA p APLICANDO LOS NUEVOS CARGOS VARIABLES POR TARIFA A LA PROYECCION DE VENTAS (FORM AT801) [SUMi (CCOMFp, i x CLIENTESp, i) + SUMi (CCOMVp, i x VEp, i)]
A40: Tarifas | B40: 2023-07-01 | C40: 2023-08-01 | D40: 2023-09-01 | E40: 2023-10-01 | F40: 2023-11-01 | G40: 2023-12-01 | H40: TOTAL | J40: Tarifas | K40: 2023-07-01 | L40: 2023-08-01 | M40: 2023-09-01 | N40: 2023-10-01 | O40: 2023-11-01 | P40: 2023-12-01 | Q40: TOTAL | S40: Tarifas | T40: 2023-07-01 | U40: 2023-08-01 | V40: 2023-09-01 | W40: 2023-10-01 | X40: 2023-11-01 | Y40: 2023-12-01 | Z40: TOTAL
A41: Alta Tensión | B41: =+B42+B43 -> 30.5063 | C41: 30.8831 | D41: 30.3179 | E41: 30.60835 | F41: 29.5643 | G41: 30.93805 | H41: =+SUM(B41:G41) -> 182.818 | J41: Alta Tensión | K41: =+K42+K43 -> 13.88 | L41: 13.88 | M41: 13.88 | N41: 13.88 | O41: 13.88 | P41: 13.88 | Q41: =+SUM(K41:P41) -> 83.28 | S41: Alta Tensión | T41: =+T42+T43 -> 16.6263 | U41: 17.0031 | V41: 16.4379 | W41: 16.72835 | X41: 15.6843 | Y41: 17.05805 | Z41: =+SUM(T41:Y41) -> 99.538
A42: Horaria | B42: =+B7*'Facturación-801 (clientes)'!$B10+C7*'Facturación-801 (energía)'!$B10 -> 0 | C42: =+B7*'Facturación-801 (clientes)'!$C10+C7*'Facturación-801 (energía)'!$C10 -> 0 | D42: =+B7*'Facturación-801 (clientes)'!$D10+C7*'Facturación-801 (energía)'!$D10 -> 0 | E42: =+B7*'Facturación-801 (clientes)'!$E10+C7*'Facturación-801 (energía)'!$E10 -> 0 | F42: =+B7*'Facturación-801 (clientes)'!$F10+C7*'Facturación-801 (energía)'!$F10 -> 0 | G42: =+B7*'Facturación-801 (clientes)'!$G10+C7*'Facturación-801 (energía)'!$G10 -> 0 | H42: 0 | J42: Horaria | K42: =+K7*'Facturación-801 (clientes)'!$B10+L7*'Facturación-801 (energía)'!$B10 -> 0 | L42: =+K7*'Facturación-801 (clientes)'!$C10+L7*'Facturación-801 (energía)'!$C10 -> 0 | M42: =+K7*'Facturación-801 (clientes)'!$D10+L7*'Facturación-801 (energía)'!$D10 -> 0 | N42: =+K7*'Facturación-801 (clientes)'!$E10+L7*'Facturación-801 (energía)'!$E10 -> 0 | O42: =+K7*'Facturación-801 (clientes)'!$F10+L7*'Facturación-801 (energía)'!$F10 -> 0 | P42: =+K7*'Facturación-801 (clientes)'!$G10+L7*'Facturación-801 (energía)'!$G10 -> 0 | Q42: 0 | S42: Horaria | T42: =+T7*'Facturación-801 (clientes)'!$B10+U7*'Facturación-801 (energía)'!$B10 -> 0 | U42: =+T7*'Facturación-801 (clientes)'!$C10+U7*'Facturación-801 (energía)'!$C10 -> 0 | V42: =+T7*'Facturación-801 (clientes)'!$D10+U7*'Facturación-801 (energía)'!$D10 -> 0 | W42: =+T7*'Facturación-801 (clientes)'!$E10+U7*'Facturación-801 (energía)'!$E10 -> 0 | X42: =+T7*'Facturación-801 (clientes)'!$F10+U7*'Facturación-801 (energía)'!$F10 -> 0 | Y42: =+T7*'Facturación-801 (clientes)'!$G10+U7*'Facturación-801 (energía)'!$G10 -> 0 | Z42: 0
A43: Demanda Máxima | B43: =+B8*'Facturación-801 (clientes)'!$B11+C8*'Facturación-801 (energía)'!$B11 -> 30.5063 | C43: =+B8*'Facturación-801 (clientes)'!$C11+C8*'Facturación-801 (energía)'!$C11 -> 30.8831 | D43: =+B8*'Facturación-801 (clientes)'!$D11+C8*'Facturación-801 (energía)'!$D11 -> 30.3179 | E43: =+B8*'Facturación-801 (clientes)'!$E11+C8*'Facturación-801 (energía)'!$E11 -> 30.60835 | F43: =+B8*'Facturación-801 (clientes)'!$F11+C8*'Facturación-801 (energía)'!$F11 -> 29.5643 | G43: =+B8*'Facturación-801 (clientes)'!$G11+C8*'Facturación-801 (energía)'!$G11 -> 30.93805 | H43: 182.818 | J43: Demanda Máxima | K43: =+K8*'Facturación-801 (clientes)'!$B11+L8*'Facturación-801 (energía)'!$B11 -> 13.88 | L43: =+K8*'Facturación-801 (clientes)'!$C11+L8*'Facturación-801 (energía)'!$C11 -> 13.88 | M43: =+K8*'Facturación-801 (clientes)'!$D11+L8*'Facturación-801 (energía)'!$D11 -> 13.88 | N43: =+K8*'Facturación-801 (clientes)'!$E11+L8*'Facturación-801 (energía)'!$E11 -> 13.88 | O43: =+K8*'Facturación-801 (clientes)'!$F11+L8*'Facturación-801 (energía)'!$F11 -> 13.88 | P43: =+K8*'Facturación-801 (clientes)'!$G11+L8*'Facturación-801 (energía)'!$G11 -> 13.88 | Q43: 83.28 | S43: Demanda Máxima | T43: =+T8*'Facturación-801 (clientes)'!$B11+U8*'Facturación-801 (energía)'!$B11 -> 16.6263 | U43: =+T8*'Facturación-801 (clientes)'!$C11+U8*'Facturación-801 (energía)'!$C11 -> 17.0031 | V43: =+T8*'Facturación-801 (clientes)'!$D11+U8*'Facturación-801 (energía)'!$D11 -> 16.4379 | W43: =+T8*'Facturación-801 (clientes)'!$E11+U8*'Facturación-801 (energía)'!$E11 -> 16.72835 | X43: =+T8*'Facturación-801 (clientes)'!$F11+U8*'Facturación-801 (energía)'!$F11 -> 15.6843 | Y43: =+T8*'Facturación-801 (clientes)'!$G11+U8*'Facturación-801 (energía)'!$G11 -> 17.05805 | Z43: 99.538
A45: Media Tensión | B45: =+B46+B47+B52+B57+B62 -> 227550.2203 | C45: =+C46+C47+C52+C57+C62 -> 232617.2355 | D45: 225071.874 | E45: 228945.5419 | F45: 215050.5075 | G45: 233400.0124 | H45: =+SUM(B45:G45) -> 1362635.392 | J45: Media Tensión | K45: =+K46+K47+K52+K57+K62 -> 5216.659 | L45: =+L46+L47+L52+L57+L62 -> 5271.939 | M45: 5271.939 | N45: 5271.939 | O45: 5285.759 | P45: 5285.759 | Q45: =+SUM(K45:P45) -> 31603.994 | S45: Media Tensión | T45: =+T46+T47+T52+T57+T62 -> 222333.5613 | U45: =+U46+U47+U52+U57+U62 -> 227345.2965 | V45: 219799.935 | W45: 223673.6029 | X45: 209764.7485 | Y45: 228114.2534 | Z45: =+SUM(T45:Y45) -> 1331031.398
A46: Horaria | B46: =+B9*'Facturación-801 (clientes)'!$B14+C9*'Facturación-801 (energía)'!$B14 -> 576.981 | C46: =+B9*'Facturación-801 (clientes)'!$C14+C9*'Facturación-801 (energía)'!$C14 -> 588.41845 | D46: =+B9*'Facturación-801 (clientes)'!$D14+C9*'Facturación-801 (energía)'!$D14 -> 571.19555 | E46: =+B9*'Facturación-801 (clientes)'!$E14+C9*'Facturación-801 (energía)'!$E14 -> 580.03465 | F46: =+B9*'Facturación-801 (clientes)'!$F14+C9*'Facturación-801 (energía)'!$F14 -> 548.2814 | G46: =+B9*'Facturación-801 (clientes)'!$G14+C9*'Facturación-801 (energía)'!$G14 -> 590.17685 | H46: 3455.0879 | J46: Horaria | K46: =+K9*'Facturación-801 (clientes)'!$B14+L9*'Facturación-801 (energía)'!$B14 -> 69.4 | L46: =+K9*'Facturación-801 (clientes)'!$C14+L9*'Facturación-801 (energía)'!$C14 -> 69.4 | M46: =+K9*'Facturación-801 (clientes)'!$D14+L9*'Facturación-801 (energía)'!$D14 -> 69.4 | N46: =+K9*'Facturación-801 (clientes)'!$E14+L9*'Facturación-801 (energía)'!$E14 -> 69.4 | O46: =+K9*'Facturación-801 (clientes)'!$F14+L9*'Facturación-801 (energía)'!$F14 -> 69.4 | P46: =+K9*'Facturación-801 (clientes)'!$G14+L9*'Facturación-801 (energía)'!$G14 -> 69.4 | Q46: 416.4 | S46: Horaria | T46: =+T9*'Facturación-801 (clientes)'!$B14+U9*'Facturación-801 (energía)'!$B14 -> 507.581 | U46: =+T9*'Facturación-801 (clientes)'!$C14+U9*'Facturación-801 (energía)'!$C14 -> 519.01845 | V46: =+T9*'Facturación-801 (clientes)'!$D14+U9*'Facturación-801 (energía)'!$D14 -> 501.79555 | W46: =+T9*'Facturación-801 (clientes)'!$E14+U9*'Facturación-801 (energía)'!$E14 -> 510.63465 | X46: =+T9*'Facturación-801 (clientes)'!$F14+U9*'Facturación-801 (energía)'!$F14 -> 478.8814 | Y46: =+T9*'Facturación-801 (clientes)'!$G14+U9*'Facturación-801 (energía)'!$G14 -> 520.77685 | Z46: 3038.6879
A47: Demanda Máxima | B47: =SUM(B48:B51) -> 9491.870259 | C47: 9634.840277 | D47: 9440.40392 | E47: 9540.220418 | F47: 9195.619309 | G47: 9668.476516 | H47: 56971.4307 | J47: Demanda Máxima | K47: =SUM(K48:K51) -> 3762.495 | L47: 3776.315 | M47: 3776.315 | N47: 3776.315 | O47: 3790.135 | P47: 3790.135 | Q47: 22671.71 | S47: Demanda Máxima | T47: =SUM(T48:T51) -> 5729.375259 | U47: 5858.525277 | V47: 5664.08892 | W47: 5763.905418 | X47: 5405.484309 | Y47: 5878.341516 | Z47: 34299.7207
A48: - Regulares | B48: =+B10*'Facturación-801 (clientes)'!$B21+C10*'Facturación-801 (energía)'!$B21 -> 8391.70906 | C48: =+B10*'Facturación-801 (clientes)'!$C21+C10*'Facturación-801 (energía)'!$C21 -> 8520.2379 | D48: =+B10*'Facturación-801 (clientes)'!$D21+C10*'Facturación-801 (energía)'!$D21 -> 8347.53798 | E48: =+B10*'Facturación-801 (clientes)'!$E21+C10*'Facturación-801 (energía)'!$E21 -> 8436.19878 | F48: =+B10*'Facturación-801 (clientes)'!$F21+C10*'Facturación-801 (energía)'!$F21 -> 8131.67306 | G48: =+B10*'Facturación-801 (clientes)'!$G21+C10*'Facturación-801 (energía)'!$G21 -> 8551.65644 | H48: 50379.01322 | J48: - Regulares | K48: =+K10*'Facturación-801 (clientes)'!$B21+L10*'Facturación-801 (energía)'!$B21 -> 3302.98 | L48: =+K10*'Facturación-801 (clientes)'!$C21+L10*'Facturación-801 (energía)'!$C21 -> 3316.8 | M48: =+K10*'Facturación-801 (clientes)'!$D21+L10*'Facturación-801 (energía)'!$D21 -> 3316.8 | N48: =+K10*'Facturación-801 (clientes)'!$E21+L10*'Facturación-801 (energía)'!$E21 -> 3316.8 | O48: =+K10*'Facturación-801 (clientes)'!$F21+L10*'Facturación-801 (energía)'!$F21 -> 3330.62 | P48: =+K10*'Facturación-801 (clientes)'!$G21+L10*'Facturación-801 (energía)'!$G21 -> 3330.62 | Q48: 19914.62 | S48: - Regulares | T48: =+T10*'Facturación-801 (clientes)'!$B21+U10*'Facturación-801 (energía)'!$B21 -> 5088.72906 | U48: =+T10*'Facturación-801 (clientes)'!$C21+U10*'Facturación-801 (energía)'!$C21 -> 5203.4379 | V48: =+T10*'Facturación-801 (clientes)'!$D21+U10*'Facturación-801 (energía)'!$D21 -> 5030.73798 | W48: =+T10*'Facturación-801 (clientes)'!$E21+U10*'Facturación-801 (energía)'!$E21 -> 5119.39878 | X48: =+T10*'Facturación-801 (clientes)'!$F21+U10*'Facturación-801 (energía)'!$F21 -> 4801.05306 | Y48: =+T10*'Facturación-801 (clientes)'!$G21+U10*'Facturación-801 (energía)'!$G21 -> 5221.03644 | Z48: 30464.39322
A49: - Agropecuarios | B49: =+(B10*'Facturación-801 (clientes)'!$B22+C10*'Facturación-801 (energía)'!$B22)*0.95 -> 1100.161199 | C49: =+(B10*'Facturación-801 (clientes)'!$C22+C10*'Facturación-801 (energía)'!$C22)*0.95 -> 1114.602377 | D49: =+(B10*'Facturación-801 (clientes)'!$D22+C10*'Facturación-801 (energía)'!$D22)*0.95 -> 1092.86594 | E49: =+(B10*'Facturación-801 (clientes)'!$E22+C10*'Facturación-801 (energía)'!$E22)*0.95 -> 1104.021638 | F49: =+(B10*'Facturación-801 (clientes)'!$F22+C10*'Facturación-801 (energía)'!$F22)*0.95 -> 1063.946249 | G49: =+(B10*'Facturación-801 (clientes)'!$G22+C10*'Facturación-801 (energía)'!$G22)*0.95 -> 1116.820076 | H49: 6592.417479 | J49: - Agropecuarios | K49: =+(K10*'Facturación-801 (clientes)'!$B22+L10*'Facturación-801 (energía)'!$B22)*0.95 -> 459.515 | L49: =+(K10*'Facturación-801 (clientes)'!$C22+L10*'Facturación-801 (energía)'!$C22)*0.95 -> 459.515 | M49: =+(K10*'Facturación-801 (clientes)'!$D22+L10*'Facturación-801 (energía)'!$D22)*0.95 -> 459.515 | N49: =+(K10*'Facturación-801 (clientes)'!$E22+L10*'Facturación-801 (energía)'!$E22)*0.95 -> 459.515 | O49: =+(K10*'Facturación-801 (clientes)'!$F22+L10*'Facturación-801 (energía)'!$F22)*0.95 -> 459.515 | P49: =+(K10*'Facturación-801 (clientes)'!$G22+L10*'Facturación-801 (energía)'!$G22)*0.95 -> 459.515 | Q49: 2757.09 | S49: - Agropecuarios | T49: =+(T10*'Facturación-801 (clientes)'!$B22+U10*'Facturación-801 (energía)'!$B22)*0.95 -> 640.646199 | U49: =+(T10*'Facturación-801 (clientes)'!$C22+U10*'Facturación-801 (energía)'!$C22)*0.95 -> 655.087377 | V49: =+(T10*'Facturación-801 (clientes)'!$D22+U10*'Facturación-801 (energía)'!$D22)*0.95 -> 633.35094 | W49: =+(T10*'Facturación-801 (clientes)'!$E22+U10*'Facturación-801 (energía)'!$E22)*0.95 -> 644.506638 | X49: =+(T10*'Facturación-801 (clientes)'!$F22+U10*'Facturación-801 (energía)'!$F22)*0.95 -> 604.431249 | Y49: =+(T10*'Facturación-801 (clientes)'!$G22+U10*'Facturación-801 (energía)'!$G22)*0.95 -> 657.305076 | Z49: 3835.327479
A50: - Jubilados, Pen. Tercera Edad | B50: =+(B10*'Facturación-801 (clientes)'!$B23+C10*'Facturación-801 (energía)'!$B23)*0.75 -> 0 | C50: =+(B10*'Facturación-801 (clientes)'!$C23+C10*'Facturación-801 (energía)'!$C23)*0.75 -> 0 | D50: =+(B10*'Facturación-801 (clientes)'!$D23+C10*'Facturación-801 (energía)'!$D23)*0.75 -> 0 | E50: =+(B10*'Facturación-801 (clientes)'!$E23+C10*'Facturación-801 (energía)'!$E23)*0.75 -> 0 | F50: =+(B10*'Facturación-801 (clientes)'!$F23+C10*'Facturación-801 (energía)'!$F23)*0.75 -> 0 | G50: =+(B10*'Facturación-801 (clientes)'!$G23+C10*'Facturación-801 (energía)'!$G23)*0.75 -> 0 | H50: 0 | J50: - Jubilados, Pen. Tercera Edad | K50: =+(K10*'Facturación-801 (clientes)'!$B23+L10*'Facturación-801 (energía)'!$B23)*0.75 -> 0 | L50: =+(K10*'Facturación-801 (clientes)'!$C23+L10*'Facturación-801 (energía)'!$C23)*0.75 -> 0 | M50: =+(K10*'Facturación-801 (clientes)'!$D23+L10*'Facturación-801 (energía)'!$D23)*0.75 -> 0 | N50: =+(K10*'Facturación-801 (clientes)'!$E23+L10*'Facturación-801 (energía)'!$E23)*0.75 -> 0 | O50: =+(K10*'Facturación-801 (clientes)'!$F23+L10*'Facturación-801 (energía)'!$F23)*0.75 -> 0 | P50: =+(K10*'Facturación-801 (clientes)'!$G23+L10*'Facturación-801 (energía)'!$G23)*0.75 -> 0 | Q50: 0 | S50: - Jubilados, Pen. Tercera Edad | T50: =+(T10*'Facturación-801 (clientes)'!$B23+U10*'Facturación-801 (energía)'!$B23)*0.75 -> 0 | U50: =+(T10*'Facturación-801 (clientes)'!$C23+U10*'Facturación-801 (energía)'!$C23)*0.75 -> 0 | V50: =+(T10*'Facturación-801 (clientes)'!$D23+U10*'Facturación-801 (energía)'!$D23)*0.75 -> 0 | W50: =+(T10*'Facturación-801 (clientes)'!$E23+U10*'Facturación-801 (energía)'!$E23)*0.75 -> 0 | X50: =+(T10*'Facturación-801 (clientes)'!$F23+U10*'Facturación-801 (energía)'!$F23)*0.75 -> 0 | Y50: =+(T10*'Facturación-801 (clientes)'!$G23+U10*'Facturación-801 (energía)'!$G23)*0.75 -> 0 | Z50: 0
A51: - Partidos Políticos | B51: =+(B10*'Facturación-801 (clientes)'!$B24+C10*'Facturación-801 (energía)'!$B24)*0.5 -> 0 | C51: =+(B10*'Facturación-801 (clientes)'!$C24+C10*'Facturación-801 (energía)'!$C24)*0.5 -> 0 | D51: =+(B10*'Facturación-801 (clientes)'!$D24+C10*'Facturación-801 (energía)'!$D24)*0.5 -> 0 | E51: =+(B10*'Facturación-801 (clientes)'!$E24+C10*'Facturación-801 (energía)'!$E24)*0.5 -> 0 | F51: =+(B10*'Facturación-801 (clientes)'!$F24+C10*'Facturación-801 (energía)'!$F24)*0.5 -> 0 | G51: =+(B10*'Facturación-801 (clientes)'!$G24+C10*'Facturación-801 (energía)'!$G24)*0.5 -> 0 | H51: 0 | J51: - Partidos Políticos | K51: =+(K10*'Facturación-801 (clientes)'!$B24+L10*'Facturación-801 (energía)'!$B24)*0.5 -> 0 | L51: =+(K10*'Facturación-801 (clientes)'!$C24+L10*'Facturación-801 (energía)'!$C24)*0.5 -> 0 | M51: =+(K10*'Facturación-801 (clientes)'!$D24+L10*'Facturación-801 (energía)'!$D24)*0.5 -> 0 | N51: =+(K10*'Facturación-801 (clientes)'!$E24+L10*'Facturación-801 (energía)'!$E24)*0.5 -> 0 | O51: =+(K10*'Facturación-801 (clientes)'!$F24+L10*'Facturación-801 (energía)'!$F24)*0.5 -> 0 | P51: =+(K10*'Facturación-801 (clientes)'!$G24+L10*'Facturación-801 (energía)'!$G24)*0.5 -> 0 | Q51: 0 | S51: - Partidos Políticos | T51: =+(T10*'Facturación-801 (clientes)'!$B24+U10*'Facturación-801 (energía)'!$B24)*0.5 -> 0 | U51: =+(T10*'Facturación-801 (clientes)'!$C24+U10*'Facturación-801 (energía)'!$C24)*0.5 -> 0 | V51: =+(T10*'Facturación-801 (clientes)'!$D24+U10*'Facturación-801 (energía)'!$D24)*0.5 -> 0 | W51: =+(T10*'Facturación-801 (clientes)'!$E24+U10*'Facturación-801 (energía)'!$E24)*0.5 -> 0 | X51: =+(T10*'Facturación-801 (clientes)'!$F24+U10*'Facturación-801 (energía)'!$F24)*0.5 -> 0 | Y51: =+(T10*'Facturación-801 (clientes)'!$G24+U10*'Facturación-801 (energía)'!$G24)*0.5 -> 0 | Z51: 0
A52: Demanda Máxima (10,001-30,000) | B52: =SUM(B53:B56) -> 15235.47847 | C52: 15564.84879 | D52: 15089.77938 | E52: 15333.67911 | F52: 14457.94346 | G52: 15613.26756 | H52: 91294.99677 | J52: Demanda Máxima (10,001-30,000) | K52: =SUM(K53:K56) -> 1236.89 | L52: 1250.71 | M52: 1250.71 | N52: 1250.71 | O52: 1250.71 | P52: 1250.71 | Q52: 7490.44 | S52: Demanda Máxima (10,001-30,000) | T52: =SUM(T53:T56) -> 13998.58847 | U52: 14314.13879 | V52: 13839.06938 | W52: 14082.96911 | X52: 13207.23346 | Y52: 14362.55756 | Z52: 83804.55677
A53: - Regulares | B53: =+B11*'Facturación-801 (clientes)'!$B26+C10*10000*'Facturación-801 (clientes)'!$B26+C11*('Facturación-801 (energía)'!$B26-'Facturación-801 (clientes)'!$B26*10000) -> 13728.6028 | C53: =+B11*'Facturación-801 (clientes)'!$C26+C10*10000*'Facturación-801 (clientes)'!$C26+C11*('Facturación-801 (energía)'!$C26-'Facturación-801 (clientes)'!$C26*10000) -> 14026.96266 | D53: =+B11*'Facturación-801 (clientes)'!$D26+C10*10000*'Facturación-801 (clientes)'!$D26+C11*('Facturación-801 (energía)'!$D26-'Facturación-801 (clientes)'!$D26*10000) -> 13598.57694 | E53: =+B11*'Facturación-801 (clientes)'!$E26+C10*10000*'Facturación-801 (clientes)'!$E26+C11*('Facturación-801 (energía)'!$E26-'Facturación-801 (clientes)'!$E26*10000) -> 13818.5076 | F53: =+B11*'Facturación-801 (clientes)'!$F26+C10*10000*'Facturación-801 (clientes)'!$F26+C11*('Facturación-801 (energía)'!$F26-'Facturación-801 (clientes)'!$F26*10000) -> 13028.82912 | G53: =+B11*'Facturación-801 (clientes)'!$G26+C10*10000*'Facturación-801 (clientes)'!$G26+C11*('Facturación-801 (energía)'!$G26-'Facturación-801 (clientes)'!$G26*10000) -> 14070.62496 | H53: 82272.10408 | J53: - Regulares | K53: =+K11*'Facturación-801 (clientes)'!$B26+L10*10000*'Facturación-801 (clientes)'!$B26+L11*('Facturación-801 (energía)'!$B26-'Facturación-801 (clientes)'!$B26*10000) -> 1105.6 | L53: =+K11*'Facturación-801 (clientes)'!$C26+L10*10000*'Facturación-801 (clientes)'!$C26+L11*('Facturación-801 (energía)'!$C26-'Facturación-801 (clientes)'!$C26*10000) -> 1119.42 | M53: =+K11*'Facturación-801 (clientes)'!$D26+L10*10000*'Facturación-801 (clientes)'!$D26+L11*('Facturación-801 (energía)'!$D26-'Facturación-801 (clientes)'!$D26*10000) -> 1119.42 | N53: =+K11*'Facturación-801 (clientes)'!$E26+L10*10000*'Facturación-801 (clientes)'!$E26+L11*('Facturación-801 (energía)'!$E26-'Facturación-801 (clientes)'!$E26*10000) -> 1119.42 | O53: =+K11*'Facturación-801 (clientes)'!$F26+L10*10000*'Facturación-801 (clientes)'!$F26+L11*('Facturación-801 (energía)'!$F26-'Facturación-801 (clientes)'!$F26*10000) -> 1119.42 | P53: =+K11*'Facturación-801 (clientes)'!$G26+L10*10000*'Facturación-801 (clientes)'!$G26+L11*('Facturación-801 (energía)'!$G26-'Facturación-801 (clientes)'!$G26*10000) -> 1119.42 | Q53: 6702.7 | S53: - Regulares | T53: =+T11*'Facturación-801 (clientes)'!$B26+U10*10000*'Facturación-801 (clientes)'!$B26+U11*('Facturación-801 (energía)'!$B26-'Facturación-801 (clientes)'!$B26*10000) -> 12623.0028 | U53: =+T11*'Facturación-801 (clientes)'!$C26+U10*10000*'Facturación-801 (clientes)'!$C26+U11*('Facturación-801 (energía)'!$C26-'Facturación-801 (clientes)'!$C26*10000) -> 12907.54266 | V53: =+T11*'Facturación-801 (clientes)'!$D26+U10*10000*'Facturación-801 (clientes)'!$D26+U11*('Facturación-801 (energía)'!$D26-'Facturación-801 (clientes)'!$D26*10000) -> 12479.15694 | W53: =+T11*'Facturación-801 (clientes)'!$E26+U10*10000*'Facturación-801 (clientes)'!$E26+U11*('Facturación-801 (energía)'!$E26-'Facturación-801 (clientes)'!$E26*10000) -> 12699.0876 | X53: =+T11*'Facturación-801 (clientes)'!$F26+U10*10000*'Facturación-801 (clientes)'!$F26+U11*('Facturación-801 (energía)'!$F26-'Facturación-801 (clientes)'!$F26*10000) -> 11909.40912 | Y53: =+T11*'Facturación-801 (clientes)'!$G26+U10*10000*'Facturación-801 (clientes)'!$G26+U11*('Facturación-801 (energía)'!$G26-'Facturación-801 (clientes)'!$G26*10000) -> 12951.20496 | Z53: 75569.40408
A54: - Agropecuarios | B54: =+(B11*'Facturación-801 (clientes)'!$B27+C10*10000*'Facturación-801 (clientes)'!$B27+C11*('Facturación-801 (energía)'!$B27-'Facturación-801 (clientes)'!$B27*10000))*0.95 -> 1506.875674 | C54: =+(B11*'Facturación-801 (clientes)'!$C27+C10*10000*'Facturación-801 (clientes)'!$C27+C11*('Facturación-801 (energía)'!$C27-'Facturación-801 (clientes)'!$C27*10000))*0.95 -> 1537.886125 | D54: =+(B11*'Facturación-801 (clientes)'!$D27+C10*10000*'Facturación-801 (clientes)'!$D27+C11*('Facturación-801 (energía)'!$D27-'Facturación-801 (clientes)'!$D27*10000))*0.95 -> 1491.202441 | E54: =+(B11*'Facturación-801 (clientes)'!$E27+C10*10000*'Facturación-801 (clientes)'!$E27+C11*('Facturación-801 (energía)'!$E27-'Facturación-801 (clientes)'!$E27*10000))*0.95 -> 1515.171511 | F54: =+(B11*'Facturación-801 (clientes)'!$F27+C10*10000*'Facturación-801 (clientes)'!$F27+C11*('Facturación-801 (energía)'!$F27-'Facturación-801 (clientes)'!$F27*10000))*0.95 -> 1429.114336 | G54: =+(B11*'Facturación-801 (clientes)'!$G27+C10*10000*'Facturación-801 (clientes)'!$G27+C11*('Facturación-801 (energía)'!$G27-'Facturación-801 (clientes)'!$G27*10000))*0.95 -> 1542.642604 | H54: 9022.892691 | J54: - Agropecuarios | K54: =+(K11*'Facturación-801 (clientes)'!$B27+L10*10000*'Facturación-801 (clientes)'!$B27+L11*('Facturación-801 (energía)'!$B27-'Facturación-801 (clientes)'!$B27*10000))*0.95 -> 131.29 | L54: =+(K11*'Facturación-801 (clientes)'!$C27+L10*10000*'Facturación-801 (clientes)'!$C27+L11*('Facturación-801 (energía)'!$C27-'Facturación-801 (clientes)'!$C27*10000))*0.95 -> 131.29 | M54: =+(K11*'Facturación-801 (clientes)'!$D27+L10*10000*'Facturación-801 (clientes)'!$D27+L11*('Facturación-801 (energía)'!$D27-'Facturación-801 (clientes)'!$D27*10000))*0.95 -> 131.29 | N54: =+(K11*'Facturación-801 (clientes)'!$E27+L10*10000*'Facturación-801 (clientes)'!$E27+L11*('Facturación-801 (energía)'!$E27-'Facturación-801 (clientes)'!$E27*10000))*0.95 -> 131.29 | O54: =+(K11*'Facturación-801 (clientes)'!$F27+L10*10000*'Facturación-801 (clientes)'!$F27+L11*('Facturación-801 (energía)'!$F27-'Facturación-801 (clientes)'!$F27*10000))*0.95 -> 131.29 | P54: =+(K11*'Facturación-801 (clientes)'!$G27+L10*10000*'Facturación-801 (clientes)'!$G27+L11*('Facturación-801 (energía)'!$G27-'Facturación-801 (clientes)'!$G27*10000))*0.95 -> 131.29 | Q54: 787.74 | S54: - Agropecuarios | T54: =+(T11*'Facturación-801 (clientes)'!$B27+U10*10000*'Facturación-801 (clientes)'!$B27+U11*('Facturación-801 (energía)'!$B27-'Facturación-801 (clientes)'!$B27*10000))*0.95 -> 1375.585674 | U54: =+(T11*'Facturación-801 (clientes)'!$C27+U10*10000*'Facturación-801 (clientes)'!$C27+U11*('Facturación-801 (energía)'!$C27-'Facturación-801 (clientes)'!$C27*10000))*0.95 -> 1406.596125 | V54: =+(T11*'Facturación-801 (clientes)'!$D27+U10*10000*'Facturación-801 (clientes)'!$D27+U11*('Facturación-801 (energía)'!$D27-'Facturación-801 (clientes)'!$D27*10000))*0.95 -> 1359.912441 | W54: =+(T11*'Facturación-801 (clientes)'!$E27+U10*10000*'Facturación-801 (clientes)'!$E27+U11*('Facturación-801 (energía)'!$E27-'Facturación-801 (clientes)'!$E27*10000))*0.95 -> 1383.881511 | X54: =+(T11*'Facturación-801 (clientes)'!$F27+U10*10000*'Facturación-801 (clientes)'!$F27+U11*('Facturación-801 (energía)'!$F27-'Facturación-801 (clientes)'!$F27*10000))*0.95 -> 1297.824336 | Y54: =+(T11*'Facturación-801 (clientes)'!$G27+U10*10000*'Facturación-801 (clientes)'!$G27+U11*('Facturación-801 (energía)'!$G27-'Facturación-801 (clientes)'!$G27*10000))*0.95 -> 1411.352604 | Z54: 8235.152691
A55: - Jubilados, Pen. Tercera Edad | B55: =+(B11*'Facturación-801 (clientes)'!$B28+C10*10000*'Facturación-801 (clientes)'!$B28+C11*('Facturación-801 (energía)'!$B28-'Facturación-801 (clientes)'!$B28*10000))*0.75 -> 0 | C55: =+(B11*'Facturación-801 (clientes)'!$C28+C10*10000*'Facturación-801 (clientes)'!$C28+C11*('Facturación-801 (energía)'!$C28-'Facturación-801 (clientes)'!$C28*10000))*0.75 -> 0 | D55: =+(B11*'Facturación-801 (clientes)'!$D28+C10*10000*'Facturación-801 (clientes)'!$D28+C11*('Facturación-801 (energía)'!$D28-'Facturación-801 (clientes)'!$D28*10000))*0.75 -> 0 | E55: =+(B11*'Facturación-801 (clientes)'!$E28+C10*10000*'Facturación-801 (clientes)'!$E28+C11*('Facturación-801 (energía)'!$E28-'Facturación-801 (clientes)'!$E28*10000))*0.75 -> 0 | F55: =+(B11*'Facturación-801 (clientes)'!$F28+C10*10000*'Facturación-801 (clientes)'!$F28+C11*('Facturación-801 (energía)'!$F28-'Facturación-801 (clientes)'!$F28*10000))*0.75 -> 0 | G55: =+(B11*'Facturación-801 (clientes)'!$G28+C10*10000*'Facturación-801 (clientes)'!$G28+C11*('Facturación-801 (energía)'!$G28-'Facturación-801 (clientes)'!$G28*10000))*0.75 -> 0 | H55: 0 | J55: - Jubilados, Pen. Tercera Edad | K55: =+(K11*'Facturación-801 (clientes)'!$B28+L10*10000*'Facturación-801 (clientes)'!$B28+L11*('Facturación-801 (energía)'!$B28-'Facturación-801 (clientes)'!$B28*10000))*0.75 -> 0 | L55: =+(K11*'Facturación-801 (clientes)'!$C28+L10*10000*'Facturación-801 (clientes)'!$C28+L11*('Facturación-801 (energía)'!$C28-'Facturación-801 (clientes)'!$C28*10000))*0.75 -> 0 | M55: =+(K11*'Facturación-801 (clientes)'!$D28+L10*10000*'Facturación-801 (clientes)'!$D28+L11*('Facturación-801 (energía)'!$D28-'Facturación-801 (clientes)'!$D28*10000))*0.75 -> 0 | N55: =+(K11*'Facturación-801 (clientes)'!$E28+L10*10000*'Facturación-801 (clientes)'!$E28+L11*('Facturación-801 (energía)'!$E28-'Facturación-801 (clientes)'!$E28*10000))*0.75 -> 0 | O55: =+(K11*'Facturación-801 (clientes)'!$F28+L10*10000*'Facturación-801 (clientes)'!$F28+L11*('Facturación-801 (energía)'!$F28-'Facturación-801 (clientes)'!$F28*10000))*0.75 -> 0 | P55: =+(K11*'Facturación-801 (clientes)'!$G28+L10*10000*'Facturación-801 (clientes)'!$G28+L11*('Facturación-801 (energía)'!$G28-'Facturación-801 (clientes)'!$G28*10000))*0.75 -> 0 | Q55: 0 | S55: - Jubilados, Pen. Tercera Edad | T55: =+(T11*'Facturación-801 (clientes)'!$B28+U10*10000*'Facturación-801 (clientes)'!$B28+U11*('Facturación-801 (energía)'!$B28-'Facturación-801 (clientes)'!$B28*10000))*0.75 -> 0 | U55: =+(T11*'Facturación-801 (clientes)'!$C28+U10*10000*'Facturación-801 (clientes)'!$C28+U11*('Facturación-801 (energía)'!$C28-'Facturación-801 (clientes)'!$C28*10000))*0.75 -> 0 | V55: =+(T11*'Facturación-801 (clientes)'!$D28+U10*10000*'Facturación-801 (clientes)'!$D28+U11*('Facturación-801 (energía)'!$D28-'Facturación-801 (clientes)'!$D28*10000))*0.75 -> 0 | W55: =+(T11*'Facturación-801 (clientes)'!$E28+U10*10000*'Facturación-801 (clientes)'!$E28+U11*('Facturación-801 (energía)'!$E28-'Facturación-801 (clientes)'!$E28*10000))*0.75 -> 0 | X55: =+(T11*'Facturación-801 (clientes)'!$F28+U10*10000*'Facturación-801 (clientes)'!$F28+U11*('Facturación-801 (energía)'!$F28-'Facturación-801 (clientes)'!$F28*10000))*0.75 -> 0 | Y55: =+(T11*'Facturación-801 (clientes)'!$G28+U10*10000*'Facturación-801 (clientes)'!$G28+U11*('Facturación-801 (energía)'!$G28-'Facturación-801 (clientes)'!$G28*10000))*0.75 -> 0 | Z55: 0
A56: - Partidos Políticos | B56: =+(B11*'Facturación-801 (clientes)'!$B29+C10*10000*'Facturación-801 (clientes)'!$B29+C11*('Facturación-801 (energía)'!$B29-'Facturación-801 (clientes)'!$B29*10000))*0.5 -> 0 | C56: =+(B11*'Facturación-801 (clientes)'!$C29+C10*10000*'Facturación-801 (clientes)'!$C29+C11*('Facturación-801 (energía)'!$C29-'Facturación-801 (clientes)'!$C29*10000))*0.5 -> 0 | D56: =+(B11*'Facturación-801 (clientes)'!$D29+C10*10000*'Facturación-801 (clientes)'!$D29+C11*('Facturación-801 (energía)'!$D29-'Facturación-801 (clientes)'!$D29*10000))*0.5 -> 0 | E56: =+(B11*'Facturación-801 (clientes)'!$E29+C10*10000*'Facturación-801 (clientes)'!$E29+C11*('Facturación-801 (energía)'!$E29-'Facturación-801 (clientes)'!$E29*10000))*0.5 -> 0 | F56: =+(B11*'Facturación-801 (clientes)'!$F29+C10*10000*'Facturación-801 (clientes)'!$F29+C11*('Facturación-801 (energía)'!$F29-'Facturación-801 (clientes)'!$F29*10000))*0.5 -> 0 | G56: =+(B11*'Facturación-801 (clientes)'!$G29+C10*10000*'Facturación-801 (clientes)'!$G29+C11*('Facturación-801 (energía)'!$G29-'Facturación-801 (clientes)'!$G29*10000))*0.5 -> 0 | H56: 0 | J56: - Partidos Políticos | K56: =+(K11*'Facturación-801 (clientes)'!$B29+L10*10000*'Facturación-801 (clientes)'!$B29+L11*('Facturación-801 (energía)'!$B29-'Facturación-801 (clientes)'!$B29*10000))*0.5 -> 0 | L56: =+(K11*'Facturación-801 (clientes)'!$C29+L10*10000*'Facturación-801 (clientes)'!$C29+L11*('Facturación-801 (energía)'!$C29-'Facturación-801 (clientes)'!$C29*10000))*0.5 -> 0 | M56: =+(K11*'Facturación-801 (clientes)'!$D29+L10*10000*'Facturación-801 (clientes)'!$D29+L11*('Facturación-801 (energía)'!$D29-'Facturación-801 (clientes)'!$D29*10000))*0.5 -> 0 | N56: =+(K11*'Facturación-801 (clientes)'!$E29+L10*10000*'Facturación-801 (clientes)'!$E29+L11*('Facturación-801 (energía)'!$E29-'Facturación-801 (clientes)'!$E29*10000))*0.5 -> 0 | O56: =+(K11*'Facturación-801 (clientes)'!$F29+L10*10000*'Facturación-801 (clientes)'!$F29+L11*('Facturación-801 (energía)'!$F29-'Facturación-801 (clientes)'!$F29*10000))*0.5 -> 0 | P56: =+(K11*'Facturación-801 (clientes)'!$G29+L10*10000*'Facturación-801 (clientes)'!$G29+L11*('Facturación-801 (energía)'!$G29-'Facturación-801 (clientes)'!$G29*10000))*0.5 -> 0 | Q56: 0 | S56: - Partidos Políticos | T56: =+(T11*'Facturación-801 (clientes)'!$B29+U10*10000*'Facturación-801 (clientes)'!$B29+U11*('Facturación-801 (energía)'!$B29-'Facturación-801 (clientes)'!$B29*10000))*0.5 -> 0 | U56: =+(T11*'Facturación-801 (clientes)'!$C29+U10*10000*'Facturación-801 (clientes)'!$C29+U11*('Facturación-801 (energía)'!$C29-'Facturación-801 (clientes)'!$C29*10000))*0.5 -> 0 | V56: =+(T11*'Facturación-801 (clientes)'!$D29+U10*10000*'Facturación-801 (clientes)'!$D29+U11*('Facturación-801 (energía)'!$D29-'Facturación-801 (clientes)'!$D29*10000))*0.5 -> 0 | W56: =+(T11*'Facturación-801 (clientes)'!$E29+U10*10000*'Facturación-801 (clientes)'!$E29+U11*('Facturación-801 (energía)'!$E29-'Facturación-801 (clientes)'!$E29*10000))*0.5 -> 0 | X56: =+(T11*'Facturación-801 (clientes)'!$F29+U10*10000*'Facturación-801 (clientes)'!$F29+U11*('Facturación-801 (energía)'!$F29-'Facturación-801 (clientes)'!$F29*10000))*0.5 -> 0 | Y56: =+(T11*'Facturación-801 (clientes)'!$G29+U10*10000*'Facturación-801 (clientes)'!$G29+U11*('Facturación-801 (energía)'!$G29-'Facturación-801 (clientes)'!$G29*10000))*0.5 -> 0 | Z56: 0
A57: Demanda Máxima (30-001-50,000) | B57: =SUM(B58:B61) -> 15829.08151 | C57: 16186.02823 | D57: 15669.44231 | E57: 15934.64696 | F57: 14982.40364 | G57: 16238.66744 | H57: 94840.27009 | J57: Demanda Máxima (30-001-50,000) | K57: =SUM(K58:K61) -> 607.389 | L57: 621.209 | M57: 621.209 | N57: 621.209 | O57: 621.209 | P57: 621.209 | Q57: 3713.434 | S57: Demanda Máxima (30-001-50,000) | T57: =SUM(T58:T61) -> 15221.69251 | U57: 15564.81923 | V57: 15048.23331 | W57: 15313.43796 | X57: 14361.19464 | Y57: 15617.45844 | Z57: 91126.83609
A58: - Regulares | B58: =+B12*'Facturación-801 (clientes)'!$B31+(C10*10000+C11*20000)*'Facturación-801 (clientes)'!$B31+C12*('Facturación-801 (energía)'!$B31-'Facturación-801 (clientes)'!$B31*30000) -> 15430.5209 | C58: =+B12*'Facturación-801 (clientes)'!$C31+(C10*10000+C11*20000)*'Facturación-801 (clientes)'!$C31+C12*('Facturación-801 (energía)'!$C31-'Facturación-801 (clientes)'!$C31*30000) -> 15778.77604 | D58: =+B12*'Facturación-801 (clientes)'!$D31+(C10*10000+C11*20000)*'Facturación-801 (clientes)'!$D31+C12*('Facturación-801 (energía)'!$D31-'Facturación-801 (clientes)'!$D31*30000) -> 15275.2723 | E58: =+B12*'Facturación-801 (clientes)'!$E31+(C10*10000+C11*20000)*'Facturación-801 (clientes)'!$E31+C12*('Facturación-801 (energía)'!$E31-'Facturación-801 (clientes)'!$E31*30000) -> 15533.76412 | F58: =+B12*'Facturación-801 (clientes)'!$F31+(C10*10000+C11*20000)*'Facturación-801 (clientes)'!$F31+C12*('Facturación-801 (energía)'!$F31-'Facturación-801 (clientes)'!$F31*30000) -> 14605.63174 | G58: =+B12*'Facturación-801 (clientes)'!$G31+(C10*10000+C11*20000)*'Facturación-801 (clientes)'!$G31+C12*('Facturación-801 (energía)'!$G31-'Facturación-801 (clientes)'!$G31*30000) -> 15830.08612 | H58: 92454.05122 | J58: - Regulares | K58: =+K12*'Facturación-801 (clientes)'!$B31+(L10*10000+L11*20000)*'Facturación-801 (clientes)'!$B31+L12*('Facturación-801 (energía)'!$B31-'Facturación-801 (clientes)'!$B31*30000) -> 594.26 | L58: =+K12*'Facturación-801 (clientes)'!$C31+(L10*10000+L11*20000)*'Facturación-801 (clientes)'!$C31+L12*('Facturación-801 (energía)'!$C31-'Facturación-801 (clientes)'!$C31*30000) -> 608.08 | M58: =+K12*'Facturación-801 (clientes)'!$D31+(L10*10000+L11*20000)*'Facturación-801 (clientes)'!$D31+L12*('Facturación-801 (energía)'!$D31-'Facturación-801 (clientes)'!$D31*30000) -> 608.08 | N58: =+K12*'Facturación-801 (clientes)'!$E31+(L10*10000+L11*20000)*'Facturación-801 (clientes)'!$E31+L12*('Facturación-801 (energía)'!$E31-'Facturación-801 (clientes)'!$E31*30000) -> 608.08 | O58: =+K12*'Facturación-801 (clientes)'!$F31+(L10*10000+L11*20000)*'Facturación-801 (clientes)'!$F31+L12*('Facturación-801 (energía)'!$F31-'Facturación-801 (clientes)'!$F31*30000) -> 608.08 | P58: =+K12*'Facturación-801 (clientes)'!$G31+(L10*10000+L11*20000)*'Facturación-801 (clientes)'!$G31+L12*('Facturación-801 (energía)'!$G31-'Facturación-801 (clientes)'!$G31*30000) -> 608.08 | Q58: 3634.66 | S58: - Regulares | T58: =+T12*'Facturación-801 (clientes)'!$B31+(U10*10000+U11*20000)*'Facturación-801 (clientes)'!$B31+U12*('Facturación-801 (energía)'!$B31-'Facturación-801 (clientes)'!$B31*30000) -> 14836.2609 | U58: =+T12*'Facturación-801 (clientes)'!$C31+(U10*10000+U11*20000)*'Facturación-801 (clientes)'!$C31+U12*('Facturación-801 (energía)'!$C31-'Facturación-801 (clientes)'!$C31*30000) -> 15170.69604 | V58: =+T12*'Facturación-801 (clientes)'!$D31+(U10*10000+U11*20000)*'Facturación-801 (clientes)'!$D31+U12*('Facturación-801 (energía)'!$D31-'Facturación-801 (clientes)'!$D31*30000) -> 14667.1923 | W58: =+T12*'Facturación-801 (clientes)'!$E31+(U10*10000+U11*20000)*'Facturación-801 (clientes)'!$E31+U12*('Facturación-801 (energía)'!$E31-'Facturación-801 (clientes)'!$E31*30000) -> 14925.68412 | X58: =+T12*'Facturación-801 (clientes)'!$F31+(U10*10000+U11*20000)*'Facturación-801 (clientes)'!$F31+U12*('Facturación-801 (energía)'!$F31-'Facturación-801 (clientes)'!$F31*30000) -> 13997.55174 | Y58: =+T12*'Facturación-801 (clientes)'!$G31+(U10*10000+U11*20000)*'Facturación-801 (clientes)'!$G31+U12*('Facturación-801 (energía)'!$G31-'Facturación-801 (clientes)'!$G31*30000) -> 15222.00612 | Z58: 88819.39122
A59: - Agropecuarios | B59: =+(B12*'Facturación-801 (clientes)'!$B32+(C10*10000+C11*20000)*'Facturación-801 (clientes)'!$B32+C12*('Facturación-801 (energía)'!$B32-'Facturación-801 (clientes)'!$B32*30000))*0.95 -> 398.560606 | C59: =+(B12*'Facturación-801 (clientes)'!$C32+(C10*10000+C11*20000)*'Facturación-801 (clientes)'!$C32+C12*('Facturación-801 (energía)'!$C32-'Facturación-801 (clientes)'!$C32*30000))*0.95 -> 407.252194 | D59: =+(B12*'Facturación-801 (clientes)'!$D32+(C10*10000+C11*20000)*'Facturación-801 (clientes)'!$D32+C12*('Facturación-801 (energía)'!$D32-'Facturación-801 (clientes)'!$D32*30000))*0.95 -> 394.17001 | E59: =+(B12*'Facturación-801 (clientes)'!$E32+(C10*10000+C11*20000)*'Facturación-801 (clientes)'!$E32+C12*('Facturación-801 (energía)'!$E32-'Facturación-801 (clientes)'!$E32*30000))*0.95 -> 400.882843 | F59: =+(B12*'Facturación-801 (clientes)'!$F32+(C10*10000+C11*20000)*'Facturación-801 (clientes)'!$F32+C12*('Facturación-801 (energía)'!$F32-'Facturación-801 (clientes)'!$F32*30000))*0.95 -> 376.7719 | G59: =+(B12*'Facturación-801 (clientes)'!$G32+(C10*10000+C11*20000)*'Facturación-801 (clientes)'!$G32+C12*('Facturación-801 (energía)'!$G32-'Facturación-801 (clientes)'!$G32*30000))*0.95 -> 408.58132 | H59: 2386.218873 | J59: - Agropecuarios | K59: =+(K12*'Facturación-801 (clientes)'!$B32+(L10*10000+L11*20000)*'Facturación-801 (clientes)'!$B32+L12*('Facturación-801 (energía)'!$B32-'Facturación-801 (clientes)'!$B32*30000))*0.95 -> 13.129 | L59: =+(K12*'Facturación-801 (clientes)'!$C32+(L10*10000+L11*20000)*'Facturación-801 (clientes)'!$C32+L12*('Facturación-801 (energía)'!$C32-'Facturación-801 (clientes)'!$C32*30000))*0.95 -> 13.129 | M59: =+(K12*'Facturación-801 (clientes)'!$D32+(L10*10000+L11*20000)*'Facturación-801 (clientes)'!$D32+L12*('Facturación-801 (energía)'!$D32-'Facturación-801 (clientes)'!$D32*30000))*0.95 -> 13.129 | N59: =+(K12*'Facturación-801 (clientes)'!$E32+(L10*10000+L11*20000)*'Facturación-801 (clientes)'!$E32+L12*('Facturación-801 (energía)'!$E32-'Facturación-801 (clientes)'!$E32*30000))*0.95 -> 13.129 | O59: =+(K12*'Facturación-801 (clientes)'!$F32+(L10*10000+L11*20000)*'Facturación-801 (clientes)'!$F32+L12*('Facturación-801 (energía)'!$F32-'Facturación-801 (clientes)'!$F32*30000))*0.95 -> 13.129 | P59: =+(K12*'Facturación-801 (clientes)'!$G32+(L10*10000+L11*20000)*'Facturación-801 (clientes)'!$G32+L12*('Facturación-801 (energía)'!$G32-'Facturación-801 (clientes)'!$G32*30000))*0.95 -> 13.129 | Q59: 78.774 | S59: - Agropecuarios | T59: =+(T12*'Facturación-801 (clientes)'!$B32+(U10*10000+U11*20000)*'Facturación-801 (clientes)'!$B32+U12*('Facturación-801 (energía)'!$B32-'Facturación-801 (clientes)'!$B32*30000))*0.95 -> 385.431606 | U59: =+(T12*'Facturación-801 (clientes)'!$C32+(U10*10000+U11*20000)*'Facturación-801 (clientes)'!$C32+U12*('Facturación-801 (energía)'!$C32-'Facturación-801 (clientes)'!$C32*30000))*0.95 -> 394.123194 | V59: =+(T12*'Facturación-801 (clientes)'!$D32+(U10*10000+U11*20000)*'Facturación-801 (clientes)'!$D32+U12*('Facturación-801 (energía)'!$D32-'Facturación-801 (clientes)'!$D32*30000))*0.95 -> 381.04101 | W59: =+(T12*'Facturación-801 (clientes)'!$E32+(U10*10000+U11*20000)*'Facturación-801 (clientes)'!$E32+U12*('Facturación-801 (energía)'!$E32-'Facturación-801 (clientes)'!$E32*30000))*0.95 -> 387.753843 | X59: =+(T12*'Facturación-801 (clientes)'!$F32+(U10*10000+U11*20000)*'Facturación-801 (clientes)'!$F32+U12*('Facturación-801 (energía)'!$F32-'Facturación-801 (clientes)'!$F32*30000))*0.95 -> 363.6429 | Y59: =+(T12*'Facturación-801 (clientes)'!$G32+(U10*10000+U11*20000)*'Facturación-801 (clientes)'!$G32+U12*('Facturación-801 (energía)'!$G32-'Facturación-801 (clientes)'!$G32*30000))*0.95 -> 395.45232 | Z59: 2307.444873
A60: - Jubilados, Pen. Tercera Edad | B60: =+(B12*'Facturación-801 (clientes)'!$B33+(C10*10000+C11*20000)*'Facturación-801 (clientes)'!$B33+C12*('Facturación-801 (energía)'!$B33-'Facturación-801 (clientes)'!$B33*30000))*0.75 -> 0 | C60: =+(B12*'Facturación-801 (clientes)'!$C33+(C10*10000+C11*20000)*'Facturación-801 (clientes)'!$C33+C12*('Facturación-801 (energía)'!$C33-'Facturación-801 (clientes)'!$C33*30000))*0.75 -> 0 | D60: =+(B12*'Facturación-801 (clientes)'!$D33+(C10*10000+C11*20000)*'Facturación-801 (clientes)'!$D33+C12*('Facturación-801 (energía)'!$D33-'Facturación-801 (clientes)'!$D33*30000))*0.75 -> 0 | E60: =+(B12*'Facturación-801 (clientes)'!$E33+(C10*10000+C11*20000)*'Facturación-801 (clientes)'!$E33+C12*('Facturación-801 (energía)'!$E33-'Facturación-801 (clientes)'!$E33*30000))*0.75 -> 0 | F60: =+(B12*'Facturación-801 (clientes)'!$F33+(C10*10000+C11*20000)*'Facturación-801 (clientes)'!$F33+C12*('Facturación-801 (energía)'!$F33-'Facturación-801 (clientes)'!$F33*30000))*0.75 -> 0 | G60: =+(B12*'Facturación-801 (clientes)'!$G33+(C10*10000+C11*20000)*'Facturación-801 (clientes)'!$G33+C12*('Facturación-801 (energía)'!$G33-'Facturación-801 (clientes)'!$G33*30000))*0.75 -> 0 | H60: 0 | J60: - Jubilados, Pen. Tercera Edad | K60: =+(K12*'Facturación-801 (clientes)'!$B33+(L10*10000+L11*20000)*'Facturación-801 (clientes)'!$B33+L12*('Facturación-801 (energía)'!$B33-'Facturación-801 (clientes)'!$B33*30000))*0.75 -> 0 | L60: =+(K12*'Facturación-801 (clientes)'!$C33+(L10*10000+L11*20000)*'Facturación-801 (clientes)'!$C33+L12*('Facturación-801 (energía)'!$C33-'Facturación-801 (clientes)'!$C33*30000))*0.75 -> 0 | M60: =+(K12*'Facturación-801 (clientes)'!$D33+(L10*10000+L11*20000)*'Facturación-801 (clientes)'!$D33+L12*('Facturación-801 (energía)'!$D33-'Facturación-801 (clientes)'!$D33*30000))*0.75 -> 0 | N60: =+(K12*'Facturación-801 (clientes)'!$E33+(L10*10000+L11*20000)*'Facturación-801 (clientes)'!$E33+L12*('Facturación-801 (energía)'!$E33-'Facturación-801 (clientes)'!$E33*30000))*0.75 -> 0 | O60: =+(K12*'Facturación-801 (clientes)'!$F33+(L10*10000+L11*20000)*'Facturación-801 (clientes)'!$F33+L12*('Facturación-801 (energía)'!$F33-'Facturación-801 (clientes)'!$F33*30000))*0.75 -> 0 | P60: =+(K12*'Facturación-801 (clientes)'!$G33+(L10*10000+L11*20000)*'Facturación-801 (clientes)'!$G33+L12*('Facturación-801 (energía)'!$G33-'Facturación-801 (clientes)'!$G33*30000))*0.75 -> 0 | Q60: 0 | S60: - Jubilados, Pen. Tercera Edad | T60: =+(T12*'Facturación-801 (clientes)'!$B33+(U10*10000+U11*20000)*'Facturación-801 (clientes)'!$B33+U12*('Facturación-801 (energía)'!$B33-'Facturación-801 (clientes)'!$B33*30000))*0.75 -> 0 | U60: =+(T12*'Facturación-801 (clientes)'!$C33+(U10*10000+U11*20000)*'Facturación-801 (clientes)'!$C33+U12*('Facturación-801 (energía)'!$C33-'Facturación-801 (clientes)'!$C33*30000))*0.75 -> 0 | V60: =+(T12*'Facturación-801 (clientes)'!$D33+(U10*10000+U11*20000)*'Facturación-801 (clientes)'!$D33+U12*('Facturación-801 (energía)'!$D33-'Facturación-801 (clientes)'!$D33*30000))*0.75 -> 0 | W60: =+(T12*'Facturación-801 (clientes)'!$E33+(U10*10000+U11*20000)*'Facturación-801 (clientes)'!$E33+U12*('Facturación-801 (energía)'!$E33-'Facturación-801 (clientes)'!$E33*30000))*0.75 -> 0 | X60: =+(T12*'Facturación-801 (clientes)'!$F33+(U10*10000+U11*20000)*'Facturación-801 (clientes)'!$F33+U12*('Facturación-801 (energía)'!$F33-'Facturación-801 (clientes)'!$F33*30000))*0.75 -> 0 | Y60: =+(T12*'Facturación-801 (clientes)'!$G33+(U10*10000+U11*20000)*'Facturación-801 (clientes)'!$G33+U12*('Facturación-801 (energía)'!$G33-'Facturación-801 (clientes)'!$G33*30000))*0.75 -> 0 | Z60: 0
A61: - Partidos Políticos | B61: =+(B12*'Facturación-801 (clientes)'!$B34+(C10*10000+C11*20000)*'Facturación-801 (clientes)'!$B34+C12*('Facturación-801 (energía)'!$B34-'Facturación-801 (clientes)'!$B34*30000))*0.5 -> 0 | C61: =+(B12*'Facturación-801 (clientes)'!$C34+(C10*10000+C11*20000)*'Facturación-801 (clientes)'!$C34+C12*('Facturación-801 (energía)'!$C34-'Facturación-801 (clientes)'!$C34*30000))*0.5 -> 0 | D61: =+(B12*'Facturación-801 (clientes)'!$D34+(C10*10000+C11*20000)*'Facturación-801 (clientes)'!$D34+C12*('Facturación-801 (energía)'!$D34-'Facturación-801 (clientes)'!$D34*30000))*0.5 -> 0 | E61: =+(B12*'Facturación-801 (clientes)'!$E34+(C10*10000+C11*20000)*'Facturación-801 (clientes)'!$E34+C12*('Facturación-801 (energía)'!$E34-'Facturación-801 (clientes)'!$E34*30000))*0.5 -> 0 | F61: =+(B12*'Facturación-801 (clientes)'!$F34+(C10*10000+C11*20000)*'Facturación-801 (clientes)'!$F34+C12*('Facturación-801 (energía)'!$F34-'Facturación-801 (clientes)'!$F34*30000))*0.5 -> 0 | G61: =+(B12*'Facturación-801 (clientes)'!$G34+(C10*10000+C11*20000)*'Facturación-801 (clientes)'!$G34+C12*('Facturación-801 (energía)'!$G34-'Facturación-801 (clientes)'!$G34*30000))*0.5 -> 0 | H61: 0 | J61: - Partidos Políticos | K61: =+(K12*'Facturación-801 (clientes)'!$B34+(L10*10000+L11*20000)*'Facturación-801 (clientes)'!$B34+L12*('Facturación-801 (energía)'!$B34-'Facturación-801 (clientes)'!$B34*30000))*0.5 -> 0 | L61: =+(K12*'Facturación-801 (clientes)'!$C34+(L10*10000+L11*20000)*'Facturación-801 (clientes)'!$C34+L12*('Facturación-801 (energía)'!$C34-'Facturación-801 (clientes)'!$C34*30000))*0.5 -> 0 | M61: =+(K12*'Facturación-801 (clientes)'!$D34+(L10*10000+L11*20000)*'Facturación-801 (clientes)'!$D34+L12*('Facturación-801 (energía)'!$D34-'Facturación-801 (clientes)'!$D34*30000))*0.5 -> 0 | N61: =+(K12*'Facturación-801 (clientes)'!$E34+(L10*10000+L11*20000)*'Facturación-801 (clientes)'!$E34+L12*('Facturación-801 (energía)'!$E34-'Facturación-801 (clientes)'!$E34*30000))*0.5 -> 0 | O61: =+(K12*'Facturación-801 (clientes)'!$F34+(L10*10000+L11*20000)*'Facturación-801 (clientes)'!$F34+L12*('Facturación-801 (energía)'!$F34-'Facturación-801 (clientes)'!$F34*30000))*0.5 -> 0 | P61: =+(K12*'Facturación-801 (clientes)'!$G34+(L10*10000+L11*20000)*'Facturación-801 (clientes)'!$G34+L12*('Facturación-801 (energía)'!$G34-'Facturación-801 (clientes)'!$G34*30000))*0.5 -> 0 | Q61: 0 | S61: - Partidos Políticos | T61: =+(T12*'Facturación-801 (clientes)'!$B34+(U10*10000+U11*20000)*'Facturación-801 (clientes)'!$B34+U12*('Facturación-801 (energía)'!$B34-'Facturación-801 (clientes)'!$B34*30000))*0.5 -> 0 | U61: =+(T12*'Facturación-801 (clientes)'!$C34+(U10*10000+U11*20000)*'Facturación-801 (clientes)'!$C34+U12*('Facturación-801 (energía)'!$C34-'Facturación-801 (clientes)'!$C34*30000))*0.5 -> 0 | V61: =+(T12*'Facturación-801 (clientes)'!$D34+(U10*10000+U11*20000)*'Facturación-801 (clientes)'!$D34+U12*('Facturación-801 (energía)'!$D34-'Facturación-801 (clientes)'!$D34*30000))*0.5 -> 0 | W61: =+(T12*'Facturación-801 (clientes)'!$E34+(U10*10000+U11*20000)*'Facturación-801 (clientes)'!$E34+U12*('Facturación-801 (energía)'!$E34-'Facturación-801 (clientes)'!$E34*30000))*0.5 -> 0 | X61: =+(T12*'Facturación-801 (clientes)'!$F34+(U10*10000+U11*20000)*'Facturación-801 (clientes)'!$F34+U12*('Facturación-801 (energía)'!$F34-'Facturación-801 (clientes)'!$F34*30000))*0.5 -> 0 | Y61: =+(T12*'Facturación-801 (clientes)'!$G34+(U10*10000+U11*20000)*'Facturación-801 (clientes)'!$G34+U12*('Facturación-801 (energía)'!$G34-'Facturación-801 (clientes)'!$G34*30000))*0.5 -> 0 | Z61: 0
A62: Demanda Máxima (50,001-más) | B62: =SUM(B63:B66) -> 186416.8091 | C62: 190643.0998 | D62: 184301.0529 | E62: 187556.9608 | F62: 175866.2597 | G62: 191289.4241 | H62: 1116073.606 | J62: Demanda Máxima (50,001-más) | K62: =SUM(K63:K66) -> -459.515 | L62: -445.695 | M62: -445.695 | N62: -445.695 | O62: -445.695 | P62: -445.695 | Q62: -2687.99 | S62: Demanda Máxima (50,001-más) | T62: =SUM(T63:T66) -> 186876.3241 | U62: 191088.7948 | V62: 184746.7479 | W62: 188002.6558 | X62: 176311.9547 | Y62: 191735.1191 | Z62: 1118761.596
A63: - Regulares | B63: =+B13*'Facturación-801 (clientes)'!$B36+(C10*10000+C11*20000+C12*20000)*'Facturación-801 (clientes)'!$B36+C13*('Facturación-801 (energía)'!$B36-'Facturación-801 (clientes)'!$B36*50000) -> 179293.4677 | C63: =+B13*'Facturación-801 (clientes)'!$C36+(C10*10000+C11*20000+C12*20000)*'Facturación-801 (clientes)'!$C36+C13*('Facturación-801 (energía)'!$C36-'Facturación-801 (clientes)'!$C36*50000) -> 183360.674 | D63: =+B13*'Facturación-801 (clientes)'!$D36+(C10*10000+C11*20000+C12*20000)*'Facturación-801 (clientes)'!$D36+C13*('Facturación-801 (energía)'!$D36-'Facturación-801 (clientes)'!$D36*50000) -> 177258.1385 | E63: =+B13*'Facturación-801 (clientes)'!$E36+(C10*10000+C11*20000+C12*20000)*'Facturación-801 (clientes)'!$E36+C13*('Facturación-801 (energía)'!$E36-'Facturación-801 (clientes)'!$E36*50000) -> 180391.0874 | F63: =+B13*'Facturación-801 (clientes)'!$F36+(C10*10000+C11*20000+C12*20000)*'Facturación-801 (clientes)'!$F36+C13*('Facturación-801 (energía)'!$F36-'Facturación-801 (clientes)'!$F36*50000) -> 169141.9025 | G63: =+B13*'Facturación-801 (clientes)'!$G36+(C10*10000+C11*20000+C12*20000)*'Facturación-801 (clientes)'!$G36+C13*('Facturación-801 (energía)'!$G36-'Facturación-801 (clientes)'!$G36*50000) -> 183982.5886 | H63: 1073427.859 | J63: - Regulares | K63: =+K13*'Facturación-801 (clientes)'!$B36+(L10*10000+L11*20000+L12*20000)*'Facturación-801 (clientes)'!$B36+L13*('Facturación-801 (energía)'!$B36-'Facturación-801 (clientes)'!$B36*50000) -> -525.16 | L63: =+K13*'Facturación-801 (clientes)'!$C36+(L10*10000+L11*20000+L12*20000)*'Facturación-801 (clientes)'!$C36+L13*('Facturación-801 (energía)'!$C36-'Facturación-801 (clientes)'!$C36*50000) -> -511.34 | M63: =+K13*'Facturación-801 (clientes)'!$D36+(L10*10000+L11*20000+L12*20000)*'Facturación-801 (clientes)'!$D36+L13*('Facturación-801 (energía)'!$D36-'Facturación-801 (clientes)'!$D36*50000) -> -511.34 | N63: =+K13*'Facturación-801 (clientes)'!$E36+(L10*10000+L11*20000+L12*20000)*'Facturación-801 (clientes)'!$E36+L13*('Facturación-801 (energía)'!$E36-'Facturación-801 (clientes)'!$E36*50000) -> -511.34 | O63: =+K13*'Facturación-801 (clientes)'!$F36+(L10*10000+L11*20000+L12*20000)*'Facturación-801 (clientes)'!$F36+L13*('Facturación-801 (energía)'!$F36-'Facturación-801 (clientes)'!$F36*50000) -> -511.34 | P63: =+K13*'Facturación-801 (clientes)'!$G36+(L10*10000+L11*20000+L12*20000)*'Facturación-801 (clientes)'!$G36+L13*('Facturación-801 (energía)'!$G36-'Facturación-801 (clientes)'!$G36*50000) -> -511.34 | Q63: -3081.86 | S63: - Regulares | T63: =+T13*'Facturación-801 (clientes)'!$B36+(U10*10000+U11*20000+U12*20000)*'Facturación-801 (clientes)'!$B36+U13*('Facturación-801 (energía)'!$B36-'Facturación-801 (clientes)'!$B36*50000) -> 179818.6277 | U63: =+T13*'Facturación-801 (clientes)'!$C36+(U10*10000+U11*20000+U12*20000)*'Facturación-801 (clientes)'!$C36+U13*('Facturación-801 (energía)'!$C36-'Facturación-801 (clientes)'!$C36*50000) -> 183872.014 | V63: =+T13*'Facturación-801 (clientes)'!$D36+(U10*10000+U11*20000+U12*20000)*'Facturación-801 (clientes)'!$D36+U13*('Facturación-801 (energía)'!$D36-'Facturación-801 (clientes)'!$D36*50000) -> 177769.4785 | W63: =+T13*'Facturación-801 (clientes)'!$E36+(U10*10000+U11*20000+U12*20000)*'Facturación-801 (clientes)'!$E36+U13*('Facturación-801 (energía)'!$E36-'Facturación-801 (clientes)'!$E36*50000) -> 180902.4274 | X63: =+T13*'Facturación-801 (clientes)'!$F36+(U10*10000+U11*20000+U12*20000)*'Facturación-801 (clientes)'!$F36+U13*('Facturación-801 (energía)'!$F36-'Facturación-801 (clientes)'!$F36*50000) -> 169653.2425 | Y63: =+T13*'Facturación-801 (clientes)'!$G36+(U10*10000+U11*20000+U12*20000)*'Facturación-801 (clientes)'!$G36+U13*('Facturación-801 (energía)'!$G36-'Facturación-801 (clientes)'!$G36*50000) -> 184493.9286 | Z63: 1076509.719
